Workbook

Sheet PopPyrCollege (hidden)
A1: American Community Survey (ACS) 2022 | D1: https://usa.ipums.org/usa/
A2: Year | B2: Age | C2: Male | D2: Female
A3: 2023 | B3: 0 | C3: 0 | D3: 0 | G3: What is the takeaway from this chart?
B4: 1 | C4: 0 | D4: 0
B5: 2 | C5: 0 | D5: 0
B6: 3 | C6: 0 | D6: 0
B7: 4 | C7: 0 | D7: 0
B8: 5 | C8: 0 | D8: 0
B9: 6 | C9: 0 | D9: 0
B10: 7 | C10: 0 | D10: 0
B11: 8 | C11: 0 | D11: 0
B12: 9 | C12: 0 | D12: 0
B13: 10 | C13: 0 | D13: 0
B14: 11 | C14: 0 | D14: 0
B15: 12 | C15: 0 | D15: 0
B16: 13 | C16: 0 | D16: 0
B17: 14 | C17: 0 | D17: 0
B18: 15 | C18: 0 | D18: 0
B19: 16 | C19: 0 | D19: 0
B20: 17 | C20: 0 | D20: 0
B21: 18 | C21: 0 | D21: 0
B22: 19 | C22: 0 | D22: 0
B23: 20 | C23: 0 | D23: 0
B24: 21 | C24: 0 | D24: 0
B25: 22 | C25: 0 | D25: 0
B26: 23 | C26: 0 | D26: 0
B27: 24 | C27: 0 | D27: 0 | E27: M/F Ratio
B28: 25 | C28: -715223 | D28: 887886 | E28: =-C28/D28 -> 0.8055347195 | F28: wow!
B29: 26 | C29: -752405 | D29: 896652 | E29: =-C29/D29 -> 0.8391271084
B30: 27 | C30: -775366 | D30: 933608 | E30: 0.83050488
B31: 28 | C31: -772287 | D31: 972342 | E31: 0.7942544907
B32: 29 | C32: -815434 | D32: 982140 | E32: 0.830262488
B33: 30 | C33: -859099 | D33: 1047180 | E33: 0.8203928646 | DG33: Old:65+
B34: 31 | C34: -846733 | D34: 1035471 | E34: 0.8177273917
B35: 32 | C35: -889649 | D35: 1047981 | E35: 0.8489171082
B36: 33 | C36: -870402 | D36: 1037698 | E36: 0.8387816108
B37: 34 | C37: -858148 | D37: 1017916 | E37: 0.8430440233
B38: 35 | C38: -855941 | D38: 1028123 | E38: 0.8325278201
B39: 36 | C39: -846722 | D39: 1019601 | E39: 0.8304444582
B40: 37 | C40: -860965 | D40: 1023846 | E40: 0.8409125982
B41: 38 | C41: -855271 | D41: 975038 | E41: 0.8771668386
B42: 39 | C42: -837896 | D42: 981973 | E42: 0.8532780433
B43: 40 | C43: -834172 | D43: 998296 | E43: 0.8355958553
B44: 41 | C44: -804390 | D44: 952912 | E44: 0.8441388082
B45: 42 | C45: -800252 | D45: 952264 | E45: 0.8403677972
B46: 43 | C46: -745994 | D46: 886625 | E46: 0.8413861554
B47: 44 | C47: -738312 | D47: 863773 | E47: 0.8547523481
B48: 45 | C48: -720785 | D48: 854861 | E48: 0.843160467
B49: 46 | C49: -679056 | D49: 820559 | E49: 0.8275529243
B50: 47 | C50: -695736 | D50: 808744 | E50: 0.8602672786
B51: 48 | C51: -677563 | D51: 807743 | E51: 0.8388348769
B52: 49 | C52: -703625 | D52: 786429 | E52: 0.8947088676
B53: 50 | C53: -727751 | D53: 808537 | E53: 0.9000837315
B54: 51 | C54: -758811 | D54: 830090 | E54: 0.9141309978
B55: 52 | C55: -737807 | D55: 823218 | E55: 0.8962474096
B56: 53 | C56: -699706 | D56: 776781 | E56: 0.9007764093
B57: 54 | C57: -658484 | D57: 752693 | E57: 0.8748374171
B58: 55 | C58: -639882 | D58: 672785 | E58: 0.9510943318
B59: 56 | C59: -596589 | D59: 680272 | E59: 0.8769859703
B60: 57 | C60: -646412 | D60: 710322 | E60: 0.9100267203
B61: 58 | C61: -673985 | D61: 709969 | E61: 0.9493160969
B62: 59 | C62: -656219 | D62: 681591 | E62: 0.9627753301
B63: 60 | C63: -643163 | D63: 695677 | E63: 0.9245138189
B64: 61 | C64: -639663 | D64: 669072 | E64: 0.9560450893
B65: 62 | C65: -630031 | D65: 683252 | E65: 0.9221063385
B66: 63 | C66: -612082 | D66: 655527 | E66: 0.9337250792
B67: 64 | C67: -627600 | D67: 670940 | E67: 0.93540406
B68: 65 | C68: -594651 | D68: 623991 | E68: 0.9529800911
B69: 66 | C69: -558257 | D69: 604291 | E69: 0.9238214701
B70: 67 | C70: -562052 | D70: 594645 | E70: 0.9451891465
B71: 68 | C71: -544625 | D71: 588754 | E71: 0.9250467937
B72: 69 | C72: -561191 | D72: 576358 | E72: 0.9736847584
B73: 70 | C73: -553429 | D73: 562922 | E73: 0.9831362071
B74: 71 | C74: -534594 | D74: 529842 | E74: 1.008968711
B75: 72 | C75: -531775 | D75: 498987 | E75: 1.065709127
B76: 73 | C76: -518996 | D76: 470836 | E76: 1.102286146
B77: 74 | C77: -514959 | D77: 453595 | E77: 1.135283678
B78: 75 | C78: -523633 | D78: 466752 | E78: 1.121865573
B79: 76 | C79: -377800 | D79: 342030 | E79: 1.104581469
B80: 77 | C80: -323439 | D80: 304205 | E80: 1.0632271
B81: 78 | C81: -307135 | D81: 284244 | E81: 1.080532922
B82: 79 | C82: -300767 | D82: 269449 | E82: 1.116229787
B83: 80 | C83: -247299 | D83: 234866 | E83: 1.052936568
B84: 81 | C84: -207828 | D84: 207463 | E84: 1.00175935
B85: 82 | C85: -193882 | D85: 170477 | E85: 1.137291247
B86: 83 | C86: -170829 | D86: 153928 | E86: 1.109798087
B87: 84 | C87: -145265 | D87: 144371 | E87: 1.006192379
B88: 85 | C88: -122153 | D88: 113552 | E88: 1.075745033
B89: 86 | C89: 0 | D89: 0
B90: 87 | C90: 0 | D90: 0
B91: 88 | C91: 0 | D91: 0
B92: 89 | C92: 0 | D92: 0
B93: 90 | C93: 0 | D93: 0
B94: 91 | C94: 0 | D94: 0
B95: 92 | C95: 0 | D95: 0
B96: 93 | C96: 0 | D96: 0
B97: 94 | C97: 0 | D97: 0
B98: 95 | C98: 0 | D98: 0
B99: 96 | C99: 0 | D99: 0
B100: 97 | C100: 0 | D100: 0
B101: 98 | C101: 0 | D101: 0
B102: 99 | C102: 0 | D102: 0
B103: 100 | C103: 0 | D103: 0

Sheet Intro
A1: This workbook explains population pyramids with hypothetical and real-world data.
A2: It is based on Barreto, H. (2017) "Let’s Put Demography Back into Economics: Population Pyramids in Excel," published in The Journal of Economic Education:
B3: https://www.tandfonline.com/doi/full/10.1080/00220485.2017.1397577
A5: A population pyramid is an eye-catching, thought-provoking data visualization displaying the number of people at each age, usually male and female.
A7: Software Requirements:
B8: You need Microsoft EXCEL, WINDOWS DESKTOP version 2007 or greater to get full functionality from this file.
C9: The file can be opened with Mac Excel, but it uses Visual Basic code that may not be fully supported on a Mac.
C10: This file will NOT work with a browser-version of Excel because it contains macros. You must open it with a DESKTOP-version of Excel.
B12: You must be sure to Enable Content or the buttons and code in this macro-enabled workbook will not work.
A14: Let's see if you are ready to go -- CLICK the button below.
A17: If the button above does not display a message on your screen when you click it, please close the workbook and open it again, making sure that you Enable Content.
B18: Search "enable macros" in Excel's Help for more information on how to do this.
B19: You can also click the link below for help from the internet:
B20: www.google.com/search?q=excel+enable+macros
A22: Once you get the Click to Test button (above) to work, you are ready to begin.
W27: 37

Sheet PlanetX (hidden)
A1: In columns C and D we start with a population of 15-44 year old NP (non-potential) and P (potential) child bearers.
G3: Begin Year Pop | I3: start
G4: ="During Year "&A16&":" -> During Year 1:
G5: Births | I5: plus
G6: Deaths | I6: minus
G7: End Year Pop | I7: end
G8: %DPop
A15: Year | B15: Age | C15: NP | D15: P | E15: ASFR | F15: ASDR
A16: 1 | B16: 0 | C16: 0 | D16: 0 | E16: 0 | F16: 0.006
B17: 1 | C17: 0 | D17: 0 | E17: 0 | F17: 0.0003
B18: 2 | C18: 0 | D18: 0 | E18: 0 | F18: 0.0002
B19: 3 | C19: 0 | D19: 0 | E19: 0 | F19: 0.0002
B20: 4 | C20: 0 | D20: 0 | E20: 0 | F20: 0.0001
B21: 5 | C21: 0 | D21: 0 | E21: 0 | F21: 0.0001
B22: 6 | C22: 0 | D22: 0 | E22: 0 | F22: 0.0001
B23: 7 | C23: 0 | D23: 0 | E23: 0 | F23: 0.0001
B24: 8 | C24: 0 | D24: 0 | E24: 0 | F24: 0.0001
B25: 9 | C25: 0 | D25: 0 | E25: 0 | F25: 0.0001
B26: 10 | C26: 0 | D26: 0 | E26: 0 | F26: 0.0001
B27: 11 | C27: 0 | D27: 0 | E27: 0 | F27: 0.0001
B28: 12 | C28: 0 | D28: 0 | E28: 0 | F28: 0.0001
B29: 13 | C29: 0 | D29: 0 | E29: 0 | F29: 0.0001
B30: 14 | C30: 0 | D30: 0 | E30: 0 | F30: 0.0001
B31: 15 | C31: -10000 | D31: 10000 | E31: 0.1 | F31: 0.0002
B32: 16 | C32: -10000 | D32: 10000 | E32: 0.1 | F32: 0.0004
B33: 17 | C33: -10000 | D33: 10000 | E33: 0.1 | F33: 0.0005
B34: 18 | C34: -10000 | D34: 10000 | E34: 0.1 | F34: 0.0006
B35: 19 | C35: -10000 | D35: 10000 | E35: 0.1 | F35: 0.0008
B36: 20 | C36: -10000 | D36: 10000 | E36: 0.1 | F36: 0.0009
B37: 21 | C37: -10000 | D37: 10000 | E37: 0.1 | F37: 0.0009
B38: 22 | C38: -10000 | D38: 10000 | E38: 0.1 | F38: 0.0009
B39: 23 | C39: -10000 | D39: 10000 | E39: 0.1 | F39: 0.0009
B40: 24 | C40: -10000 | D40: 10000 | E40: 0.1 | F40: 0.0009
B41: 25 | C41: -10000 | D41: 10000 | E41: 0.1 | F41: 0.001
B42: 26 | C42: -10000 | D42: 10000 | E42: 0.1 | F42: 0.001
B43: 27 | C43: -10000 | D43: 10000 | E43: 0.1 | F43: 0.001
B44: 28 | C44: -10000 | D44: 10000 | E44: 0.1 | F44: 0.001
B45: 29 | C45: -10000 | D45: 10000 | E45: 0.1 | F45: 0.001
B46: 30 | C46: -10000 | D46: 10000 | E46: 0.1 | F46: 0.0011
B47: 31 | C47: -10000 | D47: 10000 | E47: 0.1 | F47: 0.0011
B48: 32 | C48: -10000 | D48: 10000 | E48: 0.1 | F48: 0.0011
B49: 33 | C49: -10000 | D49: 10000 | E49: 0.1 | F49: 0.0011
B50: 34 | C50: -10000 | D50: 10000 | E50: 0.1 | F50: 0.0011
B51: 35 | C51: -10000 | D51: 10000 | E51: 0.1 | F51: 0.0014
B52: 36 | C52: -10000 | D52: 10000 | E52: 0.1 | F52: 0.0014
B53: 37 | C53: -10000 | D53: 10000 | E53: 0.1 | F53: 0.0014
B54: 38 | C54: -10000 | D54: 10000 | E54: 0.1 | F54: 0.0014
B55: 39 | C55: -10000 | D55: 10000 | E55: 0.1 | F55: 0.0014
B56: 40 | C56: -10000 | D56: 10000 | E56: 0.1 | F56: 0.0016
B57: 41 | C57: -10000 | D57: 10000 | E57: 0.1 | F57: 0.0018
B58: 42 | C58: -10000 | D58: 10000 | E58: 0.1 | F58: 0.002
B59: 43 | C59: -10000 | D59: 10000 | E59: 0.1 | F59: 0.0022
B60: 44 | C60: -10000 | D60: 10000 | E60: 0.1 | F60: 0.0024
B61: 45 | C61: 0 | D61: 0 | E61: 0 | F61: 0.0026
B62: 46 | C62: 0 | D62: 0 | E62: 0 | F62: 0.0028
B63: 47 | C63: 0 | D63: 0 | E63: 0 | F63: 0.003
B64: 48 | C64: 0 | D64: 0 | E64: 0 | F64: 0.0032
B65: 49 | C65: 0 | D65: 0 | E65: 0 | F65: 0.0034
B66: 50 | C66: 0 | D66: 0 | E66: 0 | F66: 0.004
B67: 51 | C67: 0 | D67: 0 | E67: 0 | F67: 0.0045
B68: 52 | C68: 0 | D68: 0 | E68: 0 | F68: 0.005
B69: 53 | C69: 0 | D69: 0 | E69: 0 | F69: 0.0055
B70: 54 | C70: 0 | D70: 0 | E70: 0 | F70: 0.006
B71: 55 | C71: 0 | D71: 0 | E71: 0 | F71: 0.0063
B72: 56 | C72: 0 | D72: 0 | E72: 0 | F72: 0.0066
B73: 57 | C73: 0 | D73: 0 | E73: 0 | F73: 0.007
B74: 58 | C74: 0 | D74: 0 | E74: 0 | F74: 0.0073
B75: 59 | C75: 0 | D75: 0 | E75: 0 | F75: 0.0076
B76: 60 | C76: 0 | D76: 0 | E76: 0 | F76: 0.008
B77: 61 | C77: 0 | D77: 0 | E77: 0 | F77: 0.009
B78: 62 | C78: 0 | D78: 0 | E78: 0 | F78: 0.01
B79: 63 | C79: 0 | D79: 0 | E79: 0 | F79: 0.011
B80: 64 | C80: 0 | D80: 0 | E80: 0 | F80: 0.012
B81: 65 | C81: 0 | D81: 0 | E81: 0 | F81: 0.013
B82: 66 | C82: 0 | D82: 0 | E82: 0 | F82: 0.014
B83: 67 | C83: 0 | D83: 0 | E83: 0 | F83: 0.015
B84: 68 | C84: 0 | D84: 0 | E84: 0 | F84: 0.016
B85: 69 | C85: 0 | D85: 0 | E85: 0 | F85: 0.017
B86: 70 | C86: 0 | D86: 0 | E86: 0 | F86: 0.019
B87: 71 | C87: 0 | D87: 0 | E87: 0 | F87: 0.021
B88: 72 | C88: 0 | D88: 0 | E88: 0 | F88: 0.023
B89: 73 | C89: 0 | D89: 0 | E89: 0 | F89: 0.025
B90: 74 | C90: 0 | D90: 0 | E90: 0 | F90: 0.027
B91: 75 | C91: 0 | D91: 0 | E91: 0 | F91: 0.03
B92: 76 | C92: 0 | D92: 0 | E92: 0 | F92: 0.033
B93: 77 | C93: 0 | D93: 0 | E93: 0 | F93: 0.037
B94: 78 | C94: 0 | D94: 0 | E94: 0 | F94: 0.041
B95: 79 | C95: 0 | D95: 0 | E95: 0 | F95: 0.044
B96: 80 | C96: 0 | D96: 0 | E96: 0 | F96: 0.049
B97: 81 | C97: 0 | D97: 0 | E97: 0 | F97: 0.054
B98: 82 | C98: 0 | D98: 0 | E98: 0 | F98: 0.06
B99: 83 | C99: 0 | D99: 0 | E99: 0 | F99: 0.066
B100: 84 | C100: 0 | D100: 0 | E100: 0 | F100: 0.071
B101: 85 | C101: 0 | D101: 0 | E101: 0 | F101: 1

Sheet Propagate (hidden)
A1: The data generation process (DGP) explains propagation -- the breeding of a plant or animal from parent stock
G3: Begin Year Pop | H3: =-SUM(C16:C101)+SUM(D16:D101) -> 600000
G4: ="During Year "&A16&":" -> During Year 1:
G5: Births | H5: =SUMPRODUCT(D31:D60,E31:E60) -> 30000
G6: Deaths | H6: =-SUMPRODUCT(C16:C101,F16:F101)+SUMPRODUCT(D16:D101,F16:F101) -> 690
G7: End Year Pop | H7: =H3+H5-H6 -> 629310
G8: %DPop | H8: =(H7-H3)/H3 -> 0.04885
A15: Year | B15: Age | C15: NP | D15: P | E15: ASFR | F15: ASDR | J15: Year | K15: Age | L15: NP | M15: P | N15: ASFR | O15: ASDR
A16: 1 | B16: 0 | C16: 0 | D16: 0 | F16: 0.006 | J16: =A16+1 -> 2 | K16: 0 | L16: =-0.5*SUMPRODUCT(D16:D101,E16:E101) -> -15000 | M16: =0.5*SUMPRODUCT(D16:D101,E16:E101) -> 15000 | N16: 0 | O16: =F16 -> 0.006
B17: 1 | C17: 0 | D17: 0 | F17: 0.0003 | K17: 1 | L17: =(1-$F16)*C16 -> 0 | M17: =(1-$F16)*D16 -> 0 | N17: =(1-$F16)*E16 -> 0 | O17: 0.0003
B18: 2 | C18: 0 | D18: 0 | F18: 0.0002 | K18: 2 | L18: =(1-$F17)*C17 -> 0 | M18: 0 | N18: 0 | O18: 0.0002
B19: 3 | C19: 0 | D19: 0 | F19: 0.0002 | K19: 3 | L19: 0 | M19: 0 | N19: 0 | O19: 0.0002
B20: 4 | C20: 0 | D20: 0 | F20: 0.0001 | K20: 4 | L20: =(1-$F19)*C19 -> 0 | M20: 0 | N20: 0 | O20: 0.0001
B21: 5 | C21: 0 | D21: 0 | F21: 0.0001 | K21: 5 | L21: 0 | M21: 0 | N21: 0 | O21: 0.0001
B22: 6 | C22: 0 | D22: 0 | F22: 0.0001 | K22: 6 | L22: 0 | M22: 0 | N22: 0 | O22: 0.0001
B23: 7 | C23: 0 | D23: 0 | F23: 0.0001 | K23: 7 | L23: 0 | M23: 0 | N23: 0 | O23: =F23 -> 0.0001
B24: 8 | C24: 0 | D24: 0 | F24: 0.0001 | K24: 8 | L24: 0 | M24: 0 | N24: 0 | O24: 0.0001
B25: 9 | C25: 0 | D25: 0 | F25: 0.0001 | K25: 9 | L25: 0 | M25: 0 | N25: 0 | O25: 0.0001
B26: 10 | C26: 0 | D26: 0 | F26: 0.0001 | K26: 10 | L26: 0 | M26: 0 | N26: 0 | O26: 0.0001
B27: 11 | C27: 0 | D27: 0 | F27: 0.0001 | K27: 11 | L27: 0 | M27: 0 | N27: 0 | O27: 0.0001
B28: 12 | C28: 0 | D28: 0 | F28: 0.0001 | K28: 12 | L28: 0 | M28: 0 | N28: 0 | O28: 0.0001
B29: 13 | C29: 0 | D29: 0 | F29: 0.0001 | K29: 13 | L29: 0 | M29: 0 | N29: 0 | O29: 0.0001
B30: 14 | C30: 0 | D30: 0 | F30: 0.0001 | K30: 14 | L30: 0 | M30: 0 | N30: 0 | O30: 0.0001
B31: 15 | C31: -10000 | D31: 10000 | E31: 0.1 | F31: 0.0002 | K31: 15 | L31: 0 | M31: 0 | N31: =E31 -> 0.1 | O31: 0.0002
B32: 16 | C32: -10000 | D32: 10000 | E32: 0.1 | F32: 0.0004 | K32: 16 | L32: -9998 | M32: 9998 | N32: 0.1 | O32: 0.0004
B33: 17 | C33: -10000 | D33: 10000 | E33: 0.1 | F33: 0.0005 | K33: 17 | L33: -9996 | M33: 9996 | N33: 0.1 | O33: 0.0005
B34: 18 | C34: -10000 | D34: 10000 | E34: 0.1 | F34: 0.0006 | K34: 18 | L34: =(1-$F33)*C33 -> -9995 | M34: 9995 | N34: 0.1 | O34: 0.0006
B35: 19 | C35: -10000 | D35: 10000 | E35: 0.1 | F35: 0.0008 | K35: 19 | L35: -9994 | M35: 9994 | N35: 0.1 | O35: 0.0008
B36: 20 | C36: -10000 | D36: 10000 | E36: 0.1 | F36: 0.0009 | K36: 20 | L36: -9992 | M36: 9992 | N36: 0.1 | O36: 0.0009
B37: 21 | C37: -10000 | D37: 10000 | E37: 0.1 | F37: 0.0009 | K37: 21 | L37: -9991 | M37: 9991 | N37: 0.1 | O37: 0.0009
B38: 22 | C38: -10000 | D38: 10000 | E38: 0.1 | F38: 0.0009 | K38: 22 | L38: -9991 | M38: 9991 | N38: 0.1 | O38: 0.0009
B39: 23 | C39: -10000 | D39: 10000 | E39: 0.1 | F39: 0.0009 | K39: 23 | L39: -9991 | M39: 9991 | N39: 0.1 | O39: 0.0009
B40: 24 | C40: -10000 | D40: 10000 | E40: 0.1 | F40: 0.0009 | K40: 24 | L40: -9991 | M40: 9991 | N40: 0.1 | O40: 0.0009
B41: 25 | C41: -10000 | D41: 10000 | E41: 0.1 | F41: 0.001 | K41: 25 | L41: -9991 | M41: 9991 | N41: 0.1 | O41: 0.001
B42: 26 | C42: -10000 | D42: 10000 | E42: 0.1 | F42: 0.001 | K42: 26 | L42: -9990 | M42: 9990 | N42: 0.1 | O42: 0.001
B43: 27 | C43: -10000 | D43: 10000 | E43: 0.1 | F43: 0.001 | K43: 27 | L43: -9990 | M43: 9990 | N43: 0.1 | O43: 0.001
B44: 28 | C44: -10000 | D44: 10000 | E44: 0.1 | F44: 0.001 | K44: 28 | L44: -9990 | M44: 9990 | N44: 0.1 | O44: 0.001
B45: 29 | C45: -10000 | D45: 10000 | E45: 0.1 | F45: 0.001 | K45: 29 | L45: -9990 | M45: 9990 | N45: 0.1 | O45: 0.001
B46: 30 | C46: -10000 | D46: 10000 | E46: 0.1 | F46: 0.0011 | K46: 30 | L46: -9990 | M46: 9990 | N46: 0.1 | O46: 0.0011
B47: 31 | C47: -10000 | D47: 10000 | E47: 0.1 | F47: 0.0011 | K47: 31 | L47: -9989 | M47: 9989 | N47: 0.1 | O47: 0.0011
B48: 32 | C48: -10000 | D48: 10000 | E48: 0.1 | F48: 0.0011 | K48: 32 | L48: -9989 | M48: 9989 | N48: 0.1 | O48: 0.0011
B49: 33 | C49: -10000 | D49: 10000 | E49: 0.1 | F49: 0.0011 | K49: 33 | L49: -9989 | M49: 9989 | N49: 0.1 | O49: 0.0011
B50: 34 | C50: -10000 | D50: 10000 | E50: 0.1 | F50: 0.0011 | K50: 34 | L50: =(1-$F49)*C49 -> -9989 | M50: 9989 | N50: 0.1 | O50: 0.0011
B51: 35 | C51: -10000 | D51: 10000 | E51: 0.1 | F51: 0.0014 | K51: 35 | L51: -9989 | M51: 9989 | N51: 0.1 | O51: 0.0014
B52: 36 | C52: -10000 | D52: 10000 | E52: 0.1 | F52: 0.0014 | K52: 36 | L52: -9986 | M52: 9986 | N52: 0.1 | O52: 0.0014
B53: 37 | C53: -10000 | D53: 10000 | E53: 0.1 | F53: 0.0014 | K53: 37 | L53: -9986 | M53: 9986 | N53: 0.1 | O53: 0.0014
B54: 38 | C54: -10000 | D54: 10000 | E54: 0.1 | F54: 0.0014 | K54: 38 | L54: -9986 | M54: 9986 | N54: 0.1 | O54: 0.0014
B55: 39 | C55: -10000 | D55: 10000 | E55: 0.1 | F55: 0.0014 | K55: 39 | L55: -9986 | M55: 9986 | N55: 0.1 | O55: 0.0014
B56: 40 | C56: -10000 | D56: 10000 | E56: 0.1 | F56: 0.0016 | K56: 40 | L56: -9986 | M56: 9986 | N56: 0.1 | O56: 0.0016
B57: 41 | C57: -10000 | D57: 10000 | E57: 0.1 | F57: 0.0018 | K57: 41 | L57: -9984 | M57: 9984 | N57: 0.1 | O57: 0.0018
B58: 42 | C58: -10000 | D58: 10000 | E58: 0.1 | F58: 0.002 | K58: 42 | L58: -9982 | M58: 9982 | N58: 0.1 | O58: 0.002
B59: 43 | C59: -10000 | D59: 10000 | E59: 0.1 | F59: 0.0022 | K59: 43 | L59: -9980 | M59: 9980 | N59: 0.1 | O59: 0.0022
B60: 44 | C60: -10000 | D60: 10000 | E60: 0.1 | F60: 0.0024 | K60: 44 | L60: -9978 | M60: 9978 | N60: 0.1 | O60: 0.0024
B61: 45 | C61: 0 | D61: 0 | F61: 0.0026 | K61: 45 | L61: -9976 | M61: 9976 | N61: 0 | O61: 0.0026
B62: 46 | C62: 0 | D62: 0 | F62: 0.0028 | K62: 46 | L62: 0 | M62: 0 | N62: 0 | O62: 0.0028
B63: 47 | C63: 0 | D63: 0 | F63: 0.003 | K63: 47 | L63: 0 | M63: 0 | N63: 0 | O63: 0.003
B64: 48 | C64: 0 | D64: 0 | F64: 0.0032 | K64: 48 | L64: 0 | M64: 0 | N64: 0 | O64: 0.0032
B65: 49 | C65: 0 | D65: 0 | F65: 0.0034 | K65: 49 | L65: 0 | M65: 0 | N65: 0 | O65: 0.0034
B66: 50 | C66: 0 | D66: 0 | F66: 0.004 | K66: 50 | L66: =(1-$F65)*C65 -> 0 | M66: 0 | N66: 0 | O66: 0.004
B67: 51 | C67: 0 | D67: 0 | F67: 0.0045 | K67: 51 | L67: 0 | M67: 0 | N67: 0 | O67: 0.0045
B68: 52 | C68: 0 | D68: 0 | F68: 0.005 | K68: 52 | L68: 0 | M68: 0 | N68: 0 | O68: 0.005
B69: 53 | C69: 0 | D69: 0 | F69: 0.0055 | K69: 53 | L69: 0 | M69: 0 | N69: 0 | O69: 0.0055
B70: 54 | C70: 0 | D70: 0 | F70: 0.006 | K70: 54 | L70: 0 | M70: 0 | N70: 0 | O70: 0.006
B71: 55 | C71: 0 | D71: 0 | F71: 0.0063 | K71: 55 | L71: 0 | M71: 0 | N71: 0 | O71: 0.0063
B72: 56 | C72: 0 | D72: 0 | F72: 0.0066 | K72: 56 | L72: 0 | M72: 0 | N72: 0 | O72: 0.0066
B73: 57 | C73: 0 | D73: 0 | F73: 0.007 | K73: 57 | L73: 0 | M73: 0 | N73: 0 | O73: 0.007
B74: 58 | C74: 0 | D74: 0 | F74: 0.0073 | K74: 58 | L74: 0 | M74: 0 | N74: 0 | O74: 0.0073
B75: 59 | C75: 0 | D75: 0 | F75: 0.0076 | K75: 59 | L75: 0 | M75: 0 | N75: 0 | O75: 0.0076
B76: 60 | C76: 0 | D76: 0 | F76: 0.008 | K76: 60 | L76: 0 | M76: 0 | N76: 0 | O76: 0.008
B77: 61 | C77: 0 | D77: 0 | F77: 0.009 | K77: 61 | L77: 0 | M77: 0 | N77: 0 | O77: 0.009
B78: 62 | C78: 0 | D78: 0 | F78: 0.01 | K78: 62 | L78: 0 | M78: 0 | N78: 0 | O78: 0.01
B79: 63 | C79: 0 | D79: 0 | F79: 0.011 | K79: 63 | L79: 0 | M79: 0 | N79: 0 | O79: 0.011
B80: 64 | C80: 0 | D80: 0 | F80: 0.012 | K80: 64 | L80: 0 | M80: 0 | N80: 0 | O80: 0.012
B81: 65 | C81: 0 | D81: 0 | F81: 0.013 | K81: 65 | L81: 0 | M81: 0 | N81: 0 | O81: 0.013
B82: 66 | C82: 0 | D82: 0 | F82: 0.014 | K82: 66 | L82: =(1-$F81)*C81 -> 0 | M82: 0 | N82: 0 | O82: 0.014
B83: 67 | C83: 0 | D83: 0 | F83: 0.015 | K83: 67 | L83: 0 | M83: 0 | N83: 0 | O83: 0.015
B84: 68 | C84: 0 | D84: 0 | F84: 0.016 | K84: 68 | L84: 0 | M84: 0 | N84: 0 | O84: =F84 -> 0.016
B85: 69 | C85: 0 | D85: 0 | F85: 0.017 | K85: 69 | L85: 0 | M85: 0 | N85: 0 | O85: 0.017
B86: 70 | C86: 0 | D86: 0 | F86: 0.019 | K86: 70 | L86: 0 | M86: 0 | N86: 0 | O86: 0.019
B87: 71 | C87: 0 | D87: 0 | F87: 0.021 | K87: 71 | L87: 0 | M87: 0 | N87: 0 | O87: 0.021
B88: 72 | C88: 0 | D88: 0 | F88: 0.023 | K88: 72 | L88: 0 | M88: 0 | N88: 0 | O88: 0.023
B89: 73 | C89: 0 | D89: 0 | F89: 0.025 | K89: 73 | L89: 0 | M89: 0 | N89: 0 | O89: 0.025
B90: 74 | C90: 0 | D90: 0 | F90: 0.027 | K90: 74 | L90: 0 | M90: 0 | N90: 0 | O90: 0.027
B91: 75 | C91: 0 | D91: 0 | F91: 0.03 | K91: 75 | L91: 0 | M91: 0 | N91: 0 | O91: 0.03
B92: 76 | C92: 0 | D92: 0 | F92: 0.033 | K92: 76 | L92: 0 | M92: 0 | N92: 0 | O92: 0.033
B93: 77 | C93: 0 | D93: 0 | F93: 0.037 | K93: 77 | L93: 0 | M93: 0 | N93: 0 | O93: 0.037
B94: 78 | C94: 0 | D94: 0 | F94: 0.041 | K94: 78 | L94: 0 | M94: 0 | N94: 0 | O94: 0.041
B95: 79 | C95: 0 | D95: 0 | F95: 0.044 | K95: 79 | L95: 0 | M95: 0 | N95: 0 | O95: 0.044
B96: 80 | C96: 0 | D96: 0 | F96: 0.049 | K96: 80 | L96: 0 | M96: 0 | N96: 0 | O96: 0.049
B97: 81 | C97: 0 | D97: 0 | F97: 0.054 | K97: 81 | L97: 0 | M97: 0 | N97: 0 | O97: 0.054
B98: 82 | C98: 0 | D98: 0 | F98: 0.06 | K98: 82 | L98: =(1-$F97)*C97 -> 0 | M98: 0 | N98: 0 | O98: 0.06
B99: 83 | C99: 0 | D99: 0 | F99: 0.066 | K99: 83 | L99: 0 | M99: 0 | N99: 0 | O99: 0.066
B100: 84 | C100: 0 | D100: 0 | F100: 0.071 | K100: 84 | L100: 0 | M100: 0 | N100: 0 | O100: 0.071
B101: 85 | C101: 0 | D101: 0 | F101: 1 | K101: 85 | L101: 0 | M101: 0 | N101: 0 | O101: 1

Sheet Propagate200 (hidden)
A1: The data generation process (DGP) explains propagation -- the breeding of a plant or animal from parent stock
G3: Begin Year Pop | H3: =-SUM(C16:C101)+SUM(D16:D101) -> 600000 | P3: Begin Year Pop | Q3: =-SUM(L16:L101)+SUM(M16:M101) -> 614310 | Y3: Begin Year Pop | Z3: =-SUM(U16:U101)+SUM(V16:V101) -> 627966.9476 | AH3: Begin Year Pop | AI3: =-SUM(AD16:AD101)+SUM(AE16:AE101) -> 641060.8935 | AQ3: Begin Year Pop | AR3: =-SUM(AM16:AM101)+SUM(AN16:AN101) -> 653592.9334 | AZ3: Begin Year Pop | BA3: =-SUM(AV16:AV101)+SUM(AW16:AW101) -> 665562.603 | BI3: Begin Year Pop | BJ3: =-SUM(BE16:BE101)+SUM(BF16:BF101) -> 676972.9094 | BR3: Begin Year Pop | BS3: =-SUM(BN16:BN101)+SUM(BO16:BO101) -> 687815.4925 | CA3: Begin Year Pop | CB3: =-SUM(BW16:BW101)+SUM(BX16:BX101) -> 698082.1534 | CJ3: Begin Year Pop | CK3: =-SUM(CF16:CF101)+SUM(CG16:CG101) -> 707764.8316 | CS3: Begin Year Pop | CT3: =-SUM(CO16:CO101)+SUM(CP16:CP101) -> 716855.6168 | DB3: Begin Year Pop | DC3: =-SUM(CX16:CX101)+SUM(CY16:CY101) -> 725346.7612 | DK3: Begin Year Pop | DL3: =-SUM(DG16:DG101)+SUM(DH16:DH101) -> 733236.361 | DT3: Begin Year Pop | DU3: =-SUM(DP16:DP101)+SUM(DQ16:DQ101) -> 740520.6761 | EC3: Begin Year Pop | ED3: =-SUM(DY16:DY101)+SUM(DZ16:DZ101) -> 747194.1811 | EL3: Begin Year Pop | EM3: =-SUM(EH16:EH101)+SUM(EI16:EI101) -> 753253.3858 | EU3: Begin Year Pop | EV3: =-SUM(EQ16:EQ101)+SUM(ER16:ER101) -> 758694.9163 | FD3: Begin Year Pop | FE3: =-SUM(EZ16:EZ101)+SUM(FA16:FA101) -> 763886.1835 | FM3: Begin Year Pop | FN3: =-SUM(FI16:FI101)+SUM(FJ16:FJ101) -> 768793.1967 | FV3: Begin Year Pop | FW3: =-SUM(FR16:FR101)+SUM(FS16:FS101) -> 773386.2103 | GE3: Begin Year Pop | GF3: =-SUM(GA16:GA101)+SUM(GB16:GB101) -> 777636.1088 | GN3: Begin Year Pop | GO3: =-SUM(GJ16:GJ101)+SUM(GK16:GK101) -> 781512.923 | GW3: Begin Year Pop | GX3: =-SUM(GS16:GS101)+SUM(GT16:GT101) -> 784994.7405 | HF3: Begin Year Pop | HG3: =-SUM(HB16:HB101)+SUM(HC16:HC101) -> 788056.0771 | HO3: Begin Year Pop | HP3: =-SUM(HK16:HK101)+SUM(HL16:HL101) -> 790672.1737 | HX3: Begin Year Pop | HY3: =-SUM(HT16:HT101)+SUM(HU16:HU101) -> 792819.0283 | IG3: Begin Year Pop | IH3: =-SUM(IC16:IC101)+SUM(ID16:ID101) -> 794473.4231 | IP3: Begin Year Pop | IQ3: =-SUM(IL16:IL101)+SUM(IM16:IM101) -> 795599.0026 | IY3: Begin Year Pop | IZ3: =-SUM(IU16:IU101)+SUM(IV16:IV101) -> 796162.6773 | JH3: Begin Year Pop | JI3: =-SUM(JD16:JD101)+SUM(JE16:JE101) -> 796133.2982 | JQ3: Begin Year Pop | JR3: =-SUM(JM16:JM101)+SUM(JN16:JN101) -> 795481.7583 | JZ3: Begin Year Pop | KA3: =-SUM(JV16:JV101)+SUM(JW16:JW101) -> 794181.0281 | KI3: Begin Year Pop | KJ3: =-SUM(KE16:KE101)+SUM(KF16:KF101) -> 792673.2549 | KR3: Begin Year Pop | KS3: =-SUM(KN16:KN101)+SUM(KO16:KO101) -> 790927.7198 | LA3: Begin Year Pop | LB3: =-SUM(KW16:KW101)+SUM(KX16:KX101) -> 788906.094 | LJ3: Begin Year Pop | LK3: =-SUM(LF16:LF101)+SUM(LG16:LG101) -> 786575.1237 | LS3: Begin Year Pop | LT3: =-SUM(LO16:LO101)+SUM(LP16:LP101) -> 783919.3807 | MB3: Begin Year Pop | MC3: =-SUM(LX16:LX101)+SUM(LY16:LY101) -> 780906.2106 | MK3: Begin Year Pop | ML3: =-SUM(MG16:MG101)+SUM(MH16:MH101) -> 777512.5635 | MT3: Begin Year Pop | MU3: =-SUM(MP16:MP101)+SUM(MQ16:MQ101) -> 773711.7579 | NC3: Begin Year Pop | ND3: =-SUM(MY16:MY101)+SUM(MZ16:MZ101) -> 769486.2348 | NL3: Begin Year Pop | NM3: =-SUM(NH16:NH101)+SUM(NI16:NI101) -> 764836.915 | NU3: Begin Year Pop | NV3: =-SUM(NQ16:NQ101)+SUM(NR16:NR101) -> 751607.005 | OD3: Begin Year Pop | OE3: =-SUM(NZ16:NZ101)+SUM(OA16:OA101) -> 738639.6373 | OM3: Begin Year Pop | ON3: =-SUM(OI16:OI101)+SUM(OJ16:OJ101) -> 725929.7636 | OV3: Begin Year Pop | OW3: =-SUM(OR16:OR101)+SUM(OS16:OS101) -> 713470.2729 | PE3: Begin Year Pop | PF3: =-SUM(PA16:PA101)+SUM(PB16:PB101) -> 701253.8585 | PN3: Begin Year Pop | PO3: =-SUM(PJ16:PJ101)+SUM(PK16:PK101) -> 688915.3468 | PW3: Begin Year Pop | PX3: =-SUM(PS16:PS101)+SUM(PT16:PT101) -> 676488.4091 | QF3: Begin Year Pop | QG3: =-SUM(QB16:QB101)+SUM(QC16:QC101) -> 664003.9461 | QO3: Begin Year Pop | QP3: =-SUM(QK16:QK101)+SUM(QL16:QL101) -> 651492.2413 | QX3: Begin Year Pop | QY3: =-SUM(QT16:QT101)+SUM(QU16:QU101) -> 638982.9582 | RG3: Begin Year Pop | RH3: =-SUM(RC16:RC101)+SUM(RD16:RD101) -> 626496.9302 | RP3: Begin Year Pop | RQ3: =-SUM(RL16:RL101)+SUM(RM16:RM101) -> 614058.4544 | RY3: Begin Year Pop | RZ3: =-SUM(RU16:RU101)+SUM(RV16:RV101) -> 601691.3147 | SH3: Begin Year Pop | SI3: =-SUM(SD16:SD101)+SUM(SE16:SE101) -> 589418.7513 | SQ3: Begin Year Pop | SR3: =-SUM(SM16:SM101)+SUM(SN16:SN101) -> 577263.4336 | SZ3: Begin Year Pop | TA3: =-SUM(SV16:SV101)+SUM(SW16:SW101) -> 565265.1982 | TI3: Begin Year Pop | TJ3: =-SUM(TE16:TE101)+SUM(TF16:TF101) -> 553462.9563 | TR3: Begin Year Pop | TS3: =-SUM(TN16:TN101)+SUM(TO16:TO101) -> 541892.3763 | UA3: Begin Year Pop | UB3: =-SUM(TW16:TW101)+SUM(TX16:TX101) -> 530588.5624 | UJ3: Begin Year Pop | UK3: =-SUM(UF16:UF101)+SUM(UG16:UG101) -> 519584.5294 | US3: Begin Year Pop | UT3: =-SUM(UO16:UO101)+SUM(UP16:UP101) -> 508923.0638 | VB3: Begin Year Pop | VC3: =-SUM(UX16:UX101)+SUM(UY16:UY101) -> 498618.5976 | VK3: Begin Year Pop | VL3: =-SUM(VG16:VG101)+SUM(VH16:VH101) -> 488696.7767 | VT3: Begin Year Pop | VU3: =-SUM(VP16:VP101)+SUM(VQ16:VQ101) -> 479179.5359 | WC3: Begin Year Pop | WD3: =-SUM(VY16:VY101)+SUM(VZ16:VZ101) -> 470072.706 | WL3: Begin Year Pop | WM3: =-SUM(WH16:WH101)+SUM(WI16:WI101) -> 461402.3033 | WU3: Begin Year Pop | WV3: =-SUM(WQ16:WQ101)+SUM(WR16:WR101) -> 453187.5959 | XD3: Begin Year Pop | XE3: =-SUM(WZ16:WZ101)+SUM(XA16:XA101) -> 445453.2885 | XM3: Begin Year Pop | XN3: =-SUM(XI16:XI101)+SUM(XJ16:XJ101) -> 438216.3249 | XV3: Begin Year Pop | XW3: =-SUM(XR16:XR101)+SUM(XS16:XS101) -> 431476.017 | YE3: Begin Year Pop | YF3: =-SUM(YA16:YA101)+SUM(YB16:YB101) -> 433114.42 | YN3: Begin Year Pop | YO3: =-SUM(YJ16:YJ101)+SUM(YK16:YK101) -> 434572.1952 | YW3: Begin Year Pop | YX3: =-SUM(YS16:YS101)+SUM(YT16:YT101) -> 435841.9697 | ZF3: Begin Year Pop | ZG3: =-SUM(ZB16:ZB101)+SUM(ZC16:ZC101) -> 436918.8398 | ZO3: Begin Year Pop | ZP3: =-SUM(ZK16:ZK101)+SUM(ZL16:ZL101) -> 437800.418 | ZX3: Begin Year Pop | ZY3: =-SUM(ZT16:ZT101)+SUM(ZU16:ZU101) -> 438476.3591 | AAG3: Begin Year Pop | AAH3: =-SUM(AAC16:AAC101)+SUM(AAD16:AAD101) -> 438928.5524 | AAP3: Begin Year Pop | AAQ3: =-SUM(AAL16:AAL101)+SUM(AAM16:AAM101) -> 439132.1379 | AAY3: Begin Year Pop | AAZ3: =-SUM(AAU16:AAU101)+SUM(AAV16:AAV101) -> 439066.752 | ABH3: Begin Year Pop | ABI3: =-SUM(ABD16:ABD101)+SUM(ABE16:ABE101) -> 438725.6733 | ABQ3: Begin Year Pop | ABR3: =-SUM(ABM16:ABM101)+SUM(ABN16:ABN101) -> 438087.8588 | ABZ3: Begin Year Pop | ACA3: =-SUM(ABV16:ABV101)+SUM(ABW16:ABW101) -> 437138.278 | ACI3: Begin Year Pop | ACJ3: =-SUM(ACE16:ACE101)+SUM(ACF16:ACF101) -> 435859.9768 | ACR3: Begin Year Pop | ACS3: =-SUM(ACN16:ACN101)+SUM(ACO16:ACO101) -> 434243.3943 | ADA3: Begin Year Pop | ADB3: =-SUM(ACW16:ACW101)+SUM(ACX16:ACX101) -> 432292.9345 | ADJ3: Begin Year Pop | ADK3: =-SUM(ADF16:ADF101)+SUM(ADG16:ADG101) -> 424139.2899 | ADS3: Begin Year Pop | ADT3: =-SUM(ADO16:ADO101)+SUM(ADP16:ADP101) -> 416353.1926 | AEB3: Begin Year Pop | AEC3: =-SUM(ADX16:ADX101)+SUM(ADY16:ADY101) -> 408923.6699 | AEK3: Begin Year Pop | AEL3: =-SUM(AEG16:AEG101)+SUM(AEH16:AEH101) -> 401839.6513 | AET3: Begin Year Pop | AEU3: =-SUM(AEP16:AEP101)+SUM(AEQ16:AEQ101) -> 395090.1035 | AFC3: Begin Year Pop | AFD3: =-SUM(AEY16:AEY101)+SUM(AEZ16:AEZ101) -> 388664.0994 | AFL3: Begin Year Pop | AFM3: =-SUM(AFH16:AFH101)+SUM(AFI16:AFI101) -> 382559.179 | AFU3: Begin Year Pop | AFV3: =-SUM(AFQ16:AFQ101)+SUM(AFR16:AFR101) -> 376771.6006 | AGD3: Begin Year Pop | AGE3: =-SUM(AFZ16:AFZ101)+SUM(AGA16:AGA101) -> 371296.2612 | AGM3: Begin Year Pop | AGN3: =-SUM(AGI16:AGI101)+SUM(AGJ16:AGJ101) -> 366126.8245 | AGV3: Begin Year Pop | AGW3: =-SUM(AGR16:AGR101)+SUM(AGS16:AGS101) -> 361256.0753 | AHE3: Begin Year Pop | AHF3: =-SUM(AHA16:AHA101)+SUM(AHB16:AHB101) -> 356675.7768 | AHN3: Begin Year Pop | AHO3: =-SUM(AHJ16:AHJ101)+SUM(AHK16:AHK101) -> 352376.7178 | AHW3: Begin Year Pop | AHX3: =-SUM(AHS16:AHS101)+SUM(AHT16:AHT101) -> 348348.6997 | AIF3: Begin Year Pop | AIG3: =-SUM(AIB16:AIB101)+SUM(AIC16:AIC101) -> 344580.7335 | AIO3: Begin Year Pop | AIP3: =-SUM(AIK16:AIK101)+SUM(AIL16:AIL101) -> 341061.4005 | AIX3: Begin Year Pop | AIY3: =-SUM(AIT16:AIT101)+SUM(AIU16:AIU101) -> 337632.7422 | AJG3: Begin Year Pop | AJH3: =-SUM(AJC16:AJC101)+SUM(AJD16:AJD101) -> 334298.8731 | AJP3: Begin Year Pop | AJQ3: =-SUM(AJL16:AJL101)+SUM(AJM16:AJM101) -> 331062.8158 | AJY3: Begin Year Pop | AJZ3: =-SUM(AJU16:AJU101)+SUM(AJV16:AJV101) -> 327926.4953 | AKH3: Begin Year Pop | AKI3: =-SUM(AKD16:AKD101)+SUM(AKE16:AKE101) -> 324890.7903 | AKQ3: Begin Year Pop | AKR3: =-SUM(AKM16:AKM101)+SUM(AKN16:AKN101) -> 321955.3154 | AKZ3: Begin Year Pop | ALA3: =-SUM(AKV16:AKV101)+SUM(AKW16:AKW101) -> 319119.237 | ALI3: Begin Year Pop | ALJ3: =-SUM(ALE16:ALE101)+SUM(ALF16:ALF101) -> 316381.0206 | ALR3: Begin Year Pop | ALS3: =-SUM(ALN16:ALN101)+SUM(ALO16:ALO101) -> 313738.4865 | AMA3: Begin Year Pop | AMB3: =-SUM(ALW16:ALW101)+SUM(ALX16:ALX101) -> 311189.1665 | AMJ3: Begin Year Pop | AMK3: =-SUM(AMF16:AMF101)+SUM(AMG16:AMG101) -> 308729.7987 | AMS3: Begin Year Pop | AMT3: =-SUM(AMO16:AMO101)+SUM(AMP16:AMP101) -> 306356.4411 | ANB3: Begin Year Pop | ANC3: =-SUM(AMX16:AMX101)+SUM(AMY16:AMY101) -> 304064.306 | ANK3: Begin Year Pop | ANL3: =-SUM(ANG16:ANG101)+SUM(ANH16:ANH101) -> 301847.9266 | ANT3: Begin Year Pop | ANU3: =-SUM(ANP16:ANP101)+SUM(ANQ16:ANQ101) -> 299701.5648 | AOC3: Begin Year Pop | AOD3: =-SUM(ANY16:ANY101)+SUM(ANZ16:ANZ101) -> 297430.3055 | AOL3: Begin Year Pop | AOM3: =-SUM(AOH16:AOH101)+SUM(AOI16:AOI101) -> 295040.9257 | AOU3: Begin Year Pop | AOV3: =-SUM(AOQ16:AOQ101)+SUM(AOR16:AOR101) -> 292540.4706 | APD3: Begin Year Pop | APE3: =-SUM(AOZ16:AOZ101)+SUM(APA16:APA101) -> 289936.1687 | APM3: Begin Year Pop | APN3: =-SUM(API16:API101)+SUM(APJ16:APJ101) -> 287235.3446 | APV3: Begin Year Pop | APW3: =-SUM(APR16:APR101)+SUM(APS16:APS101) -> 284445.5845 | AQE3: Begin Year Pop | AQF3: =-SUM(AQA16:AQA101)+SUM(AQB16:AQB101) -> 281574.9347 | AQN3: Begin Year Pop | AQO3: =-SUM(AQJ16:AQJ101)+SUM(AQK16:AQK101) -> 278632.0035 | AQW3: Begin Year Pop | AQX3: =-SUM(AQS16:AQS101)+SUM(AQT16:AQT101) -> 275625.8356 | ARF3: Begin Year Pop | ARG3: =-SUM(ARB16:ARB101)+SUM(ARC16:ARC101) -> 272565.5681 | ARO3: Begin Year Pop | ARP3: =-SUM(ARK16:ARK101)+SUM(ARL16:ARL101) -> 269460.7667 | ARX3: Begin Year Pop | ARY3: =-SUM(ART16:ART101)+SUM(ARU16:ARU101) -> 266321.2895 | ASG3: Begin Year Pop | ASH3: =-SUM(ASC16:ASC101)+SUM(ASD16:ASD101) -> 263157.3123 | ASP3: Begin Year Pop | ASQ3: =-SUM(ASL16:ASL101)+SUM(ASM16:ASM101) -> 259979.1267 | ASY3: Begin Year Pop | ASZ3: =-SUM(ASU16:ASU101)+SUM(ASV16:ASV101) -> 256796.7838 | ATH3: Begin Year Pop | ATI3: =-SUM(ATD16:ATD101)+SUM(ATE16:ATE101) -> 253760.8404 | ATQ3: Begin Year Pop | ATR3: =-SUM(ATM16:ATM101)+SUM(ATN16:ATN101) -> 250859.1897 | ATZ3: Begin Year Pop | AUA3: =-SUM(ATV16:ATV101)+SUM(ATW16:ATW101) -> 248080.1659 | AUI3: Begin Year Pop | AUJ3: =-SUM(AUE16:AUE101)+SUM(AUF16:AUF101) -> 245412.5539 | AUR3: Begin Year Pop | AUS3: =-SUM(AUN16:AUN101)+SUM(AUO16:AUO101) -> 242845.5928 | AVA3: Begin Year Pop | AVB3: =-SUM(AUW16:AUW101)+SUM(AUX16:AUX101) -> 240368.976 | AVJ3: Begin Year Pop | AVK3: =-SUM(AVF16:AVF101)+SUM(AVG16:AVG101) -> 237972.6551 | AVS3: Begin Year Pop | AVT3: =-SUM(AVO16:AVO101)+SUM(AVP16:AVP101) -> 235646.8833 | AWB3: Begin Year Pop | AWC3: =-SUM(AVX16:AVX101)+SUM(AVY16:AVY101) -> 233382.2624 | AWK3: Begin Year Pop | AWL3: =-SUM(AWG16:AWG101)+SUM(AWH16:AWH101) -> 231169.782 | AWT3: Begin Year Pop | AWU3: =-SUM(AWP16:AWP101)+SUM(AWQ16:AWQ101) -> 229000.8432 | AXC3: Begin Year Pop | AXD3: =-SUM(AWY16:AWY101)+SUM(AWZ16:AWZ101) -> 226867.2931 | AXL3: Begin Year Pop | AXM3: =-SUM(AXH16:AXH101)+SUM(AXI16:AXI101) -> 224761.4562 | AXU3: Begin Year Pop | AXV3: =-SUM(AXQ16:AXQ101)+SUM(AXR16:AXR101) -> 222676.166 | AYD3: Begin Year Pop | AYE3: =-SUM(AXZ16:AXZ101)+SUM(AYA16:AYA101) -> 220604.7869 | AYM3: Begin Year Pop | AYN3: =-SUM(AYI16:AYI101)+SUM(AYJ16:AYJ101) -> 218541.2185 | AYV3: Begin Year Pop | AYW3: =-SUM(AYR16:AYR101)+SUM(AYS16:AYS101) -> 216486.8923 | AZE3: Begin Year Pop | AZF3: =-SUM(AZA16:AZA101)+SUM(AZB16:AZB101) -> 214442.8434 | AZN3: Begin Year Pop | AZO3: =-SUM(AZJ16:AZJ101)+SUM(AZK16:AZK101) -> 212409.7467 | AZW3: Begin Year Pop | AZX3: =-SUM(AZS16:AZS101)+SUM(AZT16:AZT101) -> 210387.9546 | BAF3: Begin Year Pop | BAG3: =-SUM(BAB16:BAB101)+SUM(BAC16:BAC101) -> 208377.533 | BAO3: Begin Year Pop | BAP3: =-SUM(BAK16:BAK101)+SUM(BAL16:BAL101) -> 206378.3021 | BAX3: Begin Year Pop | BAY3: =-SUM(BAT16:BAT101)+SUM(BAU16:BAU101) -> 204389.8552 | BBG3: Begin Year Pop | BBH3: =-SUM(BBC16:BBC101)+SUM(BBD16:BBD101) -> 202411.5829 | BBP3: Begin Year Pop | BBQ3: =-SUM(BBL16:BBL101)+SUM(BBM16:BBM101) -> 200442.6976 | BBY3: Begin Year Pop | BBZ3: =-SUM(BBU16:BBU101)+SUM(BBV16:BBV101) -> 198482.2495 | BCH3: Begin Year Pop | BCI3: =-SUM(BCD16:BCD101)+SUM(BCE16:BCE101) -> 196529.1566 | BCQ3: Begin Year Pop | BCR3: =-SUM(BCM16:BCM101)+SUM(BCN16:BCN101) -> 194582.2324 | BCZ3: Begin Year Pop | BDA3: =-SUM(BCV16:BCV101)+SUM(BCW16:BCW101) -> 192640.2188 | BDI3: Begin Year Pop | BDJ3: =-SUM(BDE16:BDE101)+SUM(BDF16:BDF101) -> 190701.816 | BDR3: Begin Year Pop | BDS3: =-SUM(BDN16:BDN101)+SUM(BDO16:BDO101) -> 188765.7025 | BEA3: Begin Year Pop | BEB3: =-SUM(BDW16:BDW101)+SUM(BDX16:BDX101) -> 186835.0827 | BEJ3: Begin Year Pop | BEK3: =-SUM(BEF16:BEF101)+SUM(BEG16:BEG101) -> 184913.0284 | BES3: Begin Year Pop | BET3: =-SUM(BEO16:BEO101)+SUM(BEP16:BEP101) -> 183002.4633 | BFB3: Begin Year Pop | BFC3: =-SUM(BEX16:BEX101)+SUM(BEY16:BEY101) -> 181106.1495 | BFK3: Begin Year Pop | BFL3: =-SUM(BFG16:BFG101)+SUM(BFH16:BFH101) -> 179226.6778 | BFT3: Begin Year Pop | BFU3: =-SUM(BFP16:BFP101)+SUM(BFQ16:BFQ101) -> 177366.4543 | BGC3: Begin Year Pop | BGD3: =-SUM(BFY16:BFY101)+SUM(BFZ16:BFZ101) -> 175527.6828 | BGL3: Begin Year Pop | BGM3: =-SUM(BGH16:BGH101)+SUM(BGI16:BGI101) -> 173712.3457 | BGU3: Begin Year Pop | BGV3: =-SUM(BGQ16:BGQ101)+SUM(BGR16:BGR101) -> 171922.189 | BHD3: Begin Year Pop | BHE3: =-SUM(BGZ16:BGZ101)+SUM(BHA16:BHA101) -> 170158.7164 | BHM3: Begin Year Pop | BHN3: =-SUM(BHI16:BHI101)+SUM(BHJ16:BHJ101) -> 168423.1749 | BHV3: Begin Year Pop | BHW3: =-SUM(BHR16:BHR101)+SUM(BHS16:BHS101) -> 166716.5447 | BIE3: Begin Year Pop | BIF3: =-SUM(BIA16:BIA101)+SUM(BIB16:BIB101) -> 165039.5288 | BIN3: Begin Year Pop | BIO3: =-SUM(BIJ16:BIJ101)+SUM(BIK16:BIK101) -> 163392.5481 | BIW3: Begin Year Pop | BIX3: =-SUM(BIS16:BIS101)+SUM(BIT16:BIT101) -> 161775.7467 | BJF3: Begin Year Pop | BJG3: =-SUM(BJB16:BJB101)+SUM(BJC16:BJC101) -> 160185.6242 | BJO3: Begin Year Pop | BJP3: =-SUM(BJK16:BJK101)+SUM(BJL16:BJL101) -> 158619.0553 | BJX3: Begin Year Pop | BJY3: =-SUM(BJT16:BJT101)+SUM(BJU16:BJU101) -> 157073.2753 | BKG3: Begin Year Pop | BKH3: =-SUM(BKC16:BKC101)+SUM(BKD16:BKD101) -> 155545.8651 | BKP3: Begin Year Pop | BKQ3: =-SUM(BKL16:BKL101)+SUM(BKM16:BKM101) -> 154034.7367 | BKY3: Begin Year Pop | BKZ3: =-SUM(BKU16:BKU101)+SUM(BKV16:BKV101) -> 152538.1165 | BLH3: Begin Year Pop | BLI3: =-SUM(BLD16:BLD101)+SUM(BLE16:BLE101) -> 151054.5354 | BLQ3: Begin Year Pop | BLR3: =-SUM(BLM16:BLM101)+SUM(BLN16:BLN101) -> 149582.8152 | BLZ3: Begin Year Pop | BMA3: =-SUM(BLV16:BLV101)+SUM(BLW16:BLW101) -> 148122.0545 | BMI3: Begin Year Pop | BMJ3: =-SUM(BME16:BME101)+SUM(BMF16:BMF101) -> 146671.6137 | BMR3: Begin Year Pop | BMS3: =-SUM(BMN16:BMN101)+SUM(BMO16:BMO101) -> 145231.0979 | BNA3: Begin Year Pop | BNB3: =-SUM(BMW16:BMW101)+SUM(BMX16:BMX101) -> 143800.3403 | BNJ3: Begin Year Pop | BNK3: =-SUM(BNF16:BNF101)+SUM(BNG16:BNG101) -> 142379.383 | BNS3: Begin Year Pop | BNT3: =-SUM(BNO16:BNO101)+SUM(BNP16:BNP101) -> 140968.4582 | BOB3: Begin Year Pop | BOC3: =-SUM(BNX16:BNX101)+SUM(BNY16:BNY101) -> 139567.9676 | BOK3: Begin Year Pop | BOL3: =-SUM(BOG16:BOG101)+SUM(BOH16:BOH101) -> 138178.4624 | BOT3: Begin Year Pop | BOU3: =-SUM(BOP16:BOP101)+SUM(BOQ16:BOQ101) -> 136800.3724 | BPC3: Begin Year Pop | BPD3: =-SUM(BOY16:BOY101)+SUM(BOZ16:BOZ101) -> 135434.0244 | BPL3: Begin Year Pop | BPM3: =-SUM(BPH16:BPH101)+SUM(BPI16:BPI101) -> 134079.66 | BPU3: Begin Year Pop | BPV3: =-SUM(BPQ16:BPQ101)+SUM(BPR16:BPR101) -> 132737.4522 | BQD3: Begin Year Pop | BQE3: =-SUM(BPZ16:BPZ101)+SUM(BQA16:BQA101) -> 131407.5202 | BQM3: Begin Year Pop | BQN3: =-SUM(BQI16:BQI101)+SUM(BQJ16:BQJ101) -> 130089.9435
G4: ="During Year "&A16&":" -> During Year 1: | P4: ="During Year "&J16&":" -> During Year 2: | Y4: ="During Year "&S16&":" -> During Year 3: | AH4: ="During Year "&AB16&":" -> During Year 4: | AQ4: ="During Year "&AK16&":" -> During Year 5: | AZ4: ="During Year "&AT16&":" -> During Year 6: | BI4: ="During Year "&BC16&":" -> During Year 7: | BR4: ="During Year "&BL16&":" -> During Year 8: | CA4: ="During Year "&BU16&":" -> During Year 9: | CJ4: ="During Year "&CD16&":" -> During Year 10: | CS4: ="During Year "&CM16&":" -> During Year 11: | DB4: ="During Year "&CV16&":" -> During Year 12: | DK4: ="During Year "&DE16&":" -> During Year 13: | DT4: ="During Year "&DN16&":" -> During Year 14: | EC4: ="During Year "&DW16&":" -> During Year 15: | EL4: ="During Year "&EF16&":" -> During Year 16: | EU4: ="During Year "&EO16&":" -> During Year 17: | FD4: ="During Year "&EX16&":" -> During Year 18: | FM4: ="During Year "&FG16&":" -> During Year 19: | FV4: ="During Year "&FP16&":" -> During Year 20: | GE4: ="During Year "&FY16&":" -> During Year 21: | GN4: ="During Year "&GH16&":" -> During Year 22: | GW4: ="During Year "&GQ16&":" -> During Year 23: | HF4: ="During Year "&GZ16&":" -> During Year 24: | HO4: ="During Year "&HI16&":" -> During Year 25: | HX4: ="During Year "&HR16&":" -> During Year 26: | IG4: ="During Year "&IA16&":" -> During Year 27: | IP4: ="During Year "&IJ16&":" -> During Year 28: | IY4: ="During Year "&IS16&":" -> During Year 29: | JH4: ="During Year "&JB16&":" -> During Year 30: | JQ4: ="During Year "&JK16&":" -> During Year 31: | JZ4: ="During Year "&JT16&":" -> During Year 32: | KI4: ="During Year "&KC16&":" -> During Year 33: | KR4: ="During Year "&KL16&":" -> During Year 34: | LA4: ="During Year "&KU16&":" -> During Year 35: | LJ4: ="During Year "&LD16&":" -> During Year 36: | LS4: ="During Year "&LM16&":" -> During Year 37: | MB4: ="During Year "&LV16&":" -> During Year 38: | MK4: ="During Year "&ME16&":" -> During Year 39: | MT4: ="During Year "&MN16&":" -> During Year 40: | NC4: ="During Year "&MW16&":" -> During Year 41: | NL4: ="During Year "&NF16&":" -> During Year 42: | NU4: ="During Year "&NO16&":" -> During Year 43: | OD4: ="During Year "&NX16&":" -> During Year 44: | OM4: ="During Year "&OG16&":" -> During Year 45: | OV4: ="During Year "&OP16&":" -> During Year 46: | PE4: ="During Year "&OY16&":" -> During Year 47: | PN4: ="During Year "&PH16&":" -> During Year 48: | PW4: ="During Year "&PQ16&":" -> During Year 49: | QF4: ="During Year "&PZ16&":" -> During Year 50: | QO4: ="During Year "&QI16&":" -> During Year 51: | QX4: ="During Year "&QR16&":" -> During Year 52: | RG4: ="During Year "&RA16&":" -> During Year 53: | RP4: ="During Year "&RJ16&":" -> During Year 54: | RY4: ="During Year "&RS16&":" -> During Year 55: | SH4: ="During Year "&SB16&":" -> During Year 56: | SQ4: ="During Year "&SK16&":" -> During Year 57: | SZ4: ="During Year "&ST16&":" -> During Year 58: | TI4: ="During Year "&TC16&":" -> During Year 59: | TR4: ="During Year "&TL16&":" -> During Year 60: | UA4: ="During Year "&TU16&":" -> During Year 61: | UJ4: ="During Year "&UD16&":" -> During Year 62: | US4: ="During Year "&UM16&":" -> During Year 63: | VB4: ="During Year "&UV16&":" -> During Year 64: | VK4: ="During Year "&VE16&":" -> During Year 65: | VT4: ="During Year "&VN16&":" -> During Year 66: | WC4: ="During Year "&VW16&":" -> During Year 67: | WL4: ="During Year "&WF16&":" -> During Year 68: | WU4: ="During Year "&WO16&":" -> During Year 69: | XD4: ="During Year "&WX16&":" -> During Year 70: | XM4: ="During Year "&XG16&":" -> During Year 71: | XV4: ="During Year "&XP16&":" -> During Year 72: | YE4: ="During Year "&XY16&":" -> During Year 73: | YN4: ="During Year "&YH16&":" -> During Year 74: | YW4: ="During Year "&YQ16&":" -> During Year 75: | ZF4: ="During Year "&YZ16&":" -> During Year 76: | ZO4: ="During Year "&ZI16&":" -> During Year 77: | ZX4: ="During Year "&ZR16&":" -> During Year 78: | AAG4: ="During Year "&AAA16&":" -> During Year 79: | AAP4: ="During Year "&AAJ16&":" -> During Year 80: | AAY4: ="During Year "&AAS16&":" -> During Year 81: | ABH4: ="During Year "&ABB16&":" -> During Year 82: | ABQ4: ="During Year "&ABK16&":" -> During Year 83: | ABZ4: ="During Year "&ABT16&":" -> During Year 84: | ACI4: ="During Year "&ACC16&":" -> During Year 85: | ACR4: ="During Year "&ACL16&":" -> During Year 86: | ADA4: ="During Year "&ACU16&":" -> During Year 87: | ADJ4: ="During Year "&ADD16&":" -> During Year 88: | ADS4: ="During Year "&ADM16&":" -> During Year 89: | AEB4: ="During Year "&ADV16&":" -> During Year 90: | AEK4: ="During Year "&AEE16&":" -> During Year 91: | AET4: ="During Year "&AEN16&":" -> During Year 92: | AFC4: ="During Year "&AEW16&":" -> During Year 93: | AFL4: ="During Year "&AFF16&":" -> During Year 94: | AFU4: ="During Year "&AFO16&":" -> During Year 95: | AGD4: ="During Year "&AFX16&":" -> During Year 96: | AGM4: ="During Year "&AGG16&":" -> During Year 97: | AGV4: ="During Year "&AGP16&":" -> During Year 98: | AHE4: ="During Year "&AGY16&":" -> During Year 99: | AHN4: ="During Year "&AHH16&":" -> During Year 100: | AHW4: ="During Year "&AHQ16&":" -> During Year 101: | AIF4: ="During Year "&AHZ16&":" -> During Year 102: | AIO4: ="During Year "&AII16&":" -> During Year 103: | AIX4: ="During Year "&AIR16&":" -> During Year 104: | AJG4: ="During Year "&AJA16&":" -> During Year 105: | AJP4: ="During Year "&AJJ16&":" -> During Year 106: | AJY4: ="During Year "&AJS16&":" -> During Year 107: | AKH4: ="During Year "&AKB16&":" -> During Year 108: | AKQ4: ="During Year "&AKK16&":" -> During Year 109: | AKZ4: ="During Year "&AKT16&":" -> During Year 110: | ALI4: ="During Year "&ALC16&":" -> During Year 111: | ALR4: ="During Year "&ALL16&":" -> During Year 112: | AMA4: ="During Year "&ALU16&":" -> During Year 113: | AMJ4: ="During Year "&AMD16&":" -> During Year 114: | AMS4: ="During Year "&AMM16&":" -> During Year 115: | ANB4: ="During Year "&AMV16&":" -> During Year 116: | ANK4: ="During Year "&ANE16&":" -> During Year 117: | ANT4: ="During Year "&ANN16&":" -> During Year 118: | AOC4: ="During Year "&ANW16&":" -> During Year 119: | AOL4: ="During Year "&AOF16&":" -> During Year 120: | AOU4: ="During Year "&AOO16&":" -> During Year 121: | APD4: ="During Year "&AOX16&":" -> During Year 122: | APM4: ="During Year "&APG16&":" -> During Year 123: | APV4: ="During Year "&APP16&":" -> During Year 124: | AQE4: ="During Year "&APY16&":" -> During Year 125: | AQN4: ="During Year "&AQH16&":" -> During Year 126: | AQW4: ="During Year "&AQQ16&":" -> During Year 127: | ARF4: ="During Year "&AQZ16&":" -> During Year 128: | ARO4: ="During Year "&ARI16&":" -> During Year 129: | ARX4: ="During Year "&ARR16&":" -> During Year 130: | ASG4: ="During Year "&ASA16&":" -> During Year 131: | ASP4: ="During Year "&ASJ16&":" -> During Year 132: | ASY4: ="During Year "&ASS16&":" -> During Year 133: | ATH4: ="During Year "&ATB16&":" -> During Year 134: | ATQ4: ="During Year "&ATK16&":" -> During Year 135: | ATZ4: ="During Year "&ATT16&":" -> During Year 136: | AUI4: ="During Year "&AUC16&":" -> During Year 137: | AUR4: ="During Year "&AUL16&":" -> During Year 138: | AVA4: ="During Year "&AUU16&":" -> During Year 139: | AVJ4: ="During Year "&AVD16&":" -> During Year 140: | AVS4: ="During Year "&AVM16&":" -> During Year 141: | AWB4: ="During Year "&AVV16&":" -> During Year 142: | AWK4: ="During Year "&AWE16&":" -> During Year 143: | AWT4: ="During Year "&AWN16&":" -> During Year 144: | AXC4: ="During Year "&AWW16&":" -> During Year 145: | AXL4: ="During Year "&AXF16&":" -> During Year 146: | AXU4: ="During Year "&AXO16&":" -> During Year 147: | AYD4: ="During Year "&AXX16&":" -> During Year 148: | AYM4: ="During Year "&AYG16&":" -> During Year 149: | AYV4: ="During Year "&AYP16&":" -> During Year 150: | AZE4: ="During Year "&AYY16&":" -> During Year 151: | AZN4: ="During Year "&AZH16&":" -> During Year 152: | AZW4: ="During Year "&AZQ16&":" -> During Year 153: | BAF4: ="During Year "&AZZ16&":" -> During Year 154: | BAO4: ="During Year "&BAI16&":" -> During Year 155: | BAX4: ="During Year "&BAR16&":" -> During Year 156: | BBG4: ="During Year "&BBA16&":" -> During Year 157: | BBP4: ="During Year "&BBJ16&":" -> During Year 158: | BBY4: ="During Year "&BBS16&":" -> During Year 159: | BCH4: ="During Year "&BCB16&":" -> During Year 160: | BCQ4: ="During Year "&BCK16&":" -> During Year 161: | BCZ4: ="During Year "&BCT16&":" -> During Year 162: | BDI4: ="During Year "&BDC16&":" -> During Year 163: | BDR4: ="During Year "&BDL16&":" -> During Year 164: | BEA4: ="During Year "&BDU16&":" -> During Year 165: | BEJ4: ="During Year "&BED16&":" -> During Year 166: | BES4: ="During Year "&BEM16&":" -> During Year 167: | BFB4: ="During Year "&BEV16&":" -> During Year 168: | BFK4: ="During Year "&BFE16&":" -> During Year 169: | BFT4: ="During Year "&BFN16&":" -> During Year 170: | BGC4: ="During Year "&BFW16&":" -> During Year 171: | BGL4: ="During Year "&BGF16&":" -> During Year 172: | BGU4: ="During Year "&BGO16&":" -> During Year 173: | BHD4: ="During Year "&BGX16&":" -> During Year 174: | BHM4: ="During Year "&BHG16&":" -> During Year 175: | BHV4: ="During Year "&BHP16&":" -> During Year 176: | BIE4: ="During Year "&BHY16&":" -> During Year 177: | BIN4: ="During Year "&BIH16&":" -> During Year 178: | BIW4: ="During Year "&BIQ16&":" -> During Year 179: | BJF4: ="During Year "&BIZ16&":" -> During Year 180: | BJO4: ="During Year "&BJI16&":" -> During Year 181: | BJX4: ="During Year "&BJR16&":" -> During Year 182: | BKG4: ="During Year "&BKA16&":" -> During Year 183: | BKP4: ="During Year "&BKJ16&":" -> During Year 184: | BKY4: ="During Year "&BKS16&":" -> During Year 185: | BLH4: ="During Year "&BLB16&":" -> During Year 186: | BLQ4: ="During Year "&BLK16&":" -> During Year 187: | BLZ4: ="During Year "&BLT16&":" -> During Year 188: | BMI4: ="During Year "&BMC16&":" -> During Year 189: | BMR4: ="During Year "&BML16&":" -> During Year 190: | BNA4: ="During Year "&BMU16&":" -> During Year 191: | BNJ4: ="During Year "&BND16&":" -> During Year 192: | BNS4: ="During Year "&BNM16&":" -> During Year 193: | BOB4: ="During Year "&BNV16&":" -> During Year 194: | BOK4: ="During Year "&BOE16&":" -> During Year 195: | BOT4: ="During Year "&BON16&":" -> During Year 196: | BPC4: ="During Year "&BOW16&":" -> During Year 197: | BPL4: ="During Year "&BPF16&":" -> During Year 198: | BPU4: ="During Year "&BPO16&":" -> During Year 199: | BQD4: ="During Year "&BPX16&":" -> During Year 200: | BQM4: ="During Year "&BQG16&":" -> During Year 201:
G5: Births | H5: =SUMPRODUCT(D31:D60,E31:E60) -> 15000 | P5: Births | Q5: =SUMPRODUCT(M31:M60,N31:N60) -> 14483.95 | Y5: Births | Z5: =SUMPRODUCT(V31:V60,W31:W60) -> 13969.11918 | AH5: Births | AI5: =SUMPRODUCT(AE31:AE60,AF31:AF60) -> 13455.50407 | AQ5: Births | AR5: =SUMPRODUCT(AN31:AN60,AO31:AO60) -> 12943.05189 | AZ5: Births | BA5: =SUMPRODUCT(AW31:AW60,AX31:AX60) -> 12431.71053 | BI5: Births | BJ5: =SUMPRODUCT(BF31:BF60,BG31:BG60) -> 11921.47842 | BR5: Births | BS5: =SUMPRODUCT(BO31:BO60,BP31:BP60) -> 11412.40333 | CA5: Births | CB5: =SUMPRODUCT(BX31:BX60,BY31:BY60) -> 10904.48307 | CJ5: Births | CK5: =SUMPRODUCT(CG31:CG60,CH31:CH60) -> 10397.7154 | CS5: Births | CT5: =SUMPRODUCT(CP31:CP60,CQ31:CQ60) -> 9892.098076 | DB5: Births | DC5: =SUMPRODUCT(CY31:CY60,CZ31:CZ60) -> 9387.481317 | DK5: Births | DL5: =SUMPRODUCT(DH31:DH60,DI31:DI60) -> 8883.91317 | DT5: Births | DU5: =SUMPRODUCT(DQ31:DQ60,DR31:DR60) -> 8381.391913 | EC5: Births | ED5: =SUMPRODUCT(DZ31:DZ60,EA31:EA60) -> 7879.915814 | EL5: Births | EM5: =SUMPRODUCT(EI31:EI60,EJ31:EJ60) -> 7379.483126 | EU5: Births | EV5: =SUMPRODUCT(ER31:ER60,ES31:ES60) -> 7252.122804 | FD5: Births | FE5: =SUMPRODUCT(FA31:FA60,FB31:FB60) -> 7112.92788 | FM5: Births | FN5: =SUMPRODUCT(FJ31:FJ60,FK31:FK60) -> 6961.855057 | FV5: Births | FW5: =SUMPRODUCT(FS31:FS60,FT31:FT60) -> 6798.900741 | GE5: Births | GF5: =SUMPRODUCT(GB31:GB60,GC31:GC60) -> 6624.061325 | GN5: Births | GO5: =SUMPRODUCT(GK31:GK60,GL31:GL60) -> 6437.247411 | GW5: Births | GX5: =SUMPRODUCT(GT31:GT60,GU31:GU60) -> 6238.605583 | HF5: Births | HG5: =SUMPRODUCT(HC31:HC60,HD31:HD60) -> 6028.174246 | HO5: Births | HP5: =SUMPRODUCT(HL31:HL60,HM31:HM60) -> 5805.991673 | HX5: Births | HY5: =SUMPRODUCT(HU31:HU60,HV31:HV60) -> 5572.096006 | IG5: Births | IH5: =SUMPRODUCT(ID31:ID60,IE31:IE60) -> 5326.476803 | IP5: Births | IQ5: =SUMPRODUCT(IM31:IM60,IN31:IN60) -> 5069.132279 | IY5: Births | IZ5: =SUMPRODUCT(IV31:IV60,IW31:IW60) -> 4800.148375 | JH5: Births | JI5: =SUMPRODUCT(JE31:JE60,JF31:JF60) -> 4519.610592 | JQ5: Births | JR5: =SUMPRODUCT(JN31:JN60,JO31:JO60) -> 4227.555612 | JZ5: Births | KA5: =SUMPRODUCT(JW31:JW60,JX31:JX60) -> 4407.052577 | KI5: Births | KJ5: =SUMPRODUCT(KF31:KF60,KG31:KG60) -> 4583.136686 | KR5: Births | KS5: =SUMPRODUCT(KO31:KO60,KP31:KP60) -> 4755.526556 | LA5: Births | LB5: =SUMPRODUCT(KX31:KX60,KY31:KY60) -> 4923.937906 | LJ5: Births | LK5: =SUMPRODUCT(LG31:LG60,LH31:LH60) -> 5088.085528 | LS5: Births | LT5: =SUMPRODUCT(LP31:LP60,LQ31:LQ60) -> 5247.683322 | MB5: Births | MC5: =SUMPRODUCT(LY31:LY60,LZ31:LZ60) -> 5402.33159 | MK5: Births | ML5: =SUMPRODUCT(MH31:MH60,MI31:MI60) -> 5551.747305 | MT5: Births | MU5: =SUMPRODUCT(MQ31:MQ60,MR31:MR60) -> 5695.648624 | NC5: Births | ND5: =SUMPRODUCT(MZ31:MZ60,NA31:NA60) -> 5833.754884 | NL5: Births | NM5: =SUMPRODUCT(NI31:NI60,NJ31:NJ60) -> 5965.786602 | NU5: Births | NV5: =SUMPRODUCT(NR31:NR60,NS31:NS60) -> 6091.391651 | OD5: Births | OE5: =SUMPRODUCT(OA31:OA60,OB31:OB60) -> 6210.22001 | OM5: Births | ON5: =SUMPRODUCT(OJ31:OJ60,OK31:OK60) -> 6321.926905 | OV5: Births | OW5: =SUMPRODUCT(OS31:OS60,OT31:OT60) -> 6426.172829 | PE5: Births | PF5: =SUMPRODUCT(PB31:PB60,PC31:PC60) -> 6163.168995 | PN5: Births | PO5: =SUMPRODUCT(PK31:PK60,PL31:PL60) -> 5917.320151 | PW5: Births | PX5: =SUMPRODUCT(PT31:PT60,PU31:PU60) -> 5688.502875 | QF5: Births | QG5: =SUMPRODUCT(QC31:QC60,QD31:QD60) -> 5476.58477 | QO5: Births | QP5: =SUMPRODUCT(QL31:QL60,QM31:QM60) -> 5281.426734 | QX5: Births | QY5: =SUMPRODUCT(QU31:QU60,QV31:QV60) -> 5102.882909 | RG5: Births | RH5: =SUMPRODUCT(RD31:RD60,RE31:RE60) -> 4940.798224 | RP5: Births | RQ5: =SUMPRODUCT(RM31:RM60,RN31:RN60) -> 4795.002846 | RY5: Births | RZ5: =SUMPRODUCT(RV31:RV60,RW31:RW60) -> 4665.320275 | SH5: Births | SI5: =SUMPRODUCT(SE31:SE60,SF31:SF60) -> 4551.567383 | SQ5: Births | SR5: =SUMPRODUCT(SN31:SN60,SO31:SO60) -> 4453.554449 | SZ5: Births | TA5: =SUMPRODUCT(SW31:SW60,SX31:SX60) -> 4371.088732 | TI5: Births | TJ5: =SUMPRODUCT(TF31:TF60,TG31:TG60) -> 4303.964933 | TR5: Births | TS5: =SUMPRODUCT(TO31:TO60,TP31:TP60) -> 4251.967692 | UA5: Births | UB5: =SUMPRODUCT(TX31:TX60,TY31:TY60) -> 4214.871796 | UJ5: Births | UK5: =SUMPRODUCT(UG31:UG60,UH31:UH60) -> 4192.442391 | US5: Births | UT5: =SUMPRODUCT(UP31:UP60,UQ31:UQ60) -> 4166.60363 | VB5: Births | VC5: =SUMPRODUCT(UY31:UY60,UZ31:UZ60) -> 4138.061365 | VK5: Births | VL5: =SUMPRODUCT(VH31:VH60,VI31:VI60) -> 4107.520958 | VT5: Births | VU5: =SUMPRODUCT(VQ31:VQ60,VR31:VR60) -> 4075.685098 | WC5: Births | WD5: =SUMPRODUCT(VZ31:VZ60,WA31:WA60) -> 4043.253571 | WL5: Births | WM5: =SUMPRODUCT(WI31:WI60,WJ31:WJ60) -> 4010.925988 | WU5: Births | WV5: =SUMPRODUCT(WR31:WR60,WS31:WS60) -> 3979.391344 | XD5: Births | XE5: =SUMPRODUCT(XA31:XA60,XB31:XB60) -> 3949.332787 | XM5: Births | XN5: =SUMPRODUCT(XJ31:XJ60,XK31:XK60) -> 3921.427468 | XV5: Births | XW5: =SUMPRODUCT(XS31:XS60,XT31:XT60) -> 3896.346387 | YE5: Births | YF5: =SUMPRODUCT(YB31:YB60,YC31:YC60) -> 3874.755402 | YN5: Births | YO5: =SUMPRODUCT(YK31:YK60,YL31:YL60) -> 3857.313503 | YW5: Births | YX5: =SUMPRODUCT(YT31:YT60,YU31:YU60) -> 3844.669426 | ZF5: Births | ZG5: =SUMPRODUCT(ZC31:ZC60,ZD31:ZD60) -> 3837.461401 | ZO5: Births | ZP5: =SUMPRODUCT(ZL31:ZL60,ZM31:ZM60) -> 3836.318071 | ZX5: Births | ZY5: =SUMPRODUCT(ZU31:ZU60,ZV31:ZV60) -> 3830.283063 | AAG5: Births | AAH5: =SUMPRODUCT(AAD31:AAD60,AAE31:AAE60) -> 3819.361315 | AAP5: Births | AAQ5: =SUMPRODUCT(AAM31:AAM60,AAN31:AAN60) -> 3803.58163 | AAY5: Births | AAZ5: =SUMPRODUCT(AAV31:AAV60,AAW31:AAW60) -> 3782.996821 | ABH5: Births | ABI5: =SUMPRODUCT(ABE31:ABE60,ABF31:ABF60) -> 3757.6837 | ABQ5: Births | ABR5: =SUMPRODUCT(ABN31:ABN60,ABO31:ABO60) -> 3727.743063 | ABZ5: Births | ACA5: =SUMPRODUCT(ABW31:ABW60,ABX31:ABX60) -> 3693.305106 | ACI5: Births | ACJ5: =SUMPRODUCT(ACF31:ACF60,ACG31:ACG60) -> 3654.523565 | ACR5: Births | ACS5: =SUMPRODUCT(ACO31:ACO60,ACP31:ACP60) -> 3611.575525 | ADA5: Births | ADB5: =SUMPRODUCT(ACX31:ACX60,ACY31:ACY60) -> 3564.661216 | ADJ5: Births | ADK5: =SUMPRODUCT(ADG31:ADG60,ADH31:ADH60) -> 3514.003814 | ADS5: Births | ADT5: =SUMPRODUCT(ADP31:ADP60,ADQ31:ADQ60) -> 3459.852775 | AEB5: Births | AEC5: =SUMPRODUCT(ADY31:ADY60,ADZ31:ADZ60) -> 3402.4835 | AEK5: Births | AEL5: =SUMPRODUCT(AEH31:AEH60,AEI31:AEI60) -> 3342.196803 | AET5: Births | AEU5: =SUMPRODUCT(AEQ31:AEQ60,AER31:AER60) -> 3279.318355 | AFC5: Births | AFD5: =SUMPRODUCT(AEZ31:AEZ60,AFA31:AFA60) -> 3222.811981 | AFL5: Births | AFM5: =SUMPRODUCT(AFI31:AFI60,AFJ31:AFJ60) -> 3172.136202 | AFU5: Births | AFV5: =SUMPRODUCT(AFR31:AFR60,AFS31:AFS60) -> 3126.75305 | AGD5: Births | AGE5: =SUMPRODUCT(AGA31:AGA60,AGB31:AGB60) -> 3086.128917 | AGM5: Births | AGN5: =SUMPRODUCT(AGJ31:AGJ60,AGK31:AGK60) -> 3049.735324 | AGV5: Births | AGW5: =SUMPRODUCT(AGS31:AGS60,AGT31:AGT60) -> 3017.049692 | AHE5: Births | AHF5: =SUMPRODUCT(AHB31:AHB60,AHC31:AHC60) -> 2987.55621 | AHN5: Births | AHO5: =SUMPRODUCT(AHK31:AHK60,AHL31:AHL60) -> 2960.74706 | AHW5: Births | AHX5: =SUMPRODUCT(AHT31:AHT60,AHU31:AHU60) -> 2936.12315 | AIF5: Births | AIG5: =SUMPRODUCT(AIC31:AIC60,AID31:AID60) -> 2913.19483 | AIO5: Births | AIP5: =SUMPRODUCT(AIL31:AIL60,AIM31:AIM60) -> 2891.482613 | AIX5: Births | AIY5: =SUMPRODUCT(AIU31:AIU60,AIV31:AIV60) -> 2870.517793 | AJG5: Births | AJH5: =SUMPRODUCT(AJD31:AJD60,AJE31:AJE60) -> 2849.843495 | AJP5: Births | AJQ5: =SUMPRODUCT(AJM31:AJM60,AJN31:AJN60) -> 2829.015626 | AJY5: Births | AJZ5: =SUMPRODUCT(AJV31:AJV60,AJW31:AJW60) -> 2807.603794 | AKH5: Births | AKI5: =SUMPRODUCT(AKE31:AKE60,AKF31:AKF60) -> 2785.19221 | AKQ5: Births | AKR5: =SUMPRODUCT(AKN31:AKN60,AKO31:AKO60) -> 2762.02154 | AKZ5: Births | ALA5: =SUMPRODUCT(AKW31:AKW60,AKX31:AKX60) -> 2738.301956 | ALI5: Births | ALJ5: =SUMPRODUCT(ALF31:ALF60,ALG31:ALG60) -> 2714.213213 | ALR5: Births | ALS5: =SUMPRODUCT(ALO31:ALO60,ALP31:ALP60) -> 2689.904817 | AMA5: Births | AMB5: =SUMPRODUCT(ALX31:ALX60,ALY31:ALY60) -> 2665.496223 | AMJ5: Births | AMK5: =SUMPRODUCT(AMG31:AMG60,AMH31:AMH60) -> 2641.076972 | AMS5: Births | AMT5: =SUMPRODUCT(AMP31:AMP60,AMQ31:AMQ60) -> 2616.707196 | ANB5: Births | ANC5: =SUMPRODUCT(AMY31:AMY60,AMZ31:AMZ60) -> 2592.418001 | ANK5: Births | ANL5: =SUMPRODUCT(ANH31:ANH60,ANI31:ANI60) -> 2568.211852 | ANT5: Births | ANU5: =SUMPRODUCT(ANQ31:ANQ60,ANR31:ANR60) -> 2544.062993 | AOC5: Births | AOD5: =SUMPRODUCT(ANZ31:ANZ60,AOA31:AOA60) -> 2519.917856 | AOL5: Births | AOM5: =SUMPRODUCT(AOI31:AOI60,AOJ31:AOJ60) -> 2495.695554 | AOU5: Births | AOV5: =SUMPRODUCT(AOR31:AOR60,AOS31:AOS60) -> 2471.288517 | APD5: Births | APE5: =SUMPRODUCT(APA31:APA60,APB31:APB60) -> 2446.563152 | APM5: Births | APN5: =SUMPRODUCT(APJ31:APJ60,APK31:APK60) -> 2421.36051 | APV5: Births | APW5: =SUMPRODUCT(APS31:APS60,APT31:APT60) -> 2395.77436 | AQE5: Births | AQF5: =SUMPRODUCT(AQB31:AQB60,AQC31:AQC60) -> 2369.90416 | AQN5: Births | AQO5: =SUMPRODUCT(AQK31:AQK60,AQL31:AQL60) -> 2343.853728 | AQW5: Births | AQX5: =SUMPRODUCT(AQT31:AQT60,AQU31:AQU60) -> 2317.729921 | ARF5: Births | ARG5: =SUMPRODUCT(ARC31:ARC60,ARD31:ARD60) -> 2291.641307 | ARO5: Births | ARP5: =SUMPRODUCT(ARL31:ARL60,ARM31:ARM60) -> 2265.696853 | ARX5: Births | ARY5: =SUMPRODUCT(ARU31:ARU60,ARV31:ARV60) -> 2240.004406 | ASG5: Births | ASH5: =SUMPRODUCT(ASD31:ASD60,ASE31:ASE60) -> 2214.669413 | ASP5: Births | ASQ5: =SUMPRODUCT(ASM31:ASM60,ASN31:ASN60) -> 2189.793645 | ASY5: Births | ASZ5: =SUMPRODUCT(ASV31:ASV60,ASW31:ASW60) -> 2165.473939 | ATH5: Births | ATI5: =SUMPRODUCT(ATE31:ATE60,ATF31:ATF60) -> 2141.800964 | ATQ5: Births | ATR5: =SUMPRODUCT(ATN31:ATN60,ATO31:ATO60) -> 2118.857862 | ATZ5: Births | AUA5: =SUMPRODUCT(ATW31:ATW60,ATX31:ATX60) -> 2096.718932 | AUI5: Births | AUJ5: =SUMPRODUCT(AUF31:AUF60,AUG31:AUG60) -> 2075.448331 | AUR5: Births | AUS5: =SUMPRODUCT(AUO31:AUO60,AUP31:AUP60) -> 2055.098824 | AVA5: Births | AVB5: =SUMPRODUCT(AUX31:AUX60,AUY31:AUY60) -> 2035.504146 | AVJ5: Births | AVK5: =SUMPRODUCT(AVG31:AVG60,AVH31:AVH60) -> 2016.513586 | AVS5: Births | AVT5: =SUMPRODUCT(AVP31:AVP60,AVQ31:AVQ60) -> 1997.992031 | AWB5: Births | AWC5: =SUMPRODUCT(AVY31:AVY60,AVZ31:AVZ60) -> 1979.819952 | AWK5: Births | AWL5: =SUMPRODUCT(AWH31:AWH60,AWI31:AWI60) -> 1961.893343 | AWT5: Births | AWU5: =SUMPRODUCT(AWQ31:AWQ60,AWR31:AWR60) -> 1944.123605 | AXC5: Births | AXD5: =SUMPRODUCT(AWZ31:AWZ60,AXA31:AXA60) -> 1926.437375 | AXL5: Births | AXM5: =SUMPRODUCT(AXI31:AXI60,AXJ31:AXJ60) -> 1908.776286 | AXU5: Births | AXV5: =SUMPRODUCT(AXR31:AXR60,AXS31:AXS60) -> 1891.096675 | AYD5: Births | AYE5: =SUMPRODUCT(AYA31:AYA60,AYB31:AYB60) -> 1873.369249 | AYM5: Births | AYN5: =SUMPRODUCT(AYJ31:AYJ60,AYK31:AYK60) -> 1855.57869 | AYV5: Births | AYW5: =SUMPRODUCT(AYS31:AYS60,AYT31:AYT60) -> 1837.723233 | AZE5: Births | AZF5: =SUMPRODUCT(AZB31:AZB60,AZC31:AZC60) -> 1819.814167 | AZN5: Births | AZO5: =SUMPRODUCT(AZK31:AZK60,AZL31:AZL60) -> 1801.875284 | AZW5: Births | AZX5: =SUMPRODUCT(AZT31:AZT60,AZU31:AZU60) -> 1783.942278 | BAF5: Births | BAG5: =SUMPRODUCT(BAC31:BAC60,BAD31:BAD60) -> 1766.062079 | BAO5: Births | BAP5: =SUMPRODUCT(BAL31:BAL60,BAM31:BAM60) -> 1748.271659 | BAX5: Births | BAY5: =SUMPRODUCT(BAU31:BAU60,BAV31:BAV60) -> 1730.599162 | BBG5: Births | BBH5: =SUMPRODUCT(BBD31:BBD60,BBE31:BBE60) -> 1713.065027 | BBP5: Births | BBQ5: =SUMPRODUCT(BBM31:BBM60,BBN31:BBN60) -> 1695.683112 | BBY5: Births | BBZ5: =SUMPRODUCT(BBV31:BBV60,BBW31:BBW60) -> 1678.461805 | BCH5: Births | BCI5: =SUMPRODUCT(BCE31:BCE60,BCF31:BCF60) -> 1661.405133 | BCQ5: Births | BCR5: =SUMPRODUCT(BCN31:BCN60,BCO31:BCO60) -> 1644.513856 | BCZ5: Births | BDA5: =SUMPRODUCT(BCW31:BCW60,BCX31:BCX60) -> 1627.786533 | BDI5: Births | BDJ5: =SUMPRODUCT(BDF31:BDF60,BDG31:BDG60) -> 1611.22058 | BDR5: Births | BDS5: =SUMPRODUCT(BDO31:BDO60,BDP31:BDP60) -> 1594.813308 | BEA5: Births | BEB5: =SUMPRODUCT(BDX31:BDX60,BDY31:BDY60) -> 1578.562934 | BEJ5: Births | BEK5: =SUMPRODUCT(BEG31:BEG60,BEH31:BEH60) -> 1562.469571 | BES5: Births | BET5: =SUMPRODUCT(BEP31:BEP60,BEQ31:BEQ60) -> 1546.536189 | BFB5: Births | BFC5: =SUMPRODUCT(BEY31:BEY60,BEZ31:BEZ60) -> 1530.769543 | BFK5: Births | BFL5: =SUMPRODUCT(BFH31:BFH60,BFI31:BFI60) -> 1515.181066 | BFT5: Births | BFU5: =SUMPRODUCT(BFQ31:BFQ60,BFR31:BFR60) -> 1499.781076 | BGC5: Births | BGD5: =SUMPRODUCT(BFZ31:BFZ60,BGA31:BGA60) -> 1484.578401 | BGL5: Births | BGM5: =SUMPRODUCT(BGI31:BGI60,BGJ31:BGJ60) -> 1469.580054 | BGU5: Births | BGV5: =SUMPRODUCT(BGR31:BGR60,BGS31:BGS60) -> 1454.790973 | BHD5: Births | BHE5: =SUMPRODUCT(BHA31:BHA60,BHB31:BHB60) -> 1440.213818 | BHM5: Births | BHN5: =SUMPRODUCT(BHJ31:BHJ60,BHK31:BHK60) -> 1425.848832 | BHV5: Births | BHW5: =SUMPRODUCT(BHS31:BHS60,BHT31:BHT60) -> 1411.693763 | BIE5: Births | BIF5: =SUMPRODUCT(BIB31:BIB60,BIC31:BIC60) -> 1397.743842 | BIN5: Births | BIO5: =SUMPRODUCT(BIK31:BIK60,BIL31:BIL60) -> 1383.991829 | BIW5: Births | BIX5: =SUMPRODUCT(BIT31:BIT60,BIU31:BIU60) -> 1370.428098 | BJF5: Births | BJG5: =SUMPRODUCT(BJC31:BJC60,BJD31:BJD60) -> 1357.040796 | BJO5: Births | BJP5: =SUMPRODUCT(BJL31:BJL60,BJM31:BJM60) -> 1343.816043 | BJX5: Births | BJY5: =SUMPRODUCT(BJU31:BJU60,BJV31:BJV60) -> 1330.738202 | BKG5: Births | BKH5: =SUMPRODUCT(BKD31:BKD60,BKE31:BKE60) -> 1317.7902 | BKP5: Births | BKQ5: =SUMPRODUCT(BKM31:BKM60,BKN31:BKN60) -> 1304.953894 | BKY5: Births | BKZ5: =SUMPRODUCT(BKV31:BKV60,BKW31:BKW60) -> 1292.215451 | BLH5: Births | BLI5: =SUMPRODUCT(BLE31:BLE60,BLF31:BLF60) -> 1279.564934 | BLQ5: Births | BLR5: =SUMPRODUCT(BLN31:BLN60,BLO31:BLO60) -> 1266.995891 | BLZ5: Births | BMA5: =SUMPRODUCT(BLW31:BLW60,BLX31:BLX60) -> 1254.504922 | BMI5: Births | BMJ5: =SUMPRODUCT(BMF31:BMF60,BMG31:BMG60) -> 1242.09126 | BMR5: Births | BMS5: =SUMPRODUCT(BMO31:BMO60,BMP31:BMP60) -> 1229.756333 | BNA5: Births | BNB5: =SUMPRODUCT(BMX31:BMX60,BMY31:BMY60) -> 1217.503335 | BNJ5: Births | BNK5: =SUMPRODUCT(BNG31:BNG60,BNH31:BNH60) -> 1205.336806 | BNS5: Births | BNT5: =SUMPRODUCT(BNP31:BNP60,BNQ31:BNQ60) -> 1193.262209 | BOB5: Births | BOC5: =SUMPRODUCT(BNY31:BNY60,BNZ31:BNZ60) -> 1181.285522 | BOK5: Births | BOL5: =SUMPRODUCT(BOH31:BOH60,BOI31:BOI60) -> 1169.412844 | BOT5: Births | BOU5: =SUMPRODUCT(BOQ31:BOQ60,BOR31:BOR60) -> 1157.650012 | BPC5: Births | BPD5: =SUMPRODUCT(BOZ31:BOZ60,BPA31:BPA60) -> 1146.00224 | BPL5: Births | BPM5: =SUMPRODUCT(BPI31:BPI60,BPJ31:BPJ60) -> 1134.47377 | BPU5: Births | BPV5: =SUMPRODUCT(BPR31:BPR60,BPS31:BPS60) -> 1123.067559 | BQD5: Births | BQE5: =SUMPRODUCT(BQA31:BQA60,BQB31:BQB60) -> 1111.78498 | BQM5: Births | BQN5: =SUMPRODUCT(BQJ31:BQJ60,BQK31:BQK60) -> 1100.626171
G6: Deaths | H6: =-SUMPRODUCT(C16:C101,F16:F101)+SUMPRODUCT(D16:D101,F16:F101) -> 690 | P6: Deaths | Q6: =-SUMPRODUCT(L16:L101,O16:O101)+SUMPRODUCT(M16:M101,O16:O101) -> 827.0024 | Y6: Deaths | Z6: =-SUMPRODUCT(U16:U101,X16:X101)+SUMPRODUCT(V16:V101,X16:X101) -> 875.1732874 | AH6: Deaths | AI6: =-SUMPRODUCT(AD16:AD101,AG16:AG101)+SUMPRODUCT(AE16:AE101,AG16:AG101) -> 923.4641259 | AQ6: Deaths | AR6: =-SUMPRODUCT(AM16:AM101,AP16:AP101)+SUMPRODUCT(AN16:AN101,AP16:AP101) -> 973.3823599 | AZ6: Deaths | BA6: =-SUMPRODUCT(AV16:AV101,AY16:AY101)+SUMPRODUCT(AW16:AW101,AY16:AY101) -> 1021.404137 | BI6: Deaths | BJ6: =-SUMPRODUCT(BE16:BE101,BH16:BH101)+SUMPRODUCT(BF16:BF101,BH16:BH101) -> 1078.895322 | BR6: Deaths | BS6: =-SUMPRODUCT(BN16:BN101,BQ16:BQ101)+SUMPRODUCT(BO16:BO101,BQ16:BQ101) -> 1145.742377 | CA6: Deaths | CB6: =-SUMPRODUCT(BW16:BW101,BZ16:BZ101)+SUMPRODUCT(BX16:BX101,BZ16:BZ101) -> 1221.804905 | CJ6: Deaths | CK6: =-SUMPRODUCT(CF16:CF101,CI16:CI101)+SUMPRODUCT(CG16:CG101,CI16:CI101) -> 1306.930134 | CS6: Deaths | CT6: =-SUMPRODUCT(CO16:CO101,CR16:CR101)+SUMPRODUCT(CP16:CP101,CR16:CR101) -> 1400.953733 | DB6: Deaths | DC6: =-SUMPRODUCT(CX16:CX101,DA16:DA101)+SUMPRODUCT(CY16:CY101,DA16:DA101) -> 1497.881516 | DK6: Deaths | DL6: =-SUMPRODUCT(DG16:DG101,DJ16:DJ101)+SUMPRODUCT(DH16:DH101,DJ16:DJ101) -> 1599.598091 | DT6: Deaths | DU6: =-SUMPRODUCT(DP16:DP101,DS16:DS101)+SUMPRODUCT(DQ16:DQ101,DS16:DS101) -> 1707.886824 | EC6: Deaths | ED6: =-SUMPRODUCT(DY16:DY101,EB16:EB101)+SUMPRODUCT(DZ16:DZ101,EB16:EB101) -> 1820.711126 | EL6: Deaths | EM6: =-SUMPRODUCT(EH16:EH101,EK16:EK101)+SUMPRODUCT(EI16:EI101,EK16:EK101) -> 1937.952654 | EU6: Deaths | EV6: =-SUMPRODUCT(EQ16:EQ101,ET16:ET101)+SUMPRODUCT(ER16:ER101,ET16:ET101) -> 2060.855639 | FD6: Deaths | FE6: =-SUMPRODUCT(EZ16:EZ101,FC16:FC101)+SUMPRODUCT(FA16:FA101,FC16:FC101) -> 2205.914603 | FM6: Deaths | FN6: =-SUMPRODUCT(FI16:FI101,FL16:FL101)+SUMPRODUCT(FJ16:FJ101,FL16:FL101) -> 2368.841506 | FV6: Deaths | FW6: =-SUMPRODUCT(FR16:FR101,FU16:FU101)+SUMPRODUCT(FS16:FS101,FU16:FU101) -> 2549.002281 | GE6: Deaths | GF6: =-SUMPRODUCT(GA16:GA101,GD16:GD101)+SUMPRODUCT(GB16:GB101,GD16:GD101) -> 2747.247037 | GN6: Deaths | GO6: =-SUMPRODUCT(GJ16:GJ101,GM16:GM101)+SUMPRODUCT(GK16:GK101,GM16:GM101) -> 2955.429954 | GW6: Deaths | GX6: =-SUMPRODUCT(GS16:GS101,GV16:GV101)+SUMPRODUCT(GT16:GT101,GV16:GV101) -> 3177.268986 | HF6: Deaths | HG6: =-SUMPRODUCT(HB16:HB101,HE16:HE101)+SUMPRODUCT(HC16:HC101,HE16:HE101) -> 3412.077607 | HO6: Deaths | HP6: =-SUMPRODUCT(HK16:HK101,HN16:HN101)+SUMPRODUCT(HL16:HL101,HN16:HN101) -> 3659.13707 | HX6: Deaths | HY6: =-SUMPRODUCT(HT16:HT101,HW16:HW101)+SUMPRODUCT(HU16:HU101,HW16:HW101) -> 3917.701229 | IG6: Deaths | IH6: =-SUMPRODUCT(IC16:IC101,IF16:IF101)+SUMPRODUCT(ID16:ID101,IF16:IF101) -> 4200.897295 | IP6: Deaths | IQ6: =-SUMPRODUCT(IL16:IL101,IO16:IO101)+SUMPRODUCT(IM16:IM101,IO16:IO101) -> 4505.457606 | IY6: Deaths | IZ6: =-SUMPRODUCT(IU16:IU101,IX16:IX101)+SUMPRODUCT(IV16:IV101,IX16:IX101) -> 4829.527495 | JH6: Deaths | JI6: =-SUMPRODUCT(JD16:JD101,JG16:JG101)+SUMPRODUCT(JE16:JE101,JG16:JG101) -> 5171.150513 | JQ6: Deaths | JR6: =-SUMPRODUCT(JM16:JM101,JP16:JP101)+SUMPRODUCT(JN16:JN101,JP16:JP101) -> 5528.285784 | JZ6: Deaths | KA6: =-SUMPRODUCT(JV16:JV101,JY16:JY101)+SUMPRODUCT(JW16:JW101,JY16:JY101) -> 5914.825744 | KI6: Deaths | KJ6: =-SUMPRODUCT(KE16:KE101,KH16:KH101)+SUMPRODUCT(KF16:KF101,KH16:KH101) -> 6328.671846 | KR6: Deaths | KS6: =-SUMPRODUCT(KN16:KN101,KQ16:KQ101)+SUMPRODUCT(KO16:KO101,KQ16:KQ101) -> 6777.152363 | LA6: Deaths | LB6: =-SUMPRODUCT(KW16:KW101,KZ16:KZ101)+SUMPRODUCT(KX16:KX101,KZ16:KZ101) -> 7254.908197 | LJ6: Deaths | LK6: =-SUMPRODUCT(LF16:LF101,LI16:LI101)+SUMPRODUCT(LG16:LG101,LI16:LI101) -> 7743.828482 | LS6: Deaths | LT6: =-SUMPRODUCT(LO16:LO101,LR16:LR101)+SUMPRODUCT(LP16:LP101,LR16:LR101) -> 8260.853435 | MB6: Deaths | MC6: =-SUMPRODUCT(LX16:LX101,MA16:MA101)+SUMPRODUCT(LY16:LY101,MA16:MA101) -> 8795.978664 | MK6: Deaths | ML6: =-SUMPRODUCT(MG16:MG101,MJ16:MJ101)+SUMPRODUCT(MH16:MH101,MJ16:MJ101) -> 9352.5529 | MT6: Deaths | MU6: =-SUMPRODUCT(MP16:MP101,MS16:MS101)+SUMPRODUCT(MQ16:MQ101,MS16:MS101) -> 9921.171784 | NC6: Deaths | ND6: =-SUMPRODUCT(MY16:MY101,NB16:NB101)+SUMPRODUCT(MZ16:MZ101,NB16:NB101) -> 10483.07461 | NL6: Deaths | NM6: =-SUMPRODUCT(NH16:NH101,NK16:NK101)+SUMPRODUCT(NI16:NI101,NK16:NK101) -> 19195.69668 | NU6: Deaths | NV6: =-SUMPRODUCT(NQ16:NQ101,NT16:NT101)+SUMPRODUCT(NR16:NR101,NT16:NT101) -> 19058.75935 | OD6: Deaths | OE6: =-SUMPRODUCT(NZ16:NZ101,OC16:OC101)+SUMPRODUCT(OA16:OA101,OC16:OC101) -> 18920.09373 | OM6: Deaths | ON6: =-SUMPRODUCT(OI16:OI101,OL16:OL101)+SUMPRODUCT(OJ16:OJ101,OL16:OL101) -> 18781.41757 | OV6: Deaths | OW6: =-SUMPRODUCT(OR16:OR101,OU16:OU101)+SUMPRODUCT(OS16:OS101,OU16:OU101) -> 18642.58719 | PE6: Deaths | PF6: =-SUMPRODUCT(PA16:PA101,PD16:PD101)+SUMPRODUCT(PB16:PB101,PD16:PD101) -> 18501.68075 | PN6: Deaths | PO6: =-SUMPRODUCT(PJ16:PJ101,PM16:PM101)+SUMPRODUCT(PK16:PK101,PM16:PM101) -> 18344.25782 | PW6: Deaths | PX6: =-SUMPRODUCT(PS16:PS101,PV16:PV101)+SUMPRODUCT(PT16:PT101,PV16:PV101) -> 18172.96588 | QF6: Deaths | QG6: =-SUMPRODUCT(QB16:QB101,QE16:QE101)+SUMPRODUCT(QC16:QC101,QE16:QE101) -> 17988.28957 | QO6: Deaths | QP6: =-SUMPRODUCT(QK16:QK101,QN16:QN101)+SUMPRODUCT(QL16:QL101,QN16:QN101) -> 17790.70986 | QX6: Deaths | QY6: =-SUMPRODUCT(QT16:QT101,QW16:QW101)+SUMPRODUCT(QU16:QU101,QW16:QW101) -> 17588.91083 | RG6: Deaths | RH6: =-SUMPRODUCT(RC16:RC101,RF16:RF101)+SUMPRODUCT(RD16:RD101,RF16:RF101) -> 17379.27404 | RP6: Deaths | RQ6: =-SUMPRODUCT(RL16:RL101,RO16:RO101)+SUMPRODUCT(RM16:RM101,RO16:RO101) -> 17162.14261 | RY6: Deaths | RZ6: =-SUMPRODUCT(RU16:RU101,RX16:RX101)+SUMPRODUCT(RV16:RV101,RX16:RX101) -> 16937.88365 | SH6: Deaths | SI6: =-SUMPRODUCT(SD16:SD101,SG16:SG101)+SUMPRODUCT(SE16:SE101,SG16:SG101) -> 16706.88502 | SQ6: Deaths | SR6: =-SUMPRODUCT(SM16:SM101,SP16:SP101)+SUMPRODUCT(SN16:SN101,SP16:SP101) -> 16451.7899 | SZ6: Deaths | TA6: =-SUMPRODUCT(SV16:SV101,SY16:SY101)+SUMPRODUCT(SW16:SW101,SY16:SY101) -> 16173.33065 | TI6: Deaths | TJ6: =-SUMPRODUCT(TE16:TE101,TH16:TH101)+SUMPRODUCT(TF16:TF101,TH16:TH101) -> 15874.54488 | TR6: Deaths | TS6: =-SUMPRODUCT(TN16:TN101,TQ16:TQ101)+SUMPRODUCT(TO16:TO101,TQ16:TQ101) -> 15555.78162 | UA6: Deaths | UB6: =-SUMPRODUCT(TW16:TW101,TZ16:TZ101)+SUMPRODUCT(TX16:TX101,TZ16:TZ101) -> 15218.90478 | UJ6: Deaths | UK6: =-SUMPRODUCT(UF16:UF101,UI16:UI101)+SUMPRODUCT(UG16:UG101,UI16:UI101) -> 14853.90797 | US6: Deaths | UT6: =-SUMPRODUCT(UO16:UO101,UR16:UR101)+SUMPRODUCT(UP16:UP101,UR16:UR101) -> 14471.06987 | VB6: Deaths | VC6: =-SUMPRODUCT(UX16:UX101,VA16:VA101)+SUMPRODUCT(UY16:UY101,VA16:VA101) -> 14059.88231 | VK6: Deaths | VL6: =-SUMPRODUCT(VG16:VG101,VJ16:VJ101)+SUMPRODUCT(VH16:VH101,VJ16:VJ101) -> 13624.76174 | VT6: Deaths | VU6: =-SUMPRODUCT(VP16:VP101,VS16:VS101)+SUMPRODUCT(VQ16:VQ101,VS16:VS101) -> 13182.51493 | WC6: Deaths | WD6: =-SUMPRODUCT(VY16:VY101,WB16:WB101)+SUMPRODUCT(VZ16:VZ101,WB16:WB101) -> 12713.65627 | WL6: Deaths | WM6: =-SUMPRODUCT(WH16:WH101,WK16:WK101)+SUMPRODUCT(WI16:WI101,WK16:WK101) -> 12225.6334 | WU6: Deaths | WV6: =-SUMPRODUCT(WQ16:WQ101,WT16:WT101)+SUMPRODUCT(WR16:WR101,WT16:WT101) -> 11713.69883 | XD6: Deaths | XE6: =-SUMPRODUCT(WZ16:WZ101,XC16:XC101)+SUMPRODUCT(XA16:XA101,XC16:XC101) -> 11186.29636 | XM6: Deaths | XN6: =-SUMPRODUCT(XI16:XI101,XL16:XL101)+SUMPRODUCT(XJ16:XJ101,XL16:XL101) -> 10661.7354 | XV6: Deaths | XW6: =-SUMPRODUCT(XR16:XR101,XU16:XU101)+SUMPRODUCT(XS16:XS101,XU16:XU101) -> 2257.943332 | YE6: Deaths | YF6: =-SUMPRODUCT(YA16:YA101,YD16:YD101)+SUMPRODUCT(YB16:YB101,YD16:YD101) -> 2416.98021 | YN6: Deaths | YO6: =-SUMPRODUCT(YJ16:YJ101,YM16:YM101)+SUMPRODUCT(YK16:YK101,YM16:YM101) -> 2587.539023 | YW6: Deaths | YX6: =-SUMPRODUCT(YS16:YS101,YV16:YV101)+SUMPRODUCT(YT16:YT101,YV16:YV101) -> 2767.799261 | ZF6: Deaths | ZG6: =-SUMPRODUCT(ZB16:ZB101,ZE16:ZE101)+SUMPRODUCT(ZC16:ZC101,ZE16:ZE101) -> 2955.883287 | ZO6: Deaths | ZP6: =-SUMPRODUCT(ZK16:ZK101,ZN16:ZN101)+SUMPRODUCT(ZL16:ZL101,ZN16:ZN101) -> 3160.376949 | ZX6: Deaths | ZY6: =-SUMPRODUCT(ZT16:ZT101,ZW16:ZW101)+SUMPRODUCT(ZU16:ZU101,ZW16:ZW101) -> 3378.089745 | AAG6: Deaths | AAH6: =-SUMPRODUCT(AAC16:AAC101,AAF16:AAF101)+SUMPRODUCT(AAD16:AAD101,AAF16:AAF101) -> 3615.775865 | AAP6: Deaths | AAQ6: =-SUMPRODUCT(AAL16:AAL101,AAO16:AAO101)+SUMPRODUCT(AAM16:AAM101,AAO16:AAO101) -> 3868.967461 | AAY6: Deaths | AAZ6: =-SUMPRODUCT(AAU16:AAU101,AAX16:AAX101)+SUMPRODUCT(AAV16:AAV101,AAX16:AAX101) -> 4124.075575 | ABH6: Deaths | ABI6: =-SUMPRODUCT(ABD16:ABD101,ABG16:ABG101)+SUMPRODUCT(ABE16:ABE101,ABG16:ABG101) -> 4395.498129 | ABQ6: Deaths | ABR6: =-SUMPRODUCT(ABM16:ABM101,ABP16:ABP101)+SUMPRODUCT(ABN16:ABN101,ABP16:ABP101) -> 4677.323947 | ABZ6: Deaths | ACA6: =-SUMPRODUCT(ABV16:ABV101,ABY16:ABY101)+SUMPRODUCT(ABW16:ABW101,ABY16:ABY101) -> 4971.606265 | ACI6: Deaths | ACJ6: =-SUMPRODUCT(ACE16:ACE101,ACH16:ACH101)+SUMPRODUCT(ACF16:ACF101,ACH16:ACH101) -> 5271.106037 | ACR6: Deaths | ACS6: =-SUMPRODUCT(ACN16:ACN101,ACQ16:ACQ101)+SUMPRODUCT(ACO16:ACO101,ACQ16:ACQ101) -> 5562.035336 | ADA6: Deaths | ADB6: =-SUMPRODUCT(ACW16:ACW101,ACZ16:ACZ101)+SUMPRODUCT(ACX16:ACX101,ACZ16:ACZ101) -> 11718.3058 | ADJ6: Deaths | ADK6: =-SUMPRODUCT(ADF16:ADF101,ADI16:ADI101)+SUMPRODUCT(ADG16:ADG101,ADI16:ADI101) -> 11300.10111 | ADS6: Deaths | ADT6: =-SUMPRODUCT(ADO16:ADO101,ADR16:ADR101)+SUMPRODUCT(ADP16:ADP101,ADR16:ADR101) -> 10889.37555 | AEB6: Deaths | AEC6: =-SUMPRODUCT(ADX16:ADX101,AEA16:AEA101)+SUMPRODUCT(ADY16:ADY101,AEA16:AEA101) -> 10486.50206 | AEK6: Deaths | AEL6: =-SUMPRODUCT(AEG16:AEG101,AEJ16:AEJ101)+SUMPRODUCT(AEH16:AEH101,AEJ16:AEJ101) -> 10091.74458 | AET6: Deaths | AEU6: =-SUMPRODUCT(AEP16:AEP101,AES16:AES101)+SUMPRODUCT(AEQ16:AEQ101,AES16:AES101) -> 9705.322515 | AFC6: Deaths | AFD6: =-SUMPRODUCT(AEY16:AEY101,AFB16:AFB101)+SUMPRODUCT(AEZ16:AEZ101,AFB16:AFB101) -> 9327.732312 | AFL6: Deaths | AFM6: =-SUMPRODUCT(AFH16:AFH101,AFK16:AFK101)+SUMPRODUCT(AFI16:AFI101,AFK16:AFK101) -> 8959.714668 | AFU6: Deaths | AFV6: =-SUMPRODUCT(AFQ16:AFQ101,AFT16:AFT101)+SUMPRODUCT(AFR16:AFR101,AFT16:AFT101) -> 8602.092465 | AGD6: Deaths | AGE6: =-SUMPRODUCT(AFZ16:AFZ101,AGC16:AGC101)+SUMPRODUCT(AGA16:AGA101,AGC16:AGC101) -> 8255.565546 | AGM6: Deaths | AGN6: =-SUMPRODUCT(AGI16:AGI101,AGL16:AGL101)+SUMPRODUCT(AGJ16:AGJ101,AGL16:AGL101) -> 7920.484499 | AGV6: Deaths | AGW6: =-SUMPRODUCT(AGR16:AGR101,AGU16:AGU101)+SUMPRODUCT(AGS16:AGS101,AGU16:AGU101) -> 7597.348249 | AHE6: Deaths | AHF6: =-SUMPRODUCT(AHA16:AHA101,AHD16:AHD101)+SUMPRODUCT(AHB16:AHB101,AHD16:AHD101) -> 7286.615214 | AHN6: Deaths | AHO6: =-SUMPRODUCT(AHJ16:AHJ101,AHM16:AHM101)+SUMPRODUCT(AHK16:AHK101,AHM16:AHM101) -> 6988.765145 | AHW6: Deaths | AHX6: =-SUMPRODUCT(AHS16:AHS101,AHV16:AHV101)+SUMPRODUCT(AHT16:AHT101,AHV16:AHV101) -> 6704.089347 | AIF6: Deaths | AIG6: =-SUMPRODUCT(AIB16:AIB101,AIE16:AIE101)+SUMPRODUCT(AIC16:AIC101,AIE16:AIE101) -> 6432.527857 | AIO6: Deaths | AIP6: =-SUMPRODUCT(AIK16:AIK101,AIN16:AIN101)+SUMPRODUCT(AIL16:AIL101,AIN16:AIN101) -> 6320.140845 | AIX6: Deaths | AIY6: =-SUMPRODUCT(AIT16:AIT101,AIW16:AIW101)+SUMPRODUCT(AIU16:AIU101,AIW16:AIW101) -> 6204.386894 | AJG6: Deaths | AJH6: =-SUMPRODUCT(AJC16:AJC101,AJF16:AJF101)+SUMPRODUCT(AJD16:AJD101,AJF16:AJF101) -> 6085.90088 | AJP6: Deaths | AJQ6: =-SUMPRODUCT(AJL16:AJL101,AJO16:AJO101)+SUMPRODUCT(AJM16:AJM101,AJO16:AJO101) -> 5965.336059 | AJY6: Deaths | AJZ6: =-SUMPRODUCT(AJU16:AJU101,AJX16:AJX101)+SUMPRODUCT(AJV16:AJV101,AJX16:AJX101) -> 5843.30877 | AKH6: Deaths | AKI6: =-SUMPRODUCT(AKD16:AKD101,AKG16:AKG101)+SUMPRODUCT(AKE16:AKE101,AKG16:AKG101) -> 5720.667186 | AKQ6: Deaths | AKR6: =-SUMPRODUCT(AKM16:AKM101,AKP16:AKP101)+SUMPRODUCT(AKN16:AKN101,AKP16:AKP101) -> 5598.099876 | AKZ6: Deaths | ALA6: =-SUMPRODUCT(AKV16:AKV101,AKY16:AKY101)+SUMPRODUCT(AKW16:AKW101,AKY16:AKY101) -> 5476.518385 | ALI6: Deaths | ALJ6: =-SUMPRODUCT(ALE16:ALE101,ALH16:ALH101)+SUMPRODUCT(ALF16:ALF101,ALH16:ALH101) -> 5356.747351 | ALR6: Deaths | ALS6: =-SUMPRODUCT(ALN16:ALN101,ALQ16:ALQ101)+SUMPRODUCT(ALO16:ALO101,ALQ16:ALQ101) -> 5239.224781 | AMA6: Deaths | AMB6: =-SUMPRODUCT(ALW16:ALW101,ALZ16:ALZ101)+SUMPRODUCT(ALX16:ALX101,ALZ16:ALZ101) -> 5124.864068 | AMJ6: Deaths | AMK6: =-SUMPRODUCT(AMF16:AMF101,AMI16:AMI101)+SUMPRODUCT(AMG16:AMG101,AMI16:AMI101) -> 5014.434574 | AMS6: Deaths | AMT6: =-SUMPRODUCT(AMO16:AMO101,AMR16:AMR101)+SUMPRODUCT(AMP16:AMP101,AMR16:AMR101) -> 4908.842262 | ANB6: Deaths | ANC6: =-SUMPRODUCT(AMX16:AMX101,ANA16:ANA101)+SUMPRODUCT(AMY16:AMY101,ANA16:ANA101) -> 4808.797364 | ANK6: Deaths | ANL6: =-SUMPRODUCT(ANG16:ANG101,ANJ16:ANJ101)+SUMPRODUCT(ANH16:ANH101,ANJ16:ANJ101) -> 4714.573683 | ANT6: Deaths | ANU6: =-SUMPRODUCT(ANP16:ANP101,ANS16:ANS101)+SUMPRODUCT(ANQ16:ANQ101,ANS16:ANS101) -> 4815.322295 | AOC6: Deaths | AOD6: =-SUMPRODUCT(ANY16:ANY101,AOB16:AOB101)+SUMPRODUCT(ANZ16:ANZ101,AOB16:AOB101) -> 4909.297689 | AOL6: Deaths | AOM6: =-SUMPRODUCT(AOH16:AOH101,AOK16:AOK101)+SUMPRODUCT(AOI16:AOI101,AOK16:AOK101) -> 4996.150598 | AOU6: Deaths | AOV6: =-SUMPRODUCT(AOQ16:AOQ101,AOT16:AOT101)+SUMPRODUCT(AOR16:AOR101,AOT16:AOT101) -> 5075.590393 | APD6: Deaths | APE6: =-SUMPRODUCT(AOZ16:AOZ101,APC16:APC101)+SUMPRODUCT(APA16:APA101,APC16:APC101) -> 5147.387261 | APM6: Deaths | APN6: =-SUMPRODUCT(API16:API101,APL16:APL101)+SUMPRODUCT(APJ16:APJ101,APL16:APL101) -> 5211.120608 | APV6: Deaths | APW6: =-SUMPRODUCT(APR16:APR101,APU16:APU101)+SUMPRODUCT(APS16:APS101,APU16:APU101) -> 5266.424219 | AQE6: Deaths | AQF6: =-SUMPRODUCT(AQA16:AQA101,AQD16:AQD101)+SUMPRODUCT(AQB16:AQB101,AQD16:AQD101) -> 5312.835327 | AQN6: Deaths | AQO6: =-SUMPRODUCT(AQJ16:AQJ101,AQM16:AQM101)+SUMPRODUCT(AQK16:AQK101,AQM16:AQM101) -> 5350.021621 | AQW6: Deaths | AQX6: =-SUMPRODUCT(AQS16:AQS101,AQV16:AQV101)+SUMPRODUCT(AQT16:AQT101,AQV16:AQV101) -> 5377.997433 | ARF6: Deaths | ARG6: =-SUMPRODUCT(ARB16:ARB101,ARE16:ARE101)+SUMPRODUCT(ARC16:ARC101,ARE16:ARE101) -> 5396.442731 | ARO6: Deaths | ARP6: =-SUMPRODUCT(ARK16:ARK101,ARN16:ARN101)+SUMPRODUCT(ARL16:ARL101,ARN16:ARN101) -> 5405.174083 | ARX6: Deaths | ARY6: =-SUMPRODUCT(ART16:ART101,ARW16:ARW101)+SUMPRODUCT(ARU16:ARU101,ARW16:ARW101) -> 5403.981516 | ASG6: Deaths | ASH6: =-SUMPRODUCT(ASC16:ASC101,ASF16:ASF101)+SUMPRODUCT(ASD16:ASD101,ASF16:ASF101) -> 5392.855096 | ASP6: Deaths | ASQ6: =-SUMPRODUCT(ASL16:ASL101,ASO16:ASO101)+SUMPRODUCT(ASM16:ASM101,ASO16:ASO101) -> 5372.136551 | ASY6: Deaths | ASZ6: =-SUMPRODUCT(ASU16:ASU101,ASX16:ASX101)+SUMPRODUCT(ASV16:ASV101,ASX16:ASX101) -> 5201.417318 | ATH6: Deaths | ATI6: =-SUMPRODUCT(ATD16:ATD101,ATG16:ATG101)+SUMPRODUCT(ATE16:ATE101,ATG16:ATG101) -> 5043.451638 | ATQ6: Deaths | ATR6: =-SUMPRODUCT(ATM16:ATM101,ATP16:ATP101)+SUMPRODUCT(ATN16:ATN101,ATP16:ATP101) -> 4897.881622 | ATZ6: Deaths | AUA6: =-SUMPRODUCT(ATV16:ATV101,ATY16:ATY101)+SUMPRODUCT(ATW16:ATW101,ATY16:ATY101) -> 4764.330941 | AUI6: Deaths | AUJ6: =-SUMPRODUCT(AUE16:AUE101,AUH16:AUH101)+SUMPRODUCT(AUF16:AUF101,AUH16:AUH101) -> 4642.409417 | AUR6: Deaths | AUS6: =-SUMPRODUCT(AUN16:AUN101,AUQ16:AUQ101)+SUMPRODUCT(AUO16:AUO101,AUQ16:AUQ101) -> 4531.715634 | AVA6: Deaths | AVB6: =-SUMPRODUCT(AUW16:AUW101,AUZ16:AUZ101)+SUMPRODUCT(AUX16:AUX101,AUZ16:AUZ101) -> 4431.825121 | AVJ6: Deaths | AVK6: =-SUMPRODUCT(AVF16:AVF101,AVI16:AVI101)+SUMPRODUCT(AVG16:AVG101,AVI16:AVI101) -> 4342.285329 | AVS6: Deaths | AVT6: =-SUMPRODUCT(AVO16:AVO101,AVR16:AVR101)+SUMPRODUCT(AVP16:AVP101,AVR16:AVR101) -> 4262.612992 | AWB6: Deaths | AWC6: =-SUMPRODUCT(AVX16:AVX101,AWA16:AWA101)+SUMPRODUCT(AVY16:AVY101,AWA16:AWA101) -> 4192.300341 | AWK6: Deaths | AWL6: =-SUMPRODUCT(AWG16:AWG101,AWJ16:AWJ101)+SUMPRODUCT(AWH16:AWH101,AWJ16:AWJ101) -> 4130.832104 | AWT6: Deaths | AWU6: =-SUMPRODUCT(AWP16:AWP101,AWS16:AWS101)+SUMPRODUCT(AWQ16:AWQ101,AWS16:AWS101) -> 4077.67367 | AXC6: Deaths | AXD6: =-SUMPRODUCT(AWY16:AWY101,AXB16:AXB101)+SUMPRODUCT(AWZ16:AWZ101,AXB16:AXB101) -> 4032.274291 | AXL6: Deaths | AXM6: =-SUMPRODUCT(AXH16:AXH101,AXK16:AXK101)+SUMPRODUCT(AXI16:AXI101,AXK16:AXK101) -> 3994.066519 | AXU6: Deaths | AXV6: =-SUMPRODUCT(AXQ16:AXQ101,AXT16:AXT101)+SUMPRODUCT(AXR16:AXR101,AXT16:AXT101) -> 3962.475785 | AYD6: Deaths | AYE6: =-SUMPRODUCT(AXZ16:AXZ101,AYC16:AYC101)+SUMPRODUCT(AYA16:AYA101,AYC16:AYC101) -> 3936.937629 | AYM6: Deaths | AYN6: =-SUMPRODUCT(AYI16:AYI101,AYL16:AYL101)+SUMPRODUCT(AYJ16:AYJ101,AYL16:AYL101) -> 3909.904858 | AYV6: Deaths | AYW6: =-SUMPRODUCT(AYR16:AYR101,AYU16:AYU101)+SUMPRODUCT(AYS16:AYS101,AYU16:AYU101) -> 3881.772176 | AZE6: Deaths | AZF6: =-SUMPRODUCT(AZA16:AZA101,AZD16:AZD101)+SUMPRODUCT(AZB16:AZB101,AZD16:AZD101) -> 3852.910851 | AZN6: Deaths | AZO6: =-SUMPRODUCT(AZJ16:AZJ101,AZM16:AZM101)+SUMPRODUCT(AZK16:AZK101,AZM16:AZM101) -> 3823.66737 | AZW6: Deaths | AZX6: =-SUMPRODUCT(AZS16:AZS101,AZV16:AZV101)+SUMPRODUCT(AZT16:AZT101,AZV16:AZV101) -> 3794.363943 | BAF6: Deaths | BAG6: =-SUMPRODUCT(BAB16:BAB101,BAE16:BAE101)+SUMPRODUCT(BAC16:BAC101,BAE16:BAE101) -> 3765.29298 | BAO6: Deaths | BAP6: =-SUMPRODUCT(BAK16:BAK101,BAN16:BAN101)+SUMPRODUCT(BAL16:BAL101,BAN16:BAN101) -> 3736.718541 | BAX6: Deaths | BAY6: =-SUMPRODUCT(BAT16:BAT101,BAW16:BAW101)+SUMPRODUCT(BAU16:BAU101,BAW16:BAW101) -> 3708.871398 | BBG6: Deaths | BBH6: =-SUMPRODUCT(BBC16:BBC101,BBF16:BBF101)+SUMPRODUCT(BBD16:BBD101,BBF16:BBF101) -> 3681.950409 | BBP6: Deaths | BBQ6: =-SUMPRODUCT(BBL16:BBL101,BBO16:BBO101)+SUMPRODUCT(BBM16:BBM101,BBO16:BBO101) -> 3656.131212 | BBY6: Deaths | BBZ6: =-SUMPRODUCT(BBU16:BBU101,BBX16:BBX101)+SUMPRODUCT(BBV16:BBV101,BBX16:BBX101) -> 3631.55467 | BCH6: Deaths | BCI6: =-SUMPRODUCT(BCD16:BCD101,BCG16:BCG101)+SUMPRODUCT(BCE16:BCE101,BCG16:BCG101) -> 3608.329322 | BCQ6: Deaths | BCR6: =-SUMPRODUCT(BCM16:BCM101,BCP16:BCP101)+SUMPRODUCT(BCN16:BCN101,BCP16:BCP101) -> 3586.527428 | BCZ6: Deaths | BDA6: =-SUMPRODUCT(BCV16:BCV101,BCY16:BCY101)+SUMPRODUCT(BCW16:BCW101,BCY16:BCY101) -> 3566.189373 | BDI6: Deaths | BDJ6: =-SUMPRODUCT(BDE16:BDE101,BDH16:BDH101)+SUMPRODUCT(BDF16:BDF101,BDH16:BDH101) -> 3547.33407 | BDR6: Deaths | BDS6: =-SUMPRODUCT(BDN16:BDN101,BDQ16:BDQ101)+SUMPRODUCT(BDO16:BDO101,BDQ16:BDQ101) -> 3525.433142 | BEA6: Deaths | BEB6: =-SUMPRODUCT(BDW16:BDW101,BDZ16:BDZ101)+SUMPRODUCT(BDX16:BDX101,BDZ16:BDZ101) -> 3500.617198 | BEJ6: Deaths | BEK6: =-SUMPRODUCT(BEF16:BEF101,BEI16:BEI101)+SUMPRODUCT(BEG16:BEG101,BEI16:BEI101) -> 3473.034695 | BES6: Deaths | BET6: =-SUMPRODUCT(BEO16:BEO101,BER16:BER101)+SUMPRODUCT(BEP16:BEP101,BER16:BER101) -> 3442.849983 | BFB6: Deaths | BFC6: =-SUMPRODUCT(BEX16:BEX101,BFA16:BFA101)+SUMPRODUCT(BEY16:BEY101,BFA16:BFA101) -> 3410.24125 | BFK6: Deaths | BFL6: =-SUMPRODUCT(BFG16:BFG101,BFJ16:BFJ101)+SUMPRODUCT(BFH16:BFH101,BFJ16:BFJ101) -> 3375.404504 | BFT6: Deaths | BFU6: =-SUMPRODUCT(BFP16:BFP101,BFS16:BFS101)+SUMPRODUCT(BFQ16:BFQ101,BFS16:BFS101) -> 3338.552576 | BGC6: Deaths | BGD6: =-SUMPRODUCT(BFY16:BFY101,BGB16:BGB101)+SUMPRODUCT(BFZ16:BFZ101,BGB16:BGB101) -> 3299.915537 | BGL6: Deaths | BGM6: =-SUMPRODUCT(BGH16:BGH101,BGK16:BGK101)+SUMPRODUCT(BGI16:BGI101,BGK16:BGK101) -> 3259.736725 | BGU6: Deaths | BGV6: =-SUMPRODUCT(BGQ16:BGQ101,BGT16:BGT101)+SUMPRODUCT(BGR16:BGR101,BGT16:BGT101) -> 3218.263627 | BHD6: Deaths | BHE6: =-SUMPRODUCT(BGZ16:BGZ101,BHC16:BHC101)+SUMPRODUCT(BHA16:BHA101,BHC16:BHC101) -> 3175.755321 | BHM6: Deaths | BHN6: =-SUMPRODUCT(BHI16:BHI101,BHL16:BHL101)+SUMPRODUCT(BHJ16:BHJ101,BHL16:BHL101) -> 3132.479002 | BHV6: Deaths | BHW6: =-SUMPRODUCT(BHR16:BHR101,BHU16:BHU101)+SUMPRODUCT(BHS16:BHS101,BHU16:BHU101) -> 3088.709712 | BIE6: Deaths | BIF6: =-SUMPRODUCT(BIA16:BIA101,BID16:BID101)+SUMPRODUCT(BIB16:BIB101,BID16:BID101) -> 3044.724525 | BIN6: Deaths | BIO6: =-SUMPRODUCT(BIJ16:BIJ101,BIM16:BIM101)+SUMPRODUCT(BIK16:BIK101,BIM16:BIM101) -> 3000.793219 | BIW6: Deaths | BIX6: =-SUMPRODUCT(BIS16:BIS101,BIV16:BIV101)+SUMPRODUCT(BIT16:BIT101,BIV16:BIV101) -> 2960.550542 | BJF6: Deaths | BJG6: =-SUMPRODUCT(BJB16:BJB101,BJE16:BJE101)+SUMPRODUCT(BJC16:BJC101,BJE16:BJE101) -> 2923.609701 | BJO6: Deaths | BJP6: =-SUMPRODUCT(BJK16:BJK101,BJN16:BJN101)+SUMPRODUCT(BJL16:BJL101,BJN16:BJN101) -> 2889.596118 | BJX6: Deaths | BJY6: =-SUMPRODUCT(BJT16:BJT101,BJW16:BJW101)+SUMPRODUCT(BJU16:BJU101,BJW16:BJW101) -> 2858.148323 | BKG6: Deaths | BKH6: =-SUMPRODUCT(BKC16:BKC101,BKF16:BKF101)+SUMPRODUCT(BKD16:BKD101,BKF16:BKF101) -> 2828.918682 | BKP6: Deaths | BKQ6: =-SUMPRODUCT(BKL16:BKL101,BKO16:BKO101)+SUMPRODUCT(BKM16:BKM101,BKO16:BKO101) -> 2801.574006 | BKY6: Deaths | BKZ6: =-SUMPRODUCT(BKU16:BKU101,BKX16:BKX101)+SUMPRODUCT(BKV16:BKV101,BKX16:BKX101) -> 2775.796562 | BLH6: Deaths | BLI6: =-SUMPRODUCT(BLD16:BLD101,BLG16:BLG101)+SUMPRODUCT(BLE16:BLE101,BLG16:BLG101) -> 2751.285209 | BLQ6: Deaths | BLR6: =-SUMPRODUCT(BLM16:BLM101,BLP16:BLP101)+SUMPRODUCT(BLN16:BLN101,BLP16:BLP101) -> 2727.756539 | BLZ6: Deaths | BMA6: =-SUMPRODUCT(BLV16:BLV101,BLY16:BLY101)+SUMPRODUCT(BLW16:BLW101,BLY16:BLY101) -> 2704.94577 | BMI6: Deaths | BMJ6: =-SUMPRODUCT(BME16:BME101,BMH16:BMH101)+SUMPRODUCT(BMF16:BMF101,BMH16:BMH101) -> 2682.607009 | BMR6: Deaths | BMS6: =-SUMPRODUCT(BMN16:BMN101,BMQ16:BMQ101)+SUMPRODUCT(BMO16:BMO101,BMQ16:BMQ101) -> 2660.51397 | BNA6: Deaths | BNB6: =-SUMPRODUCT(BMW16:BMW101,BMZ16:BMZ101)+SUMPRODUCT(BMX16:BMX101,BMZ16:BMZ101) -> 2638.460589 | BNJ6: Deaths | BNK6: =-SUMPRODUCT(BNF16:BNF101,BNI16:BNI101)+SUMPRODUCT(BNG16:BNG101,BNI16:BNI101) -> 2616.26162 | BNS6: Deaths | BNT6: =-SUMPRODUCT(BNO16:BNO101,BNR16:BNR101)+SUMPRODUCT(BNP16:BNP101,BNR16:BNR101) -> 2593.752847 | BOB6: Deaths | BOC6: =-SUMPRODUCT(BNX16:BNX101,BOA16:BOA101)+SUMPRODUCT(BNY16:BNY101,BOA16:BOA101) -> 2570.790661 | BOK6: Deaths | BOL6: =-SUMPRODUCT(BOG16:BOG101,BOJ16:BOJ101)+SUMPRODUCT(BOH16:BOH101,BOJ16:BOJ101) -> 2547.502843 | BOT6: Deaths | BOU6: =-SUMPRODUCT(BOP16:BOP101,BOS16:BOS101)+SUMPRODUCT(BOQ16:BOQ101,BOS16:BOS101) -> 2523.998037 | BPC6: Deaths | BPD6: =-SUMPRODUCT(BOY16:BOY101,BPB16:BPB101)+SUMPRODUCT(BOZ16:BOZ101,BPB16:BPB101) -> 2500.366612 | BPL6: Deaths | BPM6: =-SUMPRODUCT(BPH16:BPH101,BPK16:BPK101)+SUMPRODUCT(BPI16:BPI101,BPK16:BPK101) -> 2476.681581 | BPU6: Deaths | BPV6: =-SUMPRODUCT(BPQ16:BPQ101,BPT16:BPT101)+SUMPRODUCT(BPR16:BPR101,BPT16:BPT101) -> 2452.999534 | BQD6: Deaths | BQE6: =-SUMPRODUCT(BPZ16:BPZ101,BQC16:BQC101)+SUMPRODUCT(BQA16:BQA101,BQC16:BQC101) -> 2429.361711 | BQM6: Deaths | BQN6: =-SUMPRODUCT(BQI16:BQI101,BQL16:BQL101)+SUMPRODUCT(BQJ16:BQJ101,BQL16:BQL101) -> 2405.795104
G7: End Year Pop | H7: =H3+H5-H6 -> 614310 | P7: End Year Pop | Q7: =Q3+Q5-Q6 -> 627966.9476 | Y7: End Year Pop | Z7: =Z3+Z5-Z6 -> 641060.8935 | AH7: End Year Pop | AI7: =AI3+AI5-AI6 -> 653592.9334 | AQ7: End Year Pop | AR7: =AR3+AR5-AR6 -> 665562.603 | AZ7: End Year Pop | BA7: =BA3+BA5-BA6 -> 676972.9094 | BI7: End Year Pop | BJ7: =BJ3+BJ5-BJ6 -> 687815.4925 | BR7: End Year Pop | BS7: =BS3+BS5-BS6 -> 698082.1534 | CA7: End Year Pop | CB7: =CB3+CB5-CB6 -> 707764.8316 | CJ7: End Year Pop | CK7: =CK3+CK5-CK6 -> 716855.6168 | CS7: End Year Pop | CT7: =CT3+CT5-CT6 -> 725346.7612 | DB7: End Year Pop | DC7: =DC3+DC5-DC6 -> 733236.361 | DK7: End Year Pop | DL7: =DL3+DL5-DL6 -> 740520.6761 | DT7: End Year Pop | DU7: =DU3+DU5-DU6 -> 747194.1811 | EC7: End Year Pop | ED7: =ED3+ED5-ED6 -> 753253.3858 | EL7: End Year Pop | EM7: =EM3+EM5-EM6 -> 758694.9163 | EU7: End Year Pop | EV7: =EV3+EV5-EV6 -> 763886.1835 | FD7: End Year Pop | FE7: =FE3+FE5-FE6 -> 768793.1967 | FM7: End Year Pop | FN7: =FN3+FN5-FN6 -> 773386.2103 | FV7: End Year Pop | FW7: =FW3+FW5-FW6 -> 777636.1088 | GE7: End Year Pop | GF7: =GF3+GF5-GF6 -> 781512.923 | GN7: End Year Pop | GO7: =GO3+GO5-GO6 -> 784994.7405 | GW7: End Year Pop | GX7: =GX3+GX5-GX6 -> 788056.0771 | HF7: End Year Pop | HG7: =HG3+HG5-HG6 -> 790672.1737 | HO7: End Year Pop | HP7: =HP3+HP5-HP6 -> 792819.0283 | HX7: End Year Pop | HY7: =HY3+HY5-HY6 -> 794473.4231 | IG7: End Year Pop | IH7: =IH3+IH5-IH6 -> 795599.0026 | IP7: End Year Pop | IQ7: =IQ3+IQ5-IQ6 -> 796162.6773 | IY7: End Year Pop | IZ7: =IZ3+IZ5-IZ6 -> 796133.2982 | JH7: End Year Pop | JI7: =JI3+JI5-JI6 -> 795481.7583 | JQ7: End Year Pop | JR7: =JR3+JR5-JR6 -> 794181.0281 | JZ7: End Year Pop | KA7: =KA3+KA5-KA6 -> 792673.2549 | KI7: End Year Pop | KJ7: =KJ3+KJ5-KJ6 -> 790927.7198 | KR7: End Year Pop | KS7: =KS3+KS5-KS6 -> 788906.094 | LA7: End Year Pop | LB7: =LB3+LB5-LB6 -> 786575.1237 | LJ7: End Year Pop | LK7: =LK3+LK5-LK6 -> 783919.3807 | LS7: End Year Pop | LT7: =LT3+LT5-LT6 -> 780906.2106 | MB7: End Year Pop | MC7: =MC3+MC5-MC6 -> 777512.5635 | MK7: End Year Pop | ML7: =ML3+ML5-ML6 -> 773711.7579 | MT7: End Year Pop | MU7: =MU3+MU5-MU6 -> 769486.2348 | NC7: End Year Pop | ND7: =ND3+ND5-ND6 -> 764836.915 | NL7: End Year Pop | NM7: =NM3+NM5-NM6 -> 751607.005 | NU7: End Year Pop | NV7: =NV3+NV5-NV6 -> 738639.6373 | OD7: End Year Pop | OE7: =OE3+OE5-OE6 -> 725929.7636 | OM7: End Year Pop | ON7: =ON3+ON5-ON6 -> 713470.2729 | OV7: End Year Pop | OW7: =OW3+OW5-OW6 -> 701253.8585 | PE7: End Year Pop | PF7: =PF3+PF5-PF6 -> 688915.3468 | PN7: End Year Pop | PO7: =PO3+PO5-PO6 -> 676488.4091 | PW7: End Year Pop | PX7: =PX3+PX5-PX6 -> 664003.9461 | QF7: End Year Pop | QG7: =QG3+QG5-QG6 -> 651492.2413 | QO7: End Year Pop | QP7: =QP3+QP5-QP6 -> 638982.9582 | QX7: End Year Pop | QY7: =QY3+QY5-QY6 -> 626496.9302 | RG7: End Year Pop | RH7: =RH3+RH5-RH6 -> 614058.4544 | RP7: End Year Pop | RQ7: =RQ3+RQ5-RQ6 -> 601691.3147 | RY7: End Year Pop | RZ7: =RZ3+RZ5-RZ6 -> 589418.7513 | SH7: End Year Pop | SI7: =SI3+SI5-SI6 -> 577263.4336 | SQ7: End Year Pop | SR7: =SR3+SR5-SR6 -> 565265.1982 | SZ7: End Year Pop | TA7: =TA3+TA5-TA6 -> 553462.9563 | TI7: End Year Pop | TJ7: =TJ3+TJ5-TJ6 -> 541892.3763 | TR7: End Year Pop | TS7: =TS3+TS5-TS6 -> 530588.5624 | UA7: End Year Pop | UB7: =UB3+UB5-UB6 -> 519584.5294 | UJ7: End Year Pop | UK7: =UK3+UK5-UK6 -> 508923.0638 | US7: End Year Pop | UT7: =UT3+UT5-UT6 -> 498618.5976 | VB7: End Year Pop | VC7: =VC3+VC5-VC6 -> 488696.7767 | VK7: End Year Pop | VL7: =VL3+VL5-VL6 -> 479179.5359 | VT7: End Year Pop | VU7: =VU3+VU5-VU6 -> 470072.706 | WC7: End Year Pop | WD7: =WD3+WD5-WD6 -> 461402.3033 | WL7: End Year Pop | WM7: =WM3+WM5-WM6 -> 453187.5959 | WU7: End Year Pop | WV7: =WV3+WV5-WV6 -> 445453.2885 | XD7: End Year Pop | XE7: =XE3+XE5-XE6 -> 438216.3249 | XM7: End Year Pop | XN7: =XN3+XN5-XN6 -> 431476.017 | XV7: End Year Pop | XW7: =XW3+XW5-XW6 -> 433114.42 | YE7: End Year Pop | YF7: =YF3+YF5-YF6 -> 434572.1952 | YN7: End Year Pop | YO7: =YO3+YO5-YO6 -> 435841.9697 | YW7: End Year Pop | YX7: =YX3+YX5-YX6 -> 436918.8398 | ZF7: End Year Pop | ZG7: =ZG3+ZG5-ZG6 -> 437800.418 | ZO7: End Year Pop | ZP7: =ZP3+ZP5-ZP6 -> 438476.3591 | ZX7: End Year Pop | ZY7: =ZY3+ZY5-ZY6 -> 438928.5524 | AAG7: End Year Pop | AAH7: =AAH3+AAH5-AAH6 -> 439132.1379 | AAP7: End Year Pop | AAQ7: =AAQ3+AAQ5-AAQ6 -> 439066.752 | AAY7: End Year Pop | AAZ7: =AAZ3+AAZ5-AAZ6 -> 438725.6733 | ABH7: End Year Pop | ABI7: =ABI3+ABI5-ABI6 -> 438087.8588 | ABQ7: End Year Pop | ABR7: =ABR3+ABR5-ABR6 -> 437138.278 | ABZ7: End Year Pop | ACA7: =ACA3+ACA5-ACA6 -> 435859.9768 | ACI7: End Year Pop | ACJ7: =ACJ3+ACJ5-ACJ6 -> 434243.3943 | ACR7: End Year Pop | ACS7: =ACS3+ACS5-ACS6 -> 432292.9345 | ADA7: End Year Pop | ADB7: =ADB3+ADB5-ADB6 -> 424139.2899 | ADJ7: End Year Pop | ADK7: =ADK3+ADK5-ADK6 -> 416353.1926 | ADS7: End Year Pop | ADT7: =ADT3+ADT5-ADT6 -> 408923.6699 | AEB7: End Year Pop | AEC7: =AEC3+AEC5-AEC6 -> 401839.6513 | AEK7: End Year Pop | AEL7: =AEL3+AEL5-AEL6 -> 395090.1035 | AET7: End Year Pop | AEU7: =AEU3+AEU5-AEU6 -> 388664.0994 | AFC7: End Year Pop | AFD7: =AFD3+AFD5-AFD6 -> 382559.179 | AFL7: End Year Pop | AFM7: =AFM3+AFM5-AFM6 -> 376771.6006 | AFU7: End Year Pop | AFV7: =AFV3+AFV5-AFV6 -> 371296.2612 | AGD7: End Year Pop | AGE7: =AGE3+AGE5-AGE6 -> 366126.8245 | AGM7: End Year Pop | AGN7: =AGN3+AGN5-AGN6 -> 361256.0753 | AGV7: End Year Pop | AGW7: =AGW3+AGW5-AGW6 -> 356675.7768 | AHE7: End Year Pop | AHF7: =AHF3+AHF5-AHF6 -> 352376.7178 | AHN7: End Year Pop | AHO7: =AHO3+AHO5-AHO6 -> 348348.6997 | AHW7: End Year Pop | AHX7: =AHX3+AHX5-AHX6 -> 344580.7335 | AIF7: End Year Pop | AIG7: =AIG3+AIG5-AIG6 -> 341061.4005 | AIO7: End Year Pop | AIP7: =AIP3+AIP5-AIP6 -> 337632.7422 | AIX7: End Year Pop | AIY7: =AIY3+AIY5-AIY6 -> 334298.8731 | AJG7: End Year Pop | AJH7: =AJH3+AJH5-AJH6 -> 331062.8158 | AJP7: End Year Pop | AJQ7: =AJQ3+AJQ5-AJQ6 -> 327926.4953 | AJY7: End Year Pop | AJZ7: =AJZ3+AJZ5-AJZ6 -> 324890.7903 | AKH7: End Year Pop | AKI7: =AKI3+AKI5-AKI6 -> 321955.3154 | AKQ7: End Year Pop | AKR7: =AKR3+AKR5-AKR6 -> 319119.237 | AKZ7: End Year Pop | ALA7: =ALA3+ALA5-ALA6 -> 316381.0206 | ALI7: End Year Pop | ALJ7: =ALJ3+ALJ5-ALJ6 -> 313738.4865 | ALR7: End Year Pop | ALS7: =ALS3+ALS5-ALS6 -> 311189.1665 | AMA7: End Year Pop | AMB7: =AMB3+AMB5-AMB6 -> 308729.7987 | AMJ7: End Year Pop | AMK7: =AMK3+AMK5-AMK6 -> 306356.4411 | AMS7: End Year Pop | AMT7: =AMT3+AMT5-AMT6 -> 304064.306 | ANB7: End Year Pop | ANC7: =ANC3+ANC5-ANC6 -> 301847.9266 | ANK7: End Year Pop | ANL7: =ANL3+ANL5-ANL6 -> 299701.5648 | ANT7: End Year Pop | ANU7: =ANU3+ANU5-ANU6 -> 297430.3055 | AOC7: End Year Pop | AOD7: =AOD3+AOD5-AOD6 -> 295040.9257 | AOL7: End Year Pop | AOM7: =AOM3+AOM5-AOM6 -> 292540.4706 | AOU7: End Year Pop | AOV7: =AOV3+AOV5-AOV6 -> 289936.1687 | APD7: End Year Pop | APE7: =APE3+APE5-APE6 -> 287235.3446 | APM7: End Year Pop | APN7: =APN3+APN5-APN6 -> 284445.5845 | APV7: End Year Pop | APW7: =APW3+APW5-APW6 -> 281574.9347 | AQE7: End Year Pop | AQF7: =AQF3+AQF5-AQF6 -> 278632.0035 | AQN7: End Year Pop | AQO7: =AQO3+AQO5-AQO6 -> 275625.8356 | AQW7: End Year Pop | AQX7: =AQX3+AQX5-AQX6 -> 272565.5681 | ARF7: End Year Pop | ARG7: =ARG3+ARG5-ARG6 -> 269460.7667 | ARO7: End Year Pop | ARP7: =ARP3+ARP5-ARP6 -> 266321.2895 | ARX7: End Year Pop | ARY7: =ARY3+ARY5-ARY6 -> 263157.3123 | ASG7: End Year Pop | ASH7: =ASH3+ASH5-ASH6 -> 259979.1267 | ASP7: End Year Pop | ASQ7: =ASQ3+ASQ5-ASQ6 -> 256796.7838 | ASY7: End Year Pop | ASZ7: =ASZ3+ASZ5-ASZ6 -> 253760.8404 | ATH7: End Year Pop | ATI7: =ATI3+ATI5-ATI6 -> 250859.1897 | ATQ7: End Year Pop | ATR7: =ATR3+ATR5-ATR6 -> 248080.1659 | ATZ7: End Year Pop | AUA7: =AUA3+AUA5-AUA6 -> 245412.5539 | AUI7: End Year Pop | AUJ7: =AUJ3+AUJ5-AUJ6 -> 242845.5928 | AUR7: End Year Pop | AUS7: =AUS3+AUS5-AUS6 -> 240368.976 | AVA7: End Year Pop | AVB7: =AVB3+AVB5-AVB6 -> 237972.6551 | AVJ7: End Year Pop | AVK7: =AVK3+AVK5-AVK6 -> 235646.8833 | AVS7: End Year Pop | AVT7: =AVT3+AVT5-AVT6 -> 233382.2624 | AWB7: End Year Pop | AWC7: =AWC3+AWC5-AWC6 -> 231169.782 | AWK7: End Year Pop | AWL7: =AWL3+AWL5-AWL6 -> 229000.8432 | AWT7: End Year Pop | AWU7: =AWU3+AWU5-AWU6 -> 226867.2931 | AXC7: End Year Pop | AXD7: =AXD3+AXD5-AXD6 -> 224761.4562 | AXL7: End Year Pop | AXM7: =AXM3+AXM5-AXM6 -> 222676.166 | AXU7: End Year Pop | AXV7: =AXV3+AXV5-AXV6 -> 220604.7869 | AYD7: End Year Pop | AYE7: =AYE3+AYE5-AYE6 -> 218541.2185 | AYM7: End Year Pop | AYN7: =AYN3+AYN5-AYN6 -> 216486.8923 | AYV7: End Year Pop | AYW7: =AYW3+AYW5-AYW6 -> 214442.8434 | AZE7: End Year Pop | AZF7: =AZF3+AZF5-AZF6 -> 212409.7467 | AZN7: End Year Pop | AZO7: =AZO3+AZO5-AZO6 -> 210387.9546 | AZW7: End Year Pop | AZX7: =AZX3+AZX5-AZX6 -> 208377.533 | BAF7: End Year Pop | BAG7: =BAG3+BAG5-BAG6 -> 206378.3021 | BAO7: End Year Pop | BAP7: =BAP3+BAP5-BAP6 -> 204389.8552 | BAX7: End Year Pop | BAY7: =BAY3+BAY5-BAY6 -> 202411.5829 | BBG7: End Year Pop | BBH7: =BBH3+BBH5-BBH6 -> 200442.6976 | BBP7: End Year Pop | BBQ7: =BBQ3+BBQ5-BBQ6 -> 198482.2495 | BBY7: End Year Pop | BBZ7: =BBZ3+BBZ5-BBZ6 -> 196529.1566 | BCH7: End Year Pop | BCI7: =BCI3+BCI5-BCI6 -> 194582.2324 | BCQ7: End Year Pop | BCR7: =BCR3+BCR5-BCR6 -> 192640.2188 | BCZ7: End Year Pop | BDA7: =BDA3+BDA5-BDA6 -> 190701.816 | BDI7: End Year Pop | BDJ7: =BDJ3+BDJ5-BDJ6 -> 188765.7025 | BDR7: End Year Pop | BDS7: =BDS3+BDS5-BDS6 -> 186835.0827 | BEA7: End Year Pop | BEB7: =BEB3+BEB5-BEB6 -> 184913.0284 | BEJ7: End Year Pop | BEK7: =BEK3+BEK5-BEK6 -> 183002.4633 | BES7: End Year Pop | BET7: =BET3+BET5-BET6 -> 181106.1495 | BFB7: End Year Pop | BFC7: =BFC3+BFC5-BFC6 -> 179226.6778 | BFK7: End Year Pop | BFL7: =BFL3+BFL5-BFL6 -> 177366.4543 | BFT7: End Year Pop | BFU7: =BFU3+BFU5-BFU6 -> 175527.6828 | BGC7: End Year Pop | BGD7: =BGD3+BGD5-BGD6 -> 173712.3457 | BGL7: End Year Pop | BGM7: =BGM3+BGM5-BGM6 -> 171922.189 | BGU7: End Year Pop | BGV7: =BGV3+BGV5-BGV6 -> 170158.7164 | BHD7: End Year Pop | BHE7: =BHE3+BHE5-BHE6 -> 168423.1749 | BHM7: End Year Pop | BHN7: =BHN3+BHN5-BHN6 -> 166716.5447 | BHV7: End Year Pop | BHW7: =BHW3+BHW5-BHW6 -> 165039.5288 | BIE7: End Year Pop | BIF7: =BIF3+BIF5-BIF6 -> 163392.5481 | BIN7: End Year Pop | BIO7: =BIO3+BIO5-BIO6 -> 161775.7467 | BIW7: End Year Pop | BIX7: =BIX3+BIX5-BIX6 -> 160185.6242 | BJF7: End Year Pop | BJG7: =BJG3+BJG5-BJG6 -> 158619.0553 | BJO7: End Year Pop | BJP7: =BJP3+BJP5-BJP6 -> 157073.2753 | BJX7: End Year Pop | BJY7: =BJY3+BJY5-BJY6 -> 155545.8651 | BKG7: End Year Pop | BKH7: =BKH3+BKH5-BKH6 -> 154034.7367 | BKP7: End Year Pop | BKQ7: =BKQ3+BKQ5-BKQ6 -> 152538.1165 | BKY7: End Year Pop | BKZ7: =BKZ3+BKZ5-BKZ6 -> 151054.5354 | BLH7: End Year Pop | BLI7: =BLI3+BLI5-BLI6 -> 149582.8152 | BLQ7: End Year Pop | BLR7: =BLR3+BLR5-BLR6 -> 148122.0545 | BLZ7: End Year Pop | BMA7: =BMA3+BMA5-BMA6 -> 146671.6137 | BMI7: End Year Pop | BMJ7: =BMJ3+BMJ5-BMJ6 -> 145231.0979 | BMR7: End Year Pop | BMS7: =BMS3+BMS5-BMS6 -> 143800.3403 | BNA7: End Year Pop | BNB7: =BNB3+BNB5-BNB6 -> 142379.383 | BNJ7: End Year Pop | BNK7: =BNK3+BNK5-BNK6 -> 140968.4582 | BNS7: End Year Pop | BNT7: =BNT3+BNT5-BNT6 -> 139567.9676 | BOB7: End Year Pop | BOC7: =BOC3+BOC5-BOC6 -> 138178.4624 | BOK7: End Year Pop | BOL7: =BOL3+BOL5-BOL6 -> 136800.3724 | BOT7: End Year Pop | BOU7: =BOU3+BOU5-BOU6 -> 135434.0244 | BPC7: End Year Pop | BPD7: =BPD3+BPD5-BPD6 -> 134079.66 | BPL7: End Year Pop | BPM7: =BPM3+BPM5-BPM6 -> 132737.4522 | BPU7: End Year Pop | BPV7: =BPV3+BPV5-BPV6 -> 131407.5202 | BQD7: End Year Pop | BQE7: =BQE3+BQE5-BQE6 -> 130089.9435 | BQM7: End Year Pop | BQN7: =BQN3+BQN5-BQN6 -> 128784.7746
G8: %DPop | H8: =(H7-H3)/H3 -> 0.02385 | P8: %DPop | Q8: =(Q7-Q3)/Q3 -> 0.02223136136 | Y8: %DPop | Z8: =(Z7-Z3)/Z3 -> 0.02085132974 | AH8: %DPop | AI8: =(AI7-AI3)/AI3 -> 0.01954890724 | AQ8: %DPop | AR8: =(AR7-AR3)/AR3 -> 0.01831364587 | AZ8: %DPop | BA8: =(BA7-BA3)/BA3 -> 0.01714385145 | BI8: %DPop | BJ8: =(BJ7-BJ3)/BJ3 -> 0.01601627324 | BR8: %DPop | BS8: =(BS7-BS3)/BS3 -> 0.01492647529 | CA8: %DPop | CB8: =(CB7-CB3)/CB3 -> 0.01387039923 | CJ8: %DPop | CK8: =(CK7-CK3)/CK3 -> 0.01284435855 | CS8: %DPop | CT8: =(CT7-CT3)/CT3 -> 0.01184498544 | DB8: %DPop | DC8: =(DC7-DC3)/DC3 -> 0.01087700425 | DK8: %DPop | DL8: =(DL7-DL3)/DL3 -> 0.009934470611 | DT8: %DPop | DU8: =(DU7-DU3)/DU3 -> 0.009011909195 | EC8: %DPop | ED8: =(ED7-ED3)/ED3 -> 0.008109277134 | EL8: %DPop | EM8: =(EM7-EM3)/EM3 -> 0.007224037189 | EU8: %DPop | EV8: =(EV7-EV3)/EV3 -> 0.006842364503 | FD8: %DPop | FE8: =(FE7-FE3)/FE3 -> 0.006423749222 | FM8: %DPop | FN8: =(FN7-FN3)/FN3 -> 0.005974316072 | FV8: %DPop | FW8: =(FW7-FW3)/FW3 -> 0.005495182618 | GE8: %DPop | GF8: =(GF7-GF3)/GF3 -> 0.00498538358 | GN8: %DPop | GO8: =(GO7-GO3)/GO3 -> 0.004455226977 | GW8: %DPop | GX8: =(GX7-GX3)/GX3 -> 0.003899817973 | HF8: %DPop | HG8: =(HG7-HG3)/HG3 -> 0.00331968335 | HO8: %DPop | HP8: =(HP7-HP3)/HP3 -> 0.002715227214 | HX8: %DPop | HY8: =(HY7-HY3)/HY3 -> 0.002086724357 | IG8: %DPop | IH8: =(IH7-IH3)/IH3 -> 0.001416761688 | IP8: %DPop | IQ8: =(IQ7-IQ3)/IQ3 -> 0.0007084909248 | IY8: %DPop | IZ8: =(IZ7-IZ3)/IZ3 -> -3.69009002e-05 | JH8: %DPop | JI8: =(JI7-JI3)/JI3 -> -0.0008183804434 | JQ8: %DPop | JR8: =(JR7-JR3)/JR3 -> -0.001635147707 | JZ8: %DPop | KA8: =(KA7-KA3)/KA3 -> -0.001898525794 | KI8: %DPop | KJ8: =(KJ7-KJ3)/KJ3 -> -0.002202086608 | KR8: %DPop | KS8: =(KS7-KS3)/KS3 -> -0.002556018402 | LA8: %DPop | LB8: =(LB7-LB3)/LB3 -> -0.002954686634 | LJ8: %DPop | LK8: =(LK7-LK3)/LK3 -> -0.00337633733 | LS8: %DPop | LT8: =(LT7-LT3)/LT3 -> -0.003843724478 | MB8: %DPop | MC8: =(MC7-MC3)/MC3 -> -0.004345780617 | MK8: %DPop | ML8: =(ML7-ML3)/ML3 -> -0.004888416951 | MT8: %DPop | MU8: =(MU7-MU3)/MU3 -> -0.005461366092 | NC8: %DPop | ND8: =(ND7-ND3)/ND3 -> -0.006042109033 | NL8: %DPop | NM8: =(NM7-NM3)/NM3 -> -0.01729768767 | NU8: %DPop | NV8: =(NV7-NV3)/NV3 -> -0.01725285636 | OD8: %DPop | OE8: =(OE7-OE3)/OE3 -> -0.01720713739 | OM8: %DPop | ON8: =(ON7-ON3)/ON3 -> -0.01716349335 | OV8: %DPop | OW8: =(OW7-OW3)/OW3 -> -0.01712252749 | PE8: %DPop | PF8: =(PF7-PF3)/PF3 -> -0.01759492887 | PN8: %DPop | PO8: =(PO7-PO3)/PO3 -> -0.01803841028 | PW8: %DPop | PX8: =(PX7-PX3)/PX3 -> -0.01845480697 | QF8: %DPop | QG8: =(QG7-QG3)/QG3 -> -0.01884281694 | QO8: %DPop | QP8: =(QP7-QP3)/QP3 -> -0.01920097022 | QX8: %DPop | QY8: =(QY7-QY3)/QY3 -> -0.01954047093 | RG8: %DPop | RH8: =(RH7-RH3)/RH3 -> -0.0198540092 | RP8: %DPop | RQ8: =(RQ7-RQ3)/RQ3 -> -0.02014000406 | RY8: %DPop | RZ8: =(RZ7-RZ3)/RZ3 -> -0.02039677669 | SH8: %DPop | SI8: =(SI7-SI3)/SI3 -> -0.02062254995 | SQ8: %DPop | SR8: =(SR7-SR3)/SR3 -> -0.02078467949 | SZ8: %DPop | TA8: =(TA7-TA3)/TA3 -> -0.02087912356 | TI8: %DPop | TJ8: =(TJ7-TJ3)/TJ3 -> -0.02090578929 | TR8: %DPop | TS8: =(TS7-TS3)/TS3 -> -0.02085988735 | UA8: %DPop | UB8: =(UB7-UB3)/UB3 -> -0.0207392955 | UJ8: %DPop | UK8: =(UK7-UK3)/UK3 -> -0.02051921289 | US8: %DPop | UT8: =(UT7-UT3)/UT3 -> -0.02024759137 | VB8: %DPop | VC8: =(VC7-VC3)/VC3 -> -0.01989861788 | VK8: %DPop | VL8: =(VL7-VL3)/VL3 -> -0.01947473614 | VT8: %DPop | VU8: =(VU7-VU3)/VU3 -> -0.01900504748 | WC8: %DPop | WD8: =(WD7-WD3)/WD3 -> -0.01844481202 | WL8: %DPop | WM8: =(WM7-WM3)/WM3 -> -0.017803785 | WU8: %DPop | WV8: =(WV7-WV3)/WV3 -> -0.01706645891 | XD8: %DPop | XE8: =(XE7-XE3)/XE3 -> -0.01624629059 | XM8: %DPop | XN8: =(XN7-XN3)/XN3 -> -0.01538123422 | XV8: %DPop | XW8: =(XW7-XW3)/XW3 -> 0.003797205386 | YE8: %DPop | YF8: =(YF7-YF3)/YF3 -> 0.003365796946 | YN8: %DPop | YO8: =(YO7-YO3)/YO3 -> 0.00292189536 | YW8: %DPop | YX8: =(YX7-YX3)/YX3 -> 0.002470781247 | ZF8: %DPop | ZG8: =(ZG7-ZG3)/ZG3 -> 0.002017715955 | ZO8: %DPop | ZP8: =(ZP7-ZP3)/ZP3 -> 0.001543948096 | ZX8: %DPop | ZY8: =(ZY7-ZY3)/ZY3 -> 0.001031283236 | AAG8: %DPop | AAH8: =(AAH7-AAH3)/AAH3 -> 0.0004638236647 | AAP8: %DPop | AAQ8: =(AAQ7-AAQ3)/AAQ3 -> -0.0001488978507 | AAY8: %DPop | AAZ8: =(AAZ7-AAZ3)/AAZ3 -> -0.0007768266507 | ABH8: %DPop | ABI8: =(ABI7-ABI3)/ABI3 -> -0.001453788706 | ABQ8: %DPop | ABR8: =(ABR7-ABR3)/ABR3 -> -0.002167558093 | ABZ8: %DPop | ACA8: =(ACA7-ACA3)/ACA3 -> -0.00292424897 | ACI8: %DPop | ACJ8: =(ACJ7-ACJ3)/ACJ3 -> -0.003708949107 | ACR8: %DPop | ACS8: =(ACS7-ACS3)/ACS3 -> -0.004491628052 | ADA8: %DPop | ADB8: =(ADB7-ADB3)/ADB3 -> -0.01886138757 | ADJ8: %DPop | ADK8: =(ADK7-ADK3)/ADK3 -> -0.01835740635 | ADS8: %DPop | ADT8: =(ADT7-ADT3)/ADT3 -> -0.01784427958 | AEB8: %DPop | AEC8: =(AEC7-AEC3)/AEC3 -> -0.0173235718 | AEK8: %DPop | AEL8: =(AEL7-AEL3)/AEL3 -> -0.01679661964 | AET8: %DPop | AEU8: =(AEU7-AEU3)/AEU3 -> -0.01626465483 | AFC8: %DPop | AFD8: =(AFD7-AFD3)/AFD3 -> -0.01570744594 | AFL8: %DPop | AFM8: =(AFM7-AFM3)/AFM3 -> -0.01512858345 | AFU8: %DPop | AFV8: =(AFV7-AFV3)/AFV3 -> -0.01453225086 | AGD8: %DPop | AGE8: =(AGE7-AGE3)/AGE3 -> -0.01392267354 | AGM8: %DPop | AGN8: =(AGN7-AGN3)/AGN3 -> -0.01330344801 | AGV8: %DPop | AGW8: =(AGW7-AGW3)/AGW3 -> -0.01267881392 | AHE8: %DPop | AHF8: =(AHF7-AHF3)/AHF3 -> -0.01205312859 | AHN8: %DPop | AHO8: =(AHO7-AHO3)/AHO3 -> -0.0114309995 | AHW8: %DPop | AHX8: =(AHX7-AHX3)/AHX3 -> -0.01081665068 | AIF8: %DPop | AIG8: =(AIG7-AIG3)/AIG3 -> -0.01021337726 | AIO8: %DPop | AIP8: =(AIP7-AIP3)/AIP3 -> -0.0100529061 | AIX8: %DPop | AIY8: =(AIY7-AIY3)/AIY3 -> -0.009874247025 | AJG8: %DPop | AJH8: =(AJH7-AJH3)/AJH3 -> -0.009680132493 | AJP8: %DPop | AJQ8: =(AJQ7-AJQ3)/AJQ3 -> -0.00947349048 | AJY8: %DPop | AJZ8: =(AJZ7-AJZ3)/AJZ3 -> -0.00925727265 | AKH8: %DPop | AKI8: =(AKI7-AKI3)/AKI3 -> -0.009035266815 | AKQ8: %DPop | AKR8: =(AKR7-AKR3)/AKR3 -> -0.008808919128 | AKZ8: %DPop | ALA8: =(ALA7-ALA3)/ALA3 -> -0.008580543292 | ALI8: %DPop | ALJ8: =(ALJ7-ALJ3)/ALJ3 -> -0.008352378828 | ALR8: %DPop | ALS8: =(ALS7-ALS3)/ALS3 -> -0.008125620777 | AMA8: %DPop | AMB8: =(AMB7-AMB3)/AMB3 -> -0.007903128096 | AMJ8: %DPop | AMK8: =(AMK7-AMK3)/AMK3 -> -0.007687491173 | AMS8: %DPop | AMT8: =(AMT7-AMT3)/AMT3 -> -0.007481922228 | ANB8: %DPop | ANC8: =(ANC7-ANC3)/ANC3 -> -0.007289179687 | ANK8: %DPop | ANL8: =(ANL7-ANL3)/ANL3 -> -0.007110739025 | ANT8: %DPop | ANU8: =(ANU7-ANU3)/ANU3 -> -0.007578403212 | AOC8: %DPop | AOD8: =(AOD7-AOD3)/AOD3 -> -0.008033410815 | AOL8: %DPop | AOM8: =(AOM7-AOM3)/AOM3 -> -0.008474943056 | AOU8: %DPop | AOV8: =(AOV7-AOV3)/AOV3 -> -0.008902364416 | APD8: %DPop | APE8: =(APE7-APE3)/APE3 -> -0.009315236939 | APM8: %DPop | APN8: =(APN7-APN3)/APN3 -> -0.009712454091 | APV8: %DPop | APW8: =(APW7-APW3)/APW3 -> -0.01009208796 | AQE8: %DPop | AQF8: =(AQF7-AQF3)/AQF3 -> -0.01045168019 | AQN8: %DPop | AQO8: =(AQO7-AQO3)/AQO3 -> -0.01078902586 | AQW8: %DPop | AQX8: =(AQX7-AQX3)/AQX3 -> -0.01110297772 | ARF8: %DPop | ARG8: =(ARG7-ARG3)/ARG3 -> -0.01139102582 | ARO8: %DPop | ARP8: =(ARP7-ARP3)/ARP3 -> -0.01165096229 | ARX8: %DPop | ARY8: =(ARY7-ARY3)/ARY3 -> -0.01188030111 | ASG8: %DPop | ASH8: =(ASH7-ASH3)/ASH3 -> -0.01207713232 | ASP8: %DPop | ASQ8: =(ASQ7-ASQ3)/ASQ3 -> -0.01224076312 | ASY8: %DPop | ASZ8: =(ASZ7-ASZ3)/ASZ3 -> -0.01182235749 | ATH8: %DPop | ATI8: =(ATI7-ATI3)/ATI3 -> -0.01143458806 | ATQ8: %DPop | ATR8: =(ATR7-ATR3)/ATR3 -> -0.01107802255 | ATZ8: %DPop | AUA8: =(AUA7-AUA3)/AUA3 -> -0.01075302412 | AUI8: %DPop | AUJ8: =(AUJ7-AUJ3)/AUJ3 -> -0.01045977904 | AUR8: %DPop | AUS8: =(AUS7-AUS3)/AUS3 -> -0.01019831895 | AVA8: %DPop | AVB8: =(AVB7-AVB3)/AVB3 -> -0.009969343859 | AVJ8: %DPop | AVK8: =(AVK7-AVK3)/AVK3 -> -0.009773273079 | AVS8: %DPop | AVT8: =(AVT7-AVT3)/AVT3 -> -0.009610230905 | AWB8: %DPop | AWC8: =(AWC7-AWC3)/AWC3 -> -0.009480070877 | AWK8: %DPop | AWL8: =(AWL7-AWL3)/AWL3 -> -0.009382449309 | AWT8: %DPop | AWU8: =(AWU7-AWU3)/AWU3 -> -0.009316778206 | AXC8: %DPop | AXD8: =(AXD7-AXD3)/AXD3 -> -0.009282241118 | AXL8: %DPop | AXM8: =(AXM7-AXM3)/AXM3 -> -0.009277792859 | AXU8: %DPop | AXV8: =(AXV7-AXV3)/AXV3 -> -0.009302203943 | AYD8: %DPop | AYE8: =(AYE7-AYE3)/AYE3 -> -0.009354141447 | AYM8: %DPop | AYN8: =(AYN7-AYN3)/AYN3 -> -0.009400177145 | AYV8: %DPop | AYW8: =(AYW7-AYW3)/AYW3 -> -0.009441906255 | AZE8: %DPop | AZF8: =(AZF7-AZF3)/AZF3 -> -0.009480832526 | AZN8: %DPop | AZO8: =(AZO7-AZO3)/AZO3 -> -0.009518358348 | AZW8: %DPop | AZX8: =(AZX7-AZX3)/AZX3 -> -0.009555783116 | BAF8: %DPop | BAG8: =(BAG7-BAG3)/BAG3 -> -0.009594272824 | BAO8: %DPop | BAP8: =(BAP7-BAP3)/BAP3 -> -0.009634960954 | BAX8: %DPop | BAY8: =(BAY7-BAY3)/BAY3 -> -0.009678915985 | BBG8: %DPop | BBH8: =(BBH7-BBH3)/BBH3 -> -0.00972713791 | BBP8: %DPop | BBQ8: =(BBQ7-BBQ3)/BBQ3 -> -0.009780591282 | BBY8: %DPop | BBZ8: =(BBZ7-BBZ3)/BBZ3 -> -0.009840138704 | BCH8: %DPop | BCI8: =(BCI7-BCI3)/BCI3 -> -0.009906541209 | BCQ8: %DPop | BCR8: =(BCR7-BCR3)/BCR3 -> -0.009980426004 | BCZ8: %DPop | BDA8: =(BDA7-BDA3)/BDA3 -> -0.01006229567 | BDI8: %DPop | BDJ8: =(BDJ7-BDJ3)/BDJ3 -> -0.01015256976 | BDR8: %DPop | BDS8: =(BDS7-BDS3)/BDS3 -> -0.01022759859 | BEA8: %DPop | BEB8: =(BEB7-BEB3)/BEB3 -> -0.01028743765 | BEJ8: %DPop | BEK8: =(BEK7-BEK3)/BEK3 -> -0.01033223641 | BES8: %DPop | BET8: =(BET7-BET3)/BET3 -> -0.01036223098 | BFB8: %DPop | BFC8: =(BFC7-BFC3)/BFC3 -> -0.01037773544 | BFK8: %DPop | BFL8: =(BFL7-BFL3)/BFL3 -> -0.01037916599 | BFT8: %DPop | BFU8: =(BFU7-BFU3)/BFU3 -> -0.01036707593 | BGC8: %DPop | BGD8: =(BGD7-BGD3)/BGD3 -> -0.01034217 | BGL8: %DPop | BGM8: =(BGM7-BGM3)/BGM3 -> -0.01030529329 | BGU8: %DPop | BGV8: =(BGV7-BGV3)/BGV3 -> -0.01025738833 | BHD8: %DPop | BHE8: =(BHE7-BHE3)/BHE3 -> -0.01019954511 | BHM8: %DPop | BHN8: =(BHN7-BHN3)/BHN3 -> -0.01013298895 | BHV8: %DPop | BHW8: =(BHW7-BHW3)/BHW3 -> -0.01005908533 | BIE8: %DPop | BIF8: =(BIF7-BIF3)/BIF3 -> -0.009979310382 | BIN8: %DPop | BIO8: =(BIO7-BIO3)/BIO3 -> -0.009895196628 | BIW8: %DPop | BIX8: =(BIX7-BIX3)/BIX3 -> -0.00982917697 | BJF8: %DPop | BJG8: =(BJG7-BJG3)/BJG3 -> -0.009779709714 | BJO8: %DPop | BJP8: =(BJP7-BJP3)/BJP3 -> -0.009745235668 | BJX8: %DPop | BJY8: =(BJY7-BJY3)/BJY3 -> -0.009724188399 | BKG8: %DPop | BKH8: =(BKH7-BKH3)/BKH3 -> -0.009715002586 | BKP8: %DPop | BKQ8: =(BKQ7-BKQ3)/BKQ3 -> -0.009716120822 | BKY8: %DPop | BKZ8: =(BKZ7-BKZ3)/BKZ3 -> -0.00972596978 | BLH8: %DPop | BLI8: =(BLI7-BLI3)/BLI3 -> -0.009742973097 | BLQ8: %DPop | BLR8: =(BLR7-BLR3)/BLR3 -> -0.009765564625 | BLZ8: %DPop | BMA8: =(BMA7-BMA3)/BMA3 -> -0.009792200446 | BMI8: %DPop | BMJ8: =(BMJ7-BMJ3)/BMJ3 -> -0.009821367015 | BMR8: %DPop | BMS8: =(BMS7-BMS3)/BMS3 -> -0.009851592791 | BNA8: %DPop | BNB8: =(BNB7-BNB3)/BNB3 -> -0.009881459609 | BNJ8: %DPop | BNK8: =(BNK7-BNK3)/BNK3 -> -0.009909614603 | BNS8: %DPop | BNT8: =(BNT7-BNT3)/BNT3 -> -0.009934780132 | BOB8: %DPop | BOC8: =(BOC7-BOC3)/BOC3 -> -0.009955759644 | BOK8: %DPop | BOL8: =(BOL7-BOL3)/BOL3 -> -0.009973261931 | BOT8: %DPop | BOU8: =(BOU7-BOU3)/BOU3 -> -0.009987896971 | BPC8: %DPop | BPD8: =(BPD7-BPD3)/BPD3 -> -0.01000017816 | BPL8: %DPop | BPM8: =(BPM7-BPM3)/BPM3 -> -0.01001052516 | BPU8: %DPop | BPV8: =(BPV7-BPV3)/BPV3 -> -0.010019267 | BQD8: %DPop | BQE8: =(BQE7-BQE3)/BQE3 -> -0.01002664633 | BQM8: %DPop | BQN8: =(BQN7-BQN3)/BQN3 -> -0.01003281958
A15: Year | B15: Age | C15: NP | D15: P | E15: ASFR | F15: ASDR | J15: Year | K15: Age | L15: NP | M15: P | N15: ASFR | O15: ASDR | S15: Year | T15: Age | U15: NP | V15: P | W15: ASFR | X15: ASDR | AB15: Year | AC15: Age | AD15: NP | AE15: P | AF15: ASFR | AG15: ASDR | AK15: Year | AL15: Age | AM15: NP | AN15: P | AO15: ASFR | AP15: ASDR | AT15: Year | AU15: Age | AV15: NP | AW15: P | AX15: ASFR | AY15: ASDR | BC15: Year | BD15: Age | BE15: NP | BF15: P | BG15: ASFR | BH15: ASDR | BL15: Year | BM15: Age | BN15: NP | BO15: P | BP15: ASFR | BQ15: ASDR | BU15: Year | BV15: Age | BW15: NP | BX15: P | BY15: ASFR | BZ15: ASDR | CD15: Year | CE15: Age | CF15: NP | CG15: P | CH15: ASFR | CI15: ASDR | CM15: Year | CN15: Age | CO15: NP | CP15: P | CQ15: ASFR | CR15: ASDR | CV15: Year | CW15: Age | CX15: NP | CY15: P | CZ15: ASFR | DA15: ASDR | DE15: Year | DF15: Age | DG15: NP | DH15: P | DI15: ASFR | DJ15: ASDR | DN15: Year | DO15: Age | DP15: NP | DQ15: P | DR15: ASFR | DS15: ASDR | DW15: Year | DX15: Age | DY15: NP | DZ15: P | EA15: ASFR | EB15: ASDR | EF15: Year | EG15: Age | EH15: NP | EI15: P | EJ15: ASFR | EK15: ASDR | EO15: Year | EP15: Age | EQ15: NP | ER15: P | ES15: ASFR | ET15: ASDR | EX15: Year | EY15: Age | EZ15: NP | FA15: P | FB15: ASFR | FC15: ASDR | FG15: Year | FH15: Age | FI15: NP | FJ15: P | FK15: ASFR | FL15: ASDR | FP15: Year | FQ15: Age | FR15: NP | FS15: P | FT15: ASFR | FU15: ASDR | FY15: Year | FZ15: Age | GA15: NP | GB15: P | GC15: ASFR | GD15: ASDR | GH15: Year | GI15: Age | GJ15: NP | GK15: P | GL15: ASFR | GM15: ASDR | GQ15: Year | GR15: Age | GS15: NP | GT15: P | GU15: ASFR | GV15: ASDR | GZ15: Year | HA15: Age | HB15: NP | HC15: P | HD15: ASFR | HE15: ASDR | HI15: Year | HJ15: Age | HK15: NP | HL15: P | HM15: ASFR | HN15: ASDR | HR15: Year | HS15: Age | HT15: NP | HU15: P | HV15: ASFR | HW15: ASDR | IA15: Year | IB15: Age | IC15: NP | ID15: P | IE15: ASFR | IF15: ASDR | IJ15: Year | IK15: Age | IL15: NP | IM15: P | IN15: ASFR | IO15: ASDR | IS15: Year | IT15: Age | IU15: NP | IV15: P | IW15: ASFR | IX15: ASDR | JB15: Year | JC15: Age | JD15: NP | JE15: P | JF15: ASFR | JG15: ASDR | JK15: Year | JL15: Age | JM15: NP | JN15: P | JO15: ASFR | JP15: ASDR | JT15: Year | JU15: Age | JV15: NP | JW15: P | JX15: ASFR | JY15: ASDR | KC15: Year | KD15: Age | KE15: NP | KF15: P | KG15: ASFR | KH15: ASDR | KL15: Year | KM15: Age | KN15: NP | KO15: P | KP15: ASFR | KQ15: ASDR | KU15: Year | KV15: Age | KW15: NP | KX15: P | KY15: ASFR | KZ15: ASDR | LD15: Year | LE15: Age | LF15: NP | LG15: P | LH15: ASFR | LI15: ASDR | LM15: Year | LN15: Age | LO15: NP | LP15: P | LQ15: ASFR | LR15: ASDR | LV15: Year | LW15: Age | LX15: NP | LY15: P | LZ15: ASFR | MA15: ASDR | ME15: Year | MF15: Age | MG15: NP | MH15: P | MI15: ASFR | MJ15: ASDR | MN15: Year | MO15: Age | MP15: NP | MQ15: P | MR15: ASFR | MS15: ASDR | MW15: Year | MX15: Age | MY15: NP | MZ15: P | NA15: ASFR | NB15: ASDR | NF15: Year | NG15: Age | NH15: NP | NI15: P | NJ15: ASFR | NK15: ASDR | NO15: Year | NP15: Age | NQ15: NP | NR15: P | NS15: ASFR | NT15: ASDR | NX15: Year | NY15: Age | NZ15: NP | OA15: P | OB15: ASFR | OC15: ASDR | OG15: Year | OH15: Age | OI15: NP | OJ15: P | OK15: ASFR | OL15: ASDR | OP15: Year | OQ15: Age | OR15: NP | OS15: P | OT15: ASFR | OU15: ASDR | OY15: Year | OZ15: Age | PA15: NP | PB15: P | PC15: ASFR | PD15: ASDR | PH15: Year | PI15: Age | PJ15: NP | PK15: P | PL15: ASFR | PM15: ASDR | PQ15: Year | PR15: Age | PS15: NP | PT15: P | PU15: ASFR | PV15: ASDR | PZ15: Year | QA15: Age | QB15: NP | QC15: P | QD15: ASFR | QE15: ASDR | QI15: Year | QJ15: Age | QK15: NP | QL15: P | QM15: ASFR | QN15: ASDR | QR15: Year | QS15: Age | QT15: NP | QU15: P | QV15: ASFR | QW15: ASDR | RA15: Year | RB15: Age | RC15: NP | RD15: P | RE15: ASFR | RF15: ASDR | RJ15: Year | RK15: Age | RL15: NP | RM15: P | RN15: ASFR | RO15: ASDR | RS15: Year | RT15: Age | RU15: NP | RV15: P | RW15: ASFR | RX15: ASDR | SB15: Year | SC15: Age | SD15: NP | SE15: P | SF15: ASFR | SG15: ASDR | SK15: Year | SL15: Age | SM15: NP | SN15: P | SO15: ASFR | SP15: ASDR | ST15: Year | SU15: Age | SV15: NP | SW15: P | SX15: ASFR | SY15: ASDR | TC15: Year | TD15: Age | TE15: NP | TF15: P | TG15: ASFR | TH15: ASDR | TL15: Year | TM15: Age | TN15: NP | TO15: P | TP15: ASFR | TQ15: ASDR | TU15: Year | TV15: Age | TW15: NP | TX15: P | TY15: ASFR | TZ15: ASDR | UD15: Year | UE15: Age | UF15: NP | UG15: P | UH15: ASFR | UI15: ASDR | UM15: Year | UN15: Age | UO15: NP | UP15: P | UQ15: ASFR | UR15: ASDR | UV15: Year | UW15: Age | UX15: NP | UY15: P | UZ15: ASFR | VA15: ASDR | VE15: Year | VF15: Age | VG15: NP | VH15: P | VI15: ASFR | VJ15: ASDR | VN15: Year | VO15: Age | VP15: NP | VQ15: P | VR15: ASFR | VS15: ASDR | VW15: Year | VX15: Age | VY15: NP | VZ15: P | WA15: ASFR | WB15: ASDR | WF15: Year | WG15: Age | WH15: NP | WI15: P | WJ15: ASFR | WK15: ASDR | WO15: Year | WP15: Age | WQ15: NP | WR15: P | WS15: ASFR | WT15: ASDR | WX15: Year | WY15: Age | WZ15: NP | XA15: P | XB15: ASFR | XC15: ASDR | XG15: Year | XH15: Age | XI15: NP | XJ15: P | XK15: ASFR | XL15: ASDR | XP15: Year | XQ15: Age | XR15: NP | XS15: P | XT15: ASFR | XU15: ASDR | XY15: Year | XZ15: Age | YA15: NP | YB15: P | YC15: ASFR | YD15: ASDR | YH15: Year | YI15: Age | YJ15: NP | YK15: P | YL15: ASFR | YM15: ASDR | YQ15: Year | YR15: Age | YS15: NP | YT15: P | YU15: ASFR | YV15: ASDR | YZ15: Year | ZA15: Age | ZB15: NP | ZC15: P | ZD15: ASFR | ZE15: ASDR | ZI15: Year | ZJ15: Age | ZK15: NP | ZL15: P | ZM15: ASFR | ZN15: ASDR | ZR15: Year | ZS15: Age | ZT15: NP | ZU15: P | ZV15: ASFR | ZW15: ASDR | AAA15: Year | AAB15: Age | AAC15: NP | AAD15: P | AAE15: ASFR | AAF15: ASDR | AAJ15: Year | AAK15: Age | AAL15: NP | AAM15: P | AAN15: ASFR | AAO15: ASDR | AAS15: Year | AAT15: Age | AAU15: NP | AAV15: P | AAW15: ASFR | AAX15: ASDR | ABB15: Year | ABC15: Age | ABD15: NP | ABE15: P | ABF15: ASFR | ABG15: ASDR | ABK15: Year | ABL15: Age | ABM15: NP | ABN15: P | ABO15: ASFR | ABP15: ASDR | ABT15: Year | ABU15: Age | ABV15: NP | ABW15: P | ABX15: ASFR | ABY15: ASDR | ACC15: Year | ACD15: Age | ACE15: NP | ACF15: P | ACG15: ASFR | ACH15: ASDR | ACL15: Year | ACM15: Age | ACN15: NP | ACO15: P | ACP15: ASFR | ACQ15: ASDR | ACU15: Year | ACV15: Age | ACW15: NP | ACX15: P | ACY15: ASFR | ACZ15: ASDR | ADD15: Year | ADE15: Age | ADF15: NP | ADG15: P | ADH15: ASFR | ADI15: ASDR | ADM15: Year | ADN15: Age | ADO15: NP | ADP15: P | ADQ15: ASFR | ADR15: ASDR | ADV15: Year | ADW15: Age | ADX15: NP | ADY15: P | ADZ15: ASFR | AEA15: ASDR | AEE15: Year | AEF15: Age | AEG15: NP | AEH15: P | AEI15: ASFR | AEJ15: ASDR | AEN15: Year | AEO15: Age | AEP15: NP | AEQ15: P | AER15: ASFR | AES15: ASDR | AEW15: Year | AEX15: Age | AEY15: NP | AEZ15: P | AFA15: ASFR | AFB15: ASDR | AFF15: Year | AFG15: Age | AFH15: NP | AFI15: P | AFJ15: ASFR | AFK15: ASDR | AFO15: Year | AFP15: Age | AFQ15: NP | AFR15: P | AFS15: ASFR | AFT15: ASDR | AFX15: Year | AFY15: Age | AFZ15: NP | AGA15: P | AGB15: ASFR | AGC15: ASDR | AGG15: Year | AGH15: Age | AGI15: NP | AGJ15: P | AGK15: ASFR | AGL15: ASDR | AGP15: Year | AGQ15: Age | AGR15: NP | AGS15: P | AGT15: ASFR | AGU15: ASDR | AGY15: Year | AGZ15: Age | AHA15: NP | AHB15: P | AHC15: ASFR | AHD15: ASDR | AHH15: Year | AHI15: Age | AHJ15: NP | AHK15: P | AHL15: ASFR | AHM15: ASDR | AHQ15: Year | AHR15: Age | AHS15: NP | AHT15: P | AHU15: ASFR | AHV15: ASDR | AHZ15: Year | AIA15: Age | AIB15: NP | AIC15: P | AID15: ASFR | AIE15: ASDR | AII15: Year | AIJ15: Age | AIK15: NP | AIL15: P | AIM15: ASFR | AIN15: ASDR | AIR15: Year | AIS15: Age | AIT15: NP | AIU15: P | AIV15: ASFR | AIW15: ASDR | AJA15: Year | AJB15: Age | AJC15: NP | AJD15: P | AJE15: ASFR | AJF15: ASDR | AJJ15: Year | AJK15: Age | AJL15: NP | AJM15: P | AJN15: ASFR | AJO15: ASDR | AJS15: Year | AJT15: Age | AJU15: NP | AJV15: P | AJW15: ASFR | AJX15: ASDR | AKB15: Year | AKC15: Age | AKD15: NP | AKE15: P | AKF15: ASFR | AKG15: ASDR | AKK15: Year | AKL15: Age | AKM15: NP | AKN15: P | AKO15: ASFR | AKP15: ASDR | AKT15: Year | AKU15: Age | AKV15: NP | AKW15: P | AKX15: ASFR | AKY15: ASDR | ALC15: Year | ALD15: Age | ALE15: NP | ALF15: P | ALG15: ASFR | ALH15: ASDR | ALL15: Year | ALM15: Age | ALN15: NP | ALO15: P | ALP15: ASFR | ALQ15: ASDR | ALU15: Year | ALV15: Age | ALW15: NP | ALX15: P | ALY15: ASFR | ALZ15: ASDR | AMD15: Year | AME15: Age | AMF15: NP | AMG15: P | AMH15: ASFR | AMI15: ASDR | AMM15: Year | AMN15: Age | AMO15: NP | AMP15: P | AMQ15: ASFR | AMR15: ASDR | AMV15: Year | AMW15: Age | AMX15: NP | AMY15: P | AMZ15: ASFR | ANA15: ASDR | ANE15: Year | ANF15: Age | ANG15: NP | ANH15: P | ANI15: ASFR | ANJ15: ASDR | ANN15: Year | ANO15: Age | ANP15: NP | ANQ15: P | ANR15: ASFR | ANS15: ASDR | ANW15: Year | ANX15: Age | ANY15: NP | ANZ15: P | AOA15: ASFR | AOB15: ASDR | AOF15: Year | AOG15: Age | AOH15: NP | AOI15: P | AOJ15: ASFR | AOK15: ASDR | AOO15: Year | AOP15: Age | AOQ15: NP | AOR15: P | AOS15: ASFR | AOT15: ASDR | AOX15: Year | AOY15: Age | AOZ15: NP | APA15: P | APB15: ASFR | APC15: ASDR | APG15: Year | APH15: Age | API15: NP | APJ15: P | APK15: ASFR | APL15: ASDR | APP15: Year | APQ15: Age | APR15: NP | APS15: P | APT15: ASFR | APU15: ASDR | APY15: Year | APZ15: Age | AQA15: NP | AQB15: P | AQC15: ASFR | AQD15: ASDR | AQH15: Year | AQI15: Age | AQJ15: NP | AQK15: P | AQL15: ASFR | AQM15: ASDR | AQQ15: Year | AQR15: Age | AQS15: NP | AQT15: P | AQU15: ASFR | AQV15: ASDR | AQZ15: Year | ARA15: Age | ARB15: NP | ARC15: P | ARD15: ASFR | ARE15: ASDR | ARI15: Year | ARJ15: Age | ARK15: NP | ARL15: P | ARM15: ASFR | ARN15: ASDR | ARR15: Year | ARS15: Age | ART15: NP | ARU15: P | ARV15: ASFR | ARW15: ASDR | ASA15: Year | ASB15: Age | ASC15: NP | ASD15: P | ASE15: ASFR | ASF15: ASDR | ASJ15: Year | ASK15: Age | ASL15: NP | ASM15: P | ASN15: ASFR | ASO15: ASDR | ASS15: Year | AST15: Age | ASU15: NP | ASV15: P | ASW15: ASFR | ASX15: ASDR | ATB15: Year | ATC15: Age | ATD15: NP | ATE15: P | ATF15: ASFR | ATG15: ASDR | ATK15: Year | ATL15: Age | ATM15: NP | ATN15: P | ATO15: ASFR | ATP15: ASDR | ATT15: Year | ATU15: Age | ATV15: NP | ATW15: P | ATX15: ASFR | ATY15: ASDR | AUC15: Year | AUD15: Age | AUE15: NP | AUF15: P | AUG15: ASFR | AUH15: ASDR | AUL15: Year | AUM15: Age | AUN15: NP | AUO15: P | AUP15: ASFR | AUQ15: ASDR | AUU15: Year | AUV15: Age | AUW15: NP | AUX15: P | AUY15: ASFR | AUZ15: ASDR | AVD15: Year | AVE15: Age | AVF15: NP | AVG15: P | AVH15: ASFR | AVI15: ASDR | AVM15: Year | AVN15: Age | AVO15: NP | AVP15: P | AVQ15: ASFR | AVR15: ASDR | AVV15: Year | AVW15: Age | AVX15: NP | AVY15: P | AVZ15: ASFR | AWA15: ASDR | AWE15: Year | AWF15: Age | AWG15: NP | AWH15: P | AWI15: ASFR | AWJ15: ASDR | AWN15: Year | AWO15: Age | AWP15: NP | AWQ15: P | AWR15: ASFR | AWS15: ASDR | AWW15: Year | AWX15: Age | AWY15: NP | AWZ15: P | AXA15: ASFR | AXB15: ASDR | AXF15: Year | AXG15: Age | AXH15: NP | AXI15: P | AXJ15: ASFR | AXK15: ASDR | AXO15: Year | AXP15: Age | AXQ15: NP | AXR15: P | AXS15: ASFR | AXT15: ASDR | AXX15: Year | AXY15: Age | AXZ15: NP | AYA15: P | AYB15: ASFR | AYC15: ASDR | AYG15: Year | AYH15: Age | AYI15: NP | AYJ15: P | AYK15: ASFR | AYL15: ASDR | AYP15: Year | AYQ15: Age | AYR15: NP | AYS15: P | AYT15: ASFR | AYU15: ASDR | AYY15: Year | AYZ15: Age | AZA15: NP | AZB15: P | AZC15: ASFR | AZD15: ASDR | AZH15: Year | AZI15: Age | AZJ15: NP | AZK15: P | AZL15: ASFR | AZM15: ASDR | AZQ15: Year | AZR15: Age | AZS15: NP | AZT15: P | AZU15: ASFR | AZV15: ASDR | AZZ15: Year | BAA15: Age | BAB15: NP | BAC15: P | BAD15: ASFR | BAE15: ASDR | BAI15: Year | BAJ15: Age | BAK15: NP | BAL15: P | BAM15: ASFR | BAN15: ASDR | BAR15: Year | BAS15: Age | BAT15: NP | BAU15: P | BAV15: ASFR | BAW15: ASDR | BBA15: Year | BBB15: Age | BBC15: NP | BBD15: P | BBE15: ASFR | BBF15: ASDR | BBJ15: Year | BBK15: Age | BBL15: NP | BBM15: P | BBN15: ASFR | BBO15: ASDR | BBS15: Year | BBT15: Age | BBU15: NP | BBV15: P | BBW15: ASFR | BBX15: ASDR | BCB15: Year | BCC15: Age | BCD15: NP | BCE15: P | BCF15: ASFR | BCG15: ASDR | BCK15: Year | BCL15: Age | BCM15: NP | BCN15: P | BCO15: ASFR | BCP15: ASDR | BCT15: Year | BCU15: Age | BCV15: NP | BCW15: P | BCX15: ASFR | BCY15: ASDR | BDC15: Year | BDD15: Age | BDE15: NP | BDF15: P | BDG15: ASFR | BDH15: ASDR | BDL15: Year | BDM15: Age | BDN15: NP | BDO15: P | BDP15: ASFR | BDQ15: ASDR | BDU15: Year | BDV15: Age | BDW15: NP | BDX15: P | BDY15: ASFR | BDZ15: ASDR | BED15: Year | BEE15: Age | BEF15: NP | BEG15: P | BEH15: ASFR | BEI15: ASDR | BEM15: Year | BEN15: Age | BEO15: NP | BEP15: P | BEQ15: ASFR | BER15: ASDR | BEV15: Year | BEW15: Age | BEX15: NP | BEY15: P | BEZ15: ASFR | BFA15: ASDR | BFE15: Year | BFF15: Age | BFG15: NP | BFH15: P | BFI15: ASFR | BFJ15: ASDR | BFN15: Year | BFO15: Age | BFP15: NP | BFQ15: P | BFR15: ASFR | BFS15: ASDR | BFW15: Year | BFX15: Age | BFY15: NP | BFZ15: P | BGA15: ASFR | BGB15: ASDR | BGF15: Year | BGG15: Age | BGH15: NP | BGI15: P | BGJ15: ASFR | BGK15: ASDR | BGO15: Year | BGP15: Age | BGQ15: NP | BGR15: P | BGS15: ASFR | BGT15: ASDR | BGX15: Year | BGY15: Age | BGZ15: NP | BHA15: P | BHB15: ASFR | BHC15: ASDR | BHG15: Year | BHH15: Age | BHI15: NP | BHJ15: P | BHK15: ASFR | BHL15: ASDR | BHP15: Year | BHQ15: Age | BHR15: NP | BHS15: P | BHT15: ASFR | BHU15: ASDR | BHY15: Year | BHZ15: Age | BIA15: NP | BIB15: P | BIC15: ASFR | BID15: ASDR | BIH15: Year | BII15: Age | BIJ15: NP | BIK15: P | BIL15: ASFR | BIM15: ASDR | BIQ15: Year | BIR15: Age | BIS15: NP | BIT15: P | BIU15: ASFR | BIV15: ASDR | BIZ15: Year | BJA15: Age | BJB15: NP | BJC15: P | BJD15: ASFR | BJE15: ASDR | BJI15: Year | BJJ15: Age | BJK15: NP | BJL15: P | BJM15: ASFR | BJN15: ASDR | BJR15: Year | BJS15: Age | BJT15: NP | BJU15: P | BJV15: ASFR | BJW15: ASDR | BKA15: Year | BKB15: Age | BKC15: NP | BKD15: P | BKE15: ASFR | BKF15: ASDR | BKJ15: Year | BKK15: Age | BKL15: NP | BKM15: P | BKN15: ASFR | BKO15: ASDR | BKS15: Year | BKT15: Age | BKU15: NP | BKV15: P | BKW15: ASFR | BKX15: ASDR | BLB15: Year | BLC15: Age | BLD15: NP | BLE15: P | BLF15: ASFR | BLG15: ASDR | BLK15: Year | BLL15: Age | BLM15: NP | BLN15: P | BLO15: ASFR | BLP15: ASDR | BLT15: Year | BLU15: Age | BLV15: NP | BLW15: P | BLX15: ASFR | BLY15: ASDR | BMC15: Year | BMD15: Age | BME15: NP | BMF15: P | BMG15: ASFR | BMH15: ASDR | BML15: Year | BMM15: Age | BMN15: NP | BMO15: P | BMP15: ASFR | BMQ15: ASDR | BMU15: Year | BMV15: Age | BMW15: NP | BMX15: P | BMY15: ASFR | BMZ15: ASDR | BND15: Year | BNE15: Age | BNF15: NP | BNG15: P | BNH15: ASFR | BNI15: ASDR | BNM15: Year | BNN15: Age | BNO15: NP | BNP15: P | BNQ15: ASFR | BNR15: ASDR | BNV15: Year | BNW15: Age | BNX15: NP | BNY15: P | BNZ15: ASFR | BOA15: ASDR | BOE15: Year | BOF15: Age | BOG15: NP | BOH15: P | BOI15: ASFR | BOJ15: ASDR | BON15: Year | BOO15: Age | BOP15: NP | BOQ15: P | BOR15: ASFR | BOS15: ASDR | BOW15: Year | BOX15: Age | BOY15: NP | BOZ15: P | BPA15: ASFR | BPB15: ASDR | BPF15: Year | BPG15: Age | BPH15: NP | BPI15: P | BPJ15: ASFR | BPK15: ASDR | BPO15: Year | BPP15: Age | BPQ15: NP | BPR15: P | BPS15: ASFR | BPT15: ASDR | BPX15: Year | BPY15: Age | BPZ15: NP | BQA15: P | BQB15: ASFR | BQC15: ASDR | BQG15: Year | BQH15: Age | BQI15: NP | BQJ15: P | BQK15: ASFR | BQL15: ASDR | BQP15: Year | BQQ15: Age | BQR15: NP | BQS15: P | BQT15: ASFR | BQU15: ASDR
... 18 more rows

Sheet FakeData (hidden)
A1: In columns C and D we start with the population of Afghan men and women in 2014. The ASFR values are from Egypt and we mixed in American ASDR values. They produce a new cohort in cells L16:M16 and at the bottom of the chart. | AA1: In columns C and D we start with a population of 15-44 year old men and women. Their ASFR and ASDR values produce a new cohort in cells L16:M16 and at the bottom of the chart.
A2: Data for Fake sheet; loads from Example 2 and Reset buttons -> scroll right
G3: Begin Year Pop | H3: =-SUM(C16:C101)+SUM(D16:D101) -> 31820118
G4: ="During Year "&A16&":" -> During Year 1:
G5: Births | H5: =SUMPRODUCT(D31:D60,E31:E60) -> 870564.18
G6: Deaths | H6: =-SUMPRODUCT(C16:C101,F16:F101)+SUMPRODUCT(D16:D101,F16:F101) -> 73472.8141
G7: End Year Pop | H7: =H3+H5-H6 -> 32617209.37
G8: %DPop | H8: =(H7-H3)/H3 -> 0.0250499186
G9: GFR | H9: =1000*H5/SUM(D31:D60) -> 123.403902 | I9: per thousand
A11: In columns C and D we have Afghanistan's population by age and sex. | AB11: In columns AC and AD we have fake population by age and sex.
P13: So, we started with Afghanistan in 2014, but
P14: used Egyptian ASFR and US ASDR (see Doc sheet).
A15: Year | B15: Age | C15: Male | D15: Female | E15: ASFR | F15: ASDR | J15: Year | K15: Age | L15: Male | M15: Female | N15: ASFR | O15: ASDR | P15: We can see that in the following year, there | AA15: Year | AB15: Age | AC15: Male | AD15: Female | AE15: ASFR | AF15: ASDR | AJ15: Year | AK15: Age | AL15: Male | AM15: Female | AN15: ASFR | AO15: ASDR
A16: 1 | B16: 0 | C16: -573665 | D16: 553974 | F16: 0.006 | J16: 2 | K16: 0 | L16: =-0.5*SUMPRODUCT(D16:D101,E16:E101) -> -435282.09 | M16: =0.5*SUMPRODUCT(D16:D101,E16:E101) -> 435282.09 | O16: 0.006 | P16: would be a collapse in the number of births, as | AA16: 1 | AB16: 0 | AC16: 0 | AD16: 0 | AF16: 0.006 | AJ16: =AA16+1 -> 2 | AK16: 0 | AL16: =-0.5*SUMPRODUCT(AD16:AD101,AE16:AE101) -> -15000 | AM16: =0.5*SUMPRODUCT(AD16:AD101,AE16:AE101) -> 15000 | AN16: 0 | AO16: 0.006
B17: 1 | C17: -528794 | D17: 512717 | F17: 0.0003 | K17: 1 | L17: =(1-$F16)*C16 -> -570223.01 | M17: =(1-$F16)*D16 -> 550650.156 | O17: 0.0003 | P17: shown by cells L16:M16 and the much shorter | AB17: 1 | AC17: 0 | AD17: 0 | AF17: 0.0003 | AK17: 1 | AL17: =(1-$F16)*AC16 -> 0 | AM17: =(1-$F16)*AD16 -> 0 | AN17: 0 | AO17: 0.0003
B18: 2 | C18: -505300 | D18: 489828 | F18: 0.0002 | K18: 2 | L18: =(1-$F17)*C17 -> -528635.3618 | M18: 512563.1849 | O18: 0.0002 | P18: lowest slice in the pop pyramid. | AB18: 2 | AC18: 0 | AD18: 0 | AF18: 0.0002 | AK18: 2 | AL18: =(1-$F17)*AC17 -> 0 | AM18: 0 | AN18: 0 | AO18: 0.0002
B19: 3 | C19: -487940 | D19: 472910 | F19: 0.0002 | K19: 3 | L19: -505198.94 | M19: 489730.0344 | O19: 0.0002 | P19: These ASFR and ASDR values could not have | AB19: 3 | AC19: 0 | AD19: 0 | AF19: 0.0002 | AK19: 3 | AL19: 0 | AM19: 0 | AN19: 0 | AO19: 0.0002
B20: 4 | C20: -472797 | D20: 458193 | F20: 0.0001 | K20: 4 | L20: -487842.412 | M20: 472815.418 | O20: 0.0001 | P20: created the Afghani pop pyramid. | AB20: 4 | AC20: 0 | AD20: 0 | AF20: 0.0001 | AK20: 4 | AL20: 0 | AM20: 0 | AN20: 0 | AO20: 0.0001
B21: 5 | C21: -457972 | D21: 443846 | F21: 0.0001 | K21: 5 | L21: -472749.7203 | M21: 458147.1807 | O21: 0.0001 | AB21: 5 | AC21: 0 | AD21: 0 | AF21: 0.0001 | AK21: 5 | AL21: 0 | AM21: 0 | AN21: 0 | AO21: 0.0001
B22: 6 | C22: -451848 | D22: 437906 | F22: 0.0001 | K22: 6 | L22: -457926.2028 | M22: 443801.6154 | O22: 0.0001 | AB22: 6 | AC22: 0 | AD22: 0 | AF22: 0.0001 | AK22: 6 | AL22: 0 | AM22: 0 | AN22: 0 | AO22: 0.0001
B23: 7 | C23: -433935 | D23: 420566 | F23: 0.0001 | K23: 7 | L23: -451802.8152 | M23: 437862.2094 | O23: 0.0001 | AB23: 7 | AC23: 0 | AD23: 0 | AF23: 0.0001 | AK23: 7 | AL23: 0 | AM23: 0 | AN23: 0 | AO23: 0.0001
B24: 8 | C24: -426676 | D24: 413566 | F24: 0.0001 | K24: 8 | L24: -433891.6065 | M24: 420523.9434 | O24: 0.0001 | AB24: 8 | AC24: 0 | AD24: 0 | AF24: 0.0001 | AK24: 8 | AL24: 0 | AM24: 0 | AN24: 0 | AO24: 0.0001
B25: 9 | C25: -419553 | D25: 406630 | F25: 0.0001 | K25: 9 | L25: -426633.3324 | M25: 413524.6434 | O25: 0.0001 | AB25: 9 | AC25: 0 | AD25: 0 | AF25: 0.0001 | AK25: 9 | AL25: 0 | AM25: 0 | AN25: 0 | AO25: 0.0001
B26: 10 | C26: -408192 | D26: 395273 | F26: 0.0001 | K26: 10 | L26: -419511.0447 | M26: 406589.337 | O26: 0.0001 | AB26: 10 | AC26: 0 | AD26: 0 | AF26: 0.0001 | AK26: 10 | AL26: 0 | AM26: 0 | AN26: 0 | AO26: 0.0001
B27: 11 | C27: -374200 | D27: 362478 | F27: 0.0001 | K27: 11 | L27: -408151.1808 | M27: 395233.4727 | O27: 0.0001 | AB27: 11 | AC27: 0 | AD27: 0 | AF27: 0.0001 | AK27: 11 | AL27: 0 | AM27: 0 | AN27: 0 | AO27: 0.0001
B28: 12 | C28: -385513 | D28: 373369 | F28: 0.0001 | K28: 12 | L28: -374162.58 | M28: 362441.7522 | O28: 0.0001 | AB28: 12 | AC28: 0 | AD28: 0 | AF28: 0.0001 | AK28: 12 | AL28: 0 | AM28: 0 | AN28: 0 | AO28: 0.0001
B29: 13 | C29: -431172 | D29: 416804 | F29: 0.0001 | K29: 13 | L29: -385474.4487 | M29: 373331.6631 | O29: 0.0001 | AB29: 13 | AC29: 0 | AD29: 0 | AF29: 0.0001 | AK29: 13 | AL29: 0 | AM29: 0 | AN29: 0 | AO29: 0.0001
B30: 14 | C30: -436275 | D30: 421328 | F30: 0.0001 | K30: 14 | L30: -431128.8828 | M30: 416762.3196 | O30: 0.0001 | AB30: 14 | AC30: 0 | AD30: 0 | AF30: 0.0001 | AK30: 14 | AL30: 0 | AM30: 0 | AN30: 0 | AO30: 0.0001
B31: 15 | C31: -427619 | D31: 412705 | E31: 0.01 | F31: 0.0002 | K31: 15 | L31: -436231.3725 | M31: 421285.8672 | N31: 0.01 | O31: 0.0002 | AB31: 15 | AC31: -10000 | AD31: 10000 | AE31: 0.1 | AF31: 0.0002 | AK31: 15 | AL31: 0 | AM31: 0 | AN31: 0.01 | AO31: 0.0002
B32: 16 | C32: -411837 | D32: 397178 | E32: 0.04 | F32: 0.0004 | K32: 16 | L32: -427533.4762 | M32: 412622.459 | N32: 0.04 | O32: 0.0004 | AB32: 16 | AC32: -10000 | AD32: 10000 | AE32: 0.1 | AF32: 0.0004 | AK32: 16 | AL32: -9998 | AM32: 9998 | AN32: 0.04 | AO32: 0.0004
B33: 17 | C33: -396476 | D33: 382184 | E33: 0.06 | F33: 0.0005 | K33: 17 | L33: -411672.2652 | M33: 397019.1288 | N33: 0.06 | O33: 0.0005 | AB33: 17 | AC33: -10000 | AD33: 10000 | AE33: 0.1 | AF33: 0.0005 | AK33: 17 | AL33: -9996 | AM33: 9996 | AN33: 0.06 | AO33: 0.0005
B34: 18 | C34: -383014 | D34: 368890 | E34: 0.09 | F34: 0.0006 | K34: 18 | L34: =(1-$F33)*C33 -> -396277.762 | M34: 381992.908 | N34: 0.09 | O34: 0.0006 | AB34: 18 | AC34: -10000 | AD34: 10000 | AE34: 0.1 | AF34: 0.0006 | AK34: 18 | AL34: =(1-$F33)*AC33 -> -9995 | AM34: 9995 | AN34: 0.09 | AO34: 0.0006
B35: 19 | C35: -368394 | D35: 354472 | E35: 0.12 | F35: 0.0008 | K35: 19 | L35: -382784.1916 | M35: 368668.666 | N35: 0.12 | O35: 0.0008 | AB35: 19 | AC35: -10000 | AD35: 10000 | AE35: 0.1 | AF35: 0.0008 | AK35: 19 | AL35: -9994 | AM35: 9994 | AN35: 0.12 | AO35: 0.0008
B36: 20 | C36: -352355 | D36: 338797 | E36: 0.16 | F36: 0.0009 | K36: 20 | L36: -368099.2848 | M36: 354188.4224 | N36: 0.16 | O36: 0.0009 | AB36: 20 | AC36: -10000 | AD36: 10000 | AE36: 0.1 | AF36: 0.0009 | AK36: 20 | AL36: -9992 | AM36: 9992 | AN36: 0.16 | AO36: 0.0009
B37: 21 | C37: -332119 | D37: 319118 | E37: 0.18 | F37: 0.0009 | K37: 21 | L37: -352037.8805 | M37: 338492.0827 | N37: 0.18 | O37: 0.0009 | AB37: 21 | AC37: -10000 | AD37: 10000 | AE37: 0.1 | AF37: 0.0009 | AK37: 21 | AL37: -9991 | AM37: 9991 | AN37: 0.18 | AO37: 0.0009
B38: 22 | C38: -322133 | D38: 309335 | E38: 0.2 | F38: 0.0009 | K38: 22 | L38: -331820.0929 | M38: 318830.7938 | N38: 0.2 | O38: 0.0009 | AB38: 22 | AC38: -10000 | AD38: 10000 | AE38: 0.1 | AF38: 0.0009 | AK38: 22 | AL38: -9991 | AM38: 9991 | AN38: 0.2 | AO38: 0.0009
B39: 23 | C39: -309630 | D39: 297238 | E39: 0.22 | F39: 0.0009 | K39: 23 | L39: -321843.0803 | M39: 309056.5985 | N39: 0.22 | O39: 0.0009 | AB39: 23 | AC39: -10000 | AD39: 10000 | AE39: 0.1 | AF39: 0.0009 | AK39: 23 | AL39: -9991 | AM39: 9991 | AN39: 0.22 | AO39: 0.0009
B40: 24 | C40: -296687 | D40: 284864 | E40: 0.24 | F40: 0.0009 | K40: 24 | L40: -309351.333 | M40: 296970.4858 | N40: 0.24 | O40: 0.0009 | AB40: 24 | AC40: -10000 | AD40: 10000 | AE40: 0.1 | AF40: 0.0009 | AK40: 24 | AL40: -9991 | AM40: 9991 | AN40: 0.24 | AO40: 0.0009
B41: 25 | C41: -283083 | D41: 271889 | E41: 0.22 | F41: 0.001 | K41: 25 | L41: -296419.9817 | M41: 284607.6224 | N41: 0.22 | O41: 0.001 | AB41: 25 | AC41: -10000 | AD41: 10000 | AE41: 0.1 | AF41: 0.001 | AK41: 25 | AL41: -9991 | AM41: 9991 | AN41: 0.22 | AO41: 0.001
B42: 26 | C42: -265302 | D42: 254813 | E42: 0.2 | F42: 0.001 | K42: 26 | L42: -282799.917 | M42: 271617.111 | N42: 0.2 | O42: 0.001 | AB42: 26 | AC42: -10000 | AD42: 10000 | AE42: 0.1 | AF42: 0.001 | AK42: 26 | AL42: -9990 | AM42: 9990 | AN42: 0.2 | AO42: 0.001
B43: 27 | C43: -246113 | D43: 236578 | E43: 0.2 | F43: 0.001 | K43: 27 | L43: -265036.698 | M43: 254558.187 | N43: 0.2 | O43: 0.001 | AB43: 27 | AC43: -10000 | AD43: 10000 | AE43: 0.1 | AF43: 0.001 | AK43: 27 | AL43: -9990 | AM43: 9990 | AN43: 0.2 | AO43: 0.001
B44: 28 | C44: -232551 | D44: 223443 | E44: 0.2 | F44: 0.001 | K44: 28 | L44: -245866.887 | M44: 236341.422 | N44: 0.2 | O44: 0.001 | AB44: 28 | AC44: -10000 | AD44: 10000 | AE44: 0.1 | AF44: 0.001 | AK44: 28 | AL44: -9990 | AM44: 9990 | AN44: 0.2 | AO44: 0.001
B45: 29 | C45: -220315 | D45: 211532 | E45: 0.18 | F45: 0.001 | K45: 29 | L45: -232318.449 | M45: 223219.557 | N45: 0.18 | O45: 0.001 | AB45: 29 | AC45: -10000 | AD45: 10000 | AE45: 0.1 | AF45: 0.001 | AK45: 29 | AL45: -9990 | AM45: 9990 | AN45: 0.18 | AO45: 0.001
B46: 30 | C46: -209278 | D46: 200736 | E46: 0.17 | F46: 0.0011 | K46: 30 | L46: -220094.685 | M46: 211320.468 | N46: 0.17 | O46: 0.0011 | AB46: 30 | AC46: -10000 | AD46: 10000 | AE46: 0.1 | AF46: 0.0011 | AK46: 30 | AL46: -9990 | AM46: 9990 | AN46: 0.17 | AO46: 0.0011
B47: 31 | C47: -193718 | D47: 185576 | E47: 0.16 | F47: 0.0011 | K47: 31 | L47: -209047.7942 | M47: 200515.1904 | N47: 0.16 | O47: 0.0011 | AB47: 31 | AC47: -10000 | AD47: 10000 | AE47: 0.1 | AF47: 0.0011 | AK47: 31 | AL47: -9989 | AM47: 9989 | AN47: 0.16 | AO47: 0.0011
B48: 32 | C48: -189937 | D48: 181359 | E48: 0.15 | F48: 0.0011 | K48: 32 | L48: -193504.9102 | M48: 185371.8664 | N48: 0.15 | O48: 0.0011 | AB48: 32 | AC48: -10000 | AD48: 10000 | AE48: 0.1 | AF48: 0.0011 | AK48: 32 | AL48: -9989 | AM48: 9989 | AN48: 0.15 | AO48: 0.0011
B49: 33 | C49: -183001 | D49: 174667 | E49: 0.13 | F49: 0.0011 | K49: 33 | L49: -189728.0693 | M49: 181159.5051 | N49: 0.13 | O49: 0.0011 | AB49: 33 | AC49: -10000 | AD49: 10000 | AE49: 0.1 | AF49: 0.0011 | AK49: 33 | AL49: -9989 | AM49: 9989 | AN49: 0.13 | AO49: 0.0011
B50: 34 | C50: -184144 | D50: 176156 | E50: 0.1 | F50: 0.0011 | K50: 34 | L50: =(1-$F49)*C49 -> -182799.6989 | M50: 174474.8663 | N50: 0.1 | O50: 0.0011 | AB50: 34 | AC50: -10000 | AD50: 10000 | AE50: 0.1 | AF50: 0.0011 | AK50: 34 | AL50: =(1-$F49)*AC49 -> -9989 | AM50: 9989 | AN50: 0.1 | AO50: 0.0011
B51: 35 | C51: -169615 | D51: 155848 | E51: 0.09 | F51: 0.0014 | K51: 35 | L51: -183941.4416 | M51: 175962.2284 | N51: 0.09 | O51: 0.0014 | AB51: 35 | AC51: -10000 | AD51: 10000 | AE51: 0.1 | AF51: 0.0014 | AK51: 35 | AL51: -9989 | AM51: 9989 | AN51: 0.09 | AO51: 0.0014
B52: 36 | C52: -174507 | D52: 162604 | E52: 0.08 | F52: 0.0014 | K52: 36 | L52: -169377.539 | M52: 155629.8128 | N52: 0.08 | O52: 0.0014 | AB52: 36 | AC52: -10000 | AD52: 10000 | AE52: 0.1 | AF52: 0.0014 | AK52: 36 | AL52: -9986 | AM52: 9986 | AN52: 0.08 | AO52: 0.0014
B53: 37 | C53: -169301 | D53: 160240 | E53: 0.07 | F53: 0.0014 | K53: 37 | L53: -174262.6902 | M53: 162376.3544 | N53: 0.07 | O53: 0.0014 | AB53: 37 | AC53: -10000 | AD53: 10000 | AE53: 0.1 | AF53: 0.0014 | AK53: 37 | AL53: -9986 | AM53: 9986 | AN53: 0.07 | AO53: 0.0014
B54: 38 | C54: -167905 | D54: 160349 | E54: 0.06 | F54: 0.0014 | K54: 38 | L54: -169063.9786 | M54: 160015.664 | N54: 0.06 | O54: 0.0014 | AB54: 38 | AC54: -10000 | AD54: 10000 | AE54: 0.1 | AF54: 0.0014 | AK54: 38 | AL54: -9986 | AM54: 9986 | AN54: 0.06 | AO54: 0.0014
B55: 39 | C55: -164232 | D55: 157844 | E55: 0.05 | F55: 0.0014 | K55: 39 | L55: -167669.933 | M55: 160124.5114 | N55: 0.05 | O55: 0.0014 | AB55: 39 | AC55: -10000 | AD55: 10000 | AE55: 0.1 | AF55: 0.0014 | AK55: 39 | AL55: -9986 | AM55: 9986 | AN55: 0.05 | AO55: 0.0014
B56: 40 | C56: -154589 | D56: 149306 | E56: 0.04 | F56: 0.0016 | K56: 40 | L56: -164002.0752 | M56: 157623.0184 | N56: 0.04 | O56: 0.0016 | AB56: 40 | AC56: -10000 | AD56: 10000 | AE56: 0.1 | AF56: 0.0016 | AG56: =SUM(AE31:AE60) -> 3 | AK56: 40 | AL56: -9986 | AM56: 9986 | AN56: 0.04 | AO56: 0.0016
B57: 41 | C57: -144377 | D57: 139861 | E57: 0.03 | F57: 0.0018 | K57: 41 | L57: -154341.6576 | M57: 149067.1104 | N57: 0.03 | O57: 0.0018 | AB57: 41 | AC57: -10000 | AD57: 10000 | AE57: 0.1 | AF57: 0.0018 | AK57: 41 | AL57: -9984 | AM57: 9984 | AN57: 0.03 | AO57: 0.0018
B58: 42 | C58: -135604 | D58: 131331 | E58: 0.02 | F58: 0.002 | K58: 42 | L58: -144117.1214 | M58: 139609.2502 | N58: 0.02 | O58: 0.002 | AB58: 42 | AC58: -10000 | AD58: 10000 | AE58: 0.1 | AF58: 0.002 | AK58: 42 | AL58: -9982 | AM58: 9982 | AN58: 0.02 | AO58: 0.002
B59: 43 | C59: -132761 | D59: 128911 | E59: 0.02 | F59: 0.0022 | K59: 43 | L59: -135332.792 | M59: 131068.338 | N59: 0.02 | O59: 0.0022 | AB59: 43 | AC59: -10000 | AD59: 10000 | AE59: 0.1 | AF59: 0.0022 | AK59: 43 | AL59: -9980 | AM59: 9980 | AN59: 0.02 | AO59: 0.0022
B60: 44 | C60: -130334 | D60: 126768 | E60: 0.01 | F60: 0.0024 | K60: 44 | L60: -132468.9258 | M60: 128627.3958 | N60: 0.01 | O60: 0.0024 | AB60: 44 | AC60: -10000 | AD60: 10000 | AE60: 0.1 | AF60: 0.0024 | AK60: 44 | AL60: -9978 | AM60: 9978 | AN60: 0.01 | AO60: 0.0024
B61: 45 | C61: -124391 | D61: 120587 | F61: 0.0026 | K61: 45 | L61: -130021.1984 | M61: 126463.7568 | O61: 0.0026 | AB61: 45 | AC61: 0 | AD61: 0 | AF61: 0.0026 | AK61: 45 | AL61: -9976 | AM61: 9976 | AN61: 0 | AO61: 0.0026
B62: 46 | C62: -117752 | D62: 113791 | F62: 0.0028 | K62: 46 | L62: -124067.5834 | M62: 120273.4738 | O62: 0.0028 | AB62: 46 | AC62: 0 | AD62: 0 | AF62: 0.0028 | AK62: 46 | AL62: 0 | AM62: 0 | AN62: 0 | AO62: 0.0028
B63: 47 | C63: -111308 | D63: 107482 | F63: 0.003 | K63: 47 | L63: -117422.2944 | M63: 113472.3852 | O63: 0.003 | AB63: 47 | AC63: 0 | AD63: 0 | AF63: 0.003 | AK63: 47 | AL63: 0 | AM63: 0 | AN63: 0 | AO63: 0.003
B64: 48 | C64: -109041 | D64: 105679 | F64: 0.0032 | K64: 48 | L64: -110974.076 | M64: 107159.554 | O64: 0.0032 | AB64: 48 | AC64: 0 | AD64: 0 | AF64: 0.0032 | AK64: 48 | AL64: 0 | AM64: 0 | AN64: 0 | AO64: 0.0032
B65: 49 | C65: -106511 | D65: 103804 | F65: 0.0034 | K65: 49 | L65: -108692.0688 | M65: 105340.8272 | O65: 0.0034 | AB65: 49 | AC65: 0 | AD65: 0 | AF65: 0.0034 | AK65: 49 | AL65: 0 | AM65: 0 | AN65: 0 | AO65: 0.0034
B66: 50 | C66: -100365 | D66: 98285 | F66: 0.004 | K66: 50 | L66: =(1-$F65)*C65 -> -106148.8626 | M66: 103451.0664 | O66: 0.004 | AB66: 50 | AC66: 0 | AD66: 0 | AF66: 0.004 | AK66: 50 | AL66: =(1-$F65)*AC65 -> 0 | AM66: 0 | AN66: 0 | AO66: 0.004
B67: 51 | C67: -93826 | D67: 92284 | F67: 0.0045 | K67: 51 | L67: -99963.54 | M67: 97891.86 | O67: 0.0045 | AB67: 51 | AC67: 0 | AD67: 0 | AF67: 0.0045 | AK67: 51 | AL67: 0 | AM67: 0 | AN67: 0 | AO67: 0.0045
B68: 52 | C68: -87944 | D68: 86701 | F68: 0.005 | K68: 52 | L68: -93403.783 | M68: 91868.722 | O68: 0.005 | AB68: 52 | AC68: 0 | AD68: 0 | AF68: 0.005 | AK68: 52 | AL68: 0 | AM68: 0 | AN68: 0 | AO68: 0.005
B69: 53 | C69: -85842 | D69: 85122 | F69: 0.0055 | K69: 53 | L69: -87504.28 | M69: 86267.495 | O69: 0.0055 | AB69: 53 | AC69: 0 | AD69: 0 | AF69: 0.0055 | AK69: 53 | AL69: 0 | AM69: 0 | AN69: 0 | AO69: 0.0055
B70: 54 | C70: -83676 | D70: 83417 | F70: 0.006 | K70: 54 | L70: -85369.869 | M70: 84653.829 | O70: 0.006 | AB70: 54 | AC70: 0 | AD70: 0 | AF70: 0.006 | AK70: 54 | AL70: 0 | AM70: 0 | AN70: 0 | AO70: 0.006
B71: 55 | C71: -78566 | D71: 78561 | F71: 0.0063 | K71: 55 | L71: -83173.944 | M71: 82916.498 | O71: 0.0063 | AB71: 55 | AC71: 0 | AD71: 0 | AF71: 0.0063 | AK71: 55 | AL71: 0 | AM71: 0 | AN71: 0 | AO71: 0.0063
B72: 56 | C72: -72913 | D72: 73230 | F72: 0.0066 | K72: 56 | L72: -78071.0342 | M72: 78066.0657 | O72: 0.0066 | AB72: 56 | AC72: 0 | AD72: 0 | AF72: 0.0066 | AK72: 56 | AL72: 0 | AM72: 0 | AN72: 0 | AO72: 0.0066
B73: 57 | C73: -67608 | D73: 68389 | F73: 0.007 | K73: 57 | L73: -72431.7742 | M73: 72746.682 | O73: 0.007 | AB73: 57 | AC73: 0 | AD73: 0 | AF73: 0.007 | AK73: 57 | AL73: 0 | AM73: 0 | AN73: 0 | AO73: 0.007
B74: 58 | C74: -65589 | D74: 66872 | F74: 0.0073 | K74: 58 | L74: -67134.744 | M74: 67910.277 | O74: 0.0073 | AB74: 58 | AC74: 0 | AD74: 0 | AF74: 0.0073 | AK74: 58 | AL74: 0 | AM74: 0 | AN74: 0 | AO74: 0.0073
B75: 59 | C75: -63538 | D75: 65336 | F75: 0.0076 | K75: 59 | L75: -65110.2003 | M75: 66383.8344 | O75: 0.0076 | AB75: 59 | AC75: 0 | AD75: 0 | AF75: 0.0076 | AK75: 59 | AL75: 0 | AM75: 0 | AN75: 0 | AO75: 0.0076
B76: 60 | C76: -58900 | D76: 61243 | F76: 0.008 | K76: 60 | L76: -63055.1112 | M76: 64839.4464 | O76: 0.008 | AB76: 60 | AC76: 0 | AD76: 0 | AF76: 0.008 | AK76: 60 | AL76: 0 | AM76: 0 | AN76: 0 | AO76: 0.008
B77: 61 | C77: -53906 | D77: 56700 | F77: 0.009 | K77: 61 | L77: -58428.8 | M77: 60753.056 | O77: 0.009 | AB77: 61 | AC77: 0 | AD77: 0 | AF77: 0.009 | AK77: 61 | AL77: 0 | AM77: 0 | AN77: 0 | AO77: 0.009
B78: 62 | C78: -49387 | D78: 52489 | F78: 0.01 | K78: 62 | L78: -53420.846 | M78: 56189.7 | O78: 0.01 | AB78: 62 | AC78: 0 | AD78: 0 | AF78: 0.01 | AK78: 62 | AL78: 0 | AM78: 0 | AN78: 0 | AO78: 0.01
B79: 63 | C79: -47386 | D79: 50773 | F79: 0.011 | K79: 63 | L79: -48893.13 | M79: 51964.11 | O79: 0.011 | AB79: 63 | AC79: 0 | AD79: 0 | AF79: 0.011 | AK79: 63 | AL79: 0 | AM79: 0 | AN79: 0 | AO79: 0.011
B80: 64 | C80: -45404 | D80: 48946 | F80: 0.012 | K80: 64 | L80: -46864.754 | M80: 50214.497 | O80: 0.012 | AB80: 64 | AC80: 0 | AD80: 0 | AF80: 0.012 | AK80: 64 | AL80: 0 | AM80: 0 | AN80: 0 | AO80: 0.012
B81: 65 | C81: -41611 | D81: 45167 | F81: 0.013 | K81: 65 | L81: -44859.152 | M81: 48358.648 | O81: 0.013 | AB81: 65 | AC81: 0 | AD81: 0 | AF81: 0.013 | AK81: 65 | AL81: 0 | AM81: 0 | AN81: 0 | AO81: 0.013
B82: 66 | C82: -37534 | D82: 41129 | F82: 0.014 | K82: 66 | L82: =(1-$F81)*C81 -> -41070.057 | M82: 44579.829 | O82: 0.014 | AB82: 66 | AC82: 0 | AD82: 0 | AF82: 0.014 | AK82: 66 | AL82: =(1-$F81)*AC81 -> 0 | AM82: 0 | AN82: 0 | AO82: 0.014
B83: 67 | C83: -33895 | D83: 37441 | F83: 0.015 | K83: 67 | L83: -37008.524 | M83: 40553.194 | O83: 0.015 | AB83: 67 | AC83: 0 | AD83: 0 | AF83: 0.015 | AK83: 67 | AL83: 0 | AM83: 0 | AN83: 0 | AO83: 0.015
B84: 68 | C84: -32067 | D84: 35745 | F84: 0.016 | K84: 68 | L84: -33386.575 | M84: 36879.385 | O84: 0.016 | AB84: 68 | AC84: 0 | AD84: 0 | AF84: 0.016 | AK84: 68 | AL84: 0 | AM84: 0 | AN84: 0 | AO84: 0.016
B85: 69 | C85: -30223 | D85: 33992 | F85: 0.017 | K85: 69 | L85: -31553.928 | M85: 35173.08 | O85: 0.017 | AB85: 69 | AC85: 0 | AD85: 0 | AF85: 0.017 | AK85: 69 | AL85: 0 | AM85: 0 | AN85: 0 | AO85: 0.017
B86: 70 | C86: -27133 | D86: 30793 | F86: 0.019 | K86: 70 | L86: -29709.209 | M86: 33414.136 | O86: 0.019 | AB86: 70 | AC86: 0 | AD86: 0 | AF86: 0.019 | AK86: 70 | AL86: 0 | AM86: 0 | AN86: 0 | AO86: 0.019
B87: 71 | C87: -23882 | D87: 27373 | F87: 0.021 | K87: 71 | L87: -26617.473 | M87: 30207.933 | O87: 0.021 | AB87: 71 | AC87: 0 | AD87: 0 | AF87: 0.021 | AK87: 71 | AL87: 0 | AM87: 0 | AN87: 0 | AO87: 0.021
B88: 72 | C88: -20997 | D88: 24382 | F88: 0.023 | K88: 72 | L88: -23380.478 | M88: 26798.167 | O88: 0.023 | AB88: 72 | AC88: 0 | AD88: 0 | AF88: 0.023 | AK88: 72 | AL88: 0 | AM88: 0 | AN88: 0 | AO88: 0.023
B89: 73 | C89: -19353 | D89: 22611 | F89: 0.025 | K89: 73 | L89: -20514.069 | M89: 23821.214 | O89: 0.025 | AB89: 73 | AC89: 0 | AD89: 0 | AF89: 0.025 | AK89: 73 | AL89: 0 | AM89: 0 | AN89: 0 | AO89: 0.025
B90: 74 | C90: -17763 | D90: 20821 | F90: 0.027 | K90: 74 | L90: -18869.175 | M90: 22045.725 | O90: 0.027 | AB90: 74 | AC90: 0 | AD90: 0 | AF90: 0.027 | AK90: 74 | AL90: 0 | AM90: 0 | AN90: 0 | AO90: 0.027
B91: 75 | C91: -15431 | D91: 18220 | F91: 0.03 | K91: 75 | L91: -17283.399 | M91: 20258.833 | O91: 0.03 | AB91: 75 | AC91: 0 | AD91: 0 | AF91: 0.03 | AK91: 75 | AL91: 0 | AM91: 0 | AN91: 0 | AO91: 0.03
B92: 76 | C92: -13041 | D92: 15546 | F92: 0.033 | K92: 76 | L92: -14968.07 | M92: 17673.4 | O92: 0.033 | AB92: 76 | AC92: 0 | AD92: 0 | AF92: 0.033 | AK92: 76 | AL92: 0 | AM92: 0 | AN92: 0 | AO92: 0.033
B93: 77 | C93: -11016 | D93: 13161 | F93: 0.037 | K93: 77 | L93: -12610.647 | M93: 15032.982 | O93: 0.037 | AB93: 77 | AC93: 0 | AD93: 0 | AF93: 0.037 | AK93: 77 | AL93: 0 | AM93: 0 | AN93: 0 | AO93: 0.037
B94: 78 | C94: -9703 | D94: 11772 | F94: 0.041 | K94: 78 | L94: -10608.408 | M94: 12674.043 | O94: 0.041 | AB94: 78 | AC94: 0 | AD94: 0 | AF94: 0.041 | AK94: 78 | AL94: 0 | AM94: 0 | AN94: 0 | AO94: 0.041
B95: 79 | C95: -8464 | D95: 10484 | F95: 0.044 | K95: 79 | L95: -9305.177 | M95: 11289.348 | O95: 0.044 | AB95: 79 | AC95: 0 | AD95: 0 | AF95: 0.044 | AK95: 79 | AL95: 0 | AM95: 0 | AN95: 0 | AO95: 0.044
B96: 80 | C96: -6914 | D96: 8719 | F96: 0.049 | K96: 80 | L96: -8091.584 | M96: 10022.704 | O96: 0.049 | AB96: 80 | AC96: 0 | AD96: 0 | AF96: 0.049 | AK96: 80 | AL96: 0 | AM96: 0 | AN96: 0 | AO96: 0.049
B97: 81 | C97: -5411 | D97: 7005 | F97: 0.054 | K97: 81 | L97: -6575.214 | M97: 8291.769 | O97: 0.054 | AB97: 81 | AC97: 0 | AD97: 0 | AF97: 0.054 | AK97: 81 | AL97: 0 | AM97: 0 | AN97: 0 | AO97: 0.054
B98: 82 | C98: -4162 | D98: 5608 | F98: 0.06 | K98: 82 | L98: =(1-$F97)*C97 -> -5118.806 | M98: 6626.73 | O98: 0.06 | AB98: 82 | AC98: 0 | AD98: 0 | AF98: 0.06 | AK98: 82 | AL98: =(1-$F97)*AC97 -> 0 | AM98: 0 | AN98: 0 | AO98: 0.06
B99: 83 | C99: -3393 | D99: 4681 | F99: 0.066 | K99: 83 | L99: -3912.28 | M99: 5271.52 | O99: 0.066 | AB99: 83 | AC99: 0 | AD99: 0 | AF99: 0.066 | AK99: 83 | AL99: 0 | AM99: 0 | AN99: 0 | AO99: 0.066
B100: 84 | C100: -2757 | D100: 3851 | F100: 0.071 | K100: 84 | L100: -3169.062 | M100: 4372.054 | O100: 0.071 | AB100: 84 | AC100: 0 | AD100: 0 | AF100: 0.071 | AK100: 84 | AL100: 0 | AM100: 0 | AN100: 0 | AO100: 0.071
B101: 85 | C101: -5940 | D101: 8640 | F101: 1 | K101: 85 | L101: -2561.253 | M101: 3577.579 | O101: 1 | AB101: 85 | AC101: 0 | AD101: 0 | AF101: 1 | AK101: 85 | AL101: 0 | AM101: 0 | AN101: 0 | AO101: 1

Sheet Doc (hidden)
A1: Understanding ASFR and ASDR
A3: These data used for Example 2.
B33: Source: | C33: http://www.cpc.unc.edu/measure/prh/rh_indicators/specific/fertility/age-specific-fertility-rates
B62: Source: | C62: http://www.cdc.gov/nchs/data/nvsr/nvsr63/nvsr63_03.pdf

Sheet PopPyr (hidden)
A1: This sheet downloads data from IDB and displays it in a population pyramid. | G1: Select a country, set years via scroll bars or direct enter in cells K3 and K4, and click Get IDB Data button. | Z1: Cell link | AA1: Code | AB1: Select a country | AC1: Country Selected | AF1: https://geonames.nga.mil/geonames/GNSHome/reference.html
A2: Year | B2: Age | C2: Male | D2: Female | Z2: 1 | AA2: AF | AB2: AFGHANISTAN | AC2: =OFFSET(AB1,Z2-1,0) -> Select a country | AF2: Downloaded Dec 2023 and removed small countries to match original set
J3: Start year: | K3: 2024 | Q3: Usage Notes: | AA3: AL | AB3: ALBANIA | AF3: Trying to make the scroll bar control easy to navigate so there are many small countries with data available not in the scroll bar
J4: End year: | K4: 2024 | Q4: Data download from census.gov can be quite slow (depends on connection speed and years requested). | AA4: DZ | AB4: ALGERIA
Q5: Data availability varies. 1950 to 2060 is max possible range. Click for more information --> | AA5: AS | AB5: AMERICAN SAMOA
H6: 10 | Q6: When data not available, no data shown. | AA6: AD | AB6: ANDORRA
Q7: Get IDB Data button goes to web site (below chart) and downloads data requested into columns A:D via API call. | AA7: AO | AB7: ANGOLA
AA8: AI | AB8: ANGUILLA
Q9: Top bar, 100+, is grouped. | AA9: AG | AB9: ANTIGUA AND BARBUDA
AA10: AR | AB10: ARGENTINA
Q11: Click on a cohort in the chart to display its population. | AA11: AM | AB11: ARMENIA
Q12: If no pop up, click --> | AA12: AW | AB12: ARUBA
AA13: AU | AB13: AUSTRALIA
Q14: Buttons below chart explained: | AA14: AT | AB14: AUSTRIA
Q15: Play animates the chart for all years of data in columns A:D. | AA15: AZ | AB15: AZERBAIJAN
L16: 2024 | Q16: Pick A Year sets the chart to a specific year from data in columns A:D. | AA16: BS | AB16: BAHAMAS, THE
Q17: Show First Year sets the chart to first year of data (cell A3). | AA17: BH | AB17: BAHRAIN
Q18: Show (Hide) Age Axis is a toggle that adds or removes the age (y) axis | AA18: BD | AB18: BANGLADESH
Q19: Take a Picture copies the chart as a picture; paste it (ctrl-V) anywhere (Word, PPT, etc.). | AA19: BB | AB19: BARBADOS
Q20: Show Pyramids displays population pyramids (in 5-year groups) of all countries | AA20: BY | AB20: BELARUS
Q21: Copy Sheet copies this sheet (to make country comparisons). | AA21: BE | AB21: BELGIUM
Q22: Common X Axis sets the X axis scale here on all existing PopPyr sheets (to make better comparisons). | AA22: BZ | AB22: BELIZE
Q23: Ratios displays data and computes M/F birth and dependency ratios. | AA23: BJ | AB23: BENIN
Q24: Reset All wipes everything. | AA24: BM | AB24: BERMUDA
AA25: BT | AB25: BHUTAN
Q26: Double-click X axis values (in the chart) to set max and min values. | AA26: BO | AB26: BOLIVIA
I27: Source: | J27: https://www.census.gov/data-tools/demo/idb | AA27: BA | AB27: BOSNIA AND HERZEGOVINA
AA28: BW | AB28: BOTSWANA
AA29: BR | AB29: BRAZIL
AA30: BN | AB30: BRUNEI
AA31: BG | AB31: BULGARIA
AA32: BF | AB32: BURKINA FASO
AA33: MM | AB33: BURMA | DG33: Old:65+
AA34: BI | AB34: BURUNDI
AA35: CV | AB35: CABO VERDE
AA36: KH | AB36: CAMBODIA
AA37: CM | AB37: CAMEROON
AA38: CA | AB38: CANADA
AA39: KY | AB39: CAYMAN ISLANDS
AA40: CF | AB40: CENTRAL AFRICAN REPUBLIC
AA41: TD | AB41: CHAD
AA42: CL | AB42: CHILE
AA43: CN | AB43: CHINA
AA44: CO | AB44: COLOMBIA
AA45: KM | AB45: COMOROS
AA46: CG | AB46: CONGO (BRAZZAVILLE)
AA47: CD | AB47: CONGO (KINSHASA)
AA48: CK | AB48: COOK ISLANDS
AA49: CR | AB49: COSTA RICA
AA50: CI | AB50: CÔTE D’IVOIRE
AA51: HR | AB51: CROATIA
AA52: CU | AB52: CUBA
AA53: CW | AB53: CURAÇAO
AA54: CY | AB54: CYPRUS
AA55: CZ | AB55: CZECHIA
AA56: DK | AB56: DENMARK
AA57: DJ | AB57: DJIBOUTI
AA58: DM | AB58: DOMINICA
AA59: DO | AB59: DOMINICAN REPUBLIC
AA60: EC | AB60: ECUADOR
AA61: EG | AB61: EGYPT
AA62: SV | AB62: EL SALVADOR
AA63: GQ | AB63: EQUATORIAL GUINEA
AA64: ER | AB64: ERITREA
AA65: EE | AB65: ESTONIA
AA66: SZ | AB66: ESWATINI
AA67: ET | AB67: ETHIOPIA
AA68: FK | AB68: FALKLAND ISLANDS (ISLAS MALVINAS)
AA69: FO | AB69: FAROE ISLANDS
AA70: FJ | AB70: FIJI
AA71: FI | AB71: FINLAND
AA72: FR | AB72: FRANCE
AA73: GF | AB73: FRENCH GUIANA
AA74: PF | AB74: FRENCH POLYNESIA
AA75: GA | AB75: GABON
AA76: GM | AB76: GAMBIA, THE
AA77: XG | AB77: GAZA STRIP
AA78: GE | AB78: GEORGIA
AA79: DE | AB79: GERMANY
AA80: GH | AB80: GHANA
AA81: GI | AB81: GIBRALTAR
AA82: GR | AB82: GREECE
AA83: GL | AB83: GREENLAND
AA84: GD | AB84: GRENADA
AA85: GP | AB85: GUADELOUPE
AA86: GU | AB86: GUAM
AA87: GT | AB87: GUATEMALA
AA88: GG | AB88: GUERNSEY
AA89: GN | AB89: GUINEA
AA90: GW | AB90: GUINEA-BISSAU
AA91: GY | AB91: GUYANA
AA92: HT | AB92: HAITI
AA93: HN | AB93: HONDURAS
AA94: HK | AB94: HONG KONG
AA95: HU | AB95: HUNGARY
AA96: IS | AB96: ICELAND
AA97: IN | AB97: INDIA
AA98: ID | AB98: INDONESIA
AA99: IR | AB99: IRAN
AA100: IQ | AB100: IRAQ
AA101: IE | AB101: IRELAND
AA102: IM | AB102: ISLE OF MAN
AA103: IL | AB103: ISRAEL
AA104: IT | AB104: ITALY
AA105: JM | AB105: JAMAICA
AA106: JP | AB106: JAPAN
AA107: JE | AB107: JERSEY
AA108: JO | AB108: JORDAN
AA109: KZ | AB109: KAZAKHSTAN
AA110: KE | AB110: KENYA
AA111: KI | AB111: KIRIBATI
AA112: KP | AB112: KOREA, NORTH
AA113: KR | AB113: KOREA, SOUTH
AA114: XK | AB114: KOSOVO
AA115: KW | AB115: KUWAIT
AA116: KG | AB116: KYRGYZSTAN
AA117: LA | AB117: LAOS
AA118: LV | AB118: LATVIA
AA119: LB | AB119: LEBANON
AA120: LS | AB120: LESOTHO
AA121: LR | AB121: LIBERIA
AA122: LY | AB122: LIBYA
AA123: LI | AB123: LIECHTENSTEIN
AA124: LT | AB124: LITHUANIA
AA125: LU | AB125: LUXEMBOURG
AA126: MO | AB126: MACAU
AA127: MG | AB127: MADAGASCAR
AA128: MW | AB128: MALAWI
AA129: MY | AB129: MALAYSIA
AA130: MV | AB130: MALDIVES
AA131: ML | AB131: MALI
AA132: MT | AB132: MALTA
AA133: MH | AB133: MARSHALL ISLANDS
AA134: MQ | AB134: MARTINIQUE
AA135: MR | AB135: MAURITANIA
AA136: MU | AB136: MAURITIUS
AA137: MX | AB137: MEXICO
AA138: FM | AB138: MICRONESIA, FEDERATED STATES OF
AA139: MD | AB139: MOLDOVA
AA140: MC | AB140: MONACO
AA141: MN | AB141: MONGOLIA
AA142: ME | AB142: MONTENEGRO
AA143: MS | AB143: MONTSERRAT
AA144: MA | AB144: MOROCCO
AA145: MZ | AB145: MOZAMBIQUE
AA146: NA | AB146: NAMIBIA
AA147: NR | AB147: NAURU
AA148: NP | AB148: NEPAL
AA149: NL | AB149: NETHERLANDS
AA150: NC | AB150: NEW CALEDONIA
AA151: NZ | AB151: NEW ZEALAND
AA152: NI | AB152: NICARAGUA
AA153: NE | AB153: NIGER
AA154: NG | AB154: NIGERIA
AA155: MK | AB155: NORTH MACEDONIA
AA156: MP | AB156: NORTHERN MARIANA ISLANDS
AA157: NO | AB157: NORWAY
AA158: OM | AB158: OMAN
AA159: PK | AB159: PAKISTAN
AA160: PW | AB160: PALAU
AA161: PA | AB161: PANAMA
AA162: PG | AB162: PAPUA NEW GUINEA
AA163: PY | AB163: PARAGUAY
AA164: PE | AB164: PERU
AA165: PH | AB165: PHILIPPINES
AA166: PN | AB166: PITCAIRN ISLANDS
AA167: PL | AB167: POLAND
AA168: PT | AB168: PORTUGAL
AA169: PR | AB169: PUERTO RICO
AA170: QA | AB170: QATAR
AA171: RE | AB171: REUNION
AA172: RO | AB172: ROMANIA
AA173: RU | AB173: RUSSIA
AA174: RW | AB174: RWANDA
AA175: SH | AB175: SAINT HELENA, ASCENSION, AND TRISTAN DA CUNHA
AA176: KN | AB176: SAINT KITTS AND NEVIS
AA177: LC | AB177: SAINT LUCIA
AA178: MF | AB178: SAINT MARTIN
AA179: PM | AB179: SAINT PIERRE AND MIQUELON
AA180: VC | AB180: SAINT VINCENT AND THE GRENADINES
AA181: WS | AB181: SAMOA
AA182: SM | AB182: SAN MARINO
AA183: ST | AB183: SAO TOME AND PRINCIPE
AA184: SA | AB184: SAUDI ARABIA
AA185: SN | AB185: SENEGAL
AA186: RS | AB186: SERBIA
AA187: SC | AB187: SEYCHELLES
AA188: SL | AB188: SIERRA LEONE
AA189: SG | AB189: SINGAPORE
AA190: SX | AB190: SINT MAARTEN
AA191: SK | AB191: SLOVAKIA
AA192: SI | AB192: SLOVENIA
AA193: SB | AB193: SOLOMON ISLANDS
AA194: SO | AB194: SOMALIA
AA195: ZA | AB195: SOUTH AFRICA
AA196: SS | AB196: SOUTH SUDAN
AA197: ES | AB197: SPAIN
AA198: LK | AB198: SRI LANKA
AA199: SD | AB199: SUDAN
AA200: SR | AB200: SURINAME
... 34 more rows

Sheet Shapes (hidden)
F7: (a) classic | G7: (b) house | H7: (c) hexagon

Sheet LFPR (hidden)
A1: Population pyramid and labor force
A3: United States population in 2016.
A4: ASFR, ASDR from
A5: wonder.cdc.gov | K5: <-- Start | M5: =-SUM(C16:C101)+SUM(D16:D101) -> 321072156
A6: LFPR from | L6: Births | M6: =SUMPRODUCT(D16:D101,E16:E101) -> 4068260.839
A7: www.bls.gov/emp/ep_table_303.htm | L7: Deaths | M7: =-SUMPRODUCT(C16:C101,F16:F101)+SUMPRODUCT(D16:D101,F16:F101) -> 1993428.112
M8: =M5+M6-M7 -> 323146988.7 | N8: End -->
A9: For other countries, use PopPyr | M9: =(M8-M5)/M5 -> 0.00646220075
A10: sheet to get population.
A11: LFPR for many countries here
A12: stats.oecd.org/Index.aspx?DataSetCode=LFS_SEXAGE_I_R
A13: No one site for ASDR, ASFR. :-(
A15: Year | B15: Age | C15: Male | D15: Female | E15: ASFR | F15: ASDR | G15: M LFPR | H15: F LFPR | I15: M Labor | J15: F Labor | O15: Year | P15: Age | Q15: Male | R15: Female | S15: ASFR | T15: ASDR | U15: M LFPR | V15: F LFPR | W15: M Labor | X15: F Labor
A16: 1 | B16: 0 | C16: -2075603 | D16: 1981628 | E16: 0 | F16: 0.006 | G16: 0 | H16: 0 | I16: =C16*G16 -> 0 | J16: 0 | O16: =A16+1 -> 2 | P16: 0 | Q16: =-0.51*SUMPRODUCT(D16:D101,E16:E101) -> -2074813.028 | R16: =0.49*SUMPRODUCT(D16:D101,E16:E101) -> 1993447.811 | S16: =E16 -> 0 | T16: =F16 -> 0.006 | U16: =G16 -> 0 | V16: =H16 -> 0 | W16: =Q16*U16 -> 0 | X16: =R16*V16 -> 0
B17: 1 | C17: -2069787 | D17: 1976276 | E17: 0 | F17: 0.0003 | G17: 0 | H17: 0 | I17: 0 | J17: 0 | P17: 1 | Q17: =(1-F16)*C16 -> -2063149.382 | R17: =(1-F16)*D16 -> 1969738.232 | S17: 0 | T17: 0.0003 | U17: 0 | V17: 0 | W17: 0 | X17: 0
B18: 2 | C18: -2063401 | D18: 1970531 | E18: 0 | F18: 0.0002 | G18: 0 | H18: 0 | I18: 0 | J18: 0 | P18: 2 | Q18: -2069166.064 | R18: 1975683.117 | S18: 0 | T18: 0.0002 | U18: 0 | V18: 0 | W18: 0 | X18: 0
B19: 3 | C19: -2055517 | D19: 1963552 | E19: 0 | F19: 0.0002 | G19: 0 | H19: 0 | I19: 0 | J19: 0 | P19: 3 | Q19: -2062988.32 | R19: 1970136.894 | S19: 0 | T19: 0.0002 | U19: 0 | V19: 0 | W19: 0 | X19: 0
B20: 4 | C20: -2046061 | D20: 1954894 | E20: 0 | F20: 0.0001 | G20: 0 | H20: 0 | I20: 0 | J20: 0 | P20: 4 | Q20: -2055105.897 | R20: 1963159.29 | S20: 0 | T20: 0.0001 | U20: 0 | V20: 0 | W20: 0 | X20: 0
B21: 5 | C21: -2048634 | D21: 1961598 | E21: 0 | F21: 0.0001 | G21: 0 | H21: 0 | I21: 0 | J21: 0 | P21: 5 | Q21: -2045856.394 | R21: 1954698.511 | S21: 0 | T21: 0.0001 | U21: 0 | V21: 0 | W21: 0 | X21: 0
B22: 6 | C22: -2063893 | D22: 1973884 | E22: 0 | F22: 0.0001 | G22: 0 | H22: 0 | I22: 0 | J22: 0 | P22: 6 | Q22: -2048429.137 | R22: 1961401.84 | S22: 0 | T22: 0.0001 | U22: 0 | V22: 0 | W22: 0 | X22: 0
B23: 7 | C23: -2058301 | D23: 1976538 | E23: 0 | F23: 0.0001 | G23: 0 | H23: 0 | I23: 0 | J23: 0 | P23: 7 | Q23: -2063686.611 | R23: 1973686.612 | S23: 0 | T23: 0.0001 | U23: 0 | V23: 0 | W23: 0 | X23: 0
B24: 8 | C24: -2058013 | D24: 1977298 | E24: 0 | F24: 0.0001 | G24: 0 | H24: 0 | I24: 0 | J24: 0 | P24: 8 | Q24: -2058095.17 | R24: 1976340.346 | S24: 0 | T24: 0.0001 | U24: 0 | V24: 0 | W24: 0 | X24: 0
B25: 9 | C25: -2125335 | D25: 2039152 | E25: 0 | F25: 0.0001 | G25: 0 | H25: 0 | I25: 0 | J25: 0 | P25: 9 | Q25: -2057807.199 | R25: 1977100.27 | S25: 0 | T25: 0.0001 | U25: 0 | V25: 0 | W25: 0 | X25: 0
B26: 10 | C26: -2138168 | D26: 2046595 | E26: 0 | F26: 0.0001 | G26: 0 | H26: 0 | I26: 0 | J26: 0 | P26: 10 | Q26: -2125122.467 | R26: 2038948.085 | S26: 0 | T26: 0.0001 | U26: 0 | V26: 0 | W26: 0 | X26: 0
B27: 11 | C27: -2121714 | D27: 2029005 | E27: 0 | F27: 0.0001 | G27: 0 | H27: 0 | I27: 0 | J27: 0 | P27: 11 | Q27: -2137954.183 | R27: 2046390.34 | S27: 0 | T27: 0.0001 | U27: 0 | V27: 0 | W27: 0 | X27: 0
B28: 12 | C28: -2114033 | D28: 2023585 | E28: 0 | F28: 0.0001 | G28: 0 | H28: 0 | I28: 0 | J28: 0 | P28: 12 | Q28: -2121501.829 | R28: 2028802.1 | S28: 0 | T28: 0.0001 | U28: 0 | V28: 0 | W28: 0 | X28: 0
B29: 13 | C29: -2116804 | D29: 2029155 | E29: 0 | F29: 0.0001 | G29: 0 | H29: 0 | I29: 0 | J29: 0 | P29: 13 | Q29: -2113821.597 | R29: 2023382.641 | S29: 0 | T29: 0.0001 | U29: 0 | V29: 0 | W29: 0 | X29: 0
B30: 14 | C30: -2100731 | D30: 2016247 | E30: 0 | F30: 0.0001 | G30: 0 | H30: 0 | I30: 0 | J30: 0 | P30: 14 | Q30: -2116592.32 | R30: 2028952.085 | S30: 0 | T30: 0.0001 | U30: 0 | V30: 0 | W30: 0 | X30: 0
B31: 15 | C31: -2094257 | D31: 2010029 | E31: 0.024 | F31: 0.0002 | G31: 0 | H31: 0 | I31: 0 | J31: 0 | P31: 15 | Q31: -2100520.927 | R31: 2016045.375 | S31: 0.024 | T31: 0.0002 | U31: 0 | V31: 0 | W31: 0 | X31: 0
B32: 16 | C32: -2151856 | D32: 2061555 | E32: 0.024 | F32: 0.0004 | G32: 0.335 | H32: 0.345 | I32: -720871.76 | J32: 711236.475 | P32: 16 | Q32: -2093838.149 | R32: 2009626.994 | S32: 0.024 | T32: 0.0004 | U32: 0.335 | V32: 0.345 | W32: -701435.7798 | X32: 693321.313
B33: 17 | C33: -2195116 | D33: 2094807 | E33: 0.024 | F33: 0.0005 | G33: 0.335 | H33: 0.345 | I33: -735363.86 | J33: 722708.415 | P33: 17 | Q33: -2150995.258 | R33: 2060730.378 | S33: 0.024 | T33: 0.0005 | U33: 0.335 | V33: 0.345 | W33: -720583.4113 | X33: 710951.9804
B34: 18 | C34: -2169738 | D34: 2069862 | E34: 0.024 | F34: 0.0006 | G34: 0.335 | H34: 0.345 | I34: -726862.23 | J34: 714102.39 | P34: 18 | Q34: -2194018.442 | R34: 2093759.597 | S34: 0.024 | T34: 0.0006 | U34: 0.335 | V34: 0.345 | W34: -734996.1781 | X34: 722347.0608
B35: 19 | C35: -2182024 | D35: 2079760 | E35: 0.024 | F35: 0.0008 | G35: 0.335 | H35: 0.345 | I35: -730978.04 | J35: 717517.2 | P35: 19 | Q35: -2168436.157 | R35: 2068620.083 | S35: 0.024 | T35: 0.0008 | U35: 0.335 | V35: 0.345 | W35: -726426.1127 | X35: 713673.9286
B36: 20 | C36: -2197203 | D36: 2096150 | E36: 0.079 | F36: 0.0009 | G36: 0.739 | H36: 0.677 | I36: -1623733.017 | J36: 1419093.55 | P36: 20 | Q36: -2180278.381 | R36: 2078096.192 | S36: 0.079 | T36: 0.0009 | U36: 0.739 | V36: 0.677 | W36: -1611225.723 | X36: 1406871.122
B37: 21 | C37: -2228094 | D37: 2115336 | E37: 0.079 | F37: 0.0009 | G37: 0.739 | H37: 0.677 | I37: -1646561.466 | J37: 1432082.472 | P37: 21 | Q37: -2195225.517 | R37: 2094263.465 | S37: 0.079 | T37: 0.0009 | U37: 0.739 | V37: 0.677 | W37: -1622271.657 | X37: 1417816.366
B38: 22 | C38: -2285162 | D38: 2163160 | E38: 0.079 | F38: 0.0009 | G38: 0.739 | H38: 0.677 | I38: -1688734.718 | J38: 1464459.32 | P38: 22 | Q38: -2226088.715 | R38: 2113432.198 | S38: 0.079 | T38: 0.0009 | U38: 0.739 | V38: 0.677 | W38: -1645079.561 | X38: 1430793.598
B39: 23 | C39: -2335679 | D39: 2208461 | E39: 0.079 | F39: 0.0009 | G39: 0.739 | H39: 0.677 | I39: -1726066.781 | J39: 1495128.097 | P39: 23 | Q39: -2283105.354 | R39: 2161213.156 | S39: 0.079 | T39: 0.0009 | U39: 0.739 | V39: 0.677 | W39: -1687214.857 | X39: 1463141.307
B40: 24 | C40: -2374823 | D40: 2238706 | E40: 0.079 | F40: 0.0009 | G40: 0.739 | H40: 0.677 | I40: -1754994.197 | J40: 1515603.962 | P40: 24 | Q40: -2333576.889 | R40: 2206473.385 | S40: 0.079 | T40: 0.0009 | U40: 0.739 | V40: 0.677 | W40: -1724513.321 | X40: 1493782.482
B41: 25 | C41: -2429594 | D41: 2302626 | E41: 0.106 | F41: 0.001 | G41: 0.887 | H41: 0.738 | I41: -2155049.878 | J41: 1699337.988 | P41: 25 | Q41: -2372685.659 | R41: 2236691.165 | S41: 0.106 | T41: 0.001 | U41: 0.887 | V41: 0.738 | W41: -2104572.18 | X41: 1650678.079
B42: 26 | C42: -2459466 | D42: 2354390 | E42: 0.106 | F42: 0.001 | G42: 0.887 | H42: 0.738 | I42: -2181546.342 | J42: 1737539.82 | P42: 26 | Q42: -2427164.406 | R42: 2300323.374 | S42: 0.106 | T42: 0.001 | U42: 0.887 | V42: 0.738 | W42: -2152894.828 | X42: 1697638.65
B43: 27 | C43: -2448952 | D43: 2354126 | E43: 0.106 | F43: 0.001 | G43: 0.887 | H43: 0.738 | I43: -2172220.424 | J43: 1737344.988 | P43: 27 | Q43: -2457006.534 | R43: 2352035.61 | S43: 0.106 | T43: 0.001 | U43: 0.887 | V43: 0.738 | W43: -2179364.796 | X43: 1735802.28
B44: 28 | C44: -2352429 | D44: 2263618 | E44: 0.106 | F44: 0.001 | G44: 0.887 | H44: 0.738 | I44: -2086604.523 | J44: 1670550.084 | P44: 28 | Q44: -2446503.048 | R44: 2351771.874 | S44: 0.106 | T44: 0.001 | U44: 0.887 | V44: 0.738 | W44: -2170048.204 | X44: 1735607.643
B45: 29 | C45: -2293084 | D45: 2213568 | E45: 0.106 | F45: 0.001 | G45: 0.887 | H45: 0.738 | I45: -2033965.508 | J45: 1633613.184 | P45: 29 | Q45: -2350076.571 | R45: 2261354.382 | S45: 0.106 | T45: 0.001 | U45: 0.887 | V45: 0.738 | W45: -2084517.918 | X45: 1668879.534
B46: 30 | C46: -2250695 | D46: 2175689 | E46: 0.101 | F46: 0.0011 | G46: 0.887 | H46: 0.738 | I46: -1996366.465 | J46: 1605658.482 | P46: 30 | Q46: -2290790.916 | R46: 2211354.432 | S46: 0.101 | T46: 0.0011 | U46: 0.887 | V46: 0.738 | W46: -2031931.542 | X46: 1631979.571
B47: 31 | C47: -2253014 | D47: 2183961 | E47: 0.101 | F47: 0.0011 | G47: 0.887 | H47: 0.738 | I47: -1998423.418 | J47: 1611763.218 | P47: 31 | Q47: -2248219.235 | R47: 2173295.742 | S47: 0.101 | T47: 0.0011 | U47: 0.887 | V47: 0.738 | W47: -1994170.462 | X47: 1603892.258
B48: 32 | C48: -2259046 | D48: 2203759 | E48: 0.101 | F48: 0.0011 | G48: 0.887 | H48: 0.738 | I48: =C48*G48 -> -2003773.802 | J48: 1626374.142 | P48: 32 | Q48: -2250535.685 | R48: 2181558.643 | S48: =E48 -> 0.101 | T48: =F48 -> 0.0011 | U48: =G48 -> 0.887 | V48: =H48 -> 0.738 | W48: =Q48*U48 -> -1996225.152 | X48: =R48*V48 -> 1609990.278
B49: 33 | C49: -2177035 | D49: 2140290 | E49: 0.101 | F49: 0.0011 | G49: 0.887 | H49: 0.738 | I49: -1931030.045 | J49: 1579534.02 | P49: 33 | Q49: =(1-F48)*C48 -> -2256561.049 | R49: =(1-F48)*D48 -> 2201334.865 | S49: 0.101 | T49: 0.0011 | U49: 0.887 | V49: 0.738 | W49: -2001569.651 | X49: 1624585.13
B50: 34 | C50: -2201001 | D50: 2173763 | E50: 0.101 | F50: 0.0011 | G50: 0.887 | H50: 0.738 | I50: -1952287.887 | J50: 1604237.094 | P50: 34 | Q50: -2174640.262 | R50: 2137935.681 | S50: 0.101 | T50: 0.0011 | U50: 0.887 | V50: 0.738 | W50: -1928905.912 | X50: 1577796.533
B51: 35 | C51: -2194108 | D51: 2175228 | E51: 0.051 | F51: 0.0014 | G51: 0.905 | H51: 0.741 | I51: -1985667.74 | J51: 1611843.948 | P51: 35 | Q51: -2198579.899 | R51: 2171371.861 | S51: 0.051 | T51: 0.0014 | U51: 0.905 | V51: 0.741 | W51: -1989714.809 | X51: 1608986.549
B52: 36 | C52: -2164709 | D52: 2153754 | E52: 0.051 | F52: 0.0014 | G52: 0.905 | H52: 0.741 | I52: -1959061.645 | J52: 1595931.714 | P52: 36 | Q52: -2191036.249 | R52: 2172182.681 | S52: 0.051 | T52: 0.0014 | U52: 0.905 | V52: 0.741 | W52: -1982887.805 | X52: 1609587.366
B53: 37 | C53: -2212231 | D53: 2186556 | E53: 0.051 | F53: 0.0014 | G53: 0.905 | H53: 0.741 | I53: -2002069.055 | J53: 1620237.996 | P53: 37 | Q53: -2161678.407 | R53: 2150738.744 | S53: 0.051 | T53: 0.0014 | U53: 0.905 | V53: 0.741 | W53: -1956318.959 | X53: 1593697.41
B54: 38 | C54: -2066702 | D54: 2061990 | E54: 0.051 | F54: 0.0014 | G54: 0.905 | H54: 0.741 | I54: -1870365.31 | J54: 1527934.59 | P54: 38 | Q54: -2209133.877 | R54: 2183494.822 | S54: 0.051 | T54: 0.0014 | U54: 0.905 | V54: 0.741 | W54: -1999266.158 | X54: 1617969.663
B55: 39 | C55: -2021733 | D55: 2023332 | E55: 0.051 | F55: 0.0014 | G55: 0.905 | H55: 0.741 | I55: -1829668.365 | J55: 1499289.012 | P55: 39 | Q55: -2063808.617 | R55: 2059103.214 | S55: 0.051 | T55: 0.0014 | U55: 0.905 | V55: 0.741 | W55: -1867746.799 | X55: 1525795.482
B56: 40 | C56: -1993935 | D56: 2007785 | E56: 0.011 | F56: 0.0016 | G56: 0.905 | H56: 0.741 | I56: -1804511.175 | J56: 1487768.685 | P56: 40 | Q56: -2018902.574 | R56: 2020499.335 | S56: 0.011 | T56: 0.0016 | U56: 0.905 | V56: 0.741 | W56: -1827106.829 | X56: 1497190.007
B57: 41 | C57: -1934846 | D57: 1947159 | E57: 0.011 | F57: 0.0018 | G57: 0.905 | H57: 0.741 | I57: -1751035.63 | J57: 1442844.819 | P57: 41 | Q57: -1990744.704 | R57: 2004572.544 | S57: 0.011 | T57: 0.0018 | U57: 0.905 | V57: 0.741 | W57: -1801623.957 | X57: 1485388.255
B58: 42 | C58: -1993654 | D58: 2001903 | E58: 0.011 | F58: 0.002 | G58: 0.905 | H58: 0.741 | I58: -1804256.87 | J58: 1483410.123 | P58: 42 | Q58: -1931363.277 | R58: 1943654.114 | S58: 0.011 | T58: 0.002 | U58: 0.905 | V58: 0.741 | W58: -1747883.766 | X58: 1440247.698
B59: 43 | C59: -1921698 | D59: 1946433 | E59: 0.011 | F59: 0.0022 | G59: 0.905 | H59: 0.741 | I59: -1739136.69 | J59: 1442306.853 | P59: 43 | Q59: -1989666.692 | R59: 1997899.194 | S59: 0.011 | T59: 0.0022 | U59: 0.905 | V59: 0.741 | W59: -1800648.356 | X59: 1480443.303
B60: 44 | C60: -1941506 | D60: 1980630 | E60: 0.011 | F60: 0.0024 | G60: 0.905 | H60: 0.741 | I60: -1757062.93 | J60: 1467646.83 | P60: 44 | Q60: -1917470.264 | R60: 1942150.847 | S60: 0.011 | T60: 0.0024 | U60: 0.905 | V60: 0.741 | W60: -1735310.589 | X60: 1439133.778
B61: 45 | C61: -2030002 | D61: 2065549 | E61: 0 | F61: 0.0026 | G61: 0.856 | H61: 0.738 | I61: -1737681.712 | J61: 1524375.162 | P61: 45 | Q61: -1936846.386 | R61: 1975876.488 | S61: 0 | T61: 0.0026 | U61: 0.856 | V61: 0.738 | W61: -1657940.506 | X61: 1458196.848
B62: 46 | C62: -2142871 | D62: 2183428 | E62: 0 | F62: 0.0028 | G62: 0.856 | H62: 0.738 | I62: -1834297.576 | J62: 1611369.864 | P62: 46 | Q62: -2024723.995 | R62: 2060178.573 | S62: 0 | T62: 0.0028 | U62: 0.856 | V62: 0.738 | W62: -1733163.74 | X62: 1520411.787
B63: 47 | C63: -2175760 | D63: 2200930 | E63: 0 | F63: 0.003 | G63: 0.856 | H63: 0.738 | I63: -1862450.56 | J63: 1624286.34 | P63: 47 | Q63: -2136870.961 | R63: 2177314.402 | S63: 0 | T63: 0.003 | U63: 0.856 | V63: 0.738 | W63: -1829161.543 | X63: 1606858.028
B64: 48 | C64: -2057126 | D64: 2090126 | E64: 0 | F64: 0.0032 | G64: 0.856 | H64: 0.738 | I64: -1760899.856 | J64: 1542512.988 | P64: 48 | Q64: -2169232.72 | R64: 2194327.21 | S64: 0 | T64: 0.0032 | U64: 0.856 | V64: 0.738 | W64: -1856863.208 | X64: 1619413.481
B65: 49 | C65: -2008794 | D65: 2047712 | E65: 0 | F65: 0.0034 | G65: 0.856 | H65: 0.738 | I65: -1719527.664 | J65: 1511211.456 | P65: 49 | Q65: -2050543.197 | R65: 2083437.597 | S65: 0 | T65: 0.0034 | U65: 0.856 | V65: 0.738 | W65: -1755264.976 | X65: 1537576.946
B66: 50 | C66: -2002094 | D66: 2055460 | E66: 0 | F66: 0.004 | G66: 0.856 | H66: 0.738 | I66: -1713792.464 | J66: 1516929.48 | P66: 50 | Q66: -2001964.1 | R66: 2040749.779 | S66: 0 | T66: 0.004 | U66: 0.856 | V66: 0.738 | W66: -1713681.27 | X66: 1506073.337
B67: 51 | C67: -2036951 | D67: 2091224 | E67: 0 | F67: 0.0045 | G67: 0.856 | H67: 0.738 | I67: -1743630.056 | J67: 1543323.312 | P67: 51 | Q67: -1994085.624 | R67: 2047238.16 | S67: 0 | T67: 0.0045 | U67: 0.856 | V67: 0.738 | W67: -1706937.294 | X67: 1510861.762
B68: 52 | C68: -2153196 | D68: 2216872 | E68: 0 | F68: 0.005 | G68: 0.856 | H68: 0.738 | I68: -1843135.776 | J68: 1636051.536 | P68: 52 | Q68: -2027784.721 | R68: 2081813.492 | S68: 0 | T68: 0.005 | U68: 0.856 | V68: 0.738 | W68: -1735783.721 | X68: 1536378.357
B69: 53 | C69: -2181060 | D69: 2265513 | E69: 0 | F69: 0.0055 | G69: 0.856 | H69: 0.738 | I69: -1866987.36 | J69: 1671948.594 | P69: 53 | Q69: -2142430.02 | R69: 2205787.64 | S69: 0 | T69: 0.0055 | U69: 0.856 | V69: 0.738 | W69: -1833920.097 | X69: 1627871.278
B70: 54 | C70: -2171381 | D70: 2267125 | E70: 0 | F70: 0.006 | G70: 0.856 | H70: 0.738 | I70: -1858702.136 | J70: 1673138.25 | P70: 54 | Q70: -2169064.17 | R70: 2253052.678 | S70: 0 | T70: 0.006 | U70: 0.856 | V70: 0.738 | W70: -1856718.93 | X70: 1662752.877
B71: 55 | C71: -2161925 | D71: 2264873 | E71: 0 | F71: 0.0063 | G71: 0.768 | H71: 0.664 | I71: -1660358.4 | J71: 1503875.672 | P71: 55 | Q71: -2158352.714 | R71: 2253522.25 | S71: 0 | T71: 0.0063 | U71: 0.768 | V71: 0.664 | W71: -1657614.884 | X71: 1496338.774
B72: 56 | C72: -2179763 | D72: 2296847 | E72: 0 | F72: 0.0066 | G72: 0.768 | H72: 0.664 | I72: -1674057.984 | J72: 1525106.408 | P72: 56 | Q72: -2148304.873 | R72: 2250604.3 | S72: 0 | T72: 0.0066 | U72: 0.768 | V72: 0.664 | W72: -1649898.142 | X72: 1494401.255
B73: 57 | C73: -2197870 | D73: 2310345 | E73: 0 | F73: 0.007 | G73: 0.768 | H73: 0.664 | I73: -1687964.16 | J73: 1534069.08 | P73: 57 | Q73: -2165376.564 | R73: 2281687.81 | S73: 0 | T73: 0.007 | U73: 0.768 | V73: 0.664 | W73: -1663009.201 | X73: 1515040.706
B74: 58 | C74: -2112079 | D74: 2241340 | E74: 0 | F74: 0.0073 | G74: 0.768 | H74: 0.664 | I74: -1622076.672 | J74: 1488249.76 | P74: 58 | Q74: -2182484.91 | R74: 2294172.585 | S74: 0 | T74: 0.0073 | U74: 0.768 | V74: 0.664 | W74: -1676148.411 | X74: 1523330.596
B75: 59 | C75: -2091291 | D75: 2231299 | E75: 0 | F75: 0.0076 | G75: 0.768 | H75: 0.664 | I75: -1606111.488 | J75: 1481582.536 | P75: 59 | Q75: -2096660.823 | R75: 2224978.218 | S75: 0 | T75: 0.0076 | U75: 0.768 | V75: 0.664 | W75: -1610235.512 | X75: 1477385.537
B76: 60 | C76: -2057714 | D76: 2212197 | E76: 0 | F76: 0.008 | G76: 0.697 | H76: 0.576 | I76: -1434226.658 | J76: 1274225.472 | P76: 60 | Q76: -2075397.188 | R76: 2214341.128 | S76: 0 | T76: 0.008 | U76: 0.697 | V76: 0.576 | W76: -1446551.84 | X76: 1275460.489
B77: 61 | C77: -1973813 | D77: 2138130 | E77: 0 | F77: 0.009 | G77: 0.697 | H77: 0.576 | I77: -1375747.661 | J77: 1231562.88 | P77: 61 | Q77: -2041252.288 | R77: 2194499.424 | S77: 0 | T77: 0.009 | U77: 0.697 | V77: 0.576 | W77: -1422752.845 | X77: 1264031.668
B78: 62 | C78: -1949700 | D78: 2120157 | E78: 0 | F78: 0.01 | G78: 0.562 | H78: 0.447 | I78: -1095731.4 | J78: 947710.179 | P78: 62 | Q78: -1956048.683 | R78: 2118886.83 | S78: 0 | T78: 0.01 | U78: 0.562 | V78: 0.447 | W78: -1099299.36 | X78: 947142.413
B79: 63 | C79: -1856156 | D79: 2041613 | E79: 0 | F79: 0.011 | G79: 0.562 | H79: 0.447 | I79: -1043159.672 | J79: 912601.011 | P79: 63 | Q79: -1930203 | R79: 2098955.43 | S79: 0 | T79: 0.011 | U79: 0.562 | V79: 0.447 | W79: -1084774.086 | X79: 938233.0772
B80: 64 | C80: -1777569 | D80: 1965175 | E80: 0 | F80: 0.012 | G80: 0.562 | H80: 0.447 | I80: =C80*G80 -> -998993.778 | J80: 878433.225 | P80: 64 | Q80: -1835738.284 | R80: 2019155.257 | S80: =E80 -> 0 | T80: =F80 -> 0.012 | U80: =G80 -> 0.562 | V80: =H80 -> 0.447 | W80: =Q80*U80 -> -1031684.916 | X80: =R80*V80 -> 902562.3999
B81: 65 | C81: -1702823 | D81: 1887917 | E81: 0 | F81: 0.013 | G81: 0.361 | H81: 0.275 | I81: -614719.103 | J81: 519177.175 | P81: 65 | Q81: =(1-F80)*C80 -> -1756238.172 | R81: =(1-F80)*D80 -> 1941592.9 | S81: 0 | T81: 0.013 | U81: 0.361 | V81: 0.275 | W81: -634001.9801 | X81: 533938.0475
B82: 66 | C82: -1638014 | D82: 1832072 | E82: 0 | F82: 0.014 | G82: 0.361 | H82: 0.275 | I82: -591323.054 | J82: 503819.8 | P82: 66 | Q82: -1680686.301 | R82: 1863374.079 | S82: 0 | T82: 0.014 | U82: 0.361 | V82: 0.275 | W82: -606727.7547 | X82: 512427.8717
B83: 67 | C83: -1592120 | D83: 1783312 | E83: 0 | F83: 0.015 | G83: 0.361 | H83: 0.275 | I83: -574755.32 | J83: 490410.8 | P83: 67 | Q83: -1615081.804 | R83: 1806422.992 | S83: 0 | T83: 0.015 | U83: 0.361 | V83: 0.275 | W83: -583044.5312 | X83: 496766.3228
B84: 68 | C84: -1536427 | D84: 1730737 | E84: 0 | F84: 0.016 | G84: 0.361 | H84: 0.275 | I84: -554650.147 | J84: 475952.675 | P84: 68 | Q84: -1568238.2 | R84: 1756562.32 | S84: 0 | T84: 0.016 | U84: 0.361 | V84: 0.275 | W84: -566133.9902 | X84: 483054.638
B85: 69 | C85: -1514493 | D85: 1708901 | E85: 0 | F85: 0.017 | G85: 0.361 | H85: 0.275 | I85: -546731.973 | J85: 469947.775 | P85: 69 | Q85: -1511844.168 | R85: 1703045.208 | S85: 0 | T85: 0.017 | U85: 0.361 | V85: 0.275 | W85: -545775.7446 | X85: 468337.4322
B86: 70 | C86: -1567870 | D86: 1773538 | E86: 0 | F86: 0.019 | G86: 0.228 | H86: 0.156 | I86: -357474.36 | J86: 276671.928 | P86: 70 | Q86: -1488746.619 | R86: 1679849.683 | S86: 0 | T86: 0.019 | U86: 0.228 | V86: 0.156 | W86: -339434.2291 | X86: 262056.5505
B87: 71 | C87: -1141243 | D87: 1311663 | E87: 0 | F87: 0.021 | G87: 0.228 | H87: 0.156 | I87: -260203.404 | J87: 204619.428 | P87: 71 | Q87: -1538080.47 | R87: 1739840.778 | S87: 0 | T87: 0.021 | U87: 0.228 | V87: 0.156 | W87: -350682.3472 | X87: 271415.1614
B88: 72 | C88: -1112024 | D88: 1292617 | E88: 0 | F88: 0.023 | G88: 0.228 | H88: 0.156 | I88: -253541.472 | J88: 201648.252 | P88: 72 | Q88: -1117276.897 | R88: 1284118.077 | S88: 0 | T88: 0.023 | U88: 0.228 | V88: 0.156 | W88: -254739.1325 | X88: 200322.42
B89: 73 | C89: -1071578 | D89: 1259609 | E89: 0 | F89: 0.025 | G89: 0.228 | H89: 0.156 | I89: -244319.784 | J89: 196499.004 | P89: 73 | Q89: -1086447.448 | R89: 1262886.809 | S89: 0 | T89: 0.025 | U89: 0.228 | V89: 0.156 | W89: -247710.0181 | X89: 197010.3422
B90: 74 | C90: -1083644 | D90: 1284565 | E90: 0 | F90: 0.027 | G90: 0.228 | H90: 0.156 | I90: -247070.832 | J90: 200392.14 | P90: 74 | Q90: -1044788.55 | R90: 1228118.775 | S90: 0 | T90: 0.027 | U90: 0.228 | V90: 0.156 | W90: -238211.7894 | X90: 191586.5289
B91: 75 | C91: -928251 | D91: 1118130 | E91: 0 | F91: 0.03 | G91: 0.145 | H91: 0.059 | I91: -134596.395 | J91: 65969.67 | P91: 75 | Q91: -1054385.612 | R91: 1249881.745 | S91: 0 | T91: 0.03 | U91: 0.145 | V91: 0.059 | W91: -152885.9137 | X91: 73743.02295
B92: 76 | C92: -830444 | D92: 1021265 | E92: 0 | F92: 0.033 | G92: 0.145 | H92: 0.059 | I92: -120414.38 | J92: 60254.635 | P92: 76 | Q92: -900403.47 | R92: 1084586.1 | S92: 0 | T92: 0.033 | U92: 0.145 | V92: 0.059 | W92: -130558.5031 | X92: 63990.5799
B93: 77 | C93: -771933 | D93: 960582 | E93: 0 | F93: 0.037 | G93: 0.145 | H93: 0.059 | I93: -111930.285 | J93: 56674.338 | P93: 77 | Q93: -803039.348 | R93: 987563.255 | S93: 0 | T93: 0.037 | U93: 0.145 | V93: 0.059 | W93: -116440.7055 | X93: 58266.23205
B94: 78 | C94: -715318 | D94: 895353 | E94: 0 | F94: 0.041 | G94: 0.145 | H94: 0.059 | I94: -103721.11 | J94: 52825.827 | P94: 78 | Q94: -743371.479 | R94: 925040.466 | S94: 0 | T94: 0.041 | U94: 0.145 | V94: 0.059 | W94: -107788.8645 | X94: 54577.38749
B95: 79 | C95: -666582 | D95: 854558 | E95: 0 | F95: 0.044 | G95: 0.145 | H95: 0.059 | I95: -96654.39 | J95: 50418.922 | P95: 79 | Q95: -685989.962 | R95: 858643.527 | S95: 0 | T95: 0.044 | U95: 0.145 | V95: 0.059 | W95: -99468.54449 | X95: 50659.96809
B96: 80 | C96: -597682 | D96: 783321 | E96: 0 | F96: 0.049 | G96: 0.11 | H96: 0.059 | I96: -65745.02 | J96: 46215.939 | P96: 80 | Q96: -637252.392 | R96: 816957.448 | S96: 0 | T96: 0.049 | U96: 0.11 | V96: 0.059 | W96: -70097.76312 | X96: 48200.48943
B97: 81 | C97: -553332 | D97: 742519 | E97: 0 | F97: 0.054 | G97: 0.11 | H97: 0.059 | I97: -60866.52 | J97: 43808.621 | P97: 81 | Q97: -568395.582 | R97: 744938.271 | S97: 0 | T97: 0.054 | U97: 0.11 | V97: 0.059 | W97: -62523.51402 | X97: 43951.35799
B98: 82 | C98: -511259 | D98: 707204 | E98: 0 | F98: 0.06 | G98: 0.11 | H98: 0.059 | I98: -56238.49 | J98: 41725.036 | P98: 82 | Q98: -523452.072 | R98: 702422.974 | S98: 0 | T98: 0.06 | U98: 0.11 | V98: 0.059 | W98: -57579.72792 | X98: 41442.95547
B99: 83 | C99: -443217 | D99: 627695 | E99: 0 | F99: 0.066 | G99: 0.11 | H99: 0.059 | I99: -48753.87 | J99: 37034.005 | P99: 83 | Q99: -480583.46 | R99: 664771.76 | S99: 0 | T99: 0.066 | U99: 0.11 | V99: 0.059 | W99: -52864.1806 | X99: 39221.53384
B100: 84 | C100: -410021 | D100: 600051 | E100: 0 | F100: 0.071 | G100: 0.11 | H100: 0.059 | I100: -45102.31 | J100: 35403.009 | P100: 84 | Q100: -413964.678 | R100: 586267.13 | S100: 0 | T100: 0.071 | U100: 0.11 | V100: 0.059 | W100: -45536.11458 | X100: 34589.76067
B101: 85 | C101: -373305 | D101: 564228 | E101: 0 | F101: 0.077 | G101: 0.11 | H101: 0.059 | I101: -41063.55 | J101: 33289.452 | P101: 85 | Q101: -380909.509 | R101: 557447.379 | S101: 0 | T101: 0.077 | U101: 0.11 | V101: 0.059 | W101: -41900.04599 | X101: 32889.39536
B102: 86 | C102: -336572 | D102: 527740 | E102: 0 | F102: 0.084 | G102: 0.05 | H102: 0.03 | I102: -16828.6 | J102: 15832.2 | P102: 86 | Q102: -344560.515 | R102: 520782.444 | S102: 0 | T102: 0.084 | U102: 0 | V102: 0 | W102: 0 | X102: 0
B103: 87 | C103: -303213 | D103: 495644 | E103: 0 | F103: 0.091 | G103: 0.05 | H103: 0.03 | I103: -15160.65 | J103: 14869.32 | P103: 87 | Q103: -308299.952 | R103: 483409.84 | S103: 0 | T103: 0.091 | U103: 0 | V103: 0 | W103: 0 | X103: 0
B104: 88 | C104: -256034 | D104: 435897 | E104: 0 | F104: 0.099 | G104: 0.05 | H104: 0.03 | I104: -12801.7 | J104: 13076.91 | P104: 88 | Q104: -275620.617 | R104: 450540.396 | S104: 0 | T104: 0.099 | U104: 0 | V104: 0 | W104: 0 | X104: 0
B105: 89 | C105: -221606 | D105: 397523 | E105: 0 | F105: 0.108 | G105: 0.05 | H105: 0.03 | I105: -11080.3 | J105: 11925.69 | P105: 89 | Q105: -230686.634 | R105: 392743.197 | S105: 0 | T105: 0.108 | U105: 0 | V105: 0 | W105: 0 | X105: 0
B106: 90 | C106: -186381 | D106: 350949 | E106: 0 | F106: 0.117 | G106: 0 | H106: 0 | I106: 0 | J106: 0 | P106: 90 | Q106: -197672.552 | R106: 354590.516 | S106: 0 | T106: 0.117 | U106: 0 | V106: 0 | W106: 0 | X106: 0
B107: 91 | C107: -151157 | D107: 301456 | E107: 0 | F107: 0.127 | G107: 0 | H107: 0 | I107: 0 | J107: 0 | P107: 91 | Q107: -164574.423 | R107: 309887.967 | S107: 0 | T107: 0.127 | U107: 0 | V107: 0 | W107: 0 | X107: 0
B108: 92 | C108: -123075 | D108: 261380 | E108: 0 | F108: 0.137 | G108: 0 | H108: 0 | I108: 0 | J108: 0 | P108: 92 | Q108: -131960.061 | R108: 263171.088 | S108: 0 | T108: 0.137 | U108: 0 | V108: 0 | W108: 0 | X108: 0
B109: 93 | C109: -96692 | D109: 216556 | E109: 0 | F109: 0.149 | G109: 0 | H109: 0 | I109: 0 | J109: 0 | P109: 93 | Q109: -106213.725 | R109: 225570.94 | S109: 0 | T109: 0.149 | U109: 0 | V109: 0 | W109: 0 | X109: 0
B110: 94 | C110: -73963 | D110: 173490 | E110: 0 | F110: 0.161 | G110: 0 | H110: 0 | I110: 0 | J110: 0 | P110: 94 | Q110: -82284.892 | R110: 184289.156 | S110: 0 | T110: 0.161 | U110: 0 | V110: 0 | W110: 0 | X110: 0
B111: 95 | C111: -55397 | D111: 139001 | E111: 0 | F111: 0.174 | G111: 0 | H111: 0 | I111: 0 | J111: 0 | P111: 95 | Q111: -62054.957 | R111: 145558.11 | S111: 0 | T111: 0.174 | U111: 0 | V111: 0 | W111: 0 | X111: 0
B112: 96 | C112: -40496 | D112: 107024 | E112: 0 | F112: 0.188 | G112: 0 | H112: 0 | I112: 0 | J112: 0 | P112: 96 | Q112: -45757.922 | R112: 114814.826 | S112: 0 | T112: 0.188 | U112: 0 | V112: 0 | W112: 0 | X112: 0
B113: 97 | C113: -27398 | D113: 78544 | E113: 0 | F113: 0.203 | G113: 0 | H113: 0 | I113: 0 | J113: 0 | P113: 97 | Q113: -32882.752 | R113: 86903.488 | S113: 0 | T113: 0.203 | U113: 0 | V113: 0 | W113: 0 | X113: 0
B114: 98 | C114: -17470 | D114: 53307 | E114: 0 | F114: 0.218 | G114: 0 | H114: 0 | I114: 0 | J114: 0 | P114: 98 | Q114: -21836.206 | R114: 62599.568 | S114: 0 | T114: 0.218 | U114: 0 | V114: 0 | W114: 0 | X114: 0
B115: 99 | C115: -11848 | D115: 38997 | E115: 0 | F115: 0.235 | G115: 0 | H115: 0 | I115: 0 | J115: 0 | P115: 99 | Q115: -13661.54 | R115: 41686.074 | S115: 0 | T115: 0.235 | U115: 0 | V115: 0 | W115: 0 | X115: 0
B116: 100 | C116: -15353 | D116: 59472 | E116: 0 | F116: 1 | G116: 0 | H116: 0 | I116: 0 | J116: 0 | P116: 100 | Q116: -9063.72 | R116: 29832.705 | S116: 0 | T116: 1 | U116: 0 | V116: 0 | W116: 0 | X116: 0
B117: Pop | C117: =-SUM(C16:C116) -> 161034735 | D117: =SUM(D16:D116) -> 165591056 | H117: Labor Force | I117: =-SUM(I16:I116) -> 87693549.82 | J117: =SUM(J16:J116) -> 74628125.23 | P117: Pop | Q117: =-SUM(Q16:Q116) -> 161956413.2 | R117: =SUM(R16:R116) -> 166018743.4 | V117: Labor Force | W117: =-SUM(W16:W116) -> 87851965.15 | X117: =SUM(X16:X116) -> 74466758.24
D118: =C117+D117 -> 326625791 | J118: =I117+J117 -> 162321675.1 | R118: =Q117+R117 -> 327975156.6 | X118: =W117+X117 -> 162318723.4

Sheet Initial (hidden)
A1: Initial values
B15: Age | C15: Male | D15: Female | E15: ASFR | F15: ASDR | G15: M LFPR | H15: F LFPR | I15: M Labor | J15: F Labor
B16: 0 | C16: -2075603 | D16: 1981628 | E16: 0 | F16: 0.006 | G16: 0 | H16: 0 | I16: =C16*G16 -> 0 | J16: =D16*H16 -> 0
B17: 1 | C17: -2069787 | D17: 1976276 | E17: 0 | F17: 0.0003 | G17: 0 | H17: 0 | I17: 0 | J17: 0
B18: 2 | C18: -2063401 | D18: 1970531 | E18: 0 | F18: 0.0002 | G18: 0 | H18: 0 | I18: 0 | J18: 0
B19: 3 | C19: -2055517 | D19: 1963552 | E19: 0 | F19: 0.0002 | G19: 0 | H19: 0 | I19: 0 | J19: 0
B20: 4 | C20: -2046061 | D20: 1954894 | E20: 0 | F20: 0.0001 | G20: 0 | H20: 0 | I20: 0 | J20: 0
B21: 5 | C21: -2048634 | D21: 1961598 | E21: 0 | F21: 0.0001 | G21: 0 | H21: 0 | I21: 0 | J21: 0
B22: 6 | C22: -2063893 | D22: 1973884 | E22: 0 | F22: 0.0001 | G22: 0 | H22: 0 | I22: 0 | J22: 0
B23: 7 | C23: -2058301 | D23: 1976538 | E23: 0 | F23: 0.0001 | G23: 0 | H23: 0 | I23: 0 | J23: 0
B24: 8 | C24: -2058013 | D24: 1977298 | E24: 0 | F24: 0.0001 | G24: 0 | H24: 0 | I24: 0 | J24: 0
B25: 9 | C25: -2125335 | D25: 2039152 | E25: 0 | F25: 0.0001 | G25: 0 | H25: 0 | I25: 0 | J25: 0
B26: 10 | C26: -2138168 | D26: 2046595 | E26: 0 | F26: 0.0001 | G26: 0 | H26: 0 | I26: 0 | J26: 0
B27: 11 | C27: -2121714 | D27: 2029005 | E27: 0 | F27: 0.0001 | G27: 0 | H27: 0 | I27: 0 | J27: 0
B28: 12 | C28: -2114033 | D28: 2023585 | E28: 0 | F28: 0.0001 | G28: 0 | H28: 0 | I28: 0 | J28: 0
B29: 13 | C29: -2116804 | D29: 2029155 | E29: 0 | F29: 0.0001 | G29: 0 | H29: 0 | I29: 0 | J29: 0
B30: 14 | C30: -2100731 | D30: 2016247 | E30: 0 | F30: 0.0001 | G30: 0 | H30: 0 | I30: 0 | J30: 0
B31: 15 | C31: -2094257 | D31: 2010029 | E31: 0.024 | F31: 0.0002 | G31: 0 | H31: 0 | I31: 0 | J31: 0
B32: 16 | C32: -2151856 | D32: 2061555 | E32: 0.024 | F32: 0.0004 | G32: 0.335 | H32: 0.345 | I32: -720871.76 | J32: 711236.475
B33: 17 | C33: -2195116 | D33: 2094807 | E33: 0.024 | F33: 0.0005 | G33: 0.335 | H33: 0.345 | I33: -735363.86 | J33: 722708.415
B34: 18 | C34: -2169738 | D34: 2069862 | E34: 0.024 | F34: 0.0006 | G34: 0.335 | H34: 0.345 | I34: -726862.23 | J34: 714102.39
B35: 19 | C35: -2182024 | D35: 2079760 | E35: 0.024 | F35: 0.0008 | G35: 0.335 | H35: 0.345 | I35: -730978.04 | J35: 717517.2
B36: 20 | C36: -2197203 | D36: 2096150 | E36: 0.079 | F36: 0.0009 | G36: 0.739 | H36: 0.677 | I36: -1623733.017 | J36: 1419093.55
B37: 21 | C37: -2228094 | D37: 2115336 | E37: 0.079 | F37: 0.0009 | G37: 0.739 | H37: 0.677 | I37: -1646561.466 | J37: 1432082.472
B38: 22 | C38: -2285162 | D38: 2163160 | E38: 0.079 | F38: 0.0009 | G38: 0.739 | H38: 0.677 | I38: -1688734.718 | J38: 1464459.32
B39: 23 | C39: -2335679 | D39: 2208461 | E39: 0.079 | F39: 0.0009 | G39: 0.739 | H39: 0.677 | I39: -1726066.781 | J39: 1495128.097
B40: 24 | C40: -2374823 | D40: 2238706 | E40: 0.079 | F40: 0.0009 | G40: 0.739 | H40: 0.677 | I40: -1754994.197 | J40: 1515603.962
B41: 25 | C41: -2429594 | D41: 2302626 | E41: 0.106 | F41: 0.001 | G41: 0.887 | H41: 0.738 | I41: -2155049.878 | J41: 1699337.988
B42: 26 | C42: -2459466 | D42: 2354390 | E42: 0.106 | F42: 0.001 | G42: 0.887 | H42: 0.738 | I42: -2181546.342 | J42: 1737539.82
B43: 27 | C43: -2448952 | D43: 2354126 | E43: 0.106 | F43: 0.001 | G43: 0.887 | H43: 0.738 | I43: -2172220.424 | J43: 1737344.988
B44: 28 | C44: -2352429 | D44: 2263618 | E44: 0.106 | F44: 0.001 | G44: 0.887 | H44: 0.738 | I44: -2086604.523 | J44: 1670550.084
B45: 29 | C45: -2293084 | D45: 2213568 | E45: 0.106 | F45: 0.001 | G45: 0.887 | H45: 0.738 | I45: -2033965.508 | J45: 1633613.184
B46: 30 | C46: -2250695 | D46: 2175689 | E46: 0.101 | F46: 0.0011 | G46: 0.887 | H46: 0.738 | I46: -1996366.465 | J46: 1605658.482
B47: 31 | C47: -2253014 | D47: 2183961 | E47: 0.101 | F47: 0.0011 | G47: 0.887 | H47: 0.738 | I47: -1998423.418 | J47: 1611763.218
B48: 32 | C48: -2259046 | D48: 2203759 | E48: 0.101 | F48: 0.0011 | G48: 0.887 | H48: 0.738 | I48: =C48*G48 -> -2003773.802 | J48: =D48*H48 -> 1626374.142
B49: 33 | C49: -2177035 | D49: 2140290 | E49: 0.101 | F49: 0.0011 | G49: 0.887 | H49: 0.738 | I49: -1931030.045 | J49: 1579534.02
B50: 34 | C50: -2201001 | D50: 2173763 | E50: 0.101 | F50: 0.0011 | G50: 0.887 | H50: 0.738 | I50: -1952287.887 | J50: 1604237.094
B51: 35 | C51: -2194108 | D51: 2175228 | E51: 0.051 | F51: 0.0014 | G51: 0.905 | H51: 0.741 | I51: -1985667.74 | J51: 1611843.948
B52: 36 | C52: -2164709 | D52: 2153754 | E52: 0.051 | F52: 0.0014 | G52: 0.905 | H52: 0.741 | I52: -1959061.645 | J52: 1595931.714
B53: 37 | C53: -2212231 | D53: 2186556 | E53: 0.051 | F53: 0.0014 | G53: 0.905 | H53: 0.741 | I53: -2002069.055 | J53: 1620237.996
B54: 38 | C54: -2066702 | D54: 2061990 | E54: 0.051 | F54: 0.0014 | G54: 0.905 | H54: 0.741 | I54: -1870365.31 | J54: 1527934.59
B55: 39 | C55: -2021733 | D55: 2023332 | E55: 0.051 | F55: 0.0014 | G55: 0.905 | H55: 0.741 | I55: -1829668.365 | J55: 1499289.012
B56: 40 | C56: -1993935 | D56: 2007785 | E56: 0.011 | F56: 0.0016 | G56: 0.905 | H56: 0.741 | I56: -1804511.175 | J56: 1487768.685
B57: 41 | C57: -1934846 | D57: 1947159 | E57: 0.011 | F57: 0.0018 | G57: 0.905 | H57: 0.741 | I57: -1751035.63 | J57: 1442844.819
B58: 42 | C58: -1993654 | D58: 2001903 | E58: 0.011 | F58: 0.002 | G58: 0.905 | H58: 0.741 | I58: -1804256.87 | J58: 1483410.123
B59: 43 | C59: -1921698 | D59: 1946433 | E59: 0.011 | F59: 0.0022 | G59: 0.905 | H59: 0.741 | I59: -1739136.69 | J59: 1442306.853
B60: 44 | C60: -1941506 | D60: 1980630 | E60: 0.011 | F60: 0.0024 | G60: 0.905 | H60: 0.741 | I60: -1757062.93 | J60: 1467646.83
B61: 45 | C61: -2030002 | D61: 2065549 | E61: 0 | F61: 0.0026 | G61: 0.856 | H61: 0.738 | I61: -1737681.712 | J61: 1524375.162
B62: 46 | C62: -2142871 | D62: 2183428 | E62: 0 | F62: 0.0028 | G62: 0.856 | H62: 0.738 | I62: -1834297.576 | J62: 1611369.864
B63: 47 | C63: -2175760 | D63: 2200930 | E63: 0 | F63: 0.003 | G63: 0.856 | H63: 0.738 | I63: -1862450.56 | J63: 1624286.34
B64: 48 | C64: -2057126 | D64: 2090126 | E64: 0 | F64: 0.0032 | G64: 0.856 | H64: 0.738 | I64: -1760899.856 | J64: 1542512.988
B65: 49 | C65: -2008794 | D65: 2047712 | E65: 0 | F65: 0.0034 | G65: 0.856 | H65: 0.738 | I65: -1719527.664 | J65: 1511211.456
B66: 50 | C66: -2002094 | D66: 2055460 | E66: 0 | F66: 0.004 | G66: 0.856 | H66: 0.738 | I66: -1713792.464 | J66: 1516929.48
B67: 51 | C67: -2036951 | D67: 2091224 | E67: 0 | F67: 0.0045 | G67: 0.856 | H67: 0.738 | I67: -1743630.056 | J67: 1543323.312
B68: 52 | C68: -2153196 | D68: 2216872 | E68: 0 | F68: 0.005 | G68: 0.856 | H68: 0.738 | I68: -1843135.776 | J68: 1636051.536
B69: 53 | C69: -2181060 | D69: 2265513 | E69: 0 | F69: 0.0055 | G69: 0.856 | H69: 0.738 | I69: -1866987.36 | J69: 1671948.594
B70: 54 | C70: -2171381 | D70: 2267125 | E70: 0 | F70: 0.006 | G70: 0.856 | H70: 0.738 | I70: -1858702.136 | J70: 1673138.25
B71: 55 | C71: -2161925 | D71: 2264873 | E71: 0 | F71: 0.0063 | G71: 0.768 | H71: 0.664 | I71: -1660358.4 | J71: 1503875.672
B72: 56 | C72: -2179763 | D72: 2296847 | E72: 0 | F72: 0.0066 | G72: 0.768 | H72: 0.664 | I72: -1674057.984 | J72: 1525106.408
B73: 57 | C73: -2197870 | D73: 2310345 | E73: 0 | F73: 0.007 | G73: 0.768 | H73: 0.664 | I73: -1687964.16 | J73: 1534069.08
B74: 58 | C74: -2112079 | D74: 2241340 | E74: 0 | F74: 0.0073 | G74: 0.768 | H74: 0.664 | I74: -1622076.672 | J74: 1488249.76
B75: 59 | C75: -2091291 | D75: 2231299 | E75: 0 | F75: 0.0076 | G75: 0.768 | H75: 0.664 | I75: -1606111.488 | J75: 1481582.536
B76: 60 | C76: -2057714 | D76: 2212197 | E76: 0 | F76: 0.008 | G76: 0.697 | H76: 0.576 | I76: -1434226.658 | J76: 1274225.472
B77: 61 | C77: -1973813 | D77: 2138130 | E77: 0 | F77: 0.009 | G77: 0.697 | H77: 0.576 | I77: -1375747.661 | J77: 1231562.88
B78: 62 | C78: -1949700 | D78: 2120157 | E78: 0 | F78: 0.01 | G78: 0.562 | H78: 0.447 | I78: -1095731.4 | J78: 947710.179
B79: 63 | C79: -1856156 | D79: 2041613 | E79: 0 | F79: 0.011 | G79: 0.562 | H79: 0.447 | I79: -1043159.672 | J79: 912601.011
B80: 64 | C80: -1777569 | D80: 1965175 | E80: 0 | F80: 0.012 | G80: 0.562 | H80: 0.447 | I80: =C80*G80 -> -998993.778 | J80: =D80*H80 -> 878433.225
B81: 65 | C81: -1702823 | D81: 1887917 | E81: 0 | F81: 0.013 | G81: 0.361 | H81: 0.275 | I81: -614719.103 | J81: 519177.175
B82: 66 | C82: -1638014 | D82: 1832072 | E82: 0 | F82: 0.014 | G82: 0.361 | H82: 0.275 | I82: -591323.054 | J82: 503819.8
B83: 67 | C83: -1592120 | D83: 1783312 | E83: 0 | F83: 0.015 | G83: 0.361 | H83: 0.275 | I83: -574755.32 | J83: 490410.8
B84: 68 | C84: -1536427 | D84: 1730737 | E84: 0 | F84: 0.016 | G84: 0.361 | H84: 0.275 | I84: -554650.147 | J84: 475952.675
B85: 69 | C85: -1514493 | D85: 1708901 | E85: 0 | F85: 0.017 | G85: 0.361 | H85: 0.275 | I85: -546731.973 | J85: 469947.775
B86: 70 | C86: -1567870 | D86: 1773538 | E86: 0 | F86: 0.019 | G86: 0.228 | H86: 0.156 | I86: -357474.36 | J86: 276671.928
B87: 71 | C87: -1141243 | D87: 1311663 | E87: 0 | F87: 0.021 | G87: 0.228 | H87: 0.156 | I87: -260203.404 | J87: 204619.428
B88: 72 | C88: -1112024 | D88: 1292617 | E88: 0 | F88: 0.023 | G88: 0.228 | H88: 0.156 | I88: -253541.472 | J88: 201648.252
B89: 73 | C89: -1071578 | D89: 1259609 | E89: 0 | F89: 0.025 | G89: 0.228 | H89: 0.156 | I89: -244319.784 | J89: 196499.004
B90: 74 | C90: -1083644 | D90: 1284565 | E90: 0 | F90: 0.027 | G90: 0.228 | H90: 0.156 | I90: -247070.832 | J90: 200392.14
B91: 75 | C91: -928251 | D91: 1118130 | E91: 0 | F91: 0.03 | G91: 0.145 | H91: 0.059 | I91: -134596.395 | J91: 65969.67
B92: 76 | C92: -830444 | D92: 1021265 | E92: 0 | F92: 0.033 | G92: 0.145 | H92: 0.059 | I92: -120414.38 | J92: 60254.635
B93: 77 | C93: -771933 | D93: 960582 | E93: 0 | F93: 0.037 | G93: 0.145 | H93: 0.059 | I93: -111930.285 | J93: 56674.338
B94: 78 | C94: -715318 | D94: 895353 | E94: 0 | F94: 0.041 | G94: 0.145 | H94: 0.059 | I94: -103721.11 | J94: 52825.827
B95: 79 | C95: -666582 | D95: 854558 | E95: 0 | F95: 0.044 | G95: 0.145 | H95: 0.059 | I95: -96654.39 | J95: 50418.922
B96: 80 | C96: -597682 | D96: 783321 | E96: 0 | F96: 0.049 | G96: 0.11 | H96: 0.059 | I96: -65745.02 | J96: 46215.939
B97: 81 | C97: -553332 | D97: 742519 | E97: 0 | F97: 0.054 | G97: 0.11 | H97: 0.059 | I97: -60866.52 | J97: 43808.621
B98: 82 | C98: -511259 | D98: 707204 | E98: 0 | F98: 0.06 | G98: 0.11 | H98: 0.059 | I98: -56238.49 | J98: 41725.036
B99: 83 | C99: -443217 | D99: 627695 | E99: 0 | F99: 0.066 | G99: 0.11 | H99: 0.059 | I99: -48753.87 | J99: 37034.005
B100: 84 | C100: -410021 | D100: 600051 | E100: 0 | F100: 0.071 | G100: 0.11 | H100: 0.059 | I100: -45102.31 | J100: 35403.009
B101: 85 | C101: -373305 | D101: 564228 | E101: 0 | F101: 0.077 | G101: 0.11 | H101: 0.059 | I101: -41063.55 | J101: 33289.452
B102: 86 | C102: -336572 | D102: 527740 | E102: 0 | F102: 0.084 | G102: 0.05 | H102: 0.03 | I102: -16828.6 | J102: 15832.2
B103: 87 | C103: -303213 | D103: 495644 | E103: 0 | F103: 0.091 | G103: 0.05 | H103: 0.03 | I103: -15160.65 | J103: 14869.32
B104: 88 | C104: -256034 | D104: 435897 | E104: 0 | F104: 0.099 | G104: 0.05 | H104: 0.03 | I104: -12801.7 | J104: 13076.91
B105: 89 | C105: -221606 | D105: 397523 | E105: 0 | F105: 0.108 | G105: 0.05 | H105: 0.03 | I105: -11080.3 | J105: 11925.69
B106: 90 | C106: -186381 | D106: 350949 | E106: 0 | F106: 0.117 | G106: 0 | H106: 0 | I106: 0 | J106: 0
B107: 91 | C107: -151157 | D107: 301456 | E107: 0 | F107: 0.127 | G107: 0 | H107: 0 | I107: 0 | J107: 0
B108: 92 | C108: -123075 | D108: 261380 | E108: 0 | F108: 0.137 | G108: 0 | H108: 0 | I108: 0 | J108: 0
B109: 93 | C109: -96692 | D109: 216556 | E109: 0 | F109: 0.149 | G109: 0 | H109: 0 | I109: 0 | J109: 0
B110: 94 | C110: -73963 | D110: 173490 | E110: 0 | F110: 0.161 | G110: 0 | H110: 0 | I110: 0 | J110: 0
B111: 95 | C111: -55397 | D111: 139001 | E111: 0 | F111: 0.174 | G111: 0 | H111: 0 | I111: 0 | J111: 0
B112: 96 | C112: -40496 | D112: 107024 | E112: 0 | F112: 0.188 | G112: 0 | H112: 0 | I112: 0 | J112: 0
B113: 97 | C113: -27398 | D113: 78544 | E113: 0 | F113: 0.203 | G113: 0 | H113: 0 | I113: 0 | J113: 0
B114: 98 | C114: -17470 | D114: 53307 | E114: 0 | F114: 0.218 | G114: 0 | H114: 0 | I114: 0 | J114: 0
B115: 99 | C115: -11848 | D115: 38997 | E115: 0 | F115: 0.235 | G115: 0 | H115: 0 | I115: 0 | J115: 0
B116: 100 | C116: -15353 | D116: 59472 | E116: 0 | F116: 1 | G116: 0 | H116: 0 | I116: 0 | J116: 0
B117: Pop | C117: =-SUM(C16:C116) -> 161034735 | D117: =SUM(D16:D116) -> 165591056 | H117: Labor Force | I117: =-SUM(I16:I116) -> 87693549.82 | J117: =SUM(J16:J116) -> 74628125.23
D118: =C117+D117 -> 326625791 | J118: =I117+J117 -> 162321675.1

Sheet Mig (hidden)
A1: Pyramids for natives and immigrants
A2: Source: | B2: http://www.migrationpolicy.org/programs/data-hub/charts/age-sex-pyramids-immigrant-and-native-born-population-over-time
B3: Migration Policy Institute tabulation of data from the U.S. Census Bureau's 2014 American Community Survey. Data were accessed from Steven Ruggles, Katie Genadek, Ronald Goeken, Josiah Grover, and Matthew Sobek. Integrated Public Use Microdata Series: Version 6.0 [Machine-readable database]. Minneapolis: University of Minnesota, 2015.
I4: Immigrant = non-native; not born, but residing in US, including illegally and foreign students
A5: United States, 2014, 5-yr cohorts | I5: Learn more --> | J5: http://www.migrationpolicy.org/article/frequently-requested-statistics-immigrants-and-immigration-united-states
A6: Data
A7: below
I21: This pyramid embeds immigrants within the total population to make comparison easy.
A22: Source | B22: IDB | C22: IDB | D22: MPI | E22: MPI | F22: Computed | G22: Computed
A23: Age | B23: Male Population | C23: Female Population | D23: M Immigrant | E23: F Immigrant | F23: M Native | G23: F Native | H23: % Immigrant
A24: Total | B24: -156936487 | C24: 161920569 | D24: -20562609 | E24: 21673140 | F24: =B24-D24 -> -136373878 | G24: =C24-E24 -> 140247429 | H24: =(-D24+E24)/(-B24+C24) -> 0.1324598224
A25: 0 | B25: -10155728 | C25: 9721155 | D25: -143561 | E25: 125614 | F25: =B25-D25 -> -10012167 | G25: 9595541
A26: 5 | B26: -10478429 | C26: 10041137 | D26: -270870 | E26: 261429 | F26: -10207559 | G26: 9779708
A27: 10 | B27: -10551219 | C27: 10120287 | D27: -443857 | E27: 453632 | F27: -10107362 | G27: 9666655
A28: 15 | B28: -10784023 | C28: 10283624 | D28: -810777 | E28: 712266 | F28: -9973246 | G28: 9571358
A29: 20 | B29: -11739427 | C29: 11172747 | D29: -1272314 | E29: 1126676 | F29: -10467113 | G29: 10046071
A30: 25 | B30: -11161389 | C30: 10826549 | D30: -1795915 | E30: 1698642 | F30: -9365474 | G30: 9127907
A31: 30 | B31: -10808825 | C31: 10719741 | D31: -2140584 | E31: 2044110 | F31: -8668241 | G31: 8675631
A32: 35 | B32: -9939836 | C32: 9981814 | D32: -2250759 | E32: 2254556 | F32: -7689077 | G32: 7727258
A33: 40 | B33: -10219393 | C33: 10372090 | D33: -2259078 | E33: 2370243 | F33: -7960315 | G33: 8001847
A34: 45 | B34: -10347463 | C34: 10540579 | D34: -2084207 | E34: 2130843 | F34: -8263256 | G34: 8409736
A35: 50 | B35: -11077581 | C35: 11493228 | D35: -1864257 | E35: 1939631 | F35: -9213324 | G35: 9553597
A36: 55 | B36: -10443988 | C36: 11067461 | D36: -1501222 | E36: 1649591 | F36: -8942766 | G36: 9417870
A37: 60 | B37: -8877894 | C37: 9688238 | D37: -1211301 | E37: 1366250 | F37: -7666593 | G37: 8321988
A38: 65 | B38: -7249106 | C38: 8076160 | D38: -909557 | E38: 1109634 | F38: -6339549 | G38: 6966526
A39: 70 | B39: -5099939 | C39: 5973085 | D39: -632327 | E39: 853589 | F39: -4467612 | G39: 5119496
A40: 75 | B40: -3511566 | C40: 4410758 | D40: -458474 | E40: 637726 | F40: -3053092 | G40: 3773032
A41: 80 | B41: -2381812 | C41: 3378554 | D41: -287137 | E41: 449809 | F41: -2094675 | G41: 2928745
A42: 85 | B42: -2108869 | C42: 4053362 | D42: -226412 | E42: 488899 | F42: =B42-D42 -> -1882457 | G42: =C42-E42 -> 3564463
I43: Absent immigration, the United States would look a lot more like Japan.
I44: Here is a United Nations report on how rich, low-fertility countries could use immigration to avoid a narrowing base:
I45: http://www.un.org/esa/population/publications/migration/migration.htm
E73: But this is the immigrants in the US in 2014, not who entered in 2014.
E74: I entered in 1962, but I show up in the chart above as a 56 year old.

Sheet Lessons (hidden)
A1: This sheet offers a few ideas worth remembering about population pyramids. | AA1: Age | AB1: Male | AC1: Female | AD1: This is college grads in the US in 2014 estimated from the ACS survey.
AA2: 0 | AD2: Since you came over here, can you replicate the population pyramid that I made?
A3: A population pyramid is a graph that shows the age-distribution of males and females. | AA3: 1 | AD3: More challenging and interesting, can you make a pyramid chart like
AA4: 2 | AD4: the LFPR or Mig sheets, with college grads the sub-group?
A5: High birth and death rates (which used to be common for poor, developing countries) produce lots of children and few old people, | AA5: 3 | AD5: Hint: Copy one of those sheets and copy and paste the data from here.
A6: yielding a triangular shape with a wide bottom and pointed top, Because it looks like one is why it is called a population pyramid. --> | AA6: 4 | AD6: Kinda cool?
AA7: 5 | AD7: Note: My estimate using ACS is much lower than NCES, who say 1.8 million BA degrees will be awarded:
A8: But there are other possible shapes. | AA8: 6 | AD8: http://nces.ed.gov/fastfacts/display.asp?id=372
B9: Many developed, rich countries (like the USA) have gone through a demographic transition, with death rates falling first, then fertility falling. | AA9: 7
B10: At this time, they have roughly equal numbers of people at each age until finally tapering off for older folks so it looks more like a house. --> | AA10: 8
AA11: 9
B12: With really low fertility (and little immigration), we get a hexagon, a house with an added narrow base. --> | AA12: 10
B13: This has the potential to cause serious problems for the economy and society. | AA13: 11
AA14: 12
A15: Population pyramids reflect historical events and calamities. | AA15: 13
B16: Baby booms are easily seen as bulges in the pyramid. | AA16: 14
B17: Indentations or gouges often reflect traumatic events such as wars or famines. | AA17: 15
AA18: 16
A19: Population pyramids have a dynamic aspect. The cohorts (horizontal bars) march up the graph as time goes by. | AA19: 17
B20: worldlifeexpectancy.com/cuba-population-pyramid | AA20: 18
AA21: 19
A22: Finally, population pyramids are actually a versatile type of graph. | AA22: 20
B23: The LFPR and Mig sheets show how you can provide a strong visual of a sub-group with a population pyramid. | AA23: 21
B24: As another example, consider the amazing increase in female versus male college graduates in the United States. | AA24: 22
B25: This is usally conveyed on a chart with time on the x axis and some measure of educational attainment on the y axis. | AA25: 23
B26: Many more women than men enroll in college today and this is the subject of much research. | AA26: 24
B27: Here is a population pyramid of the number of men and women with at least a college degree in each age cohort: | AA27: 25 | AB27: -629279.0065 | AC27: 773220.9975
AA28: 26 | AB28: -627004.9914 | AC28: 775721.9937
AA29: 27 | AB29: -612528.0024 | AC29: 793458.9964
AA30: 28 | AB30: -638060.0035 | AC30: 790054.9912
AA31: 29 | AB31: -625019.9909 | AC31: 813502.0037
AA32: 30 | AB32: -696584.9983 | AC32: 877647.9923
AA33: 31 | AB33: -646377.0002 | AC33: 822857.997
AA34: 32 | AB34: -651883.0086 | AC34: 822102.0089
AA35: 33 | AB35: -652922.9925 | AC35: 803212.9986
AA36: 34 | AB36: -626625.9948 | AC36: 783845.0071
AA37: 35 | AB37: -657629.0071 | AC37: 791898.9967
AA38: 36 | AB38: -629119.0072 | AC38: 752998.9955
AA39: 37 | AB39: -610678.9976 | AC39: 748883.9912
AA40: 38 | AB40: -610946.9982 | AC40: 720413.9922
AA41: 39 | AB41: -591520.0009 | AC41: 717953.9945
AA42: 40 | AB42: -633077.9948 | AC42: 754773.9936
AA43: 41 | AB43: -598663.0061 | AC43: 715124.0053
AA44: 42 | AB44: -628437.0025 | AC44: 743917.9974
AA45: 43 | AB45: -671300.0059 | AC45: 778973.0076
AA46: 44 | AB46: -665789.9916 | AC46: 759763.9982
AA47: 45 | AB47: -665657.0023 | AC47: 739625.0024
AA48: 46 | AB48: -610325.9937 | AC48: 683861.007
AA49: 47 | AB49: -601612.0061 | AC49: 679494.0025
AA50: 48 | AB50: -590494.9928 | AC50: 638499.007
AA51: 49 | AB51: -607056.0087 | AC51: 662331.0065
B52: Source: ACS accessed from usa.ipums.org | AA52: 50 | AB52: -661043.9967 | AC52: 702655.0075
B53: ACS is a 1-in-100 national random sample of the population; data set has over 2 million obs and I used weights to estimate the number of people with at least a college education. | AA53: 51 | AB53: -633386.004 | AC53: 665153.002
C54: If you are interested, the data are to the right --> | AA54: 52 | AB54: -601609.9968 | AC54: 654346.9981
AA55: 53 | AB55: -590859.0005 | AC55: 666427.0009
B56: The population pyramid of college gradutes in the United States in 2014 packs a lot of information. | AA56: 54 | AB56: -586195.9991 | AC56: 625996.991
C57: Notice the sudden increase in college enrollments for men and women 68 years old in 2014 (so they were 18 in 1964). | AA57: 55 | AB57: -584187.9892 | AC57: 628657.9954
C58: This was caused by a big increase in college age people from the baby boom after the end of WWII (18 year olds in 1964 were born in 1946), | AA58: 56 | AB58: -574651.9944 | AC58: 628171.9927
AA59: 57 | AB59: -577326.9906 | AC59: 628448.9946
C60: The increase in female college grads coincides with the women's liberation movement in the 1960s. | AA60: 58 | AB60: -572539.0008 | AC60: 619801.0039
C61: For men, it is hard to see, but the Vietnam War helped boost male college enrollment (men could defer being drafted by going to college). | AA61: 59 | AB61: -557990.0016 | AC61: 579518.9936
AA62: 60 | AB62: -599120.9898 | AC62: 616311.0051
C63: Look at the increase for female college grads versus the roughly even number of male college graduates. | AA63: 61 | AB63: -564805.0038 | AC63: 592252.9913
C64: In other words, the pyramid's base is not symmetric, with equal numbers of male and female college grads. | AA64: 62 | AB64: -585250.0058 | AC64: 581560.0101
C65: Male college grads are stable around 600,000 in each age cohort, | AA65: 63 | AB65: -571895.0065 | AC65: 542721.9943
C66: but the number of female college grads kept rising and is hovering around 800,000 for the most recent grads. | AA66: 64 | AB66: -560025.004 | AC66: 529234.9963
AA67: 65 | AB67: -561087.9979 | AC67: 494323.0058
C68: Continually adding 200,000 more women than men (one-third more women than men each year) will quickly accumulate. | AA68: 66 | AB68: -559676.0026 | AC68: 471493.9959
C69: Many more female college grads than males might create societal tensions and problems -- can you think of any? | AA69: 67 | AB69: -552272.9959 | AC69: 474611.9947
AA70: 68 | AB70: -420112.9942 | AC70: 351537.992
B71: It would be cool to embed the number of college grads into the United States population pyramid. | AA71: 69 | AB71: -376391.9972 | AC71: 323895.9974
C72: You can use the data to the right to do this. | AA72: 70 | AB72: -376847.9943 | AC72: 312597.9946
C73: Good luck! | AA73: 71 | AB73: -370783.9997 | AC73: 304656.0076
AA74: 72 | AB74: -317371.9944 | AC74: 239096.9929
AA75: 73 | AB75: -270825.0023 | AC75: 231279.9963
AA76: 74 | AB76: -235952.9955 | AC76: 197391.0016
AA77: 75 | AB77: -238903.0024 | AC77: 190133.0054
AA78: 76 | AB78: -214865.0019 | AC78: 166543.997
AA79: 77 | AB79: -187464.0017 | AC79: 142323.9961
AA80: 78 | AB80: -184441.9994 | AC80: 139572.0007
AA81: 79 | AB81: -167112.0027 | AC81: 135830.9952
AA82: 80 | AB82: -153906.0011 | AC82: 126124.0013
AA83: 81 | AB83: -150097.001 | AC83: 109224.0017
AA84: 82 | AB84: -139153.0005 | AC84: 107753.002
AA85: 83 | AB85: -119455.0009 | AC85: 100512.9972
AA86: 84 | AB86: -105780.0008 | AC86: 101352.9973

Sheet 5YrPopPyr (hidden)
A1: The sheet shows population pyramids from 2012 as images (dead graphs) created from the IDB website. | AR1: Five Year Age Groups and Sex for Region Summary
A2: Scroll down and right to quickly get a sense of how population is distributed across 5-yr age groups in all of the countries in the database. | AR2: Region | AS2: Country | AT2: Year | AU2: Age | AV2: Both Sexes Population | AW2: Male Population | AX2: Female Population | AY2: Percent Both Sexes | AZ2: Percent Male | BA2: Percent Female | BB2: Sex Ratio
A3: Scroll far right for data. | AR3: World | AS3: Afghanistan | AT3: 2012 | AU3: Total | AV3: 30419928 | AW3: 15437091 | AX3: 14982837 | AY3: 100 | AZ3: 100 | BA3: 100 | BB3: 103
AR4: World | AS4: Afghanistan | AT4: 2012 | AU4: 0-4 | AV4: 4869973 | AW4: 2473425 | AX4: 2396548 | AY4: 16 | AZ4: 16 | BA4: 16 | BB4: 103.2
AR5: World | AS5: Afghanistan | AT5: 2012 | AU5: 5-9 | AV5: 4106568 | AW5: 2085382 | AX5: 2021186 | AY5: 13.5 | AZ5: 13.5 | BA5: 13.5 | BB5: 103.2
AR6: World | AS6: Afghanistan | AT6: 2012 | AU6: 10-14 | AV6: 4155176 | AW6: 2112876 | AX6: 2042300 | AY6: 13.7 | AZ6: 13.7 | BA6: 13.6 | BB6: 103.5
AR7: World | AS7: Afghanistan | AT7: 2012 | AU7: 15-19 | AV7: 3642613 | AW7: 1856244 | AX7: 1786369 | AY7: 12 | AZ7: 12 | BA7: 11.9 | BB7: 103.9
AR8: World | AS8: Afghanistan | AT8: 2012 | AU8: 20-24 | AV8: 2941460 | AW8: 1501435 | AX8: 1440025 | AY8: 9.7 | AZ8: 9.7 | BA8: 9.6 | BB8: 104.3
AR9: World | AS9: Afghanistan | AT9: 2012 | AU9: 25-29 | AV9: 2198254 | AW9: 1122034 | AX9: 1076220 | AY9: 7.2 | AZ9: 7.3 | BA9: 7.2 | BB9: 104.3
AR10: World | AS10: Afghanistan | AT10: 2012 | AU10: 30-34 | AV10: 1786887 | AW10: 919735 | AX10: 867152 | AY10: 5.9 | AZ10: 6 | BA10: 5.8 | BB10: 106.1
AR11: World | AS11: Afghanistan | AT11: 2012 | AU11: 35-39 | AV11: 1603071 | AW11: 819261 | AX11: 783810 | AY11: 5.3 | AZ11: 5.3 | BA11: 5.2 | BB11: 104.5
AR12: World | AS12: Afghanistan | AT12: 2012 | AU12: 40-44 | AV12: 1295282 | AW12: 659233 | AX12: 636049 | AY12: 4.3 | AZ12: 4.3 | BA12: 4.2 | BB12: 103.6
AR13: World | AS13: Afghanistan | AT13: 2012 | AU13: 45-49 | AV13: 1060896 | AW13: 539417 | AX13: 521479 | AY13: 3.5 | AZ13: 3.5 | BA13: 3.5 | BB13: 103.4
AR14: World | AS14: Afghanistan | AT14: 2012 | AU14: 50-54 | AV14: 849454 | AW14: 427867 | AX14: 421587 | AY14: 2.8 | AZ14: 2.8 | BA14: 2.8 | BB14: 101.5
AR15: World | AS15: Afghanistan | AT15: 2012 | AU15: 55-59 | AV15: 662381 | AW15: 328663 | AX15: 333718 | AY15: 2.2 | AZ15: 2.1 | BA15: 2.2 | BB15: 98.5
AR16: World | AS16: Afghanistan | AT16: 2012 | AU16: 60-64 | AV16: 496034 | AW16: 240827 | AX16: 255207 | AY16: 1.6 | AZ16: 1.6 | BA16: 1.7 | BB16: 94.4
AR17: World | AS17: Afghanistan | AT17: 2012 | AU17: 65-69 | AV17: 347936 | AW17: 165798 | AX17: 182138 | AY17: 1.1 | AZ17: 1.1 | BA17: 1.2 | BB17: 91
AR18: World | AS18: Afghanistan | AT18: 2012 | AU18: 70-74 | AV18: 220869 | AW18: 103078 | AX18: 117791 | AY18: 0.7 | AZ18: 0.7 | BA18: 0.8 | BB18: 87.5
AR19: World | AS19: Afghanistan | AT19: 2012 | AU19: 75-79 | AV19: 118737 | AW19: 54314 | AX19: 64423 | AY19: 0.4 | AZ19: 0.4 | BA19: 0.4 | BB19: 84.3
AR20: World | AS20: Afghanistan | AT20: 2012 | AU20: 80-84 | AV20: 48584 | AW20: 20980 | AX20: 27604 | AY20: 0.2 | AZ20: 0.1 | BA20: 0.2 | BB20: 76
AR21: World | AS21: Afghanistan | AT21: 2012 | AU21: 85-89 | AV21: 13259 | AW21: 5511 | AX21: 7748 | AY21: 0 | AZ21: 0 | BA21: 0.1 | BB21: 71.1
AR22: World | AS22: Afghanistan | AT22: 2012 | AU22: 90-94 | AV22: 2307 | AW22: 940 | AX22: 1367 | AY22: 0 | AZ22: 0 | BA22: 0 | BB22: 68.8
AR23: World | AS23: Afghanistan | AT23: 2012 | AU23: 95-99 | AV23: 179 | AW23: 68 | AX23: 111 | AY23: 0 | AZ23: 0 | BA23: 0 | BB23: 61.3
AR24: World | AS24: Afghanistan | AT24: 2012 | AU24: 100+ | AV24: 8 | AW24: 3 | AX24: 5 | AY24: 0 | AZ24: 0 | BA24: 0 | BB24: 60
AR25: World | AS25: Albania | AT25: 2012 | AU25: Total | AV25: 3002859 | AW25: 1486040 | AX25: 1516819 | AY25: 100 | AZ25: 100 | BA25: 100 | BB25: 98
AR26: World | AS26: Albania | AT26: 2012 | AU26: 0-4 | AV26: 171915 | AW26: 90938 | AX26: 80977 | AY26: 5.7 | AZ26: 6.1 | BA26: 5.3 | BB26: 112.3
AR27: World | AS27: Albania | AT27: 2012 | AU27: 5-9 | AV27: 194251 | AW27: 103223 | AX27: 91028 | AY27: 6.5 | AZ27: 6.9 | BA27: 6 | BB27: 113.4
AR28: World | AS28: Albania | AT28: 2012 | AU28: 10-14 | AV28: 252008 | AW28: 131761 | AX28: 120247 | AY28: 8.4 | AZ28: 8.9 | BA28: 7.9 | BB28: 109.6
AR29: World | AS29: Albania | AT29: 2012 | AU29: 15-19 | AV29: 295752 | AW29: 152846 | AX29: 142906 | AY29: 9.8 | AZ29: 10.3 | BA29: 9.4 | BB29: 107
AR30: World | AS30: Albania | AT30: 2012 | AU30: 20-24 | AV30: 299769 | AW30: 150294 | AX30: 149475 | AY30: 10 | AZ30: 10.1 | BA30: 9.9 | BB30: 100.5
AR31: World | AS31: Albania | AT31: 2012 | AU31: 25-29 | AV31: 254649 | AW31: 124534 | AX31: 130115 | AY31: 8.5 | AZ31: 8.4 | BA31: 8.6 | BB31: 95.7
AR32: World | AS32: Albania | AT32: 2012 | AU32: 30-34 | AV32: 194158 | AW32: 89277 | AX32: 104881 | AY32: 6.5 | AZ32: 6 | BA32: 6.9 | BB32: 85.1
AR33: World | AS33: Albania | AT33: 2012 | AU33: 35-39 | AV33: 175566 | AW33: 79702 | AX33: 95864 | AY33: 5.8 | AZ33: 5.4 | BA33: 6.3 | BB33: 83.1
AR34: World | AS34: Albania | AT34: 2012 | AU34: 40-44 | AV34: 174552 | AW34: 81843 | AX34: 92709 | AY34: 5.8 | AZ34: 5.5 | BA34: 6.1 | BB34: 88.3
AR35: World | AS35: Albania | AT35: 2012 | AU35: 45-49 | AV35: 185784 | AW35: 89218 | AX35: 96566 | AY35: 6.2 | AZ35: 6 | BA35: 6.4 | BB35: 92.4
AR36: World | AS36: Albania | AT36: 2012 | AU36: 50-54 | AV36: 197429 | AW36: 97452 | AX36: 99977 | AY36: 6.6 | AZ36: 6.6 | BA36: 6.6 | BB36: 97.5
AR37: World | AS37: Albania | AT37: 2012 | AU37: 55-59 | AV37: 164888 | AW37: 82257 | AX37: 82631 | AY37: 5.5 | AZ37: 5.5 | BA37: 5.4 | BB37: 99.5
AR38: World | AS38: Albania | AT38: 2012 | AU38: 60-64 | AV38: 122494 | AW38: 61794 | AX38: 60700 | AY38: 4.1 | AZ38: 4.2 | BA38: 4 | BB38: 101.8
AR39: World | AS39: Albania | AT39: 2012 | AU39: 65-69 | AV39: 103231 | AW39: 51906 | AX39: 51325 | AY39: 3.4 | AZ39: 3.5 | BA39: 3.4 | BB39: 101.1
AR40: World | AS40: Albania | AT40: 2012 | AU40: 70-74 | AV40: 96190 | AW40: 47390 | AX40: 48800 | AY40: 3.2 | AZ40: 3.2 | BA40: 3.2 | BB40: 97.1
AR41: World | AS41: Albania | AT41: 2012 | AU41: 75-79 | AV41: 63204 | AW41: 30384 | AX41: 32820 | AY41: 2.1 | AZ41: 2 | BA41: 2.2 | BB41: 92.6
AR42: World | AS42: Albania | AT42: 2012 | AU42: 80-84 | AV42: 35571 | AW42: 14724 | AX42: 20847 | AY42: 1.2 | AZ42: 1 | BA42: 1.4 | BB42: 70.6
AR43: World | AS43: Albania | AT43: 2012 | AU43: 85-89 | AV43: 15823 | AW43: 5135 | AX43: 10688 | AY43: 0.5 | AZ43: 0.3 | BA43: 0.7 | BB43: 48
AR44: World | AS44: Albania | AT44: 2012 | AU44: 90-94 | AV44: 4827 | AW44: 1222 | AX44: 3605 | AY44: 0.2 | AZ44: 0.1 | BA44: 0.2 | BB44: 33.9
AR45: World | AS45: Albania | AT45: 2012 | AU45: 95-99 | AV45: 707 | AW45: 129 | AX45: 578 | AY45: 0 | AZ45: 0 | BA45: 0 | BB45: 22.3
AR46: World | AS46: Albania | AT46: 2012 | AU46: 100+ | AV46: 91 | AW46: 11 | AX46: 80 | AY46: 0 | AZ46: 0 | BA46: 0 | BB46: 13.8
AR47: World | AS47: Algeria | AT47: 2012 | AU47: Total | AV47: 37367226 | AW47: 18915196 | AX47: 18452030 | AY47: 100 | AZ47: 100 | BA47: 100 | BB47: 102.5
AR48: World | AS48: Algeria | AT48: 2012 | AU48: 0-4 | AV48: 4188690 | AW48: 2144492 | AX48: 2044198 | AY48: 11.2 | AZ48: 11.3 | BA48: 11.1 | BB48: 104.9
AR49: World | AS49: Algeria | AT49: 2012 | AU49: 5-9 | AV49: 3321704 | AW49: 1700608 | AX49: 1621096 | AY49: 8.9 | AZ49: 9 | BA49: 8.8 | BB49: 104.9
AR50: World | AS50: Algeria | AT50: 2012 | AU50: 10-14 | AV50: 2880079 | AW50: 1473000 | AX50: 1407079 | AY50: 7.7 | AZ50: 7.8 | BA50: 7.6 | BB50: 104.7
AR51: World | AS51: Algeria | AT51: 2012 | AU51: 15-19 | AV51: 3424064 | AW51: 1751644 | AX51: 1672420 | AY51: 9.2 | AZ51: 9.3 | BA51: 9.1 | BB51: 104.7
AR52: World | AS52: Algeria | AT52: 2012 | AU52: 20-24 | AV52: 3641838 | AW52: 1865998 | AX52: 1775840 | AY52: 9.7 | AZ52: 9.9 | BA52: 9.6 | BB52: 105.1
AR53: World | AS53: Algeria | AT53: 2012 | AU53: 25-29 | AV53: 3654122 | AW53: 1845500 | AX53: 1808622 | AY53: 9.8 | AZ53: 9.8 | BA53: 9.8 | BB53: 102
AR54: World | AS54: Algeria | AT54: 2012 | AU54: 30-34 | AV54: 3397355 | AW54: 1710417 | AX54: 1686938 | AY54: 9.1 | AZ54: 9 | BA54: 9.1 | BB54: 101.4
AR55: World | AS55: Algeria | AT55: 2012 | AU55: 35-39 | AV55: 2758083 | AW55: 1402729 | AX55: 1355354 | AY55: 7.4 | AZ55: 7.4 | BA55: 7.3 | BB55: 103.5
AR56: World | AS56: Algeria | AT56: 2012 | AU56: 40-44 | AV56: 2380245 | AW56: 1203838 | AX56: 1176407 | AY56: 6.4 | AZ56: 6.4 | BA56: 6.4 | BB56: 102.3
AR57: World | AS57: Algeria | AT57: 2012 | AU57: 45-49 | AV57: 2014430 | AW57: 1015481 | AX57: 998949 | AY57: 5.4 | AZ57: 5.4 | BA57: 5.4 | BB57: 101.7
AR58: World | AS58: Algeria | AT58: 2012 | AU58: 50-54 | AV58: 1650262 | AW58: 833221 | AX58: 817041 | AY58: 4.4 | AZ58: 4.4 | BA58: 4.4 | BB58: 102
AR59: World | AS59: Algeria | AT59: 2012 | AU59: 55-59 | AV59: 1246099 | AW59: 638880 | AX59: 607219 | AY59: 3.3 | AZ59: 3.4 | BA59: 3.3 | BB59: 105.2
AR60: World | AS60: Algeria | AT60: 2012 | AU60: 60-64 | AV60: 940344 | AW60: 475352 | AX60: 464992 | AY60: 2.5 | AZ60: 2.5 | BA60: 2.5 | BB60: 102.2
AR61: World | AS61: Algeria | AT61: 2012 | AU61: 65-69 | AV61: 632799 | AW61: 300975 | AX61: 331824 | AY61: 1.7 | AZ61: 1.6 | BA61: 1.8 | BB61: 90.7
AR62: World | AS62: Algeria | AT62: 2012 | AU62: 70-74 | AV62: 472402 | AW62: 216588 | AX62: 255814 | AY62: 1.3 | AZ62: 1.1 | BA62: 1.4 | BB62: 84.7
AR63: World | AS63: Algeria | AT63: 2012 | AU63: 75-79 | AV63: 382774 | AW63: 172690 | AX63: 210084 | AY63: 1 | AZ63: 0.9 | BA63: 1.1 | BB63: 82.2
AR64: World | AS64: Algeria | AT64: 2012 | AU64: 80-84 | AV64: 235429 | AW64: 103202 | AX64: 132227 | AY64: 0.6 | AZ64: 0.5 | BA64: 0.7 | BB64: 78
AR65: World | AS65: Algeria | AT65: 2012 | AU65: 85-89 | AV65: 102449 | AW65: 43072 | AX65: 59377 | AY65: 0.3 | AZ65: 0.2 | BA65: 0.3 | BB65: 72.5
AR66: World | AS66: Algeria | AT66: 2012 | AU66: 90-94 | AV66: 34989 | AW66: 14063 | AX66: 20926 | AY66: 0.1 | AZ66: 0.1 | BA66: 0.1 | BB66: 67.2
AR67: World | AS67: Algeria | AT67: 2012 | AU67: 95-99 | AV67: 7965 | AW67: 3036 | AX67: 4929 | AY67: 0 | AZ67: 0 | BA67: 0 | BB67: 61.6
AR68: World | AS68: Algeria | AT68: 2012 | AU68: 100+ | AV68: 1104 | AW68: 410 | AX68: 694 | AY68: 0 | AZ68: 0 | BA68: 0 | BB68: 59.1
AR69: World | AS69: American Samoa | AT69: 2012 | AU69: Total | AV69: 54947 | AW69: 27561 | AX69: 27386 | AY69: 100 | AZ69: 100 | BA69: 100 | BB69: 100.6
AR70: World | AS70: American Samoa | AT70: 2012 | AU70: 0-4 | AV70: 5307 | AW70: 2605 | AX70: 2702 | AY70: 9.7 | AZ70: 9.5 | BA70: 9.9 | BB70: 96.4
AR71: World | AS71: American Samoa | AT71: 2012 | AU71: 5-9 | AV71: 4277 | AW71: 2072 | AX71: 2205 | AY71: 7.8 | AZ71: 7.5 | BA71: 8.1 | BB71: 94
AR72: World | AS72: American Samoa | AT72: 2012 | AU72: 10-14 | AV72: 4573 | AW72: 2327 | AX72: 2246 | AY72: 8.3 | AZ72: 8.4 | BA72: 8.2 | BB72: 103.6
AR73: World | AS73: American Samoa | AT73: 2012 | AU73: 15-19 | AV73: 6450 | AW73: 3200 | AX73: 3250 | AY73: 11.7 | AZ73: 11.6 | BA73: 11.9 | BB73: 98.5
AR74: World | AS74: American Samoa | AT74: 2012 | AU74: 20-24 | AV74: 5173 | AW74: 2554 | AX74: 2619 | AY74: 9.4 | AZ74: 9.3 | BA74: 9.6 | BB74: 97.5
AR75: World | AS75: American Samoa | AT75: 2012 | AU75: 25-29 | AV75: 3738 | AW75: 1901 | AX75: 1837 | AY75: 6.8 | AZ75: 6.9 | BA75: 6.7 | BB75: 103.5
AR76: World | AS76: American Samoa | AT76: 2012 | AU76: 30-34 | AV76: 3772 | AW76: 2119 | AX76: 1653 | AY76: 6.9 | AZ76: 7.7 | BA76: 6 | BB76: 128.2
AR77: World | AS77: American Samoa | AT77: 2012 | AU77: 35-39 | AV77: 3801 | AW77: 2092 | AX77: 1709 | AY77: 6.9 | AZ77: 7.6 | BA77: 6.2 | BB77: 122.4
AR78: World | AS78: American Samoa | AT78: 2012 | AU78: 40-44 | AV78: 4052 | AW78: 2059 | AX78: 1993 | AY78: 7.4 | AZ78: 7.5 | BA78: 7.3 | BB78: 103.3
AR79: World | AS79: American Samoa | AT79: 2012 | AU79: 45-49 | AV79: 3927 | AW79: 1830 | AX79: 2097 | AY79: 7.1 | AZ79: 6.6 | BA79: 7.7 | BB79: 87.3
AR80: World | AS80: American Samoa | AT80: 2012 | AU80: 50-54 | AV80: 3395 | AW80: 1669 | AX80: 1726 | AY80: 6.2 | AZ80: 6.1 | BA80: 6.3 | BB80: 96.7
AR81: World | AS81: American Samoa | AT81: 2012 | AU81: 55-59 | AV81: 2384 | AW81: 1171 | AX81: 1213 | AY81: 4.3 | AZ81: 4.2 | BA81: 4.4 | BB81: 96.5
AR82: World | AS82: American Samoa | AT82: 2012 | AU82: 60-64 | AV82: 1627 | AW82: 818 | AX82: 809 | AY82: 3 | AZ82: 3 | BA82: 3 | BB82: 101.1
AR83: World | AS83: American Samoa | AT83: 2012 | AU83: 65-69 | AV83: 1107 | AW83: 554 | AX83: 553 | AY83: 2 | AZ83: 2 | BA83: 2 | BB83: 100.2
AR84: World | AS84: American Samoa | AT84: 2012 | AU84: 70-74 | AV84: 669 | AW84: 312 | AX84: 357 | AY84: 1.2 | AZ84: 1.1 | BA84: 1.3 | BB84: 87.4
AR85: World | AS85: American Samoa | AT85: 2012 | AU85: 75-79 | AV85: 348 | AW85: 159 | AX85: 189 | AY85: 0.6 | AZ85: 0.6 | BA85: 0.7 | BB85: 84.1
AR86: World | AS86: American Samoa | AT86: 2012 | AU86: 80-84 | AV86: 204 | AW86: 80 | AX86: 124 | AY86: 0.4 | AZ86: 0.3 | BA86: 0.5 | BB86: 64.5
AR87: World | AS87: American Samoa | AT87: 2012 | AU87: 85-89 | AV87: 108 | AW87: 33 | AX87: 75 | AY87: 0.2 | AZ87: 0.1 | BA87: 0.3 | BB87: 44
AR88: World | AS88: American Samoa | AT88: 2012 | AU88: 90-94 | AV88: 30 | AW88: 5 | AX88: 25 | AY88: 0.1 | AZ88: 0 | BA88: 0.1 | BB88: 20
AR89: World | AS89: American Samoa | AT89: 2012 | AU89: 95-99 | AV89: 5 | AW89: 1 | AX89: 4 | AY89: 0 | AZ89: 0 | BA89: 0 | BB89: 25
AR90: World | AS90: American Samoa | AT90: 2012 | AU90: 100+ | AV90: 0 | AW90: 0 | AX90: 0 | AY90: 0 | AZ90: 0 | BA90: 0
AR91: World | AS91: Andorra | AT91: 2012 | AU91: Total | AV91: 85082 | AW91: 43949 | AX91: 41133 | AY91: 100 | AZ91: 100 | BA91: 100 | BB91: 106.8
AR92: World | AS92: Andorra | AT92: 2012 | AU92: 0-4 | AV92: 4250 | AW92: 2192 | AX92: 2058 | AY92: 5 | AZ92: 5 | BA92: 5 | BB92: 106.5
AR93: World | AS93: Andorra | AT93: 2012 | AU93: 5-9 | AV93: 4551 | AW93: 2321 | AX93: 2230 | AY93: 5.3 | AZ93: 5.3 | BA93: 5.4 | BB93: 104.1
AR94: World | AS94: Andorra | AT94: 2012 | AU94: 10-14 | AV94: 4477 | AW94: 2283 | AX94: 2194 | AY94: 5.3 | AZ94: 5.2 | BA94: 5.3 | BB94: 104.1
AR95: World | AS95: Andorra | AT95: 2012 | AU95: 15-19 | AV95: 3800 | AW95: 2014 | AX95: 1786 | AY95: 4.5 | AZ95: 4.6 | BA95: 4.3 | BB95: 112.8
AR96: World | AS96: Andorra | AT96: 2012 | AU96: 20-24 | AV96: 3874 | AW96: 1987 | AX96: 1887 | AY96: 4.6 | AZ96: 4.5 | BA96: 4.6 | BB96: 105.3
AR97: World | AS97: Andorra | AT97: 2012 | AU97: 25-29 | AV97: 4617 | AW97: 2358 | AX97: 2259 | AY97: 5.4 | AZ97: 5.4 | BA97: 5.5 | BB97: 104.4
AR98: World | AS98: Andorra | AT98: 2012 | AU98: 30-34 | AV98: 6776 | AW98: 3425 | AX98: 3351 | AY98: 8 | AZ98: 7.8 | BA98: 8.1 | BB98: 102.2
AR99: World | AS99: Andorra | AT99: 2012 | AU99: 35-39 | AV99: 8263 | AW99: 4184 | AX99: 4079 | AY99: 9.7 | AZ99: 9.5 | BA99: 9.9 | BB99: 102.6
AR100: World | AS100: Andorra | AT100: 2012 | AU100: 40-44 | AV100: 8269 | AW100: 4250 | AX100: 4019 | AY100: 9.7 | AZ100: 9.7 | BA100: 9.8 | BB100: 105.7
AR101: World | AS101: Andorra | AT101: 2012 | AU101: 45-49 | AV101: 7997 | AW101: 4177 | AX101: 3820 | AY101: 9.4 | AZ101: 9.5 | BA101: 9.3 | BB101: 109.3
AR102: World | AS102: Andorra | AT102: 2012 | AU102: 50-54 | AV102: 6877 | AW102: 3679 | AX102: 3198 | AY102: 8.1 | AZ102: 8.4 | BA102: 7.8 | BB102: 115
AR103: World | AS103: Andorra | AT103: 2012 | AU103: 55-59 | AV103: 5506 | AW103: 2958 | AX103: 2548 | AY103: 6.5 | AZ103: 6.7 | BA103: 6.2 | BB103: 116.1
AR104: World | AS104: Andorra | AT104: 2012 | AU104: 60-64 | AV104: 4473 | AW104: 2435 | AX104: 2038 | AY104: 5.3 | AZ104: 5.5 | BA104: 5 | BB104: 119.5
AR105: World | AS105: Andorra | AT105: 2012 | AU105: 65-69 | AV105: 3561 | AW105: 1913 | AX105: 1648 | AY105: 4.2 | AZ105: 4.4 | BA105: 4 | BB105: 116.1
AR106: World | AS106: Andorra | AT106: 2012 | AU106: 70-74 | AV106: 2384 | AW106: 1202 | AX106: 1182 | AY106: 2.8 | AZ106: 2.7 | BA106: 2.9 | BB106: 101.7
AR107: World | AS107: Andorra | AT107: 2012 | AU107: 75-79 | AV107: 2006 | AW107: 1026 | AX107: 980 | AY107: 2.4 | AZ107: 2.3 | BA107: 2.4 | BB107: 104.7
AR108: World | AS108: Andorra | AT108: 2012 | AU108: 80-84 | AV108: 1654 | AW108: 786 | AX108: 868 | AY108: 1.9 | AZ108: 1.8 | BA108: 2.1 | BB108: 90.6
AR109: World | AS109: Andorra | AT109: 2012 | AU109: 85-89 | AV109: 1271 | AW109: 543 | AX109: 728 | AY109: 1.5 | AZ109: 1.2 | BA109: 1.8 | BB109: 74.6
AR110: World | AS110: Andorra | AT110: 2012 | AU110: 90-94 | AV110: 396 | AW110: 175 | AX110: 221 | AY110: 0.5 | AZ110: 0.4 | BA110: 0.5 | BB110: 79.2
AR111: World | AS111: Andorra | AT111: 2012 | AU111: 95-99 | AV111: 72 | AW111: 36 | AX111: 36 | AY111: 0.1 | AZ111: 0.1 | BA111: 0.1 | BB111: 100
AR112: World | AS112: Andorra | AT112: 2012 | AU112: 100+ | AV112: 8 | AW112: 5 | AX112: 3 | AY112: 0 | AZ112: 0 | BA112: 0 | BB112: 166.7
AR113: World | AS113: Angola | AT113: 2012 | AU113: Total | AV113: 18056072 | AW113: 9127939 | AX113: 8928133 | AY113: 100 | AZ113: 100 | BA113: 100 | BB113: 102.2
AR114: World | AS114: Angola | AT114: 2012 | AU114: 0-4 | AV114: 3008360 | AW114: 1534613 | AX114: 1473747 | AY114: 16.7 | AZ114: 16.8 | BA114: 16.5 | BB114: 104.1
AR115: World | AS115: Angola | AT115: 2012 | AU115: 5-9 | AV115: 2566956 | AW115: 1308417 | AX115: 1258539 | AY115: 14.2 | AZ115: 14.3 | BA115: 14.1 | BB115: 104
AR116: World | AS116: Angola | AT116: 2012 | AU116: 10-14 | AV116: 2349914 | AW116: 1198025 | AX116: 1151889 | AY116: 13 | AZ116: 13.1 | BA116: 12.9 | BB116: 104
AR117: World | AS117: Angola | AT117: 2012 | AU117: 15-19 | AV117: 2019121 | AW117: 1028010 | AX117: 991111 | AY117: 11.2 | AZ117: 11.3 | BA117: 11.1 | BB117: 103.7
AR118: World | AS118: Angola | AT118: 2012 | AU118: 20-24 | AV118: 1616541 | AW118: 821771 | AX118: 794770 | AY118: 9 | AZ118: 9 | BA118: 8.9 | BB118: 103.4
AR119: World | AS119: Angola | AT119: 2012 | AU119: 25-29 | AV119: 1355369 | AW119: 688618 | AX119: 666751 | AY119: 7.5 | AZ119: 7.5 | BA119: 7.5 | BB119: 103.3
AR120: World | AS120: Angola | AT120: 2012 | AU120: 30-34 | AV120: 1139195 | AW120: 580315 | AX120: 558880 | AY120: 6.3 | AZ120: 6.4 | BA120: 6.3 | BB120: 103.8
AR121: World | AS121: Angola | AT121: 2012 | AU121: 35-39 | AV121: 932048 | AW121: 473963 | AX121: 458085 | AY121: 5.2 | AZ121: 5.2 | BA121: 5.1 | BB121: 103.5
AR122: World | AS122: Angola | AT122: 2012 | AU122: 40-44 | AV122: 739120 | AW122: 369768 | AX122: 369352 | AY122: 4.1 | AZ122: 4.1 | BA122: 4.1 | BB122: 100.1
AR123: World | AS123: Angola | AT123: 2012 | AU123: 45-49 | AV123: 600350 | AW123: 295545 | AX123: 304805 | AY123: 3.3 | AZ123: 3.2 | BA123: 3.4 | BB123: 97
AR124: World | AS124: Angola | AT124: 2012 | AU124: 50-54 | AV124: 493356 | AW124: 240638 | AX124: 252718 | AY124: 2.7 | AZ124: 2.6 | BA124: 2.8 | BB124: 95.2
AR125: World | AS125: Angola | AT125: 2012 | AU125: 55-59 | AV125: 402498 | AW125: 196868 | AX125: 205630 | AY125: 2.2 | AZ125: 2.2 | BA125: 2.3 | BB125: 95.7
AR126: World | AS126: Angola | AT126: 2012 | AU126: 60-64 | AV126: 311345 | AW126: 149967 | AX126: 161378 | AY126: 1.7 | AZ126: 1.6 | BA126: 1.8 | BB126: 92.9
AR127: World | AS127: Angola | AT127: 2012 | AU127: 65-69 | AV127: 228522 | AW127: 108076 | AX127: 120446 | AY127: 1.3 | AZ127: 1.2 | BA127: 1.3 | BB127: 89.7
AR128: World | AS128: Angola | AT128: 2012 | AU128: 70-74 | AV128: 152431 | AW128: 70710 | AX128: 81721 | AY128: 0.8 | AZ128: 0.8 | BA128: 0.9 | BB128: 86.5
AR129: World | AS129: Angola | AT129: 2012 | AU129: 75-79 | AV129: 87382 | AW129: 39591 | AX129: 47791 | AY129: 0.5 | AZ129: 0.4 | BA129: 0.5 | BB129: 82.8
AR130: World | AS130: Angola | AT130: 2012 | AU130: 80-84 | AV130: 39262 | AW130: 17147 | AX130: 22115 | AY130: 0.2 | AZ130: 0.2 | BA130: 0.2 | BB130: 77.5
AR131: World | AS131: Angola | AT131: 2012 | AU131: 85-89 | AV131: 11931 | AW131: 4969 | AX131: 6962 | AY131: 0.1 | AZ131: 0.1 | BA131: 0.1 | BB131: 71.4
AR132: World | AS132: Angola | AT132: 2012 | AU132: 90-94 | AV132: 2158 | AW132: 850 | AX132: 1308 | AY132: 0 | AZ132: 0 | BA132: 0 | BB132: 65
AR133: World | AS133: Angola | AT133: 2012 | AU133: 95-99 | AV133: 204 | AW133: 75 | AX133: 129 | AY133: 0 | AZ133: 0 | BA133: 0 | BB133: 58.1
AR134: World | AS134: Angola | AT134: 2012 | AU134: 100+ | AV134: 9 | AW134: 3 | AX134: 6 | AY134: 0 | AZ134: 0 | BA134: 0 | BB134: 50
AR135: World | AS135: Anguilla | AT135: 2012 | AU135: Total | AV135: 15423 | AW135: 7432 | AX135: 7991 | AY135: 100 | AZ135: 100 | BA135: 100 | BB135: 93
AR136: World | AS136: Anguilla | AT136: 2012 | AU136: 0-4 | AV136: 1192 | AW136: 610 | AX136: 582 | AY136: 7.7 | AZ136: 8.2 | BA136: 7.3 | BB136: 104.8
AR137: World | AS137: Anguilla | AT137: 2012 | AU137: 5-9 | AV137: 1214 | AW137: 622 | AX137: 592 | AY137: 7.9 | AZ137: 8.4 | BA137: 7.4 | BB137: 105.1
AR138: World | AS138: Anguilla | AT138: 2012 | AU138: 10-14 | AV138: 1262 | AW138: 650 | AX138: 612 | AY138: 8.2 | AZ138: 8.7 | BA138: 7.7 | BB138: 106.2
AR139: World | AS139: Anguilla | AT139: 2012 | AU139: 15-19 | AV139: 1102 | AW139: 549 | AX139: 553 | AY139: 7.1 | AZ139: 7.4 | BA139: 6.9 | BB139: 99.3
AR140: World | AS140: Anguilla | AT140: 2012 | AU140: 20-24 | AV140: 1140 | AW140: 556 | AX140: 584 | AY140: 7.4 | AZ140: 7.5 | BA140: 7.3 | BB140: 95.2
AR141: World | AS141: Anguilla | AT141: 2012 | AU141: 25-29 | AV141: 1115 | AW141: 537 | AX141: 578 | AY141: 7.2 | AZ141: 7.2 | BA141: 7.2 | BB141: 92.9
AR142: World | AS142: Anguilla | AT142: 2012 | AU142: 30-34 | AV142: 957 | AW142: 466 | AX142: 491 | AY142: 6.2 | AZ142: 6.3 | BA142: 6.1 | BB142: 94.9
AR143: World | AS143: Anguilla | AT143: 2012 | AU143: 35-39 | AV143: 1131 | AW143: 527 | AX143: 604 | AY143: 7.3 | AZ143: 7.1 | BA143: 7.6 | BB143: 87.3
AR144: World | AS144: Anguilla | AT144: 2012 | AU144: 40-44 | AV144: 1340 | AW144: 583 | AX144: 757 | AY144: 8.7 | AZ144: 7.8 | BA144: 9.5 | BB144: 77
AR145: World | AS145: Anguilla | AT145: 2012 | AU145: 45-49 | AV145: 1329 | AW145: 570 | AX145: 759 | AY145: 8.6 | AZ145: 7.7 | BA145: 9.5 | BB145: 75.1
AR146: World | AS146: Anguilla | AT146: 2012 | AU146: 50-54 | AV146: 1111 | AW146: 496 | AX146: 615 | AY146: 7.2 | AZ146: 6.7 | BA146: 7.7 | BB146: 80.7
AR147: World | AS147: Anguilla | AT147: 2012 | AU147: 55-59 | AV147: 770 | AW147: 385 | AX147: 385 | AY147: 5 | AZ147: 5.2 | BA147: 4.8 | BB147: 100
AR148: World | AS148: Anguilla | AT148: 2012 | AU148: 60-64 | AV148: 525 | AW148: 276 | AX148: 249 | AY148: 3.4 | AZ148: 3.7 | BA148: 3.1 | BB148: 110.8
AR149: World | AS149: Anguilla | AT149: 2012 | AU149: 65-69 | AV149: 415 | AW149: 216 | AX149: 199 | AY149: 2.7 | AZ149: 2.9 | BA149: 2.5 | BB149: 108.5
AR150: World | AS150: Anguilla | AT150: 2012 | AU150: 70-74 | AV150: 322 | AW150: 159 | AX150: 163 | AY150: 2.1 | AZ150: 2.1 | BA150: 2 | BB150: 97.5
AR151: World | AS151: Anguilla | AT151: 2012 | AU151: 75-79 | AV151: 224 | AW151: 110 | AX151: 114 | AY151: 1.5 | AZ151: 1.5 | BA151: 1.4 | BB151: 96.5
AR152: World | AS152: Anguilla | AT152: 2012 | AU152: 80-84 | AV152: 135 | AW152: 65 | AX152: 70 | AY152: 0.9 | AZ152: 0.9 | BA152: 0.9 | BB152: 92.9
AR153: World | AS153: Anguilla | AT153: 2012 | AU153: 85-89 | AV153: 79 | AW153: 35 | AX153: 44 | AY153: 0.5 | AZ153: 0.5 | BA153: 0.6 | BB153: 79.5
AR154: World | AS154: Anguilla | AT154: 2012 | AU154: 90-94 | AV154: 43 | AW154: 15 | AX154: 28 | AY154: 0.3 | AZ154: 0.2 | BA154: 0.4 | BB154: 53.6
AR155: World | AS155: Anguilla | AT155: 2012 | AU155: 95-99 | AV155: 14 | AW155: 4 | AX155: 10 | AY155: 0.1 | AZ155: 0.1 | BA155: 0.1 | BB155: 40
AR156: World | AS156: Anguilla | AT156: 2012 | AU156: 100+ | AV156: 3 | AW156: 1 | AX156: 2 | AY156: 0 | AZ156: 0 | BA156: 0 | BB156: 50
AR157: World | AS157: Antigua and Barbuda | AT157: 2012 | AU157: Total | AV157: 89018 | AW157: 42228 | AX157: 46790 | AY157: 100 | AZ157: 100 | BA157: 100 | BB157: 90.3
AR158: World | AS158: Antigua and Barbuda | AT158: 2012 | AU158: 0-4 | AV158: 7124 | AW158: 3638 | AX158: 3486 | AY158: 8 | AZ158: 8.6 | BA158: 7.5 | BB158: 104.4
AR159: World | AS159: Antigua and Barbuda | AT159: 2012 | AU159: 5-9 | AV159: 7222 | AW159: 3671 | AX159: 3551 | AY159: 8.1 | AZ159: 8.7 | BA159: 7.6 | BB159: 103.4
AR160: World | AS160: Antigua and Barbuda | AT160: 2012 | AU160: 10-14 | AV160: 8126 | AW160: 4104 | AX160: 4022 | AY160: 9.1 | AZ160: 9.7 | BA160: 8.6 | BB160: 102
AR161: World | AS161: Antigua and Barbuda | AT161: 2012 | AU161: 15-19 | AV161: 7877 | AW161: 3939 | AX161: 3938 | AY161: 8.8 | AZ161: 9.3 | BA161: 8.4 | BB161: 100
AR162: World | AS162: Antigua and Barbuda | AT162: 2012 | AU162: 20-24 | AV162: 6909 | AW162: 3357 | AX162: 3552 | AY162: 7.8 | AZ162: 7.9 | BA162: 7.6 | BB162: 94.5
AR163: World | AS163: Antigua and Barbuda | AT163: 2012 | AU163: 25-29 | AV163: 6526 | AW163: 3066 | AX163: 3460 | AY163: 7.3 | AZ163: 7.3 | BA163: 7.4 | BB163: 88.6
AR164: World | AS164: Antigua and Barbuda | AT164: 2012 | AU164: 30-34 | AV164: 6445 | AW164: 3007 | AX164: 3438 | AY164: 7.2 | AZ164: 7.1 | BA164: 7.3 | BB164: 87.5
AR165: World | AS165: Antigua and Barbuda | AT165: 2012 | AU165: 35-39 | AV165: 6374 | AW165: 2901 | AX165: 3473 | AY165: 7.2 | AZ165: 6.9 | BA165: 7.4 | BB165: 83.5
AR166: World | AS166: Antigua and Barbuda | AT166: 2012 | AU166: 40-44 | AV166: 6821 | AW166: 3074 | AX166: 3747 | AY166: 7.7 | AZ166: 7.3 | BA166: 8 | BB166: 82
AR167: World | AS167: Antigua and Barbuda | AT167: 2012 | AU167: 45-49 | AV167: 6502 | AW167: 2931 | AX167: 3571 | AY167: 7.3 | AZ167: 6.9 | BA167: 7.6 | BB167: 82.1
AR168: World | AS168: Antigua and Barbuda | AT168: 2012 | AU168: 50-54 | AV168: 5514 | AW168: 2502 | AX168: 3012 | AY168: 6.2 | AZ168: 5.9 | BA168: 6.4 | BB168: 83.1
AR169: World | AS169: Antigua and Barbuda | AT169: 2012 | AU169: 55-59 | AV169: 4180 | AW169: 1910 | AX169: 2270 | AY169: 4.7 | AZ169: 4.5 | BA169: 4.9 | BB169: 84.1
AR170: World | AS170: Antigua and Barbuda | AT170: 2012 | AU170: 60-64 | AV170: 3203 | AW170: 1454 | AX170: 1749 | AY170: 3.6 | AZ170: 3.4 | BA170: 3.7 | BB170: 83.1
AR171: World | AS171: Antigua and Barbuda | AT171: 2012 | AU171: 65-69 | AV171: 2255 | AW171: 999 | AX171: 1256 | AY171: 2.5 | AZ171: 2.4 | BA171: 2.7 | BB171: 79.5
AR172: World | AS172: Antigua and Barbuda | AT172: 2012 | AU172: 70-74 | AV172: 1524 | AW172: 682 | AX172: 842 | AY172: 1.7 | AZ172: 1.6 | BA172: 1.8 | BB172: 81
AR173: World | AS173: Antigua and Barbuda | AT173: 2012 | AU173: 75-79 | AV173: 1074 | AW173: 471 | AX173: 603 | AY173: 1.2 | AZ173: 1.1 | BA173: 1.3 | BB173: 78.1
AR174: World | AS174: Antigua and Barbuda | AT174: 2012 | AU174: 80-84 | AV174: 730 | AW174: 296 | AX174: 434 | AY174: 0.8 | AZ174: 0.7 | BA174: 0.9 | BB174: 68.2
AR175: World | AS175: Antigua and Barbuda | AT175: 2012 | AU175: 85-89 | AV175: 415 | AW175: 161 | AX175: 254 | AY175: 0.5 | AZ175: 0.4 | BA175: 0.5 | BB175: 63.4
AR176: World | AS176: Antigua and Barbuda | AT176: 2012 | AU176: 90-94 | AV176: 160 | AW176: 55 | AX176: 105 | AY176: 0.2 | AZ176: 0.1 | BA176: 0.2 | BB176: 52.4
AR177: World | AS177: Antigua and Barbuda | AT177: 2012 | AU177: 95-99 | AV177: 34 | AW177: 10 | AX177: 24 | AY177: 0 | AZ177: 0 | BA177: 0.1 | BB177: 41.7
AR178: World | AS178: Antigua and Barbuda | AT178: 2012 | AU178: 100+ | AV178: 3 | AW178: 0 | AX178: 3 | AY178: 0 | AZ178: 0 | BA178: 0 | BB178: 0
AR179: World | AS179: Argentina | AT179: 2012 | AU179: Total | AV179: 42192494 | AW179: 20792486 | AX179: 21400008 | AY179: 100 | AZ179: 100 | BA179: 100 | BB179: 97.2
AR180: World | AS180: Argentina | AT180: 2012 | AU180: 0-4 | AV180: 3621839 | AW180: 1854383 | AX180: 1767456 | AY180: 8.6 | AZ180: 8.9 | BA180: 8.3 | BB180: 104.9
AR181: World | AS181: Argentina | AT181: 2012 | AU181: 5-9 | AV181: 3587077 | AW181: 1835880 | AX181: 1751197 | AY181: 8.5 | AZ181: 8.8 | BA181: 8.2 | BB181: 104.8
AR182: World | AS182: Argentina | AT182: 2012 | AU182: 10-14 | AV182: 3442467 | AW182: 1760416 | AX182: 1682051 | AY182: 8.2 | AZ182: 8.5 | BA182: 7.9 | BB182: 104.7
AR183: World | AS183: Argentina | AT183: 2012 | AU183: 15-19 | AV183: 3338755 | AW183: 1707827 | AX183: 1630928 | AY183: 7.9 | AZ183: 8.2 | BA183: 7.6 | BB183: 104.7
AR184: World | AS184: Argentina | AT184: 2012 | AU184: 20-24 | AV184: 3380454 | AW184: 1718991 | AX184: 1661463 | AY184: 8 | AZ184: 8.3 | BA184: 7.8 | BB184: 103.5
AR185: World | AS185: Argentina | AT185: 2012 | AU185: 25-29 | AV185: 3235299 | AW185: 1620704 | AX185: 1614595 | AY185: 7.7 | AZ185: 7.8 | BA185: 7.5 | BB185: 100.4
AR186: World | AS186: Argentina | AT186: 2012 | AU186: 30-34 | AV186: 3299095 | AW186: 1652908 | AX186: 1646187 | AY186: 7.8 | AZ186: 7.9 | BA186: 7.7 | BB186: 100.4
AR187: World | AS187: Argentina | AT187: 2012 | AU187: 35-39 | AV187: 2890124 | AW187: 1442819 | AX187: 1447305 | AY187: 6.8 | AZ187: 6.9 | BA187: 6.8 | BB187: 99.7
AR188: World | AS188: Argentina | AT188: 2012 | AU188: 40-44 | AV188: 2474398 | AW188: 1230151 | AX188: 1244247 | AY188: 5.9 | AZ188: 5.9 | BA188: 5.8 | BB188: 98.9
AR189: World | AS189: Argentina | AT189: 2012 | AU189: 45-49 | AV189: 2255637 | AW189: 1116617 | AX189: 1139020 | AY189: 5.3 | AZ189: 5.4 | BA189: 5.3 | BB189: 98
AR190: World | AS190: Argentina | AT190: 2012 | AU190: 50-54 | AV190: 2163131 | AW190: 1066970 | AX190: 1096161 | AY190: 5.1 | AZ190: 5.1 | BA190: 5.1 | BB190: 97.3
AR191: World | AS191: Argentina | AT191: 2012 | AU191: 55-59 | AV191: 2030477 | AW191: 992241 | AX191: 1038236 | AY191: 4.8 | AZ191: 4.8 | BA191: 4.9 | BB191: 95.6
AR192: World | AS192: Argentina | AT192: 2012 | AU192: 60-64 | AV192: 1774575 | AW192: 851769 | AX192: 922806 | AY192: 4.2 | AZ192: 4.1 | BA192: 4.3 | BB192: 92.3
AR193: World | AS193: Argentina | AT193: 2012 | AU193: 65-69 | AV193: 1439627 | AW193: 666608 | AX193: 773019 | AY193: 3.4 | AZ193: 3.2 | BA193: 3.6 | BB193: 86.2
AR194: World | AS194: Argentina | AT194: 2012 | AU194: 70-74 | AV194: 1140041 | AW194: 495902 | AX194: 644139 | AY194: 2.7 | AZ194: 2.4 | BA194: 3 | BB194: 77
AR195: World | AS195: Argentina | AT195: 2012 | AU195: 75-79 | AV195: 893110 | AW195: 356047 | AX195: 537063 | AY195: 2.1 | AZ195: 1.7 | BA195: 2.5 | BB195: 66.3
AR196: World | AS196: Argentina | AT196: 2012 | AU196: 80-84 | AV196: 646655 | AW196: 234839 | AX196: 411816 | AY196: 1.5 | AZ196: 1.1 | BA196: 1.9 | BB196: 57
AR197: World | AS197: Argentina | AT197: 2012 | AU197: 85-89 | AV197: 378509 | AW197: 126972 | AX197: 251537 | AY197: 0.9 | AZ197: 0.6 | BA197: 1.2 | BB197: 50.5
AR198: World | AS198: Argentina | AT198: 2012 | AU198: 90-94 | AV198: 155273 | AW198: 47630 | AX198: 107643 | AY198: 0.4 | AZ198: 0.2 | BA198: 0.5 | BB198: 44.2
AR199: World | AS199: Argentina | AT199: 2012 | AU199: 95-99 | AV199: 40313 | AW199: 11299 | AX199: 29014 | AY199: 0.1 | AZ199: 0.1 | BA199: 0.1 | BB199: 38.9
AR200: World | AS200: Argentina | AT200: 2012 | AU200: 100+ | AV200: 5638 | AW200: 1513 | AX200: 4125 | AY200: 0 | AZ200: 0 | BA200: 0 | BB200: 36.7
... 925 more rows

Sheet IDBYearsAvail (hidden)
A1: This sheet shows the data availability for all countries in the IDB database for single year age groups. Red text around the table explains what's going on so scroll down and right. | X1: First occurrence of a 1 is when data availability starts for that country. | AF1: Oddly, Bhutan and Djibuti are the only countries with data from 1950. | AP1: Alpha by country code; search in row 2 for a country if you can't find it. | AY1: Zoom out to see more of the table.
B2: Aruba | C2: Antigua and Barbuda | D2: United Arab Emirates | E2: Afghanistan | F2: Algeria | G2: Azerbaijan | H2: Albania | I2: Armenia | J2: Andorra | K2: Angola | L2: American Samoa | M2: Argentina | N2: Australia | O2: Austria | P2: Anguilla | Q2: Bahrain | R2: Barbados | S2: Botswana | T2: Bermuda | U2: Belgium | V2: Bahamas | W2: Bangladesh | X2: Belize | Y2: Bosnia and Herzegovina | Z2: Bolivia | AA2: Burma | AB2: Benin | AC2: Belarus | AD2: Solomon Islands | AE2: Brazil | AF2: Bhutan | AG2: Bulgaria | AH2: Brunei | AI2: Burundi | AJ2: Canada | AK2: Cambodia | AL2: Chad | AM2: Sri Lanka | AN2: Congo (Brazzaville) | AO2: Congo (Kinshasa) | AP2: China | AQ2: Chile | AR2: Cayman Islands | AS2: Cameroon | AT2: Comoros | AU2: Colombia | AV2: Northern Mariana Islands | AW2: Costa Rica | AX2: Central African Republic | AY2: Cuba | AZ2: Cape Verde | BA2: Cook Islands | BB2: Cyprus | BC2: Denmark | BD2: Djibouti | BE2: Dominica | BF2: Dominican Republic | BG2: Ecuador | BH2: Egypt | BI2: Ireland | BJ2: Equatorial Guinea | BK2: Estonia | BL2: Eritrea | BM2: El Salvador | BN2: Ethiopia | BO2: Czech Republic | BP2: Finland | BQ2: Fiji | BR2: Micronesia, Federated States of | BS2: Faroe Islands | BT2: French Polynesia | BU2: France | BV2: Gambia | BW2: Gabon | BX2: Georgia | BY2: Ghana | BZ2: Gibralter | CA2: Grenada | CB2: Guernsey | CC2: Greenland | CD2: Germany | CE2: Guam | CF2: Greece | CG2: Guatemala | CH2: Guinea | CI2: Guyana | CJ2: Gaza Strip | CK2: Haiti | CL2: Hong Kong | CM2: Honduras | CN2: Croatia | CO2: Hungary | CP2: Iceland | CQ2: Indonesia | CR2: Isle of Man | CS2: India | CT2: Iran | CU2: Israel | CV2: Italy | CW2: Cote D"Ivoire | CX2: Iraq | CY2: Japan | CZ2: Jersey | DA2: Jamaica | DB2: Jordan | DC2: Kenya | DD2: Kyrgyzstan | DE2: Korea, North | DF2: Kiribati | DG2: Korea, South | DH2: Kuwait | DI2: Kosovo | DJ2: Kazakhstan | DK2: Laos | DL2: Lebanon | DM2: Latvia | DN2: Lithuania | DO2: Liberia | DP2: Slovakia | DQ2: Liechtenstein | DR2: Lesotho | DS2: Luxembourg | DT2: Libya | DU2: Madagascar | DV2: Macau | DW2: Moldova | DX2: Mongolia | DY2: Montserrat | DZ2: Malawi | EA2: Montenegro | EB2: Macedonia | EC2: Mali | ED2: Monaco | EE2: Morocco | EF2: Mauritius | EG2: Mauritania | EH2: Malta | EI2: Oman | EJ2: Maldives | EK2: Mexico | EL2: Malaysia | EM2: Mozambique | EN2: New Caledonia | EO2: Niger | EP2: Vanuatu | EQ2: Nigeria | ER2: Netherlands | ES2: Sint Maarten | ET2: Norway | EU2: Nepal | EV2: Nauru | EW2: Suriname | EX2: Nicaragua | EY2: New Zealand | EZ2: South Sudan | FA2: Paraguay | FB2: Peru | FC2: Pakistan | FD2: Poland | FE2: Panama | FF2: Portugal | FG2: Papua New Guinea | FH2: Palau | FI2: Guinea-Bissau | FJ2: Qatar | FK2: Serbia | FL2: Marshall Islands | FM2: Saint Martin | FN2: Romania | FO2: Philippines | FP2: Puerto Rico | FQ2: Russia | FR2: Rwanda | FS2: Saudi Arabia | FT2: Saint Pierre and Miquelon | FU2: Saint Kitts and Nevis | FV2: Seychelles | FW2: South Africa | FX2: Senegal | FY2: Saint Helena | FZ2: Slovenia | GA2: Sierra Leone | GB2: San Marino | GC2: Singapore | GD2: Somalia | GE2: Spain | GF2: Saint Lucia | GG2: Sudan | GH2: Sweden | GI2: Syria | GJ2: Switzerland | GK2: Saint Barthelemy | GL2: Trinidad and Tobago | GM2: Thailand | GN2: Tajikistan | GO2: Turks and Caicos Islands | GP2: Tonga | GQ2: Togo | GR2: Sao Tome and Principe | GS2: Tunisia | GT2: Timor-Leste | GU2: Turkey | GV2: Tuvalu | GW2: Taiwan | GX2: Turkmenistan | GY2: Tanzania | GZ2: Curacao | HA2: Uganda | HB2: United Kingdom | HC2: Ukraine | HD2: United States | HE2: Burkina | HF2: Uruguay | HG2: Uzbekistan | HH2: Saint Vincent & the Grenadines | HI2: Venezuela | HJ2: Virgin Islands, British | HK2: Vietnam | HL2: Virgin Islands, U.S. | HM2: Namibia | HN2: West Bank | HO2: Wallis and Futuna | HP2: Western Sahara | HQ2: Samoa | HR2: Swaziland | HS2: Yemen | HT2: Zambia | HU2: Zimbabwe
A3: Year | B3: AA | C3: AC | D3: AE | E3: AF | F3: AG | G3: AJ | H3: AL | I3: AM | J3: AN | K3: AO | L3: AQ | M3: AR | N3: AS | O3: AU | P3: AV | Q3: BA | R3: BB | S3: BC | T3: BD | U3: BE | V3: BF | W3: BG | X3: BH | Y3: BK | Z3: BL | AA3: BM | AB3: BN | AC3: BO | AD3: BP | AE3: BR | AF3: BT | AG3: BU | AH3: BX | AI3: BY | AJ3: CA | AK3: CB | AL3: CD | AM3: CE | AN3: CF | AO3: CG | AP3: CH | AQ3: CI | AR3: CJ | AS3: CM | AT3: CN | AU3: CO | AV3: CQ | AW3: CS | AX3: CT | AY3: CU | AZ3: CV | BA3: CW | BB3: CY | BC3: DA | BD3: DJ | BE3: DO | BF3: DR | BG3: EC | BH3: EG | BI3: EI | BJ3: EK | BK3: EN | BL3: ER | BM3: ES | BN3: ET | BO3: EZ | BP3: FI | BQ3: FJ | BR3: FM | BS3: FO | BT3: FP | BU3: FR | BV3: GA | BW3: GB | BX3: GG | BY3: GH | BZ3: GI | CA3: GJ | CB3: GK | CC3: GL | CD3: GM | CE3: GQ | CF3: GR | CG3: GT | CH3: GV | CI3: GY | CJ3: GZ | CK3: HA | CL3: HK | CM3: HO | CN3: HR | CO3: HU | CP3: IC | CQ3: ID | CR3: IM | CS3: IN | CT3: IR | CU3: IS | CV3: IT | CW3: IV | CX3: IZ | CY3: JA | CZ3: JE | DA3: JM | DB3: JO | DC3: KE | DD3: KG | DE3: KN | DF3: KR | DG3: KS | DH3: KU | DI3: KV | DJ3: KZ | DK3: LA | DL3: LE | DM3: LG | DN3: LH | DO3: LI | DP3: LO | DQ3: LS | DR3: LT | DS3: LU | DT3: LY | DU3: MA | DV3: MC | DW3: MD | DX3: MG | DY3: MH | DZ3: MI | EA3: MJ | EB3: MK | EC3: ML | ED3: MN | EE3: MO | EF3: MP | EG3: MR | EH3: MT | EI3: MU | EJ3: MV | EK3: MX | EL3: MY | EM3: MZ | EN3: NC | EO3: NG | EP3: NH | EQ3: NI | ER3: NL | ES3: NN | ET3: NO | EU3: NP | EV3: NR | EW3: NS | EX3: NU | EY3: NZ | EZ3: OD | FA3: PA | FB3: PE | FC3: PK | FD3: PL | FE3: PM | FF3: PO | FG3: PP | FH3: PS | FI3: PU | FJ3: QA | FK3: RI | FL3: RM | FM3: RN | FN3: RO | FO3: RP | FP3: RQ | FQ3: RS | FR3: RW | FS3: SA | FT3: SB | FU3: SC | FV3: SE | FW3: SF | FX3: SG | FY3: SH | FZ3: SI | GA3: SL | GB3: SM | GC3: SN | GD3: SO | GE3: SP | GF3: ST | GG3: SU | GH3: SW | GI3: SY | GJ3: SZ | GK3: TB | GL3: TD | GM3: TH | GN3: TI | GO3: TK | GP3: TN | GQ3: TO | GR3: TP | GS3: TS | GT3: TT | GU3: TU | GV3: TV | GW3: TW | GX3: TX | GY3: TZ | GZ3: UC | HA3: UG | HB3: UK | HC3: UP | HD3: US | HE3: UV | HF3: UY | HG3: UZ | HH3: VC | HI3: VE | HJ3: VI | HK3: VM | HL3: VQ | HM3: WA | HN3: WE | HO3: WF | HP3: WI | HQ3: WS | HR3: WZ | HS3: YM | HT3: ZA | HU3: ZI | HV3: Grand Total
A4: 1950 | AF4: 1 | BD4: 1 | HV4: 2 | HW4: This column reports how many countries have data back to a given year.
A5: 1951 | AF5: 1 | BD5: 1 | HV5: 2
A6: 1952 | AF6: 1 | BD6: 1 | HV6: 2
A7: 1953 | AF7: 1 | BD7: 1 | EQ7: 1 | HV7: 3
A8: 1954 | AF8: 1 | BD8: 1 | EQ8: 1 | HV8: 3
A9: 1955 | AF9: 1 | BD9: 1 | CH9: 1 | EQ9: 1 | HV9: 4
A10: 1956 | AF10: 1 | BD10: 1 | CH10: 1 | EQ10: 1 | HV10: 4
A11: 1957 | AF11: 1 | BD11: 1 | CH11: 1 | EQ11: 1 | HV11: 4
A12: 1958 | AF12: 1 | BD12: 1 | CH12: 1 | EQ12: 1 | HV12: 4
A13: 1959 | AF13: 1 | BD13: 1 | CH13: 1 | EQ13: 1 | HV13: 4
A14: 1960 | AF14: 1 | BD14: 1 | CH14: 1 | EQ14: 1 | HV14: 4
A15: 1961 | AF15: 1 | BD15: 1 | CH15: 1 | EQ15: 1 | HV15: 4
A16: 1962 | AF16: 1 | AK16: 1 | BD16: 1 | CH16: 1 | EQ16: 1 | HV16: 5
A17: 1963 | AF17: 1 | AK17: 1 | BD17: 1 | CH17: 1 | EQ17: 1 | HV17: 5
A18: 1964 | AF18: 1 | AK18: 1 | AL18: 1 | BD18: 1 | CH18: 1 | EQ18: 1 | HV18: 6
A19: 1965 | AF19: 1 | AK19: 1 | AL19: 1 | BD19: 1 | CH19: 1 | EQ19: 1 | HV19: 6
A20: 1966 | AF20: 1 | AK20: 1 | AL20: 1 | BD20: 1 | CH20: 1 | EQ20: 1 | HV20: 6
A21: 1967 | AF21: 1 | AK21: 1 | AL21: 1 | BD21: 1 | CH21: 1 | EQ21: 1 | HV21: 6
A22: 1968 | AF22: 1 | AK22: 1 | AL22: 1 | BD22: 1 | CH22: 1 | EQ22: 1 | HV22: 6
A23: 1969 | AF23: 1 | AK23: 1 | AL23: 1 | BD23: 1 | BW23: 1 | CH23: 1 | EQ23: 1 | HA23: 1 | HV23: 8
A24: 1970 | K24: 1 | AE24: 1 | AF24: 1 | AK24: 1 | AL24: 1 | BD24: 1 | BW24: 1 | BY24: 1 | CH24: 1 | DL24: 1 | EQ24: 1 | HA24: 1 | HP24: 1 | HV24: 13
A25: 1971 | K25: 1 | AE25: 1 | AF25: 1 | AK25: 1 | AL25: 1 | BD25: 1 | BW25: 1 | BY25: 1 | CH25: 1 | CK25: 1 | DL25: 1 | EQ25: 1 | EU25: 1 | EX25: 1 | HA25: 1 | HP25: 1 | HV25: 16
A26: 1972 | K26: 1 | AE26: 1 | AF26: 1 | AK26: 1 | AL26: 1 | BD26: 1 | BW26: 1 | BY26: 1 | CH26: 1 | CK26: 1 | DL26: 1 | EQ26: 1 | EU26: 1 | EX26: 1 | FA26: 1 | HA26: 1 | HP26: 1 | HV26: 17
A27: 1973 | K27: 1 | AA27: 1 | AE27: 1 | AF27: 1 | AK27: 1 | AL27: 1 | AU27: 1 | BD27: 1 | BW27: 1 | BY27: 1 | CH27: 1 | CK27: 1 | DL27: 1 | DT27: 1 | EQ27: 1 | EU27: 1 | EX27: 1 | FA27: 1 | HA27: 1 | HP27: 1 | HV27: 20
A28: 1974 | K28: 1 | AA28: 1 | AE28: 1 | AF28: 1 | AK28: 1 | AL28: 1 | AN28: 1 | AO28: 1 | AU28: 1 | BD28: 1 | BW28: 1 | BY28: 1 | CH28: 1 | CK28: 1 | CM28: 1 | DL28: 1 | DO28: 1 | DT28: 1 | EQ28: 1 | EU28: 1 | EX28: 1 | FA28: 1 | GA28: 1 | HA28: 1 | HP28: 1 | HV28: 25
A29: 1975 | K29: 1 | AA29: 1 | AE29: 1 | AF29: 1 | AK29: 1 | AL29: 1 | AN29: 1 | AO29: 1 | AU29: 1 | AX29: 1 | BD29: 1 | BW29: 1 | BY29: 1 | CH29: 1 | CK29: 1 | CM29: 1 | CW29: 1 | DL29: 1 | DO29: 1 | DT29: 1 | DU29: 1 | EQ29: 1 | EU29: 1 | EX29: 1 | FA29: 1 | GA29: 1 | GD29: 1 | HA29: 1 | HP29: 1 | HV29: 29
A30: 1976 | K30: 1 | AA30: 1 | AD30: 1 | AE30: 1 | AF30: 1 | AK30: 1 | AL30: 1 | AN30: 1 | AO30: 1 | AS30: 1 | AU30: 1 | AX30: 1 | BD30: 1 | BW30: 1 | BY30: 1 | CH30: 1 | CK30: 1 | CM30: 1 | CW30: 1 | DL30: 1 | DO30: 1 | DR30: 1 | DT30: 1 | DU30: 1 | EQ30: 1 | EU30: 1 | EX30: 1 | FA30: 1 | FX30: 1 | GA30: 1 | GD30: 1 | HA30: 1 | HE30: 1 | HP30: 1 | HR30: 1 | HV30: 35
A31: 1977 | K31: 1 | AA31: 1 | AD31: 1 | AE31: 1 | AF31: 1 | AK31: 1 | AL31: 1 | AN31: 1 | AO31: 1 | AS31: 1 | AU31: 1 | AX31: 1 | BD31: 1 | BW31: 1 | BY31: 1 | CH31: 1 | CK31: 1 | CM31: 1 | CW31: 1 | DL31: 1 | DO31: 1 | DR31: 1 | DT31: 1 | DU31: 1 | DZ31: 1 | EC31: 1 | EG31: 1 | EO31: 1 | EQ31: 1 | EU31: 1 | EX31: 1 | FA31: 1 | FV31: 1 | FX31: 1 | GA31: 1 | GD31: 1 | HA31: 1 | HE31: 1 | HP31: 1 | HR31: 1 | HV31: 40
A32: 1978 | K32: 1 | AA32: 1 | AD32: 1 | AE32: 1 | AF32: 1 | AK32: 1 | AL32: 1 | AN32: 1 | AO32: 1 | AS32: 1 | AU32: 1 | AX32: 1 | BD32: 1 | BW32: 1 | BY32: 1 | CH32: 1 | CK32: 1 | CM32: 1 | CW32: 1 | DL32: 1 | DO32: 1 | DR32: 1 | DT32: 1 | DU32: 1 | DZ32: 1 | EC32: 1 | EG32: 1 | EO32: 1 | EQ32: 1 | EU32: 1 | EX32: 1 | FA32: 1 | FR32: 1 | FV32: 1 | FX32: 1 | GA32: 1 | GD32: 1 | GY32: 1 | HA32: 1 | HE32: 1 | HP32: 1 | HR32: 1 | HV32: 42
A33: 1979 | E33: 1 | K33: 1 | AA33: 1 | AB33: 1 | AD33: 1 | AE33: 1 | AF33: 1 | AI33: 1 | AK33: 1 | AL33: 1 | AN33: 1 | AO33: 1 | AS33: 1 | AU33: 1 | AX33: 1 | BD33: 1 | BW33: 1 | BY33: 1 | CH33: 1 | CK33: 1 | CM33: 1 | CW33: 1 | DB33: 1 | DC33: 1 | DL33: 1 | DO33: 1 | DR33: 1 | DT33: 1 | DU33: 1 | DZ33: 1 | EC33: 1 | EG33: 1 | EO33: 1 | EQ33: 1 | EU33: 1 | EX33: 1 | FA33: 1 | FI33: 1 | FR33: 1 | FV33: 1 | FX33: 1 | GA33: 1 | GD33: 1 | GV33: 1 | GY33: 1 | HA33: 1 | HE33: 1 | HP33: 1 | HR33: 1 | HV33: 49
A34: 1980 | E34: 1 | K34: 1 | M34: 1 | R34: 1 | V34: 1 | X34: 1 | AA34: 1 | AB34: 1 | AD34: 1 | AE34: 1 | AF34: 1 | AI34: 1 | AK34: 1 | AL34: 1 | AN34: 1 | AO34: 1 | AS34: 1 | AT34: 1 | AU34: 1 | AX34: 1 | AZ34: 1 | BD34: 1 | BF34: 1 | BL34: 1 | BN34: 1 | BW34: 1 | BY34: 1 | CH34: 1 | CI34: 1 | CK34: 1 | CM34: 1 | CQ34: 1 | CW34: 1 | DB34: 1 | DC34: 1 | DL34: 1 | DO34: 1 | DR34: 1 | DT34: 1 | DU34: 1 | DZ34: 1 | EC34: 1 | EG34: 1 | EK34: 1 | EL34: 1 | EM34: 1 | EO34: 1 | EQ34: 1 | EU34: 1 | EW34: 1 | EX34: 1 | FA34: 1 | FE34: 1 | FG34: 1 | FI34: 1 | FO34: 1 | FR34: 1 | FU34: 1 | FV34: 1 | FX34: 1 | GA34: 1 | GD34: 1 | GF34: 1 | GL34: 1 | GU34: 1 | GV34: 1 | GY34: 1 | HA34: 1 | HD34: 1 | HE34: 1 | HM34: 1 | HP34: 1 | HR34: 1 | HT34: 1 | HV34: 74
A35: 1981 | B35: 1 | E35: 1 | K35: 1 | M35: 1 | Q35: 1 | R35: 1 | S35: 1 | V35: 1 | W35: 1 | X35: 1 | AA35: 1 | AB35: 1 | AD35: 1 | AE35: 1 | AF35: 1 | AH35: 1 | AI35: 1 | AK35: 1 | AL35: 1 | AM35: 1 | AN35: 1 | AO35: 1 | AS35: 1 | AT35: 1 | AU35: 1 | AX35: 1 | AZ35: 1 | BD35: 1 | BE35: 1 | BF35: 1 | BL35: 1 | BN35: 1 | BW35: 1 | BY35: 1 | CA35: 1 | CG35: 1 | CH35: 1 | CI35: 1 | CK35: 1 | CM35: 1 | CQ35: 1 | CW35: 1 | DB35: 1 | DC35: 1 | DI35: 1 | DL35: 1 | DO35: 1 | DR35: 1 | DT35: 1 | DU35: 1 | DZ35: 1 | EC35: 1 | EG35: 1 | EK35: 1 | EL35: 1 | EM35: 1 | EO35: 1 | EQ35: 1 | EU35: 1 | EW35: 1 | EX35: 1 | FA35: 1 | FB35: 1 | FC35: 1 | FE35: 1 | FG35: 1 | FI35: 1 | FK35: 1 | FO35: 1 | FR35: 1 | FU35: 1 | FV35: 1 | FX35: 1 | GA35: 1 | GD35: 1 | GF35: 1 | GI35: 1 | GL35: 1 | GQ35: 1 | GR35: 1 | GU35: 1 | GV35: 1 | GY35: 1 | HA35: 1 | HD35: 1 | HE35: 1 | HM35: 1 | HP35: 1 | HQ35: 1 | HR35: 1 | HT35: 1 | HV35: 91
A36: 1982 | B36: 1 | E36: 1 | K36: 1 | M36: 1 | Q36: 1 | R36: 1 | S36: 1 | V36: 1 | W36: 1 | X36: 1 | AA36: 1 | AB36: 1 | AD36: 1 | AE36: 1 | AF36: 1 | AH36: 1 | AI36: 1 | AK36: 1 | AL36: 1 | AM36: 1 | AN36: 1 | AO36: 1 | AQ36: 1 | AS36: 1 | AT36: 1 | AU36: 1 | AX36: 1 | AY36: 1 | AZ36: 1 | BB36: 1 | BD36: 1 | BE36: 1 | BF36: 1 | BL36: 1 | BN36: 1 | BW36: 1 | BY36: 1 | BZ36: 1 | CA36: 1 | CG36: 1 | CH36: 1 | CI36: 1 | CK36: 1 | CM36: 1 | CQ36: 1 | CW36: 1 | DA36: 1 | DB36: 1 | DC36: 1 | DI36: 1 | DL36: 1 | DO36: 1 | DR36: 1 | DT36: 1 | DU36: 1 | DZ36: 1 | EC36: 1 | EE36: 1 | EG36: 1 | EK36: 1 | EL36: 1 | EM36: 1 | EO36: 1 | EQ36: 1 | EU36: 1 | EW36: 1 | EX36: 1 | FA36: 1 | FB36: 1 | FC36: 1 | FE36: 1 | FG36: 1 | FI36: 1 | FK36: 1 | FM36: 1 | FO36: 1 | FR36: 1 | FT36: 1 | FU36: 1 | FV36: 1 | FX36: 1 | GA36: 1 | GD36: 1 | GF36: 1 | GI36: 1 | GK36: 1 | GL36: 1 | GQ36: 1 | GR36: 1 | GU36: 1 | GV36: 1 | GY36: 1 | HA36: 1 | HD36: 1 | HE36: 1 | HM36: 1 | HP36: 1 | HQ36: 1 | HR36: 1 | HT36: 1 | HU36: 1 | HV36: 101
A37: 1983 | B37: 1 | E37: 1 | K37: 1 | M37: 1 | Q37: 1 | R37: 1 | S37: 1 | V37: 1 | W37: 1 | X37: 1 | AA37: 1 | AB37: 1 | AD37: 1 | AE37: 1 | AF37: 1 | AH37: 1 | AI37: 1 | AK37: 1 | AL37: 1 | AM37: 1 | AN37: 1 | AO37: 1 | AQ37: 1 | AS37: 1 | AT37: 1 | AU37: 1 | AX37: 1 | AY37: 1 | AZ37: 1 | BB37: 1 | BD37: 1 | BE37: 1 | BF37: 1 | BJ37: 1 | BL37: 1 | BN37: 1 | BT37: 1 | BV37: 1 | BW37: 1 | BY37: 1 | BZ37: 1 | CA37: 1 | CG37: 1 | CH37: 1 | CI37: 1 | CK37: 1 | CM37: 1 | CQ37: 1 | CU37: 1 | CW37: 1 | DA37: 1 | DB37: 1 | DC37: 1 | DI37: 1 | DL37: 1 | DO37: 1 | DR37: 1 | DT37: 1 | DU37: 1 | DZ37: 1 | EC37: 1 | EE37: 1 | EF37: 1 | EG37: 1 | EK37: 1 | EL37: 1 | EM37: 1 | EN37: 1 | EO37: 1 | EQ37: 1 | EU37: 1 | EW37: 1 | EX37: 1 | FA37: 1 | FB37: 1 | FC37: 1 | FE37: 1 | FG37: 1 | FI37: 1 | FK37: 1 | FM37: 1 | FO37: 1 | FR37: 1 | FT37: 1 | FU37: 1 | FV37: 1 | FX37: 1 | GA37: 1 | GD37: 1 | GF37: 1 | GI37: 1 | GK37: 1 | GL37: 1 | GQ37: 1 | GR37: 1 | GU37: 1 | GV37: 1 | GY37: 1 | HA37: 1 | HD37: 1 | HE37: 1 | HM37: 1 | HP37: 1 | HQ37: 1 | HR37: 1 | HT37: 1 | HU37: 1 | HV37: 107
A38: 1984 | B38: 1 | E38: 1 | K38: 1 | M38: 1 | P38: 1 | Q38: 1 | R38: 1 | S38: 1 | V38: 1 | W38: 1 | X38: 1 | AA38: 1 | AB38: 1 | AD38: 1 | AE38: 1 | AF38: 1 | AH38: 1 | AI38: 1 | AK38: 1 | AL38: 1 | AM38: 1 | AN38: 1 | AO38: 1 | AQ38: 1 | AS38: 1 | AT38: 1 | AU38: 1 | AW38: 1 | AX38: 1 | AY38: 1 | AZ38: 1 | BB38: 1 | BD38: 1 | BE38: 1 | BF38: 1 | BJ38: 1 | BL38: 1 | BN38: 1 | BT38: 1 | BV38: 1 | BW38: 1 | BY38: 1 | BZ38: 1 | CA38: 1 | CG38: 1 | CH38: 1 | CI38: 1 | CK38: 1 | CM38: 1 | CQ38: 1 | CU38: 1 | CW38: 1 | DA38: 1 | DB38: 1 | DC38: 1 | DI38: 1 | DL38: 1 | DO38: 1 | DR38: 1 | DT38: 1 | DU38: 1 | DZ38: 1 | EC38: 1 | EE38: 1 | EF38: 1 | EG38: 1 | EK38: 1 | EL38: 1 | EM38: 1 | EN38: 1 | EO38: 1 | EQ38: 1 | EU38: 1 | EW38: 1 | EX38: 1 | FA38: 1 | FB38: 1 | FC38: 1 | FE38: 1 | FG38: 1 | FI38: 1 | FK38: 1 | FM38: 1 | FO38: 1 | FR38: 1 | FT38: 1 | FU38: 1 | FV38: 1 | FX38: 1 | GA38: 1 | GD38: 1 | GF38: 1 | GI38: 1 | GK38: 1 | GL38: 1 | GQ38: 1 | GR38: 1 | GS38: 1 | GU38: 1 | GV38: 1 | GY38: 1 | HA38: 1 | HD38: 1 | HE38: 1 | HF38: 1 | HM38: 1 | HP38: 1 | HQ38: 1 | HR38: 1 | HT38: 1 | HU38: 1 | HV38: 111
A39: 1985 | B39: 1 | E39: 1 | K39: 1 | M39: 1 | P39: 1 | Q39: 1 | R39: 1 | S39: 1 | V39: 1 | W39: 1 | X39: 1 | AA39: 1 | AB39: 1 | AD39: 1 | AE39: 1 | AF39: 1 | AH39: 1 | AI39: 1 | AK39: 1 | AL39: 1 | AM39: 1 | AN39: 1 | AO39: 1 | AQ39: 1 | AS39: 1 | AT39: 1 | AU39: 1 | AW39: 1 | AX39: 1 | AY39: 1 | AZ39: 1 | BB39: 1 | BD39: 1 | BE39: 1 | BF39: 1 | BJ39: 1 | BL39: 1 | BN39: 1 | BT39: 1 | BV39: 1 | BW39: 1 | BY39: 1 | BZ39: 1 | CA39: 1 | CG39: 1 | CH39: 1 | CI39: 1 | CK39: 1 | CM39: 1 | CQ39: 1 | CU39: 1 | CW39: 1 | DA39: 1 | DB39: 1 | DC39: 1 | DF39: 1 | DH39: 1 | DI39: 1 | DL39: 1 | DO39: 1 | DR39: 1 | DT39: 1 | DU39: 1 | DZ39: 1 | EC39: 1 | EE39: 1 | EF39: 1 | EG39: 1 | EJ39: 1 | EK39: 1 | EL39: 1 | EM39: 1 | EN39: 1 | EO39: 1 | EQ39: 1 | EU39: 1 | EW39: 1 | EX39: 1 | FA39: 1 | FB39: 1 | FC39: 1 | FE39: 1 | FG39: 1 | FI39: 1 | FK39: 1 | FM39: 1 | FO39: 1 | FR39: 1 | FT39: 1 | FU39: 1 | FV39: 1 | FW39: 1 | FX39: 1 | GA39: 1 | GD39: 1 | GF39: 1 | GI39: 1 | GK39: 1 | GL39: 1 | GQ39: 1 | GR39: 1 | GS39: 1 | GU39: 1 | GV39: 1 | GY39: 1 | HA39: 1 | HD39: 1 | HE39: 1 | HF39: 1 | HM39: 1 | HP39: 1 | HQ39: 1 | HR39: 1 | HT39: 1 | HU39: 1 | HV39: 115
A40: 1986 | B40: 1 | D40: 1 | E40: 1 | K40: 1 | M40: 1 | N40: 1 | P40: 1 | Q40: 1 | R40: 1 | S40: 1 | V40: 1 | W40: 1 | X40: 1 | AA40: 1 | AB40: 1 | AD40: 1 | AE40: 1 | AF40: 1 | AH40: 1 | AI40: 1 | AK40: 1 | AL40: 1 | AM40: 1 | AN40: 1 | AO40: 1 | AQ40: 1 | AS40: 1 | AT40: 1 | AU40: 1 | AW40: 1 | AX40: 1 | AY40: 1 | AZ40: 1 | BB40: 1 | BD40: 1 | BE40: 1 | BF40: 1 | BJ40: 1 | BL40: 1 | BN40: 1 | BQ40: 1 | BT40: 1 | BV40: 1 | BW40: 1 | BY40: 1 | BZ40: 1 | CA40: 1 | CG40: 1 | CH40: 1 | CI40: 1 | CK40: 1 | CM40: 1 | CQ40: 1 | CT40: 1 | CU40: 1 | CW40: 1 | DA40: 1 | DB40: 1 | DC40: 1 | DF40: 1 | DH40: 1 | DI40: 1 | DL40: 1 | DO40: 1 | DR40: 1 | DT40: 1 | DU40: 1 | DZ40: 1 | EC40: 1 | EE40: 1 | EF40: 1 | EG40: 1 | EJ40: 1 | EK40: 1 | EL40: 1 | EM40: 1 | EN40: 1 | EO40: 1 | EQ40: 1 | EU40: 1 | EW40: 1 | EX40: 1 | EY40: 1 | FA40: 1 | FB40: 1 | FC40: 1 | FE40: 1 | FG40: 1 | FI40: 1 | FJ40: 1 | FK40: 1 | FM40: 1 | FO40: 1 | FR40: 1 | FT40: 1 | FU40: 1 | FV40: 1 | FW40: 1 | FX40: 1 | GA40: 1 | GD40: 1 | GF40: 1 | GI40: 1 | GK40: 1 | GL40: 1 | GP40: 1 | GQ40: 1 | GR40: 1 | GS40: 1 | GU40: 1 | GV40: 1 | GY40: 1 | HA40: 1 | HD40: 1 | HE40: 1 | HF40: 1 | HM40: 1 | HP40: 1 | HQ40: 1 | HR40: 1 | HT40: 1 | HU40: 1 | HV40: 122
A41: 1987 | B41: 1 | D41: 1 | E41: 1 | F41: 1 | K41: 1 | M41: 1 | N41: 1 | P41: 1 | Q41: 1 | R41: 1 | S41: 1 | V41: 1 | W41: 1 | X41: 1 | AA41: 1 | AB41: 1 | AD41: 1 | AE41: 1 | AF41: 1 | AH41: 1 | AI41: 1 | AK41: 1 | AL41: 1 | AM41: 1 | AN41: 1 | AO41: 1 | AQ41: 1 | AS41: 1 | AT41: 1 | AU41: 1 | AW41: 1 | AX41: 1 | AY41: 1 | AZ41: 1 | BB41: 1 | BD41: 1 | BE41: 1 | BF41: 1 | BJ41: 1 | BL41: 1 | BN41: 1 | BQ41: 1 | BT41: 1 | BV41: 1 | BW41: 1 | BY41: 1 | BZ41: 1 | CA41: 1 | CG41: 1 | CH41: 1 | CI41: 1 | CK41: 1 | CM41: 1 | CQ41: 1 | CT41: 1 | CU41: 1 | CW41: 1 | CX41: 1 | DA41: 1 | DB41: 1 | DC41: 1 | DF41: 1 | DH41: 1 | DI41: 1 | DL41: 1 | DO41: 1 | DR41: 1 | DT41: 1 | DU41: 1 | DZ41: 1 | EC41: 1 | EE41: 1 | EF41: 1 | EG41: 1 | EJ41: 1 | EK41: 1 | EL41: 1 | EM41: 1 | EN41: 1 | EO41: 1 | EQ41: 1 | EU41: 1 | EW41: 1 | EX41: 1 | EY41: 1 | FA41: 1 | FB41: 1 | FC41: 1 | FE41: 1 | FG41: 1 | FI41: 1 | FJ41: 1 | FK41: 1 | FM41: 1 | FO41: 1 | FR41: 1 | FT41: 1 | FU41: 1 | FV41: 1 | FW41: 1 | FX41: 1 | FY41: 1 | GA41: 1 | GD41: 1 | GF41: 1 | GI41: 1 | GK41: 1 | GL41: 1 | GP41: 1 | GQ41: 1 | GR41: 1 | GS41: 1 | GU41: 1 | GV41: 1 | GY41: 1 | HA41: 1 | HD41: 1 | HE41: 1 | HF41: 1 | HM41: 1 | HP41: 1 | HQ41: 1 | HR41: 1 | HT41: 1 | HU41: 1 | HV41: 125
A42: 1988 | B42: 1 | D42: 1 | E42: 1 | F42: 1 | K42: 1 | M42: 1 | N42: 1 | P42: 1 | Q42: 1 | R42: 1 | S42: 1 | V42: 1 | W42: 1 | X42: 1 | AA42: 1 | AB42: 1 | AD42: 1 | AE42: 1 | AF42: 1 | AH42: 1 | AI42: 1 | AK42: 1 | AL42: 1 | AM42: 1 | AN42: 1 | AO42: 1 | AQ42: 1 | AS42: 1 | AT42: 1 | AU42: 1 | AW42: 1 | AX42: 1 | AY42: 1 | AZ42: 1 | BB42: 1 | BD42: 1 | BE42: 1 | BF42: 1 | BJ42: 1 | BL42: 1 | BN42: 1 | BQ42: 1 | BT42: 1 | BV42: 1 | BW42: 1 | BY42: 1 | BZ42: 1 | CA42: 1 | CG42: 1 | CH42: 1 | CI42: 1 | CK42: 1 | CM42: 1 | CQ42: 1 | CT42: 1 | CU42: 1 | CW42: 1 | CX42: 1 | DA42: 1 | DB42: 1 | DC42: 1 | DF42: 1 | DH42: 1 | DI42: 1 | DL42: 1 | DO42: 1 | DR42: 1 | DT42: 1 | DU42: 1 | DZ42: 1 | EC42: 1 | EE42: 1 | EF42: 1 | EG42: 1 | EJ42: 1 | EK42: 1 | EL42: 1 | EM42: 1 | EN42: 1 | EO42: 1 | EQ42: 1 | EU42: 1 | EW42: 1 | EX42: 1 | EY42: 1 | FA42: 1 | FB42: 1 | FC42: 1 | FE42: 1 | FG42: 1 | FI42: 1 | FJ42: 1 | FK42: 1 | FL42: 1 | FM42: 1 | FO42: 1 | FR42: 1 | FT42: 1 | FU42: 1 | FV42: 1 | FW42: 1 | FX42: 1 | FY42: 1 | GA42: 1 | GD42: 1 | GF42: 1 | GI42: 1 | GK42: 1 | GL42: 1 | GP42: 1 | GQ42: 1 | GR42: 1 | GS42: 1 | GU42: 1 | GV42: 1 | GY42: 1 | HA42: 1 | HD42: 1 | HE42: 1 | HF42: 1 | HM42: 1 | HP42: 1 | HQ42: 1 | HR42: 1 | HT42: 1 | HU42: 1 | HV42: 126
A43: 1989 | B43: 1 | D43: 1 | E43: 1 | F43: 1 | G43: 1 | H43: 1 | I43: 1 | K43: 1 | M43: 1 | N43: 1 | P43: 1 | Q43: 1 | R43: 1 | S43: 1 | V43: 1 | W43: 1 | X43: 1 | AA43: 1 | AB43: 1 | AC43: 1 | AD43: 1 | AE43: 1 | AF43: 1 | AH43: 1 | AI43: 1 | AK43: 1 | AL43: 1 | AM43: 1 | AN43: 1 | AO43: 1 | AQ43: 1 | AR43: 1 | AS43: 1 | AT43: 1 | AU43: 1 | AW43: 1 | AX43: 1 | AY43: 1 | AZ43: 1 | BB43: 1 | BD43: 1 | BE43: 1 | BF43: 1 | BJ43: 1 | BK43: 1 | BL43: 1 | BN43: 1 | BQ43: 1 | BT43: 1 | BV43: 1 | BW43: 1 | BX43: 1 | BY43: 1 | BZ43: 1 | CA43: 1 | CG43: 1 | CH43: 1 | CI43: 1 | CK43: 1 | CM43: 1 | CQ43: 1 | CT43: 1 | CU43: 1 | CW43: 1 | CX43: 1 | DA43: 1 | DB43: 1 | DC43: 1 | DD43: 1 | DF43: 1 | DH43: 1 | DI43: 1 | DJ43: 1 | DL43: 1 | DM43: 1 | DN43: 1 | DO43: 1 | DR43: 1 | DT43: 1 | DU43: 1 | DW43: 1 | DX43: 1 | DZ43: 1 | EC43: 1 | EE43: 1 | EF43: 1 | EG43: 1 | EJ43: 1 | EK43: 1 | EL43: 1 | EM43: 1 | EN43: 1 | EO43: 1 | EQ43: 1 | EU43: 1 | EW43: 1 | EX43: 1 | EY43: 1 | FA43: 1 | FB43: 1 | FC43: 1 | FD43: 1 | FE43: 1 | FG43: 1 | FI43: 1 | FJ43: 1 | FK43: 1 | FL43: 1 | FM43: 1 | FO43: 1 | FQ43: 1 | FR43: 1 | FT43: 1 | FU43: 1 | FV43: 1 | FW43: 1 | FX43: 1 | FY43: 1 | GA43: 1 | GD43: 1 | GF43: 1 | GI43: 1 | GK43: 1 | GL43: 1 | GN43: 1 | GP43: 1 | GQ43: 1 | GR43: 1 | GS43: 1 | GU43: 1 | GV43: 1 | GX43: 1 | GY43: 1 | HA43: 1 | HC43: 1 | HD43: 1 | HE43: 1 | HF43: 1 | HG43: 1 | HK43: 1 | HM43: 1 | HP43: 1 | HQ43: 1 | HR43: 1 | HT43: 1 | HU43: 1 | HV43: 146
A44: 1990 | B44: 1 | D44: 1 | E44: 1 | F44: 1 | G44: 1 | H44: 1 | I44: 1 | J44: 1 | K44: 1 | M44: 1 | N44: 1 | P44: 1 | Q44: 1 | R44: 1 | S44: 1 | V44: 1 | W44: 1 | X44: 1 | AA44: 1 | AB44: 1 | AC44: 1 | AD44: 1 | AE44: 1 | AF44: 1 | AH44: 1 | AI44: 1 | AK44: 1 | AL44: 1 | AM44: 1 | AN44: 1 | AO44: 1 | AP44: 1 | AQ44: 1 | AR44: 1 | AS44: 1 | AT44: 1 | AU44: 1 | AW44: 1 | AX44: 1 | AY44: 1 | AZ44: 1 | BB44: 1 | BD44: 1 | BE44: 1 | BF44: 1 | BG44: 1 | BJ44: 1 | BK44: 1 | BL44: 1 | BN44: 1 | BQ44: 1 | BT44: 1 | BU44: 1 | BV44: 1 | BW44: 1 | BX44: 1 | BY44: 1 | BZ44: 1 | CA44: 1 | CC44: 1 | CG44: 1 | CH44: 1 | CI44: 1 | CK44: 1 | CM44: 1 | CO44: 1 | CQ44: 1 | CT44: 1 | CU44: 1 | CW44: 1 | CX44: 1 | CY44: 1 | DA44: 1 | DB44: 1 | DC44: 1 | DD44: 1 | DF44: 1 | DG44: 1 | DH44: 1 | DI44: 1 | DJ44: 1 | DL44: 1 | DM44: 1 | DN44: 1 | DO44: 1 | DR44: 1 | DT44: 1 | DU44: 1 | DW44: 1 | DX44: 1 | DZ44: 1 | EC44: 1 | ED44: 1 | EE44: 1 | EF44: 1 | EG44: 1 | EJ44: 1 | EK44: 1 | EL44: 1 | EM44: 1 | EN44: 1 | EO44: 1 | EQ44: 1 | EU44: 1 | EW44: 1 | EX44: 1 | EY44: 1 | FA44: 1 | FB44: 1 | FC44: 1 | FD44: 1 | FE44: 1 | FG44: 1 | FH44: 1 | FI44: 1 | FJ44: 1 | FK44: 1 | FL44: 1 | FM44: 1 | FO44: 1 | FQ44: 1 | FR44: 1 | FT44: 1 | FU44: 1 | FV44: 1 | FW44: 1 | FX44: 1 | FY44: 1 | GA44: 1 | GC44: 1 | GD44: 1 | GF44: 1 | GI44: 1 | GJ44: 1 | GK44: 1 | GL44: 1 | GM44: 1 | GN44: 1 | GO44: 1 | GP44: 1 | GQ44: 1 | GR44: 1 | GS44: 1 | GT44: 1 | GU44: 1 | GV44: 1 | GW44: 1 | GX44: 1 | GY44: 1 | HA44: 1 | HC44: 1 | HD44: 1 | HE44: 1 | HF44: 1 | HG44: 1 | HI44: 1 | HK44: 1 | HM44: 1 | HP44: 1 | HQ44: 1 | HR44: 1 | HT44: 1 | HU44: 1 | HV44: 163
A45: 1991 | B45: 1 | C45: 1 | D45: 1 | E45: 1 | F45: 1 | G45: 1 | H45: 1 | I45: 1 | J45: 1 | K45: 1 | M45: 1 | N45: 1 | O45: 1 | P45: 1 | Q45: 1 | R45: 1 | S45: 1 | T45: 1 | U45: 1 | V45: 1 | W45: 1 | X45: 1 | Y45: 1 | AA45: 1 | AB45: 1 | AC45: 1 | AD45: 1 | AE45: 1 | AF45: 1 | AH45: 1 | AI45: 1 | AJ45: 1 | AK45: 1 | AL45: 1 | AM45: 1 | AN45: 1 | AO45: 1 | AP45: 1 | AQ45: 1 | AR45: 1 | AS45: 1 | AT45: 1 | AU45: 1 | AW45: 1 | AX45: 1 | AY45: 1 | AZ45: 1 | BA45: 1 | BB45: 1 | BC45: 1 | BD45: 1 | BE45: 1 | BF45: 1 | BG45: 1 | BJ45: 1 | BK45: 1 | BL45: 1 | BN45: 1 | BO45: 1 | BP45: 1 | BQ45: 1 | BT45: 1 | BU45: 1 | BV45: 1 | BW45: 1 | BX45: 1 | BY45: 1 | BZ45: 1 | CA45: 1 | CB45: 1 | CC45: 1 | CD45: 1 | CF45: 1 | CG45: 1 | CH45: 1 | CI45: 1 | CK45: 1 | CL45: 1 | CM45: 1 | CN45: 1 | CO45: 1 | CQ45: 1 | CR45: 1 | CS45: 1 | CT45: 1 | CU45: 1 | CV45: 1 | CW45: 1 | CX45: 1 | CY45: 1 | CZ45: 1 | DA45: 1 | DB45: 1 | DC45: 1 | DD45: 1 | DF45: 1 | DG45: 1 | DH45: 1 | DI45: 1 | DJ45: 1 | DL45: 1 | DM45: 1 | DN45: 1 | DO45: 1 | DP45: 1 | DQ45: 1 | DR45: 1 | DS45: 1 | DT45: 1 | DU45: 1 | DV45: 1 | DW45: 1 | DX45: 1 | DY45: 1 | DZ45: 1 | EC45: 1 | ED45: 1 | EE45: 1 | EF45: 1 | EG45: 1 | EJ45: 1 | EK45: 1 | EL45: 1 | EM45: 1 | EN45: 1 | EO45: 1 | EQ45: 1 | ET45: 1 | EU45: 1 | EW45: 1 | EX45: 1 | EY45: 1 | FA45: 1 | FB45: 1 | FC45: 1 | FD45: 1 | FE45: 1 | FF45: 1 | FG45: 1 | FH45: 1 | FI45: 1 | FJ45: 1 | FK45: 1 | FL45: 1 | FM45: 1 | FO45: 1 | FQ45: 1 | FR45: 1 | FT45: 1 | FU45: 1 | FV45: 1 | FW45: 1 | FX45: 1 | FY45: 1 | FZ45: 1 | GA45: 1 | GC45: 1 | GD45: 1 | GE45: 1 | GF45: 1 | GH45: 1 | GI45: 1 | GJ45: 1 | GK45: 1 | GL45: 1 | GM45: 1 | GN45: 1 | GO45: 1 | GP45: 1 | GQ45: 1 | GR45: 1 | GS45: 1 | GT45: 1 | GU45: 1 | GV45: 1 | GW45: 1 | GX45: 1 | GY45: 1 | HA45: 1 | HB45: 1 | HC45: 1 | HD45: 1 | HE45: 1 | HF45: 1 | HG45: 1 | HH45: 1 | HI45: 1 | HJ45: 1 | HK45: 1 | HM45: 1 | HP45: 1 | HQ45: 1 | HR45: 1 | HT45: 1 | HU45: 1 | HV45: 195
A46: 1992 | B46: 1 | C46: 1 | D46: 1 | E46: 1 | F46: 1 | G46: 1 | H46: 1 | I46: 1 | J46: 1 | K46: 1 | M46: 1 | N46: 1 | O46: 1 | P46: 1 | Q46: 1 | R46: 1 | S46: 1 | T46: 1 | U46: 1 | V46: 1 | W46: 1 | X46: 1 | Y46: 1 | Z46: 1 | AA46: 1 | AB46: 1 | AC46: 1 | AD46: 1 | AE46: 1 | AF46: 1 | AH46: 1 | AI46: 1 | AJ46: 1 | AK46: 1 | AL46: 1 | AM46: 1 | AN46: 1 | AO46: 1 | AP46: 1 | AQ46: 1 | AR46: 1 | AS46: 1 | AT46: 1 | AU46: 1 | AW46: 1 | AX46: 1 | AY46: 1 | AZ46: 1 | BA46: 1 | BB46: 1 | BC46: 1 | BD46: 1 | BE46: 1 | BF46: 1 | BG46: 1 | BJ46: 1 | BK46: 1 | BL46: 1 | BM46: 1 | BN46: 1 | BO46: 1 | BP46: 1 | BQ46: 1 | BT46: 1 | BU46: 1 | BV46: 1 | BW46: 1 | BX46: 1 | BY46: 1 | BZ46: 1 | CA46: 1 | CB46: 1 | CC46: 1 | CD46: 1 | CF46: 1 | CG46: 1 | CH46: 1 | CI46: 1 | CK46: 1 | CL46: 1 | CM46: 1 | CN46: 1 | CO46: 1 | CQ46: 1 | CR46: 1 | CS46: 1 | CT46: 1 | CU46: 1 | CV46: 1 | CW46: 1 | CX46: 1 | CY46: 1 | CZ46: 1 | DA46: 1 | DB46: 1 | DC46: 1 | DD46: 1 | DF46: 1 | DG46: 1 | DH46: 1 | DI46: 1 | DJ46: 1 | DL46: 1 | DM46: 1 | DN46: 1 | DO46: 1 | DP46: 1 | DQ46: 1 | DR46: 1 | DS46: 1 | DT46: 1 | DU46: 1 | DV46: 1 | DW46: 1 | DX46: 1 | DY46: 1 | DZ46: 1 | EA46: 1 | EC46: 1 | ED46: 1 | EE46: 1 | EF46: 1 | EG46: 1 | EJ46: 1 | EK46: 1 | EL46: 1 | EM46: 1 | EN46: 1 | EO46: 1 | EQ46: 1 | ES46: 1 | ET46: 1 | EU46: 1 | EV46: 1 | EW46: 1 | EX46: 1 | EY46: 1 | FA46: 1 | FB46: 1 | FC46: 1 | FD46: 1 | FE46: 1 | FF46: 1 | FG46: 1 | FH46: 1 | FI46: 1 | FJ46: 1 | FK46: 1 | FL46: 1 | FM46: 1 | FN46: 1 | FO46: 1 | FQ46: 1 | FR46: 1 | FS46: 1 | FT46: 1 | FU46: 1 | FV46: 1 | FW46: 1 | FX46: 1 | FY46: 1 | FZ46: 1 | GA46: 1 | GC46: 1 | GD46: 1 | GE46: 1 | GF46: 1 | GH46: 1 | GI46: 1 | GJ46: 1 | GK46: 1 | GL46: 1 | GM46: 1 | GN46: 1 | GO46: 1 | GP46: 1 | GQ46: 1 | GR46: 1 | GS46: 1 | GT46: 1 | GU46: 1 | GV46: 1 | GW46: 1 | GX46: 1 | GY46: 1 | GZ46: 1 | HA46: 1 | HB46: 1 | HC46: 1 | HD46: 1 | HE46: 1 | HF46: 1 | HG46: 1 | HH46: 1 | HI46: 1 | HJ46: 1 | HK46: 1 | HM46: 1 | HP46: 1 | HQ46: 1 | HR46: 1 | HT46: 1 | HU46: 1 | HV46: 203
A47: 1993 | B47: 1 | C47: 1 | D47: 1 | E47: 1 | F47: 1 | G47: 1 | H47: 1 | I47: 1 | J47: 1 | K47: 1 | M47: 1 | N47: 1 | O47: 1 | P47: 1 | Q47: 1 | R47: 1 | S47: 1 | T47: 1 | U47: 1 | V47: 1 | W47: 1 | X47: 1 | Y47: 1 | Z47: 1 | AA47: 1 | AB47: 1 | AC47: 1 | AD47: 1 | AE47: 1 | AF47: 1 | AG47: 1 | AH47: 1 | AI47: 1 | AJ47: 1 | AK47: 1 | AL47: 1 | AM47: 1 | AN47: 1 | AO47: 1 | AP47: 1 | AQ47: 1 | AR47: 1 | AS47: 1 | AT47: 1 | AU47: 1 | AW47: 1 | AX47: 1 | AY47: 1 | AZ47: 1 | BA47: 1 | BB47: 1 | BC47: 1 | BD47: 1 | BE47: 1 | BF47: 1 | BG47: 1 | BJ47: 1 | BK47: 1 | BL47: 1 | BM47: 1 | BN47: 1 | BO47: 1 | BP47: 1 | BQ47: 1 | BT47: 1 | BU47: 1 | BV47: 1 | BW47: 1 | BX47: 1 | BY47: 1 | BZ47: 1 | CA47: 1 | CB47: 1 | CC47: 1 | CD47: 1 | CF47: 1 | CG47: 1 | CH47: 1 | CI47: 1 | CK47: 1 | CL47: 1 | CM47: 1 | CN47: 1 | CO47: 1 | CQ47: 1 | CR47: 1 | CS47: 1 | CT47: 1 | CU47: 1 | CV47: 1 | CW47: 1 | CX47: 1 | CY47: 1 | CZ47: 1 | DA47: 1 | DB47: 1 | DC47: 1 | DD47: 1 | DE47: 1 | DF47: 1 | DG47: 1 | DH47: 1 | DI47: 1 | DJ47: 1 | DL47: 1 | DM47: 1 | DN47: 1 | DO47: 1 | DP47: 1 | DQ47: 1 | DR47: 1 | DS47: 1 | DT47: 1 | DU47: 1 | DV47: 1 | DW47: 1 | DX47: 1 | DY47: 1 | DZ47: 1 | EA47: 1 | EC47: 1 | ED47: 1 | EE47: 1 | EF47: 1 | EG47: 1 | EI47: 1 | EJ47: 1 | EK47: 1 | EL47: 1 | EM47: 1 | EN47: 1 | EO47: 1 | EQ47: 1 | ES47: 1 | ET47: 1 | EU47: 1 | EV47: 1 | EW47: 1 | EX47: 1 | EY47: 1 | FA47: 1 | FB47: 1 | FC47: 1 | FD47: 1 | FE47: 1 | FF47: 1 | FG47: 1 | FH47: 1 | FI47: 1 | FJ47: 1 | FK47: 1 | FL47: 1 | FM47: 1 | FN47: 1 | FO47: 1 | FQ47: 1 | FR47: 1 | FS47: 1 | FT47: 1 | FU47: 1 | FV47: 1 | FW47: 1 | FX47: 1 | FY47: 1 | FZ47: 1 | GA47: 1 | GC47: 1 | GD47: 1 | GE47: 1 | GF47: 1 | GH47: 1 | GI47: 1 | GJ47: 1 | GK47: 1 | GL47: 1 | GM47: 1 | GN47: 1 | GO47: 1 | GP47: 1 | GQ47: 1 | GR47: 1 | GS47: 1 | GT47: 1 | GU47: 1 | GV47: 1 | GW47: 1 | GX47: 1 | GY47: 1 | GZ47: 1 | HA47: 1 | HB47: 1 | HC47: 1 | HD47: 1 | HE47: 1 | HF47: 1 | HG47: 1 | HH47: 1 | HI47: 1 | HJ47: 1 | HK47: 1 | HM47: 1 | HP47: 1 | HQ47: 1 | HR47: 1 | HT47: 1 | HU47: 1 | HV47: 206
A48: 1994 | B48: 1 | C48: 1 | D48: 1 | E48: 1 | F48: 1 | G48: 1 | H48: 1 | I48: 1 | J48: 1 | K48: 1 | M48: 1 | N48: 1 | O48: 1 | P48: 1 | Q48: 1 | R48: 1 | S48: 1 | T48: 1 | U48: 1 | V48: 1 | W48: 1 | X48: 1 | Y48: 1 | Z48: 1 | AA48: 1 | AB48: 1 | AC48: 1 | AD48: 1 | AE48: 1 | AF48: 1 | AG48: 1 | AH48: 1 | AI48: 1 | AJ48: 1 | AK48: 1 | AL48: 1 | AM48: 1 | AN48: 1 | AO48: 1 | AP48: 1 | AQ48: 1 | AR48: 1 | AS48: 1 | AT48: 1 | AU48: 1 | AW48: 1 | AX48: 1 | AY48: 1 | AZ48: 1 | BA48: 1 | BB48: 1 | BC48: 1 | BD48: 1 | BE48: 1 | BF48: 1 | BG48: 1 | BJ48: 1 | BK48: 1 | BL48: 1 | BM48: 1 | BN48: 1 | BO48: 1 | BP48: 1 | BQ48: 1 | BR48: 1 | BS48: 1 | BT48: 1 | BU48: 1 | BV48: 1 | BW48: 1 | BX48: 1 | BY48: 1 | BZ48: 1 | CA48: 1 | CB48: 1 | CC48: 1 | CD48: 1 | CF48: 1 | CG48: 1 | CH48: 1 | CI48: 1 | CK48: 1 | CL48: 1 | CM48: 1 | CN48: 1 | CO48: 1 | CP48: 1 | CQ48: 1 | CR48: 1 | CS48: 1 | CT48: 1 | CU48: 1 | CV48: 1 | CW48: 1 | CX48: 1 | CY48: 1 | CZ48: 1 | DA48: 1 | DB48: 1 | DC48: 1 | DD48: 1 | DE48: 1 | DF48: 1 | DG48: 1 | DH48: 1 | DI48: 1 | DJ48: 1 | DL48: 1 | DM48: 1 | DN48: 1 | DO48: 1 | DP48: 1 | DQ48: 1 | DR48: 1 | DS48: 1 | DT48: 1 | DU48: 1 | DV48: 1 | DW48: 1 | DX48: 1 | DY48: 1 | DZ48: 1 | EA48: 1 | EB48: 1 | EC48: 1 | ED48: 1 | EE48: 1 | EF48: 1 | EG48: 1 | EI48: 1 | EJ48: 1 | EK48: 1 | EL48: 1 | EM48: 1 | EN48: 1 | EO48: 1 | EQ48: 1 | ES48: 1 | ET48: 1 | EU48: 1 | EV48: 1 | EW48: 1 | EX48: 1 | EY48: 1 | FA48: 1 | FB48: 1 | FC48: 1 | FD48: 1 | FE48: 1 | FF48: 1 | FG48: 1 | FH48: 1 | FI48: 1 | FJ48: 1 | FK48: 1 | FL48: 1 | FM48: 1 | FN48: 1 | FO48: 1 | FQ48: 1 | FR48: 1 | FS48: 1 | FT48: 1 | FU48: 1 | FV48: 1 | FW48: 1 | FX48: 1 | FY48: 1 | FZ48: 1 | GA48: 1 | GC48: 1 | GD48: 1 | GE48: 1 | GF48: 1 | GH48: 1 | GI48: 1 | GJ48: 1 | GK48: 1 | GL48: 1 | GM48: 1 | GN48: 1 | GO48: 1 | GP48: 1 | GQ48: 1 | GR48: 1 | GS48: 1 | GT48: 1 | GU48: 1 | GV48: 1 | GW48: 1 | GX48: 1 | GY48: 1 | GZ48: 1 | HA48: 1 | HB48: 1 | HC48: 1 | HD48: 1 | HE48: 1 | HF48: 1 | HG48: 1 | HH48: 1 | HI48: 1 | HJ48: 1 | HK48: 1 | HM48: 1 | HP48: 1 | HQ48: 1 | HR48: 1 | HS48: 1 | HT48: 1 | HU48: 1 | HV48: 211
A49: 1995 | B49: 1 | C49: 1 | D49: 1 | E49: 1 | F49: 1 | G49: 1 | H49: 1 | I49: 1 | J49: 1 | K49: 1 | M49: 1 | N49: 1 | O49: 1 | P49: 1 | Q49: 1 | R49: 1 | S49: 1 | T49: 1 | U49: 1 | V49: 1 | W49: 1 | X49: 1 | Y49: 1 | Z49: 1 | AA49: 1 | AB49: 1 | AC49: 1 | AD49: 1 | AE49: 1 | AF49: 1 | AG49: 1 | AH49: 1 | AI49: 1 | AJ49: 1 | AK49: 1 | AL49: 1 | AM49: 1 | AN49: 1 | AO49: 1 | AP49: 1 | AQ49: 1 | AR49: 1 | AS49: 1 | AT49: 1 | AU49: 1 | AW49: 1 | AX49: 1 | AY49: 1 | AZ49: 1 | BA49: 1 | BB49: 1 | BC49: 1 | BD49: 1 | BE49: 1 | BF49: 1 | BG49: 1 | BJ49: 1 | BK49: 1 | BL49: 1 | BM49: 1 | BN49: 1 | BO49: 1 | BP49: 1 | BQ49: 1 | BR49: 1 | BS49: 1 | BT49: 1 | BU49: 1 | BV49: 1 | BW49: 1 | BX49: 1 | BY49: 1 | BZ49: 1 | CA49: 1 | CB49: 1 | CC49: 1 | CD49: 1 | CF49: 1 | CG49: 1 | CH49: 1 | CI49: 1 | CK49: 1 | CL49: 1 | CM49: 1 | CN49: 1 | CO49: 1 | CP49: 1 | CQ49: 1 | CR49: 1 | CS49: 1 | CT49: 1 | CU49: 1 | CV49: 1 | CW49: 1 | CX49: 1 | CY49: 1 | CZ49: 1 | DA49: 1 | DB49: 1 | DC49: 1 | DD49: 1 | DE49: 1 | DF49: 1 | DG49: 1 | DH49: 1 | DI49: 1 | DJ49: 1 | DK49: 1 | DL49: 1 | DM49: 1 | DN49: 1 | DO49: 1 | DP49: 1 | DQ49: 1 | DR49: 1 | DS49: 1 | DT49: 1 | DU49: 1 | DV49: 1 | DW49: 1 | DX49: 1 | DY49: 1 | DZ49: 1 | EA49: 1 | EB49: 1 | EC49: 1 | ED49: 1 | EE49: 1 | EF49: 1 | EG49: 1 | EI49: 1 | EJ49: 1 | EK49: 1 | EL49: 1 | EM49: 1 | EN49: 1 | EO49: 1 | EQ49: 1 | ER49: 1 | ES49: 1 | ET49: 1 | EU49: 1 | EV49: 1 | EW49: 1 | EX49: 1 | EY49: 1 | FA49: 1 | FB49: 1 | FC49: 1 | FD49: 1 | FE49: 1 | FF49: 1 | FG49: 1 | FH49: 1 | FI49: 1 | FJ49: 1 | FK49: 1 | FL49: 1 | FM49: 1 | FN49: 1 | FO49: 1 | FQ49: 1 | FR49: 1 | FS49: 1 | FT49: 1 | FU49: 1 | FV49: 1 | FW49: 1 | FX49: 1 | FY49: 1 | FZ49: 1 | GA49: 1 | GB49: 1 | GC49: 1 | GD49: 1 | GE49: 1 | GF49: 1 | GH49: 1 | GI49: 1 | GJ49: 1 | GK49: 1 | GL49: 1 | GM49: 1 | GN49: 1 | GO49: 1 | GP49: 1 | GQ49: 1 | GR49: 1 | GS49: 1 | GT49: 1 | GU49: 1 | GV49: 1 | GW49: 1 | GX49: 1 | GY49: 1 | GZ49: 1 | HA49: 1 | HB49: 1 | HC49: 1 | HD49: 1 | HE49: 1 | HF49: 1 | HG49: 1 | HH49: 1 | HI49: 1 | HJ49: 1 | HK49: 1 | HM49: 1 | HP49: 1 | HQ49: 1 | HR49: 1 | HS49: 1 | HT49: 1 | HU49: 1 | HV49: 214
A50: 1996 | B50: 1 | C50: 1 | D50: 1 | E50: 1 | F50: 1 | G50: 1 | H50: 1 | I50: 1 | J50: 1 | K50: 1 | M50: 1 | N50: 1 | O50: 1 | P50: 1 | Q50: 1 | R50: 1 | S50: 1 | T50: 1 | U50: 1 | V50: 1 | W50: 1 | X50: 1 | Y50: 1 | Z50: 1 | AA50: 1 | AB50: 1 | AC50: 1 | AD50: 1 | AE50: 1 | AF50: 1 | AG50: 1 | AH50: 1 | AI50: 1 | AJ50: 1 | AK50: 1 | AL50: 1 | AM50: 1 | AN50: 1 | AO50: 1 | AP50: 1 | AQ50: 1 | AR50: 1 | AS50: 1 | AT50: 1 | AU50: 1 | AW50: 1 | AX50: 1 | AY50: 1 | AZ50: 1 | BA50: 1 | BB50: 1 | BC50: 1 | BD50: 1 | BE50: 1 | BF50: 1 | BG50: 1 | BH50: 1 | BI50: 1 | BJ50: 1 | BK50: 1 | BL50: 1 | BM50: 1 | BN50: 1 | BO50: 1 | BP50: 1 | BQ50: 1 | BR50: 1 | BS50: 1 | BT50: 1 | BU50: 1 | BV50: 1 | BW50: 1 | BX50: 1 | BY50: 1 | BZ50: 1 | CA50: 1 | CB50: 1 | CC50: 1 | CD50: 1 | CF50: 1 | CG50: 1 | CH50: 1 | CI50: 1 | CK50: 1 | CL50: 1 | CM50: 1 | CN50: 1 | CO50: 1 | CP50: 1 | CQ50: 1 | CR50: 1 | CS50: 1 | CT50: 1 | CU50: 1 | CV50: 1 | CW50: 1 | CX50: 1 | CY50: 1 | CZ50: 1 | DA50: 1 | DB50: 1 | DC50: 1 | DD50: 1 | DE50: 1 | DF50: 1 | DG50: 1 | DH50: 1 | DI50: 1 | DJ50: 1 | DK50: 1 | DL50: 1 | DM50: 1 | DN50: 1 | DO50: 1 | DP50: 1 | DQ50: 1 | DR50: 1 | DS50: 1 | DT50: 1 | DU50: 1 | DV50: 1 | DW50: 1 | DX50: 1 | DY50: 1 | DZ50: 1 | EA50: 1 | EB50: 1 | EC50: 1 | ED50: 1 | EE50: 1 | EF50: 1 | EG50: 1 | EH50: 1 | EI50: 1 | EJ50: 1 | EK50: 1 | EL50: 1 | EM50: 1 | EN50: 1 | EO50: 1 | EQ50: 1 | ER50: 1 | ES50: 1 | ET50: 1 | EU50: 1 | EV50: 1 | EW50: 1 | EX50: 1 | EY50: 1 | FA50: 1 | FB50: 1 | FC50: 1 | FD50: 1 | FE50: 1 | FF50: 1 | FG50: 1 | FH50: 1 | FI50: 1 | FJ50: 1 | FK50: 1 | FL50: 1 | FM50: 1 | FN50: 1 | FO50: 1 | FQ50: 1 | FR50: 1 | FS50: 1 | FT50: 1 | FU50: 1 | FV50: 1 | FW50: 1 | FX50: 1 | FY50: 1 | FZ50: 1 | GA50: 1 | GB50: 1 | GC50: 1 | GD50: 1 | GE50: 1 | GF50: 1 | GH50: 1 | GI50: 1 | GJ50: 1 | GK50: 1 | GL50: 1 | GM50: 1 | GN50: 1 | GO50: 1 | GP50: 1 | GQ50: 1 | GR50: 1 | GS50: 1 | GT50: 1 | GU50: 1 | GV50: 1 | GW50: 1 | GX50: 1 | GY50: 1 | GZ50: 1 | HA50: 1 | HB50: 1 | HC50: 1 | HD50: 1 | HE50: 1 | HF50: 1 | HG50: 1 | HH50: 1 | HI50: 1 | HJ50: 1 | HK50: 1 | HM50: 1 | HO50: 1 | HP50: 1 | HQ50: 1 | HR50: 1 | HS50: 1 | HT50: 1 | HU50: 1 | HV50: 218
A51: 1997 | B51: 1 | C51: 1 | D51: 1 | E51: 1 | F51: 1 | G51: 1 | H51: 1 | I51: 1 | J51: 1 | K51: 1 | M51: 1 | N51: 1 | O51: 1 | P51: 1 | Q51: 1 | R51: 1 | S51: 1 | T51: 1 | U51: 1 | V51: 1 | W51: 1 | X51: 1 | Y51: 1 | Z51: 1 | AA51: 1 | AB51: 1 | AC51: 1 | AD51: 1 | AE51: 1 | AF51: 1 | AG51: 1 | AH51: 1 | AI51: 1 | AJ51: 1 | AK51: 1 | AL51: 1 | AM51: 1 | AN51: 1 | AO51: 1 | AP51: 1 | AQ51: 1 | AR51: 1 | AS51: 1 | AT51: 1 | AU51: 1 | AW51: 1 | AX51: 1 | AY51: 1 | AZ51: 1 | BA51: 1 | BB51: 1 | BC51: 1 | BD51: 1 | BE51: 1 | BF51: 1 | BG51: 1 | BH51: 1 | BI51: 1 | BJ51: 1 | BK51: 1 | BL51: 1 | BM51: 1 | BN51: 1 | BO51: 1 | BP51: 1 | BQ51: 1 | BR51: 1 | BS51: 1 | BT51: 1 | BU51: 1 | BV51: 1 | BW51: 1 | BX51: 1 | BY51: 1 | BZ51: 1 | CA51: 1 | CB51: 1 | CC51: 1 | CD51: 1 | CF51: 1 | CG51: 1 | CH51: 1 | CI51: 1 | CJ51: 1 | CK51: 1 | CL51: 1 | CM51: 1 | CN51: 1 | CO51: 1 | CP51: 1 | CQ51: 1 | CR51: 1 | CS51: 1 | CT51: 1 | CU51: 1 | CV51: 1 | CW51: 1 | CX51: 1 | CY51: 1 | CZ51: 1 | DA51: 1 | DB51: 1 | DC51: 1 | DD51: 1 | DE51: 1 | DF51: 1 | DG51: 1 | DH51: 1 | DI51: 1 | DJ51: 1 | DK51: 1 | DL51: 1 | DM51: 1 | DN51: 1 | DO51: 1 | DP51: 1 | DQ51: 1 | DR51: 1 | DS51: 1 | DT51: 1 | DU51: 1 | DV51: 1 | DW51: 1 | DX51: 1 | DY51: 1 | DZ51: 1 | EA51: 1 | EB51: 1 | EC51: 1 | ED51: 1 | EE51: 1 | EF51: 1 | EG51: 1 | EH51: 1 | EI51: 1 | EJ51: 1 | EK51: 1 | EL51: 1 | EM51: 1 | EN51: 1 | EO51: 1 | EQ51: 1 | ER51: 1 | ES51: 1 | ET51: 1 | EU51: 1 | EV51: 1 | EW51: 1 | EX51: 1 | EY51: 1 | FA51: 1 | FB51: 1 | FC51: 1 | FD51: 1 | FE51: 1 | FF51: 1 | FG51: 1 | FH51: 1 | FI51: 1 | FJ51: 1 | FK51: 1 | FL51: 1 | FM51: 1 | FN51: 1 | FO51: 1 | FQ51: 1 | FR51: 1 | FS51: 1 | FT51: 1 | FU51: 1 | FV51: 1 | FW51: 1 | FX51: 1 | FY51: 1 | FZ51: 1 | GA51: 1 | GB51: 1 | GC51: 1 | GD51: 1 | GE51: 1 | GF51: 1 | GH51: 1 | GI51: 1 | GJ51: 1 | GK51: 1 | GL51: 1 | GM51: 1 | GN51: 1 | GO51: 1 | GP51: 1 | GQ51: 1 | GR51: 1 | GS51: 1 | GT51: 1 | GU51: 1 | GV51: 1 | GW51: 1 | GX51: 1 | GY51: 1 | GZ51: 1 | HA51: 1 | HB51: 1 | HC51: 1 | HD51: 1 | HE51: 1 | HF51: 1 | HG51: 1 | HH51: 1 | HI51: 1 | HJ51: 1 | HK51: 1 | HM51: 1 | HN51: 1 | HO51: 1 | HP51: 1 | HQ51: 1 | HR51: 1 | HS51: 1 | HT51: 1 | HU51: 1 | HV51: 220
A52: 1998 | B52: 1 | C52: 1 | D52: 1 | E52: 1 | F52: 1 | G52: 1 | H52: 1 | I52: 1 | J52: 1 | K52: 1 | M52: 1 | N52: 1 | O52: 1 | P52: 1 | Q52: 1 | R52: 1 | S52: 1 | T52: 1 | U52: 1 | V52: 1 | W52: 1 | X52: 1 | Y52: 1 | Z52: 1 | AA52: 1 | AB52: 1 | AC52: 1 | AD52: 1 | AE52: 1 | AF52: 1 | AG52: 1 | AH52: 1 | AI52: 1 | AJ52: 1 | AK52: 1 | AL52: 1 | AM52: 1 | AN52: 1 | AO52: 1 | AP52: 1 | AQ52: 1 | AR52: 1 | AS52: 1 | AT52: 1 | AU52: 1 | AW52: 1 | AX52: 1 | AY52: 1 | AZ52: 1 | BA52: 1 | BB52: 1 | BC52: 1 | BD52: 1 | BE52: 1 | BF52: 1 | BG52: 1 | BH52: 1 | BI52: 1 | BJ52: 1 | BK52: 1 | BL52: 1 | BM52: 1 | BN52: 1 | BO52: 1 | BP52: 1 | BQ52: 1 | BR52: 1 | BS52: 1 | BT52: 1 | BU52: 1 | BV52: 1 | BW52: 1 | BX52: 1 | BY52: 1 | BZ52: 1 | CA52: 1 | CB52: 1 | CC52: 1 | CD52: 1 | CF52: 1 | CG52: 1 | CH52: 1 | CI52: 1 | CJ52: 1 | CK52: 1 | CL52: 1 | CM52: 1 | CN52: 1 | CO52: 1 | CP52: 1 | CQ52: 1 | CR52: 1 | CS52: 1 | CT52: 1 | CU52: 1 | CV52: 1 | CW52: 1 | CX52: 1 | CY52: 1 | CZ52: 1 | DA52: 1 | DB52: 1 | DC52: 1 | DD52: 1 | DE52: 1 | DF52: 1 | DG52: 1 | DH52: 1 | DI52: 1 | DJ52: 1 | DK52: 1 | DL52: 1 | DM52: 1 | DN52: 1 | DO52: 1 | DP52: 1 | DQ52: 1 | DR52: 1 | DS52: 1 | DT52: 1 | DU52: 1 | DV52: 1 | DW52: 1 | DX52: 1 | DY52: 1 | DZ52: 1 | EA52: 1 | EB52: 1 | EC52: 1 | ED52: 1 | EE52: 1 | EF52: 1 | EG52: 1 | EH52: 1 | EI52: 1 | EJ52: 1 | EK52: 1 | EL52: 1 | EM52: 1 | EN52: 1 | EO52: 1 | EQ52: 1 | ER52: 1 | ES52: 1 | ET52: 1 | EU52: 1 | EV52: 1 | EW52: 1 | EX52: 1 | EY52: 1 | FA52: 1 | FB52: 1 | FC52: 1 | FD52: 1 | FE52: 1 | FF52: 1 | FG52: 1 | FH52: 1 | FI52: 1 | FJ52: 1 | FK52: 1 | FL52: 1 | FM52: 1 | FN52: 1 | FO52: 1 | FQ52: 1 | FR52: 1 | FS52: 1 | FT52: 1 | FU52: 1 | FV52: 1 | FW52: 1 | FX52: 1 | FY52: 1 | FZ52: 1 | GA52: 1 | GB52: 1 | GC52: 1 | GD52: 1 | GE52: 1 | GF52: 1 | GH52: 1 | GI52: 1 | GJ52: 1 | GK52: 1 | GL52: 1 | GM52: 1 | GN52: 1 | GO52: 1 | GP52: 1 | GQ52: 1 | GR52: 1 | GS52: 1 | GT52: 1 | GU52: 1 | GV52: 1 | GW52: 1 | GX52: 1 | GY52: 1 | GZ52: 1 | HA52: 1 | HB52: 1 | HC52: 1 | HD52: 1 | HE52: 1 | HF52: 1 | HG52: 1 | HH52: 1 | HI52: 1 | HJ52: 1 | HK52: 1 | HM52: 1 | HN52: 1 | HO52: 1 | HP52: 1 | HQ52: 1 | HR52: 1 | HS52: 1 | HT52: 1 | HU52: 1 | HV52: 220
A53: 1999 | B53: 1 | C53: 1 | D53: 1 | E53: 1 | F53: 1 | G53: 1 | H53: 1 | I53: 1 | J53: 1 | K53: 1 | M53: 1 | N53: 1 | O53: 1 | P53: 1 | Q53: 1 | R53: 1 | S53: 1 | T53: 1 | U53: 1 | V53: 1 | W53: 1 | X53: 1 | Y53: 1 | Z53: 1 | AA53: 1 | AB53: 1 | AC53: 1 | AD53: 1 | AE53: 1 | AF53: 1 | AG53: 1 | AH53: 1 | AI53: 1 | AJ53: 1 | AK53: 1 | AL53: 1 | AM53: 1 | AN53: 1 | AO53: 1 | AP53: 1 | AQ53: 1 | AR53: 1 | AS53: 1 | AT53: 1 | AU53: 1 | AW53: 1 | AX53: 1 | AY53: 1 | AZ53: 1 | BA53: 1 | BB53: 1 | BC53: 1 | BD53: 1 | BE53: 1 | BF53: 1 | BG53: 1 | BH53: 1 | BI53: 1 | BJ53: 1 | BK53: 1 | BL53: 1 | BM53: 1 | BN53: 1 | BO53: 1 | BP53: 1 | BQ53: 1 | BR53: 1 | BS53: 1 | BT53: 1 | BU53: 1 | BV53: 1 | BW53: 1 | BX53: 1 | BY53: 1 | BZ53: 1 | CA53: 1 | CB53: 1 | CC53: 1 | CD53: 1 | CF53: 1 | CG53: 1 | CH53: 1 | CI53: 1 | CJ53: 1 | CK53: 1 | CL53: 1 | CM53: 1 | CN53: 1 | CO53: 1 | CP53: 1 | CQ53: 1 | CR53: 1 | CS53: 1 | CT53: 1 | CU53: 1 | CV53: 1 | CW53: 1 | CX53: 1 | CY53: 1 | CZ53: 1 | DA53: 1 | DB53: 1 | DC53: 1 | DD53: 1 | DE53: 1 | DF53: 1 | DG53: 1 | DH53: 1 | DI53: 1 | DJ53: 1 | DK53: 1 | DL53: 1 | DM53: 1 | DN53: 1 | DO53: 1 | DP53: 1 | DQ53: 1 | DR53: 1 | DS53: 1 | DT53: 1 | DU53: 1 | DV53: 1 | DW53: 1 | DX53: 1 | DY53: 1 | DZ53: 1 | EA53: 1 | EB53: 1 | EC53: 1 | ED53: 1 | EE53: 1 | EF53: 1 | EG53: 1 | EH53: 1 | EI53: 1 | EJ53: 1 | EK53: 1 | EL53: 1 | EM53: 1 | EN53: 1 | EO53: 1 | EP53: 1 | EQ53: 1 | ER53: 1 | ES53: 1 | ET53: 1 | EU53: 1 | EV53: 1 | EW53: 1 | EX53: 1 | EY53: 1 | FA53: 1 | FB53: 1 | FC53: 1 | FD53: 1 | FE53: 1 | FF53: 1 | FG53: 1 | FH53: 1 | FI53: 1 | FJ53: 1 | FK53: 1 | FL53: 1 | FM53: 1 | FN53: 1 | FO53: 1 | FQ53: 1 | FR53: 1 | FS53: 1 | FT53: 1 | FU53: 1 | FV53: 1 | FW53: 1 | FX53: 1 | FY53: 1 | FZ53: 1 | GA53: 1 | GB53: 1 | GC53: 1 | GD53: 1 | GE53: 1 | GF53: 1 | GH53: 1 | GI53: 1 | GJ53: 1 | GK53: 1 | GL53: 1 | GM53: 1 | GN53: 1 | GO53: 1 | GP53: 1 | GQ53: 1 | GR53: 1 | GS53: 1 | GT53: 1 | GU53: 1 | GV53: 1 | GW53: 1 | GX53: 1 | GY53: 1 | GZ53: 1 | HA53: 1 | HB53: 1 | HC53: 1 | HD53: 1 | HE53: 1 | HF53: 1 | HG53: 1 | HH53: 1 | HI53: 1 | HJ53: 1 | HK53: 1 | HM53: 1 | HN53: 1 | HO53: 1 | HP53: 1 | HQ53: 1 | HR53: 1 | HS53: 1 | HT53: 1 | HU53: 1 | HV53: 221
A54: 2000 | B54: 1 | C54: 1 | D54: 1 | E54: 1 | F54: 1 | G54: 1 | H54: 1 | I54: 1 | J54: 1 | K54: 1 | L54: 1 | M54: 1 | N54: 1 | O54: 1 | P54: 1 | Q54: 1 | R54: 1 | S54: 1 | T54: 1 | U54: 1 | V54: 1 | W54: 1 | X54: 1 | Y54: 1 | Z54: 1 | AA54: 1 | AB54: 1 | AC54: 1 | AD54: 1 | AE54: 1 | AF54: 1 | AG54: 1 | AH54: 1 | AI54: 1 | AJ54: 1 | AK54: 1 | AL54: 1 | AM54: 1 | AN54: 1 | AO54: 1 | AP54: 1 | AQ54: 1 | AR54: 1 | AS54: 1 | AT54: 1 | AU54: 1 | AV54: 1 | AW54: 1 | AX54: 1 | AY54: 1 | AZ54: 1 | BA54: 1 | BB54: 1 | BC54: 1 | BD54: 1 | BE54: 1 | BF54: 1 | BG54: 1 | BH54: 1 | BI54: 1 | BJ54: 1 | BK54: 1 | BL54: 1 | BM54: 1 | BN54: 1 | BO54: 1 | BP54: 1 | BQ54: 1 | BR54: 1 | BS54: 1 | BT54: 1 | BU54: 1 | BV54: 1 | BW54: 1 | BX54: 1 | BY54: 1 | BZ54: 1 | CA54: 1 | CB54: 1 | CC54: 1 | CD54: 1 | CE54: 1 | CF54: 1 | CG54: 1 | CH54: 1 | CI54: 1 | CJ54: 1 | CK54: 1 | CL54: 1 | CM54: 1 | CN54: 1 | CO54: 1 | CP54: 1 | CQ54: 1 | CR54: 1 | CS54: 1 | CT54: 1 | CU54: 1 | CV54: 1 | CW54: 1 | CX54: 1 | CY54: 1 | CZ54: 1 | DA54: 1 | DB54: 1 | DC54: 1 | DD54: 1 | DE54: 1 | DF54: 1 | DG54: 1 | DH54: 1 | DI54: 1 | DJ54: 1 | DK54: 1 | DL54: 1 | DM54: 1 | DN54: 1 | DO54: 1 | DP54: 1 | DQ54: 1 | DR54: 1 | DS54: 1 | DT54: 1 | DU54: 1 | DV54: 1 | DW54: 1 | DX54: 1 | DY54: 1 | DZ54: 1 | EA54: 1 | EB54: 1 | EC54: 1 | ED54: 1 | EE54: 1 | EF54: 1 | EG54: 1 | EH54: 1 | EI54: 1 | EJ54: 1 | EK54: 1 | EL54: 1 | EM54: 1 | EN54: 1 | EO54: 1 | EP54: 1 | EQ54: 1 | ER54: 1 | ES54: 1 | ET54: 1 | EU54: 1 | EV54: 1 | EW54: 1 | EX54: 1 | EY54: 1 | FA54: 1 | FB54: 1 | FC54: 1 | FD54: 1 | FE54: 1 | FF54: 1 | FG54: 1 | FH54: 1 | FI54: 1 | FJ54: 1 | FK54: 1 | FL54: 1 | FM54: 1 | FN54: 1 | FO54: 1 | FQ54: 1 | FR54: 1 | FS54: 1 | FT54: 1 | FU54: 1 | FV54: 1 | FW54: 1 | FX54: 1 | FY54: 1 | FZ54: 1 | GA54: 1 | GB54: 1 | GC54: 1 | GD54: 1 | GE54: 1 | GF54: 1 | GH54: 1 | GI54: 1 | GJ54: 1 | GK54: 1 | GL54: 1 | GM54: 1 | GN54: 1 | GO54: 1 | GP54: 1 | GQ54: 1 | GR54: 1 | GS54: 1 | GT54: 1 | GU54: 1 | GV54: 1 | GW54: 1 | GX54: 1 | GY54: 1 | GZ54: 1 | HA54: 1 | HB54: 1 | HC54: 1 | HD54: 1 | HE54: 1 | HF54: 1 | HG54: 1 | HH54: 1 | HI54: 1 | HJ54: 1 | HK54: 1 | HL54: 1 | HM54: 1 | HN54: 1 | HO54: 1 | HP54: 1 | HQ54: 1 | HR54: 1 | HS54: 1 | HT54: 1 | HU54: 1 | HV54: 225
A55: 2001 | B55: 1 | C55: 1 | D55: 1 | E55: 1 | F55: 1 | G55: 1 | H55: 1 | I55: 1 | J55: 1 | K55: 1 | L55: 1 | M55: 1 | N55: 1 | O55: 1 | P55: 1 | Q55: 1 | R55: 1 | S55: 1 | T55: 1 | U55: 1 | V55: 1 | W55: 1 | X55: 1 | Y55: 1 | Z55: 1 | AA55: 1 | AB55: 1 | AC55: 1 | AD55: 1 | AE55: 1 | AF55: 1 | AG55: 1 | AH55: 1 | AI55: 1 | AJ55: 1 | AK55: 1 | AL55: 1 | AM55: 1 | AN55: 1 | AO55: 1 | AP55: 1 | AQ55: 1 | AR55: 1 | AS55: 1 | AT55: 1 | AU55: 1 | AV55: 1 | AW55: 1 | AX55: 1 | AY55: 1 | AZ55: 1 | BA55: 1 | BB55: 1 | BC55: 1 | BD55: 1 | BE55: 1 | BF55: 1 | BG55: 1 | BH55: 1 | BI55: 1 | BJ55: 1 | BK55: 1 | BL55: 1 | BM55: 1 | BN55: 1 | BO55: 1 | BP55: 1 | BQ55: 1 | BR55: 1 | BS55: 1 | BT55: 1 | BU55: 1 | BV55: 1 | BW55: 1 | BX55: 1 | BY55: 1 | BZ55: 1 | CA55: 1 | CB55: 1 | CC55: 1 | CD55: 1 | CE55: 1 | CF55: 1 | CG55: 1 | CH55: 1 | CI55: 1 | CJ55: 1 | CK55: 1 | CL55: 1 | CM55: 1 | CN55: 1 | CO55: 1 | CP55: 1 | CQ55: 1 | CR55: 1 | CS55: 1 | CT55: 1 | CU55: 1 | CV55: 1 | CW55: 1 | CX55: 1 | CY55: 1 | CZ55: 1 | DA55: 1 | DB55: 1 | DC55: 1 | DD55: 1 | DE55: 1 | DF55: 1 | DG55: 1 | DH55: 1 | DI55: 1 | DJ55: 1 | DK55: 1 | DL55: 1 | DM55: 1 | DN55: 1 | DO55: 1 | DP55: 1 | DQ55: 1 | DR55: 1 | DS55: 1 | DT55: 1 | DU55: 1 | DV55: 1 | DW55: 1 | DX55: 1 | DY55: 1 | DZ55: 1 | EA55: 1 | EB55: 1 | EC55: 1 | ED55: 1 | EE55: 1 | EF55: 1 | EG55: 1 | EH55: 1 | EI55: 1 | EJ55: 1 | EK55: 1 | EL55: 1 | EM55: 1 | EN55: 1 | EO55: 1 | EP55: 1 | EQ55: 1 | ER55: 1 | ES55: 1 | ET55: 1 | EU55: 1 | EV55: 1 | EW55: 1 | EX55: 1 | EY55: 1 | FA55: 1 | FB55: 1 | FC55: 1 | FD55: 1 | FE55: 1 | FF55: 1 | FG55: 1 | FH55: 1 | FI55: 1 | FJ55: 1 | FK55: 1 | FL55: 1 | FM55: 1 | FN55: 1 | FO55: 1 | FQ55: 1 | FR55: 1 | FS55: 1 | FT55: 1 | FU55: 1 | FV55: 1 | FW55: 1 | FX55: 1 | FY55: 1 | FZ55: 1 | GA55: 1 | GB55: 1 | GC55: 1 | GD55: 1 | GE55: 1 | GF55: 1 | GH55: 1 | GI55: 1 | GJ55: 1 | GK55: 1 | GL55: 1 | GM55: 1 | GN55: 1 | GO55: 1 | GP55: 1 | GQ55: 1 | GR55: 1 | GS55: 1 | GT55: 1 | GU55: 1 | GV55: 1 | GW55: 1 | GX55: 1 | GY55: 1 | GZ55: 1 | HA55: 1 | HB55: 1 | HC55: 1 | HD55: 1 | HE55: 1 | HF55: 1 | HG55: 1 | HH55: 1 | HI55: 1 | HJ55: 1 | HK55: 1 | HL55: 1 | HM55: 1 | HN55: 1 | HO55: 1 | HP55: 1 | HQ55: 1 | HR55: 1 | HS55: 1 | HT55: 1 | HU55: 1 | HV55: 225
A56: 2002 | B56: 1 | C56: 1 | D56: 1 | E56: 1 | F56: 1 | G56: 1 | H56: 1 | I56: 1 | J56: 1 | K56: 1 | L56: 1 | M56: 1 | N56: 1 | O56: 1 | P56: 1 | Q56: 1 | R56: 1 | S56: 1 | T56: 1 | U56: 1 | V56: 1 | W56: 1 | X56: 1 | Y56: 1 | Z56: 1 | AA56: 1 | AB56: 1 | AC56: 1 | AD56: 1 | AE56: 1 | AF56: 1 | AG56: 1 | AH56: 1 | AI56: 1 | AJ56: 1 | AK56: 1 | AL56: 1 | AM56: 1 | AN56: 1 | AO56: 1 | AP56: 1 | AQ56: 1 | AR56: 1 | AS56: 1 | AT56: 1 | AU56: 1 | AV56: 1 | AW56: 1 | AX56: 1 | AY56: 1 | AZ56: 1 | BA56: 1 | BB56: 1 | BC56: 1 | BD56: 1 | BE56: 1 | BF56: 1 | BG56: 1 | BH56: 1 | BI56: 1 | BJ56: 1 | BK56: 1 | BL56: 1 | BM56: 1 | BN56: 1 | BO56: 1 | BP56: 1 | BQ56: 1 | BR56: 1 | BS56: 1 | BT56: 1 | BU56: 1 | BV56: 1 | BW56: 1 | BX56: 1 | BY56: 1 | BZ56: 1 | CA56: 1 | CB56: 1 | CC56: 1 | CD56: 1 | CE56: 1 | CF56: 1 | CG56: 1 | CH56: 1 | CI56: 1 | CJ56: 1 | CK56: 1 | CL56: 1 | CM56: 1 | CN56: 1 | CO56: 1 | CP56: 1 | CQ56: 1 | CR56: 1 | CS56: 1 | CT56: 1 | CU56: 1 | CV56: 1 | CW56: 1 | CX56: 1 | CY56: 1 | CZ56: 1 | DA56: 1 | DB56: 1 | DC56: 1 | DD56: 1 | DE56: 1 | DF56: 1 | DG56: 1 | DH56: 1 | DI56: 1 | DJ56: 1 | DK56: 1 | DL56: 1 | DM56: 1 | DN56: 1 | DO56: 1 | DP56: 1 | DQ56: 1 | DR56: 1 | DS56: 1 | DT56: 1 | DU56: 1 | DV56: 1 | DW56: 1 | DX56: 1 | DY56: 1 | DZ56: 1 | EA56: 1 | EB56: 1 | EC56: 1 | ED56: 1 | EE56: 1 | EF56: 1 | EG56: 1 | EH56: 1 | EI56: 1 | EJ56: 1 | EK56: 1 | EL56: 1 | EM56: 1 | EN56: 1 | EO56: 1 | EP56: 1 | EQ56: 1 | ER56: 1 | ES56: 1 | ET56: 1 | EU56: 1 | EV56: 1 | EW56: 1 | EX56: 1 | EY56: 1 | FA56: 1 | FB56: 1 | FC56: 1 | FD56: 1 | FE56: 1 | FF56: 1 | FG56: 1 | FH56: 1 | FI56: 1 | FJ56: 1 | FK56: 1 | FL56: 1 | FM56: 1 | FN56: 1 | FO56: 1 | FQ56: 1 | FR56: 1 | FS56: 1 | FT56: 1 | FU56: 1 | FV56: 1 | FW56: 1 | FX56: 1 | FY56: 1 | FZ56: 1 | GA56: 1 | GB56: 1 | GC56: 1 | GD56: 1 | GE56: 1 | GF56: 1 | GH56: 1 | GI56: 1 | GJ56: 1 | GK56: 1 | GL56: 1 | GM56: 1 | GN56: 1 | GO56: 1 | GP56: 1 | GQ56: 1 | GR56: 1 | GS56: 1 | GT56: 1 | GU56: 1 | GV56: 1 | GW56: 1 | GX56: 1 | GY56: 1 | GZ56: 1 | HA56: 1 | HB56: 1 | HC56: 1 | HD56: 1 | HE56: 1 | HF56: 1 | HG56: 1 | HH56: 1 | HI56: 1 | HJ56: 1 | HK56: 1 | HL56: 1 | HM56: 1 | HN56: 1 | HO56: 1 | HP56: 1 | HQ56: 1 | HR56: 1 | HS56: 1 | HT56: 1 | HU56: 1 | HV56: 225
A57: 2003 | B57: 1 | C57: 1 | D57: 1 | E57: 1 | F57: 1 | G57: 1 | H57: 1 | I57: 1 | J57: 1 | K57: 1 | L57: 1 | M57: 1 | N57: 1 | O57: 1 | P57: 1 | Q57: 1 | R57: 1 | S57: 1 | T57: 1 | U57: 1 | V57: 1 | W57: 1 | X57: 1 | Y57: 1 | Z57: 1 | AA57: 1 | AB57: 1 | AC57: 1 | AD57: 1 | AE57: 1 | AF57: 1 | AG57: 1 | AH57: 1 | AI57: 1 | AJ57: 1 | AK57: 1 | AL57: 1 | AM57: 1 | AN57: 1 | AO57: 1 | AP57: 1 | AQ57: 1 | AR57: 1 | AS57: 1 | AT57: 1 | AU57: 1 | AV57: 1 | AW57: 1 | AX57: 1 | AY57: 1 | AZ57: 1 | BA57: 1 | BB57: 1 | BC57: 1 | BD57: 1 | BE57: 1 | BF57: 1 | BG57: 1 | BH57: 1 | BI57: 1 | BJ57: 1 | BK57: 1 | BL57: 1 | BM57: 1 | BN57: 1 | BO57: 1 | BP57: 1 | BQ57: 1 | BR57: 1 | BS57: 1 | BT57: 1 | BU57: 1 | BV57: 1 | BW57: 1 | BX57: 1 | BY57: 1 | BZ57: 1 | CA57: 1 | CB57: 1 | CC57: 1 | CD57: 1 | CE57: 1 | CF57: 1 | CG57: 1 | CH57: 1 | CI57: 1 | CJ57: 1 | CK57: 1 | CL57: 1 | CM57: 1 | CN57: 1 | CO57: 1 | CP57: 1 | CQ57: 1 | CR57: 1 | CS57: 1 | CT57: 1 | CU57: 1 | CV57: 1 | CW57: 1 | CX57: 1 | CY57: 1 | CZ57: 1 | DA57: 1 | DB57: 1 | DC57: 1 | DD57: 1 | DE57: 1 | DF57: 1 | DG57: 1 | DH57: 1 | DI57: 1 | DJ57: 1 | DK57: 1 | DL57: 1 | DM57: 1 | DN57: 1 | DO57: 1 | DP57: 1 | DQ57: 1 | DR57: 1 | DS57: 1 | DT57: 1 | DU57: 1 | DV57: 1 | DW57: 1 | DX57: 1 | DY57: 1 | DZ57: 1 | EA57: 1 | EB57: 1 | EC57: 1 | ED57: 1 | EE57: 1 | EF57: 1 | EG57: 1 | EH57: 1 | EI57: 1 | EJ57: 1 | EK57: 1 | EL57: 1 | EM57: 1 | EN57: 1 | EO57: 1 | EP57: 1 | EQ57: 1 | ER57: 1 | ES57: 1 | ET57: 1 | EU57: 1 | EV57: 1 | EW57: 1 | EX57: 1 | EY57: 1 | FA57: 1 | FB57: 1 | FC57: 1 | FD57: 1 | FE57: 1 | FF57: 1 | FG57: 1 | FH57: 1 | FI57: 1 | FJ57: 1 | FK57: 1 | FL57: 1 | FM57: 1 | FN57: 1 | FO57: 1 | FQ57: 1 | FR57: 1 | FS57: 1 | FT57: 1 | FU57: 1 | FV57: 1 | FW57: 1 | FX57: 1 | FY57: 1 | FZ57: 1 | GA57: 1 | GB57: 1 | GC57: 1 | GD57: 1 | GE57: 1 | GF57: 1 | GH57: 1 | GI57: 1 | GJ57: 1 | GK57: 1 | GL57: 1 | GM57: 1 | GN57: 1 | GO57: 1 | GP57: 1 | GQ57: 1 | GR57: 1 | GS57: 1 | GT57: 1 | GU57: 1 | GV57: 1 | GW57: 1 | GX57: 1 | GY57: 1 | GZ57: 1 | HA57: 1 | HB57: 1 | HC57: 1 | HD57: 1 | HE57: 1 | HF57: 1 | HG57: 1 | HH57: 1 | HI57: 1 | HJ57: 1 | HK57: 1 | HL57: 1 | HM57: 1 | HN57: 1 | HO57: 1 | HP57: 1 | HQ57: 1 | HR57: 1 | HS57: 1 | HT57: 1 | HU57: 1 | HV57: 225
A58: 2004 | B58: 1 | C58: 1 | D58: 1 | E58: 1 | F58: 1 | G58: 1 | H58: 1 | I58: 1 | J58: 1 | K58: 1 | L58: 1 | M58: 1 | N58: 1 | O58: 1 | P58: 1 | Q58: 1 | R58: 1 | S58: 1 | T58: 1 | U58: 1 | V58: 1 | W58: 1 | X58: 1 | Y58: 1 | Z58: 1 | AA58: 1 | AB58: 1 | AC58: 1 | AD58: 1 | AE58: 1 | AF58: 1 | AG58: 1 | AH58: 1 | AI58: 1 | AJ58: 1 | AK58: 1 | AL58: 1 | AM58: 1 | AN58: 1 | AO58: 1 | AP58: 1 | AQ58: 1 | AR58: 1 | AS58: 1 | AT58: 1 | AU58: 1 | AV58: 1 | AW58: 1 | AX58: 1 | AY58: 1 | AZ58: 1 | BA58: 1 | BB58: 1 | BC58: 1 | BD58: 1 | BE58: 1 | BF58: 1 | BG58: 1 | BH58: 1 | BI58: 1 | BJ58: 1 | BK58: 1 | BL58: 1 | BM58: 1 | BN58: 1 | BO58: 1 | BP58: 1 | BQ58: 1 | BR58: 1 | BS58: 1 | BT58: 1 | BU58: 1 | BV58: 1 | BW58: 1 | BX58: 1 | BY58: 1 | BZ58: 1 | CA58: 1 | CB58: 1 | CC58: 1 | CD58: 1 | CE58: 1 | CF58: 1 | CG58: 1 | CH58: 1 | CI58: 1 | CJ58: 1 | CK58: 1 | CL58: 1 | CM58: 1 | CN58: 1 | CO58: 1 | CP58: 1 | CQ58: 1 | CR58: 1 | CS58: 1 | CT58: 1 | CU58: 1 | CV58: 1 | CW58: 1 | CX58: 1 | CY58: 1 | CZ58: 1 | DA58: 1 | DB58: 1 | DC58: 1 | DD58: 1 | DE58: 1 | DF58: 1 | DG58: 1 | DH58: 1 | DI58: 1 | DJ58: 1 | DK58: 1 | DL58: 1 | DM58: 1 | DN58: 1 | DO58: 1 | DP58: 1 | DQ58: 1 | DR58: 1 | DS58: 1 | DT58: 1 | DU58: 1 | DV58: 1 | DW58: 1 | DX58: 1 | DY58: 1 | DZ58: 1 | EA58: 1 | EB58: 1 | EC58: 1 | ED58: 1 | EE58: 1 | EF58: 1 | EG58: 1 | EH58: 1 | EI58: 1 | EJ58: 1 | EK58: 1 | EL58: 1 | EM58: 1 | EN58: 1 | EO58: 1 | EP58: 1 | EQ58: 1 | ER58: 1 | ES58: 1 | ET58: 1 | EU58: 1 | EV58: 1 | EW58: 1 | EX58: 1 | EY58: 1 | FA58: 1 | FB58: 1 | FC58: 1 | FD58: 1 | FE58: 1 | FF58: 1 | FG58: 1 | FH58: 1 | FI58: 1 | FJ58: 1 | FK58: 1 | FL58: 1 | FM58: 1 | FN58: 1 | FO58: 1 | FQ58: 1 | FR58: 1 | FS58: 1 | FT58: 1 | FU58: 1 | FV58: 1 | FW58: 1 | FX58: 1 | FY58: 1 | FZ58: 1 | GA58: 1 | GB58: 1 | GC58: 1 | GD58: 1 | GE58: 1 | GF58: 1 | GH58: 1 | GI58: 1 | GJ58: 1 | GK58: 1 | GL58: 1 | GM58: 1 | GN58: 1 | GO58: 1 | GP58: 1 | GQ58: 1 | GR58: 1 | GS58: 1 | GT58: 1 | GU58: 1 | GV58: 1 | GW58: 1 | GX58: 1 | GY58: 1 | GZ58: 1 | HA58: 1 | HB58: 1 | HC58: 1 | HD58: 1 | HE58: 1 | HF58: 1 | HG58: 1 | HH58: 1 | HI58: 1 | HJ58: 1 | HK58: 1 | HL58: 1 | HM58: 1 | HN58: 1 | HO58: 1 | HP58: 1 | HQ58: 1 | HR58: 1 | HS58: 1 | HT58: 1 | HU58: 1 | HV58: 225
A59: 2005 | B59: 1 | C59: 1 | D59: 1 | E59: 1 | F59: 1 | G59: 1 | H59: 1 | I59: 1 | J59: 1 | K59: 1 | L59: 1 | M59: 1 | N59: 1 | O59: 1 | P59: 1 | Q59: 1 | R59: 1 | S59: 1 | T59: 1 | U59: 1 | V59: 1 | W59: 1 | X59: 1 | Y59: 1 | Z59: 1 | AA59: 1 | AB59: 1 | AC59: 1 | AD59: 1 | AE59: 1 | AF59: 1 | AG59: 1 | AH59: 1 | AI59: 1 | AJ59: 1 | AK59: 1 | AL59: 1 | AM59: 1 | AN59: 1 | AO59: 1 | AP59: 1 | AQ59: 1 | AR59: 1 | AS59: 1 | AT59: 1 | AU59: 1 | AV59: 1 | AW59: 1 | AX59: 1 | AY59: 1 | AZ59: 1 | BA59: 1 | BB59: 1 | BC59: 1 | BD59: 1 | BE59: 1 | BF59: 1 | BG59: 1 | BH59: 1 | BI59: 1 | BJ59: 1 | BK59: 1 | BL59: 1 | BM59: 1 | BN59: 1 | BO59: 1 | BP59: 1 | BQ59: 1 | BR59: 1 | BS59: 1 | BT59: 1 | BU59: 1 | BV59: 1 | BW59: 1 | BX59: 1 | BY59: 1 | BZ59: 1 | CA59: 1 | CB59: 1 | CC59: 1 | CD59: 1 | CE59: 1 | CF59: 1 | CG59: 1 | CH59: 1 | CI59: 1 | CJ59: 1 | CK59: 1 | CL59: 1 | CM59: 1 | CN59: 1 | CO59: 1 | CP59: 1 | CQ59: 1 | CR59: 1 | CS59: 1 | CT59: 1 | CU59: 1 | CV59: 1 | CW59: 1 | CX59: 1 | CY59: 1 | CZ59: 1 | DA59: 1 | DB59: 1 | DC59: 1 | DD59: 1 | DE59: 1 | DF59: 1 | DG59: 1 | DH59: 1 | DI59: 1 | DJ59: 1 | DK59: 1 | DL59: 1 | DM59: 1 | DN59: 1 | DO59: 1 | DP59: 1 | DQ59: 1 | DR59: 1 | DS59: 1 | DT59: 1 | DU59: 1 | DV59: 1 | DW59: 1 | DX59: 1 | DY59: 1 | DZ59: 1 | EA59: 1 | EB59: 1 | EC59: 1 | ED59: 1 | EE59: 1 | EF59: 1 | EG59: 1 | EH59: 1 | EI59: 1 | EJ59: 1 | EK59: 1 | EL59: 1 | EM59: 1 | EN59: 1 | EO59: 1 | EP59: 1 | EQ59: 1 | ER59: 1 | ES59: 1 | ET59: 1 | EU59: 1 | EV59: 1 | EW59: 1 | EX59: 1 | EY59: 1 | FA59: 1 | FB59: 1 | FC59: 1 | FD59: 1 | FE59: 1 | FF59: 1 | FG59: 1 | FH59: 1 | FI59: 1 | FJ59: 1 | FK59: 1 | FL59: 1 | FM59: 1 | FN59: 1 | FO59: 1 | FQ59: 1 | FR59: 1 | FS59: 1 | FT59: 1 | FU59: 1 | FV59: 1 | FW59: 1 | FX59: 1 | FY59: 1 | FZ59: 1 | GA59: 1 | GB59: 1 | GC59: 1 | GD59: 1 | GE59: 1 | GF59: 1 | GH59: 1 | GI59: 1 | GJ59: 1 | GK59: 1 | GL59: 1 | GM59: 1 | GN59: 1 | GO59: 1 | GP59: 1 | GQ59: 1 | GR59: 1 | GS59: 1 | GT59: 1 | GU59: 1 | GV59: 1 | GW59: 1 | GX59: 1 | GY59: 1 | GZ59: 1 | HA59: 1 | HB59: 1 | HC59: 1 | HD59: 1 | HE59: 1 | HF59: 1 | HG59: 1 | HH59: 1 | HI59: 1 | HJ59: 1 | HK59: 1 | HL59: 1 | HM59: 1 | HN59: 1 | HO59: 1 | HP59: 1 | HQ59: 1 | HR59: 1 | HS59: 1 | HT59: 1 | HU59: 1 | HV59: 225
A60: 2006 | B60: 1 | C60: 1 | D60: 1 | E60: 1 | F60: 1 | G60: 1 | H60: 1 | I60: 1 | J60: 1 | K60: 1 | L60: 1 | M60: 1 | N60: 1 | O60: 1 | P60: 1 | Q60: 1 | R60: 1 | S60: 1 | T60: 1 | U60: 1 | V60: 1 | W60: 1 | X60: 1 | Y60: 1 | Z60: 1 | AA60: 1 | AB60: 1 | AC60: 1 | AD60: 1 | AE60: 1 | AF60: 1 | AG60: 1 | AH60: 1 | AI60: 1 | AJ60: 1 | AK60: 1 | AL60: 1 | AM60: 1 | AN60: 1 | AO60: 1 | AP60: 1 | AQ60: 1 | AR60: 1 | AS60: 1 | AT60: 1 | AU60: 1 | AV60: 1 | AW60: 1 | AX60: 1 | AY60: 1 | AZ60: 1 | BA60: 1 | BB60: 1 | BC60: 1 | BD60: 1 | BE60: 1 | BF60: 1 | BG60: 1 | BH60: 1 | BI60: 1 | BJ60: 1 | BK60: 1 | BL60: 1 | BM60: 1 | BN60: 1 | BO60: 1 | BP60: 1 | BQ60: 1 | BR60: 1 | BS60: 1 | BT60: 1 | BU60: 1 | BV60: 1 | BW60: 1 | BX60: 1 | BY60: 1 | BZ60: 1 | CA60: 1 | CB60: 1 | CC60: 1 | CD60: 1 | CE60: 1 | CF60: 1 | CG60: 1 | CH60: 1 | CI60: 1 | CJ60: 1 | CK60: 1 | CL60: 1 | CM60: 1 | CN60: 1 | CO60: 1 | CP60: 1 | CQ60: 1 | CR60: 1 | CS60: 1 | CT60: 1 | CU60: 1 | CV60: 1 | CW60: 1 | CX60: 1 | CY60: 1 | CZ60: 1 | DA60: 1 | DB60: 1 | DC60: 1 | DD60: 1 | DE60: 1 | DF60: 1 | DG60: 1 | DH60: 1 | DI60: 1 | DJ60: 1 | DK60: 1 | DL60: 1 | DM60: 1 | DN60: 1 | DO60: 1 | DP60: 1 | DQ60: 1 | DR60: 1 | DS60: 1 | DT60: 1 | DU60: 1 | DV60: 1 | DW60: 1 | DX60: 1 | DY60: 1 | DZ60: 1 | EA60: 1 | EB60: 1 | EC60: 1 | ED60: 1 | EE60: 1 | EF60: 1 | EG60: 1 | EH60: 1 | EI60: 1 | EJ60: 1 | EK60: 1 | EL60: 1 | EM60: 1 | EN60: 1 | EO60: 1 | EP60: 1 | EQ60: 1 | ER60: 1 | ES60: 1 | ET60: 1 | EU60: 1 | EV60: 1 | EW60: 1 | EX60: 1 | EY60: 1 | FA60: 1 | FB60: 1 | FC60: 1 | FD60: 1 | FE60: 1 | FF60: 1 | FG60: 1 | FH60: 1 | FI60: 1 | FJ60: 1 | FK60: 1 | FL60: 1 | FM60: 1 | FN60: 1 | FO60: 1 | FQ60: 1 | FR60: 1 | FS60: 1 | FT60: 1 | FU60: 1 | FV60: 1 | FW60: 1 | FX60: 1 | FY60: 1 | FZ60: 1 | GA60: 1 | GB60: 1 | GC60: 1 | GD60: 1 | GE60: 1 | GF60: 1 | GH60: 1 | GI60: 1 | GJ60: 1 | GK60: 1 | GL60: 1 | GM60: 1 | GN60: 1 | GO60: 1 | GP60: 1 | GQ60: 1 | GR60: 1 | GS60: 1 | GT60: 1 | GU60: 1 | GV60: 1 | GW60: 1 | GX60: 1 | GY60: 1 | GZ60: 1 | HA60: 1 | HB60: 1 | HC60: 1 | HD60: 1 | HE60: 1 | HF60: 1 | HG60: 1 | HH60: 1 | HI60: 1 | HJ60: 1 | HK60: 1 | HL60: 1 | HM60: 1 | HN60: 1 | HO60: 1 | HP60: 1 | HQ60: 1 | HR60: 1 | HS60: 1 | HT60: 1 | HU60: 1 | HV60: 225
A61: 2007 | B61: 1 | C61: 1 | D61: 1 | E61: 1 | F61: 1 | G61: 1 | H61: 1 | I61: 1 | J61: 1 | K61: 1 | L61: 1 | M61: 1 | N61: 1 | O61: 1 | P61: 1 | Q61: 1 | R61: 1 | S61: 1 | T61: 1 | U61: 1 | V61: 1 | W61: 1 | X61: 1 | Y61: 1 | Z61: 1 | AA61: 1 | AB61: 1 | AC61: 1 | AD61: 1 | AE61: 1 | AF61: 1 | AG61: 1 | AH61: 1 | AI61: 1 | AJ61: 1 | AK61: 1 | AL61: 1 | AM61: 1 | AN61: 1 | AO61: 1 | AP61: 1 | AQ61: 1 | AR61: 1 | AS61: 1 | AT61: 1 | AU61: 1 | AV61: 1 | AW61: 1 | AX61: 1 | AY61: 1 | AZ61: 1 | BA61: 1 | BB61: 1 | BC61: 1 | BD61: 1 | BE61: 1 | BF61: 1 | BG61: 1 | BH61: 1 | BI61: 1 | BJ61: 1 | BK61: 1 | BL61: 1 | BM61: 1 | BN61: 1 | BO61: 1 | BP61: 1 | BQ61: 1 | BR61: 1 | BS61: 1 | BT61: 1 | BU61: 1 | BV61: 1 | BW61: 1 | BX61: 1 | BY61: 1 | BZ61: 1 | CA61: 1 | CB61: 1 | CC61: 1 | CD61: 1 | CE61: 1 | CF61: 1 | CG61: 1 | CH61: 1 | CI61: 1 | CJ61: 1 | CK61: 1 | CL61: 1 | CM61: 1 | CN61: 1 | CO61: 1 | CP61: 1 | CQ61: 1 | CR61: 1 | CS61: 1 | CT61: 1 | CU61: 1 | CV61: 1 | CW61: 1 | CX61: 1 | CY61: 1 | CZ61: 1 | DA61: 1 | DB61: 1 | DC61: 1 | DD61: 1 | DE61: 1 | DF61: 1 | DG61: 1 | DH61: 1 | DI61: 1 | DJ61: 1 | DK61: 1 | DL61: 1 | DM61: 1 | DN61: 1 | DO61: 1 | DP61: 1 | DQ61: 1 | DR61: 1 | DS61: 1 | DT61: 1 | DU61: 1 | DV61: 1 | DW61: 1 | DX61: 1 | DY61: 1 | DZ61: 1 | EA61: 1 | EB61: 1 | EC61: 1 | ED61: 1 | EE61: 1 | EF61: 1 | EG61: 1 | EH61: 1 | EI61: 1 | EJ61: 1 | EK61: 1 | EL61: 1 | EM61: 1 | EN61: 1 | EO61: 1 | EP61: 1 | EQ61: 1 | ER61: 1 | ES61: 1 | ET61: 1 | EU61: 1 | EV61: 1 | EW61: 1 | EX61: 1 | EY61: 1 | FA61: 1 | FB61: 1 | FC61: 1 | FD61: 1 | FE61: 1 | FF61: 1 | FG61: 1 | FH61: 1 | FI61: 1 | FJ61: 1 | FK61: 1 | FL61: 1 | FM61: 1 | FN61: 1 | FO61: 1 | FQ61: 1 | FR61: 1 | FS61: 1 | FT61: 1 | FU61: 1 | FV61: 1 | FW61: 1 | FX61: 1 | FY61: 1 | FZ61: 1 | GA61: 1 | GB61: 1 | GC61: 1 | GD61: 1 | GE61: 1 | GF61: 1 | GH61: 1 | GI61: 1 | GJ61: 1 | GK61: 1 | GL61: 1 | GM61: 1 | GN61: 1 | GO61: 1 | GP61: 1 | GQ61: 1 | GR61: 1 | GS61: 1 | GT61: 1 | GU61: 1 | GV61: 1 | GW61: 1 | GX61: 1 | GY61: 1 | GZ61: 1 | HA61: 1 | HB61: 1 | HC61: 1 | HD61: 1 | HE61: 1 | HF61: 1 | HG61: 1 | HH61: 1 | HI61: 1 | HJ61: 1 | HK61: 1 | HL61: 1 | HM61: 1 | HN61: 1 | HO61: 1 | HP61: 1 | HQ61: 1 | HR61: 1 | HS61: 1 | HT61: 1 | HU61: 1 | HV61: 225
A62: 2008 | B62: 1 | C62: 1 | D62: 1 | E62: 1 | F62: 1 | G62: 1 | H62: 1 | I62: 1 | J62: 1 | K62: 1 | L62: 1 | M62: 1 | N62: 1 | O62: 1 | P62: 1 | Q62: 1 | R62: 1 | S62: 1 | T62: 1 | U62: 1 | V62: 1 | W62: 1 | X62: 1 | Y62: 1 | Z62: 1 | AA62: 1 | AB62: 1 | AC62: 1 | AD62: 1 | AE62: 1 | AF62: 1 | AG62: 1 | AH62: 1 | AI62: 1 | AJ62: 1 | AK62: 1 | AL62: 1 | AM62: 1 | AN62: 1 | AO62: 1 | AP62: 1 | AQ62: 1 | AR62: 1 | AS62: 1 | AT62: 1 | AU62: 1 | AV62: 1 | AW62: 1 | AX62: 1 | AY62: 1 | AZ62: 1 | BA62: 1 | BB62: 1 | BC62: 1 | BD62: 1 | BE62: 1 | BF62: 1 | BG62: 1 | BH62: 1 | BI62: 1 | BJ62: 1 | BK62: 1 | BL62: 1 | BM62: 1 | BN62: 1 | BO62: 1 | BP62: 1 | BQ62: 1 | BR62: 1 | BS62: 1 | BT62: 1 | BU62: 1 | BV62: 1 | BW62: 1 | BX62: 1 | BY62: 1 | BZ62: 1 | CA62: 1 | CB62: 1 | CC62: 1 | CD62: 1 | CE62: 1 | CF62: 1 | CG62: 1 | CH62: 1 | CI62: 1 | CJ62: 1 | CK62: 1 | CL62: 1 | CM62: 1 | CN62: 1 | CO62: 1 | CP62: 1 | CQ62: 1 | CR62: 1 | CS62: 1 | CT62: 1 | CU62: 1 | CV62: 1 | CW62: 1 | CX62: 1 | CY62: 1 | CZ62: 1 | DA62: 1 | DB62: 1 | DC62: 1 | DD62: 1 | DE62: 1 | DF62: 1 | DG62: 1 | DH62: 1 | DI62: 1 | DJ62: 1 | DK62: 1 | DL62: 1 | DM62: 1 | DN62: 1 | DO62: 1 | DP62: 1 | DQ62: 1 | DR62: 1 | DS62: 1 | DT62: 1 | DU62: 1 | DV62: 1 | DW62: 1 | DX62: 1 | DY62: 1 | DZ62: 1 | EA62: 1 | EB62: 1 | EC62: 1 | ED62: 1 | EE62: 1 | EF62: 1 | EG62: 1 | EH62: 1 | EI62: 1 | EJ62: 1 | EK62: 1 | EL62: 1 | EM62: 1 | EN62: 1 | EO62: 1 | EP62: 1 | EQ62: 1 | ER62: 1 | ES62: 1 | ET62: 1 | EU62: 1 | EV62: 1 | EW62: 1 | EX62: 1 | EY62: 1 | EZ62: 1 | FA62: 1 | FB62: 1 | FC62: 1 | FD62: 1 | FE62: 1 | FF62: 1 | FG62: 1 | FH62: 1 | FI62: 1 | FJ62: 1 | FK62: 1 | FL62: 1 | FM62: 1 | FN62: 1 | FO62: 1 | FQ62: 1 | FR62: 1 | FS62: 1 | FT62: 1 | FU62: 1 | FV62: 1 | FW62: 1 | FX62: 1 | FY62: 1 | FZ62: 1 | GA62: 1 | GB62: 1 | GC62: 1 | GD62: 1 | GE62: 1 | GF62: 1 | GG62: 1 | GH62: 1 | GI62: 1 | GJ62: 1 | GK62: 1 | GL62: 1 | GM62: 1 | GN62: 1 | GO62: 1 | GP62: 1 | GQ62: 1 | GR62: 1 | GS62: 1 | GT62: 1 | GU62: 1 | GV62: 1 | GW62: 1 | GX62: 1 | GY62: 1 | GZ62: 1 | HA62: 1 | HB62: 1 | HC62: 1 | HD62: 1 | HE62: 1 | HF62: 1 | HG62: 1 | HH62: 1 | HI62: 1 | HJ62: 1 | HK62: 1 | HL62: 1 | HM62: 1 | HN62: 1 | HO62: 1 | HP62: 1 | HQ62: 1 | HR62: 1 | HS62: 1 | HT62: 1 | HU62: 1 | HV62: 227
